Workbook

Sheet COMENTÁRIOS
A1: EMISSÕES DE CO2 DO CONSUMO DE ENERGIA NO FORMATO DO BEN | W1: Fator de conversão de ktep para TJ ==> | AE1: 41.868
A2: 1 | B2: A área em azul de cada aba contém a energia, a que está em rosa traz as emissões correspondentes. | X2: Chave carvão vapor, coque cm e coque petrol => | AF2: 0
A3: 2 | B3: As abas de 2010 e 2015 correspondem, quanto à energia, aos dados divulgados pelos BEN da EPE. De 2020 em diante, elas trazem dados do IES Brasil 2.
A4: 3 | B4: Os fatores de emissão (FE) são informados abaixo. Qualquer mudança nos mesmos afeta as emissões em todos os anos.
A5: 4 | B5: As emissões de CO2 dos renováveis são consideradas zero, mas poderiam assumir outros valores. Para isso basta trocar os FE correspondentes nesta aba.
A6: 5 | B6: A cada fonte de energia (coluna) do BEN em tep corresponde um único fator de emissão de CO2 para todos os setores e anos, com duas exceções:
A7: 6 | B7: A primeira é relativa às "Outras Fontes Primárias", que é subdividida em Lixívia, Outras Renováveis e Outras Não Renováveis. Não varia com setor e ano.
A8: 7 | B8: A segunda é o diesel, cujo FE depende do teor de biodiesel, que varia de acordo com o setor e o ano, sendo calculado na própria aba de cada ano.
A9: 8 | B9: Para o querosene, foi considerado só o FE do tipo de aviação, deixando de lado o iluminante, cuja participação máxima (em 2015) é menor que 0,1%.
A10: 9 | B10: De maneira semalhante, foi deixado de lado o FE específico da gasolina de aviação, cerca de 0,2% do total de gasolina consumida no país em 2015.
A11: 10 | B11: Emissões do consumo final de energia foram também computadas considerando o consumo indireto de eletricidade, alocado a cada setor de consumo.
A12: 11 | B12: A queda das emissões da eletricidade de 2015 para 2020 parece excessiva, e deve ser examinada, podendo indicar algum erro.
A13: EVOLUÇÃO DAS EMISSÕES DE CO2 DO CONSUMO FINAL DE ENERGIA AO LONGO DO TEMPO
H14: 2010 | K14: 2015 | N14: 2020 | Q14: 2025 | T14: 2030 | V14: 2035 | X14: 2040 | AA14: 2045 | AD14: 2050 | AH14: =H14 -> 2010 | AI14: =K14 -> 2015 | AJ14: =N14 -> 2020 | AK14: =Q14 -> 2025 | AL14: =T14 -> 2030 | AM14: =V14 -> 2035 | AN14: =X14 -> 2040 | AO14: =AA14 -> 2045 | AP14: =AD14 -> 2050
A15: EMISSÕES DE CO2 DA ELETRICIDADE | H15: =SUM((INDIRECT("'"&H$14&"'!$AD$121"))) -> 55182549.54 | K15: =SUM((INDIRECT("'"&K$14&"'!$AD$121"))) -> 81606236.92 | N15: =SUM((INDIRECT("'"&N$14&"'!$AD$121"))) -> 58518992.25 | Q15: =SUM((INDIRECT("'"&Q$14&"'!$AD$121"))) -> 62025748.59 | T15: =SUM((INDIRECT("'"&T$14&"'!$AD$121"))) -> 71014489.85 | V15: =SUM((INDIRECT("'"&V$14&"'!$AD$121"))) -> 70982621.88 | X15: =SUM((INDIRECT("'"&X$14&"'!$AD$121"))) -> 88037686.01 | AA15: =SUM((INDIRECT("'"&AA$14&"'!$AD$121"))) -> 96588366.4 | AD15: =SUM((INDIRECT("'"&AD$14&"'!$AD$121"))) -> 90016368.86 | AG15: =A15 -> EMISSÕES DE CO2 DA ELETRICIDADE | AH15: =H15/1000000 -> 55.18254954 | AI15: =K15/1000000 -> 81.60623692 | AJ15: =N15/1000000 -> 58.51899225 | AK15: =Q15/1000000 -> 62.02574859 | AL15: =T15/1000000 -> 71.01448985 | AM15: =V15/1000000 -> 70.98262188 | AN15: =X15/1000000 -> 88.03768601 | AO15: =AA15/1000000 -> 96.5883664 | AP15: =AD15/1000000 -> 90.01636886
A16: EMISSÕES DIRETAS DE CO2 DO CONSUMO FINAL | H16: =SUM((INDIRECT("'"&H$14&"'!$AD$122"))) -> 60754321.85 | K16: =SUM((INDIRECT("'"&K$14&"'!$AD$122"))) -> 110550646.5 | N16: =SUM((INDIRECT("'"&N$14&"'!$AD$122"))) -> 59186823.41 | Q16: =SUM((INDIRECT("'"&Q$14&"'!$AD$122"))) -> 63055228.86 | T16: =SUM((INDIRECT("'"&T$14&"'!$AD$122"))) -> 74751083.29 | V16: =SUM((INDIRECT("'"&V$14&"'!$AD$122"))) -> 74271968.91 | X16: =SUM((INDIRECT("'"&X$14&"'!$AD$122"))) -> 108920859.3 | AA16: =SUM((INDIRECT("'"&AA$14&"'!$AD$122"))) -> 131191897.4 | AD16: =SUM((INDIRECT("'"&AD$14&"'!$AD$122"))) -> 117683036.8 | AG16: =A16 -> EMISSÕES DIRETAS DE CO2 DO CONSUMO FINAL | AH16: =H16/1000000 -> 60.75432185 | AI16: =K16/1000000 -> 110.5506465 | AJ16: =N16/1000000 -> 59.18682341 | AK16: =Q16/1000000 -> 63.05522886 | AL16: =T16/1000000 -> 74.75108329 | AM16: =V16/1000000 -> 74.27196891 | AN16: =X16/1000000 -> 108.9208593 | AO16: =AA16/1000000 -> 131.1918974 | AP16: =AD16/1000000 -> 117.6830368
A17: EMISSÕES TOTAIS DE CO2 DO CONSUMO FINAL | H17: =SUM((INDIRECT("'"&H$14&"'!$AD$123"))) -> 35866867.77 | K17: =SUM((INDIRECT("'"&K$14&"'!$AD$123"))) -> 76871431.28 | N17: =SUM((INDIRECT("'"&N$14&"'!$AD$123"))) -> 30795791.36 | Q17: =SUM((INDIRECT("'"&Q$14&"'!$AD$123"))) -> 31604096.78 | T17: =SUM((INDIRECT("'"&T$14&"'!$AD$123"))) -> 40738781.94 | V17: =SUM((INDIRECT("'"&V$14&"'!$AD$123"))) -> 37019000.22 | X17: =SUM((INDIRECT("'"&X$14&"'!$AD$123"))) -> 63406475.11 | AA17: =SUM((INDIRECT("'"&AA$14&"'!$AD$123"))) -> 77713569.55 | AD17: =SUM((INDIRECT("'"&AD$14&"'!$AD$123"))) -> 63362072
A18: FATORES DE EMISSÃO (FE) EM tCO2/TJ
B19: FONTES DE ENERGIA PRIMÁRIA | L19: FONTES DE ENERGIA SECUNDÁRIA | AB19: Outros
A20: FONTE DE ENERGIA | B20: PETRÓLEO | C20: GÁS NATURAL | D20: CARVÃO VAPOR | E20: CARVÃO METALÚRGICO | F20: URÂNIO U3O8 | G20: ENERGIA HIDRÁULICA | H20: LENHA | I20: PRODUTOS DA CANA | J20: OUTRAS PRIM | L20: ÓLEO DIESEL TOTAL | M20: ÓLEO COMBUSTIVEL | N20: GASOLINA | O20: GLP | P20: NAFTA | Q20: QUEROSENE | R20: GÁS DE COQUERIA | S20: COQUE DE CARV. MIN. | T20: URÂNIO CONTIDO NO UO2 | U20: ELETRICIDADE | V20: CARVÃO VEGETAL | W20: ETANOL ANIDRO E HIDRATADO | X20: OUTRAS SEC. DE PETRÓLEO | Y20: PROD N ENER DE PETRÓLEO | Z20: ALCATRÃO | AB20: LIXÍVIA | AC20: OUTRAS PRIM. RENOVÁVEIS | AD20: OUTRAS PRIM. NÃO RENOV. | AE20: ÓLEO DIESEL MINERAL | AF20: BIODIESEL | AG20: GÁS DE REFINARIA | AH20: COQUE DE PETRÓLEO | AI20: OUTROS EN. DE PETRÓLEO
A21: FE | C21: 56.1 | D21: 96.1 | E21: 94.6 | F21: 0 | G21: 0 | H21: 0 | I21: 0 | J21: Outros | L21: Outros | M21: 77.4 | N21: 69.3 | O21: 63.1 | P21: 73.3 | Q21: 71.5 | R21: 44.4 | S21: 107 | T21: 0 | U21: 0 | V21: 0 | W21: 0 | X21: =L21 -> Outros | Y21: 73.3 | Z21: 80.7 | AB21: 0 | AC21: 0 | AD21: 143 | AE21: 74.1 | AF21: 0 | AG21: 57.6 | AH21: 97.5 | AI21: 73.3

Sheet Um setor
E1: =IF(ISNUMBER(L83),"",L83) ->  | F1: Setor de atividades (linha do do BEN) ===> | K1: CONSUMO FINAL E PROD. DE ELETRICIDADE | R1: =L83 -> 0
A2: =D32 -> ENERGIA DO SETOR: CONSUMO FINAL E PROD. DE ELETRICIDADE | K2: =D63 -> EMISSÕES NO SETOR: CONSUMO FINAL E PROD. DE ELETRICIDADE
B32: Linha | C32: =MATCH(K1,'2010'!AN73:AN123,0)+13 -> 64 | D32: ="ENERGIA DO SETOR: "&TRIM(INDIRECT("'2010'!AN$"&$C63)) -> ENERGIA DO SETOR: CONSUMO FINAL E PROD. DE ELETRICIDADE | M32: ='2010'!AN73 -> PRODUÇÃO
A33: Col | C33: 2010 | D33: 2015 | E33: 2020 | F33: 2025 | G33: 2030 | H33: 2035 | I33: 2040 | J33: 2045 | K33: 2050 | M33: ='2010'!AN74 -> IMPORTAÇÃO
A34: C | B34: =IF(SUM(C34:K34)=0,"",INDIRECT("'2010'!"&$A34&"126")) ->  | C34: =IF(INDIRECT("'"&C$33&"'!"&$A34&"$"&$C$32)=0,"",INDIRECT("'"&C$33&"'!"&$A34&"$"&$C$32)) ->  | D34: =IF(INDIRECT("'"&D$33&"'!"&$A34&"$"&$C$32)=0,"",INDIRECT("'"&D$33&"'!"&$A34&"$"&$C$32)) ->  | M34: ='2010'!AN75 -> VARIAÇÃO DE ESTOQUES
A35: D | B35: =IF(SUM(C35:K35)=0,"",INDIRECT("'2010'!"&$A35&"126")) -> Gás Natural | C35: =IF(INDIRECT("'"&C$33&"'!"&$A35&"$"&$C$32)=0,"",INDIRECT("'"&C$33&"'!"&$A35&"$"&$C$32)) -> 22430.25089 | D35: 34491.08968 | E35: 25485.79048 | F35: 27858.33949 | G35: 30715.64306 | H35: 37238.71903 | I35: 46882.43417 | J35: 56243.75801 | K35: 53925.07481 | M35: ='2010'!AN76 -> OFERTA TOTAL
A36: E | B36: Carvão Vapor | C36: 5142.867894 | D36: 8357.369381 | E36: 7775.311036 | F36: 8287.755669 | G36: 9314.782138 | H36: 8241.240871 | I36: 14682.06208 | J36: 18250.74847 | K36: 16912.31671 | M36: ='2010'!AN77 -> EXPORTAÇÃO
A37: F | B37: Carvão Metalúrgico | C37: 0.2626917896 | M37: ='2010'!AN78 -> NÃO-APROVEITADA
A38: G | M38: ='2010'!AN79 -> REINJEÇÃO
A39: H | B39: Energia Hidráulica | C39: 34682.92394 | D39: 30937.8815 | E39: 37558 | F39: 44275.1 | G39: 45390.2 | H39: 50087.4 | I39: 53970.1 | J39: 57077.8 | K39: 58634.7 | M39: ='2010'!AN80 -> OFERTA INTERNA BRUTA
A40: I | B40: Lenha | C40: 17360.72084 | D40: 17090.2531 | E40: 13912.51448 | F40: 15129.72732 | G40: 16736.79796 | H40: 17960.47582 | I40: 20241.09113 | J40: 22416.96761 | K40: 25219.60296 | M40: ='2010'!AN81 -> TOTAL TRANSFORMAÇÃO
A41: J | B41: Produtos da Cana | C41: 34146.35046 | D41: 34626.48764 | E41: 39517 | F41: 43899.9 | G41: 50112.8 | H41: 54446.3 | I41: 58923.2 | J41: 64489.5 | K41: 69217.1 | M41: ='2010'!AN82 -> REFINARIAS DE PETRÓLEO
A42: K | B42: Out. Font. Prim. | C42: 8431.555207 | D42: 12895.07745 | E42: 13214.52006 | F42: 16503.68305 | G42: 21033.95488 | H42: 26783.44354 | I42: 36111.03459 | J42: 45297.8268 | K42: 52693.65168 | M42: ='2010'!AN83 -> PLANTAS DE GAS NATURAL
A43: M | B43: Óleo Diesel | C43: 43661.91376 | D43: 50463.26994 | E43: 45790.0902 | F43: 48566.37005 | G43: 54532.74284 | H43: 58508.89325 | I43: 63782.03754 | J43: 68016.28307 | K43: 73493.97315 | M43: ='2010'!AN84 -> USINAS DE GASEIFICAÇÃO
A44: N | B44: Óleo Combustível | C44: 6067.760038 | D44: 6535.258836 | E44: 3941.735325 | F44: 4437.858099 | G44: 5407.845782 | H44: 4929.495982 | I44: 5732.45823 | J44: 6474.152848 | K44: 6700.257006 | M44: ='2010'!AN85 -> COQUERIAS
A45: O | B45: Gasolina | C45: 17577.95504 | D45: 23305.50108 | E45: 18304.57466 | F45: 16163.96457 | G45: 14879.37468 | H45: 13690.41649 | I45: 12391.58069 | J45: 10556.72748 | K45: 8881.712643 | L45: ==> | M45: ='2010'!AN86 -> CICLO DO COMBUSTÍVEL NUCLEAR
A46: P | B46: GLP | C46: 7701.117756 | D46: 8123.782769 | E46: 9127.466677 | F46: 9987.256096 | G46: 10681.30211 | H46: 11062.16668 | I46: 11782.0414 | J46: 12323.85001 | K46: 12209.68098 | M46: ='2010'!AN87 -> CENTRAIS ELÉTRICAS DE SERVIÇO PÚBLICO
A47: Q | L47: ==> | M47: ='2010'!AN88 -> CENTRAIS ELÉTRICAS AUTOPRODUTORAS
A48: R | B48: Querosene | C48: 3194.883757 | D48: 3612.772393 | E48: 3941.003532 | F48: 4556.112858 | G48: 5534.608039 | H48: 6324.109676 | I48: 7257.7643 | J48: 8017.365142 | K48: 8954.50054 | M48: ='2010'!AN89 -> CARVOARIAS
A49: S | B49: Gás de Cid/Coqueria | C49: 1737.709904 | D49: 1634.257877 | E49: 1627.285006 | F49: 2016.420835 | G49: 2030.560982 | H49: 2483.019445 | I49: 3424.933552 | J49: 4157.596538 | K49: 3987.228123 | M49: ='2010'!AN90 -> DESTILARIAS
A50: T | B50: Coque de Carv. Min. | C50: 7516.377652 | D50: 7886.47782 | E50: 8832.760986 | F50: 9836.532877 | G50: 9275.902351 | H50: 10028.40558 | I50: 12037.08388 | J50: 14015.94338 | K50: 12938.36511 | M50: ='2010'!AN91 -> OUTRAS TRANSFORMAÇÕES
A51: U | B51: Urânio cont. no UO2 | C51: =IF(INDIRECT("'"&C$33&"'!"&$A51&"$"&$C$32)=0,"",INDIRECT("'"&C$33&"'!"&$A51&"$"&$C$32)) -> 3779.696635 | D51: 3839.809476 | E51: 6084.4 | F51: 6101.3 | G51: 6861.7 | H51: 6861.7 | I51: 7596.3 | J51: 9939.6 | K51: 9618.8 | M51: ='2010'!AN92 -> PERDAS NA DISTRIBUIÇÃO E ARMAZENAGEM
A52: V | B52: Eletricidade | C52: -4394.569542 | D52: -5042.162918 | E52: -4715.038887 | F52: -7020.029876 | G52: -9203.260432 | H52: -10457.9075 | I52: -12274.61782 | J52: -13992.30721 | K52: -14863.10051 | M52: ='2010'!AN93 -> CONSUMO FINAL
A53: W | B53: Carvão Vegetal | C53: 4647.785 | D53: 3901.096998 | E53: 4239.160142 | F53: 5375.410156 | G53: 5362.747497 | H53: 5911.291787 | I53: 7673.587858 | J53: 9283.658299 | K53: 9137.28915 | M53: ='2010'!AN94 -> CONSUMO FINAL NÃO-ENERGÉTICO
A54: X | B54: Álcool Etíl. An./Hidr. | C54: 12040.84524 | D54: 15436.99016 | E54: 14945.58156 | F54: 16666.98838 | G54: 19276.68321 | H54: 22171.57697 | I54: 24905.74 | J54: 26391.39251 | K54: 28150.62625 | M54: ='2010'!AN95 -> CONSUMO FINAL ENERGÉTICO
A55: Y | B55: Outras Sec. de Petr. | C55: 11531.06174 | D55: 11958.90289 | E55: 11489.63891 | F55: 12660.16292 | G55: 12167.84531 | H55: 11580.81967 | I55: 13763.14349 | J55: 16100.00212 | K55: 15557.58538 | M55: ='2010'!AN96 -> SETOR ENERGÉTICO
A56: Z | M56: ='2010'!AN97 -> RESIDENCIAL
A57: AA | B57: Alcatrão | C57: 106.1343186 | D57: 103.1117014 | E57: 102.2325659 | F57: 111.3889017 | G57: 132.7978855 | H57: 229.5874756 | I57: 339.5466797 | J57: 414.4255834 | K57: 393.2086947 | M57: ='2010'!AN98 -> COMERCIAL
A58: AD | B58: Total com Eletric | C58: 237363.6032 | D58: 270157.2278 | E58: 261174.0267 | F58: 285414.2414 | G58: 310245.0283 | H58: 338081.1548 | I58: 389221.5218 | J58: 435475.2907 | K58: 451762.5727 | L58: ==> | M58: ='2010'!AN99 -> PÚBLICO
B59: Verificação | C59: =IF(OR(ABS(SUM(C34:C57)-2*C52-C58)<0.00000002,ABS(SUM(C34:C57)-C58)<0.00000002),"","ERRO") ->  | D59: =IF(OR(ABS(SUM(D34:D57)-2*D52-D58)<0.00000002,ABS(SUM(D34:D57)-D58)<0.00000002),"","ERRO") ->  | E59: =IF(OR(ABS(SUM(E34:E57)-2*E52-E58)<0.00000002,ABS(SUM(E34:E57)-E58)<0.00000002),"","ERRO") ->  | M59: ='2010'!AN100 -> AGROPECUÁRIO
A60: AD | B60: Total Geral com Eletric | C60: =INDIRECT("'"&C$33&"'!"&$A60&"$64") -> 237363.6032 | D60: =INDIRECT("'"&D$33&"'!"&$A60&"$64") -> 270157.2278 | E60: 261174.0267 | F60: 285414.2414 | G60: 310245.0283 | H60: 338081.1548 | I60: 389221.5218 | J60: 435475.2907 | K60: 451762.5727 | M60: ='2010'!AN101 -> TRANSPORTES - TOTAL
B61: Part. consumo total | C61: =ABS(C58/C60) -> 1 | D61: =ABS(D58/D60) -> 1 | E61: 1 | F61: 1 | G61: 1 | H61: 1 | I61: 1 | J61: 1 | K61: 1 | M61: ='2010'!AN102 -> RODOVIÁRIO
M62: ='2010'!AN103 -> FERROVIÁRIO
B63: =B32 -> Linha | C63: =C32+59+IF(C32=64,1,0) -> 124 | D63: ="EMISSÕES NO SETOR: "&TRIM(INDIRECT("'2010'!AN$"&$C63)) -> EMISSÕES NO SETOR: CONSUMO FINAL E PROD. DE ELETRICIDADE | M63: ='2010'!AN104 -> AÉREO
A64: =A33 -> Col | C64: =C33 -> 2010 | D64: 2015 | E64: 2020 | F64: 2025 | G64: 2030 | H64: 2035 | I64: 2040 | J64: 2045 | K64: 2050 | M64: ='2010'!AN105 -> HIDROVIÁRIO
A65: C | B65: =IF(SUM(C65:K65)=0,"",INDIRECT("'2010'!"&$A65&"126")) ->  | C65: =IF(INDIRECT("'"&C$64&"'!"&$A65&"$"&$C$63)=0,"",INDIRECT("'"&C$64&"'!"&$A65&"$"&$C$63)) ->  | M65: ='2010'!AN106 -> INDUSTRIAL - TOTAL
A66: D | B66: Gás Natural | C66: 39664537.24 | D66: 44075806.45 | E66: 48732984.65 | F66: 55543037.95 | G66: 62116727.23 | H66: 76312657.68 | I66: 95497771.67 | J66: 115872776.2 | K66: 123830469 | M66: ='2010'!AN107 -> CIMENTO
A67: E | B67: Carvão Vapor | C67: 3417833.052 | D67: 4188239.368 | E67: 5434276 | F67: 6318407.635 | G67: 5695088.268 | H67: 4222253.823 | I67: 5388229.773 | J67: 6495308.342 | K67: 6532777.752 | M67: ='2010'!AN108 -> FERRO-GUSA E AÇO
A68: F | B68: Carvão Metalúrgico | C68: 1040.446734 | M68: ='2010'!AN109 -> FERRO-LIGAS
A69: G | M69: ='2010'!AN110 -> MINERAÇÃO E PELOTIZ.
A70: H | M70: ='2010'!AN111 -> NÃO-FERROSOS E OUTROS DA METALURGIA
A71: I | M71: ='2010'!AN112 -> QUÍMICA
A72: J | M72: ='2010'!AN113 -> ALIMENTOS E BEBIDAS
A73: K | B73: Out. Font. Prim. | C73: 712467.756 | D73: 1713215.533 | E73: 1560807.72 | F73: 1677210.59 | G73: 3302623.168 | H73: 3922732.613 | I73: 4489638.124 | J73: 5414431.498 | K73: 5552123.585 | M73: ='2010'!AN114 -> TÊXTIL
A74: M | B74: Óleo Diesel | C74: 122570077.5 | D74: 139273498.3 | E74: 128823241.3 | F74: 136623143.8 | G74: 150319556.7 | H74: 161294539 | I74: 170404802.3 | J74: 181728678.7 | K74: 195469308.1 | M74: ='2010'!AN115 -> PAPEL E CELULOSE
A75: N | B75: Óleo Combustível | C75: =IF(INDIRECT("'"&C$64&"'!"&$A75&"$"&$C$63)=0,"",INDIRECT("'"&C$64&"'!"&$A75&"$"&$C$63)) -> 16006536.99 | D75: 10442495.91 | E75: 12773521.27 | F75: 13808313.29 | G75: 14488471.79 | H75: 15555110.4 | I75: 18576507.84 | J75: 20980030.95 | K75: 21712740.29 | M75: ='2010'!AN116 -> CERÂMICA
A76: O | B76: Gasolina | C76: 51001599.83 | D76: 67619802.04 | E76: 53109852.07 | F76: 46898973.79 | G76: 43171797.38 | H76: 39722091.78 | I76: 35953581.52 | J76: 30629842.28 | K76: 25769866.46 | M76: ='2010'!AN117 -> OUTROS
A77: P | B77: GLP | C77: 20345358.13 | D77: 21461984.48 | E77: 24113587.69 | F77: 26385040.25 | G77: 28218620.14 | H77: 29224815.13 | I77: 31126631.14 | J77: 32558019.5 | K77: 32256399.66 | M77: ='2010'!AN118 -> CONSUMO NÃO-IDENTIFICADO
A78: Q | M78: ='2010'!AN119 -> AJUSTES
A79: R | B79: Querosene | C79: 9586228.98 | D79: 10823002.85 | E79: 11797638.42 | F79: 13639006.32 | G79: 16568192.31 | H79: 18931614.41 | I79: 21726567.41 | J79: 24000479.63 | K79: 26805852.55 | M79: ='2010'!AN120 -> CENTRAIS ELÉTRICAS (CESP+AUTOP.)
A80: S | B80: Gás de Cid/Coqueria | C80: 2664887.25 | D80: 2484150.997 | E80: 3025023.888 | F80: 3720705.541 | G80: 3754798.758 | H80: 4590686.501 | I80: 6366743.237 | J80: 7642092.615 | K80: 7412014.657 | M80: ='2010'!AN121 -> EDIFICAÇÕES (Res+Com+Pub) + AGROPECUÁRIA
A81: T | B81: Coque de Carv. Min. | C81: 464289.1851 | D81: 581191.337 | E81: 418008.7863 | F81: 529553.4227 | G81: 561989.3415 | H81: 522212.4852 | I81: 666300.5458 | J81: 816771.9848 | K81: 792124.7799 | L81: ==> | M81: ='2010'!AN122 -> SETOR ENERGÉTICO E PROD. DE ELETRICIDADE
A82: U | M82: ='2010'!AN123 -> CONSUMO FINAL E PROD. DE ELETRICIDADE
A83: V | L83: =OFFSET(L31,C32-13,0) -> 0
A84: W
A85: X
A86: Y | B86: Outras Sec. de Petr. | C86: 33859683.4 | D86: 35316689.18 | E86: 35257042.58 | F86: 38284696.97 | G86: 36691622.58 | H86: 34857052.37 | I86: 41412609.17 | J86: 48539915.71 | K86: 46986094.1
A87: Z
A88: AA | B88: Alcatrão | C88: 802791.7677 | D88: 771955.0147 | E88: 345418.0367 | F88: 343581.1327 | G88: 386183.7063 | H88: 430748.0021 | I88: 749226.0619 | J88: 900860.5502 | K88: 902154.9865
A89: AD | B89: Total com Eletric | C89: 301097331.5 | D89: 338752031.4 | E89: 325391402.5 | F89: 343771670.7 | G89: 365275671.4 | H89: 389586514.2 | I89: 432358608.8 | J89: 475579208 | K89: 494021925.8
A90: =0.0000002 -> 2e-07 | B90: Verificação | C90: =IF(ABS(SUM(C65:C88)-C89)<$A90,"","ERRO") ->  | D90: =IF(ABS(SUM(D65:D88)-D89)<$A90,"","ERRO") -> 
B91: =IF(ISERR(M91),"",IF(M91>0,"Emissão/Energia","")) -> Emissão/Energia | C91: =C89/C58 -> 1268.506744 | D91: =D89/D58 -> 1253.906972 | E91: 1245.87964 | F91: 1204.465723 | G91: 1177.378001 | H91: 1152.346142 | I91: 1110.829141 | J91: 1092.092291 | K91: 1093.543281 | M91: =SUM(C91:K91) -> 10598.94794
B93: Emissão/Energia

Sheet Um combust
E1: =IF(ISNUMBER(L83),"",L83) ->  | F1: Combustível (coluna do BEN) ===> | K1: TOTAL COM ELETRIC | Q1: =IF(Q3=1,"Energia","") -> Energia | R1: =IF(R3=1,"Edifícios","") -> Edifícios | S1: =IF(S3=1,"Transp.","") -> Transp. | T1: =IF(T3=1,"Industr.","") -> Industr. | U1: <=Chaves Gdes Setores
A2: =D32 -> ENERGIA INDUSTR, COMBUST: TOTAL COM ELETRIC | K2: =D63 -> EMISSÕES INDUSTR, COMBUST: TOTAL COM ELETRIC | U2: Posicionar na 1a linha
Q3: 1 | R3: 1 | S3: 1 | T3: 1 | U3: e (CTRL+SHIFT+M)
Q4: =1-Q3 -> 0 | R4: =1-R3 -> 0 | S4: 0 | T4: 0
R30: A
M31: SETORES | P31: COMBUSTÍVEIS | R31: =OFFSET(P31,S31,2) -> AD | S31: =MATCH(K1,P32:P68,0) -> 28
B32: Linha | C32: 47 | D32: ="ENERGIA INDUSTR, COMBUST: "&TRIM(OFFSET(P31,S31,0)) -> ENERGIA INDUSTR, COMBUST: TOTAL COM ELETRIC | L32: =MATCH(T1,'2010'!AW73:AW123,0)+13 ->  | M32: ='2010'!AN73 -> PRODUÇÃO | P32: PETRÓLEO | R32: C
A33: Col | C33: 2010 | D33: 2015 | E33: 2020 | F33: 2025 | G33: 2030 | H33: 2035 | I33: 2040 | J33: 2045 | K33: 2050 | M33: ='2010'!AN74 -> IMPORTAÇÃO | P33: GÁS NATURAL | R33: D
A34: 58 | B34: =IF(SUM(C34:K34)=0,"","Outras Inds") -> Outras Inds | C34: =IF($T$3*INDIRECT("'"&C$33&"'!"&$R$31&$A34)=0,"",INDIRECT("'"&C$33&"'!"&$R$31&$A34)) -> 7210.974417 | D34: =IF($T$3*INDIRECT("'"&D$33&"'!"&$R$31&$A34)=0,"",INDIRECT("'"&D$33&"'!"&$R$31&$A34)) -> 7754.096426 | E34: 7398.538193 | F34: 7765.232467 | G34: 7696.689576 | H34: 7329.48868 | I34: 9542.557199 | J34: 13455.80914 | K34: 12519.11729 | M34: ='2010'!AN75 -> VARIAÇÃO DE ESTOQUES | P34: CARVÃO VAPOR | R34: E | S34: 12519.11729 | W34: 58 | X34: =IF(SUM(Y34:AG34)=0,"","Outras Inds") -> 
A35: 57 | B35: =IF(SUM(C35:K35)=0,"","Cerâmica") -> Cerâmica | C35: =IF($T$3*INDIRECT("'"&C$33&"'!"&$R$31&$A35)=0,"",INDIRECT("'"&C$33&"'!"&$R$31&$A35)) -> 4485.061718 | D35: 4613.642558 | E35: 3952.691077 | F35: 4584.877546 | G35: 5327.503767 | H35: 6120.799176 | I35: 6976.963243 | J35: 7836.412332 | K35: 8756.036328 | M35: ='2010'!AN76 -> OFERTA TOTAL | P35: CARVÃO METALÚRGICO | R35: F | S35: 8756.036328 | W35: 57 | X35: =IF(SUM(Y35:AG35)=0,"","Cerâmica") -> 
A36: 56 | B36: =IF(SUM(C36:K36)=0,"","Papel e Celulose") -> Papel e Celulose | C36: 10131.29383 | D36: 11729.40571 | E36: 11318.85814 | F36: 13598.88867 | G36: 15034.73431 | H36: 18699.21196 | I36: 23849.42895 | J36: 27428.69836 | K36: 29440.79452 | M36: ='2010'!AN77 -> EXPORTAÇÃO | P36: URÂNIO U3O8 | R36: G | S36: 29440.79452 | W36: 56 | X36: =IF(SUM(Y36:AG36)=0,"","Papel e Celulose") -> 
A37: 55 | B37: =IF(SUM(C37:K37)=0,"","Têxtil") -> Têxtil | C37: 1212.219817 | D37: 894.5076301 | E37: 1230.259546 | F37: 1319.568164 | G37: 1499.894598 | H37: 1486.790154 | I37: 1414.825603 | J37: 1603.472647 | K37: 1825.56202 | M37: ='2010'!AN78 -> NÃO-APROVEITADA | P37: ENERGIA HIDRÁULICA | R37: H | S37: 1825.56202 | W37: 55 | X37: =IF(SUM(Y37:AG37)=0,"","Têxtil") -> 
A38: 54 | B38: =IF(SUM(C38:K38)=0,"","Alim e bebidas") -> Alim e bebidas | C38: 23243.84631 | D38: 21475.38823 | E38: 21065.26068 | F38: 24607.18304 | G38: 28530.37207 | H38: 32913.77666 | I38: 37729.02859 | J38: 42596.15967 | K38: 48072.02286 | M38: ='2010'!AN79 -> REINJEÇÃO | P38: LENHA | R38: I | S38: 48072.02286 | W38: 54 | X38: =IF(SUM(Y38:AG38)=0,"","Alim e bebidas") -> 
A39: 53 | B39: =IF(SUM(C39:K39)=0,"","Química") -> Química | C39: 7214.386912 | D39: 6706.421487 | E39: 7857.44662 | F39: 8901.05213 | G39: 8562.763779 | H39: 9194.487272 | I39: 11305.98213 | J39: 13126.59658 | K39: 12664.18869 | M39: ='2010'!AN80 -> OFERTA INTERNA BRUTA | P39: PRODUTOS DA CANA | R39: J | S39: 12664.18869 | W39: 53 | X39: =IF(SUM(Y39:AG39)=0,"","Química") -> 
A40: 52 | B40: =IF(SUM(C40:K40)=0,"","N-Ferr e Out Metal") -> N-Ferr e Out Metal | C40: 6492.210396 | D40: 5645.56273 | E40: 6242.575528 | F40: 7105.039396 | G40: 6756.963193 | H40: 7697.869127 | I40: 9485.93456 | J40: 10962.29481 | K40: 10461.39841 | M40: ='2010'!AN81 -> TOTAL TRANSFORMAÇÃO | P40: OUTRAS FONTES PRIMÁRIAS | R40: K | S40: 10461.39841 | W40: 52 | X40: =IF(SUM(Y40:AG40)=0,"","N-Ferr e Out Metal") -> 
A41: 51 | B41: =IF(SUM(C41:K41)=0,"","Mineração e Pelot.") -> Mineração e Pelot. | C41: 3182.305463 | D41: 3346.129047 | E41: 3448.267109 | F41: 5097.4976 | G41: 5460.638891 | H41: 5152.153991 | I41: 6523.770379 | J41: 8130.323216 | K41: 7748.971588 | M41: ='2010'!AN82 -> REFINARIAS DE PETRÓLEO | P41: ENERGIA PRIMÁRIA TOTAL | R41: L | S41: 7748.971588 | W41: 51 | X41: =IF(SUM(Y41:AG41)=0,"","Mineração e Pelot.") -> 
A42: 50 | B42: =IF(SUM(C42:K42)=0,"","Ferro-Ligas") -> Ferro-Ligas | C42: 1695.05339 | D42: 1206.035314 | E42: 1278.149342 | F42: 1065.615008 | G42: 1226.121008 | H42: 1411.944316 | I42: 1607.722561 | J42: 1818.806385 | K42: 2026.249282 | M42: ='2010'!AN83 -> PLANTAS DE GAS NATURAL | P42: ÓLEO DIESEL | R42: M | S42: 2026.249282 | W42: 50 | X42: =IF(SUM(Y42:AG42)=0,"","Ferro-Ligas") -> 
A43: 49 | B43: =IF(SUM(C43:K43)=0,"","Ferro Gusa e Aço") -> Ferro Gusa e Aço | C43: 16445.32278 | D43: 16523.54464 | E43: 18712.60946 | F43: 21846.83061 | G43: 20867.82295 | H43: 23251.69835 | I43: 29546.69958 | J43: 35330.60219 | K43: 33378.27978 | M43: ='2010'!AN84 -> USINAS DE GASEIFICAÇÃO | P43: ÓLEO COMBUSTIVEL | R43: N | S43: 33378.27978 | W43: 49 | X43: =IF(SUM(Y43:AG43)=0,"","Ferro Gusa e Aço") -> 
A44: 48 | B44: =IF(SUM(C44:K44)=0,"","Cimento") -> Cimento | C44: 4254.642125 | D44: 4750.16061 | E44: 4611.353736 | F44: 4667.968813 | G44: 4798.683779 | H44: 4892.924562 | I44: 6682.800463 | J44: 7196.756984 | K44: 7052.895165 | M44: ='2010'!AN85 -> COQUERIAS | P44: GASOLINA | R44: O | S44: 7052.895165 | W44: 48 | X44: =IF(SUM(Y44:AG44)=0,"","Cimento") -> 
A45: 46 | B45: =IF(SUM(C45:K45)=0,"","Hidroviário") -> Hidroviário | C45: =IF($S$3*INDIRECT("'"&C$33&"'!"&$R$31&$A45)=0,"",INDIRECT("'"&C$33&"'!"&$R$31&$A45)) -> 1380.088452 | D45: =IF($S$3*INDIRECT("'"&D$33&"'!"&$R$31&$A45)=0,"",INDIRECT("'"&D$33&"'!"&$R$31&$A45)) -> 964.715793 | E45: 1391.375272 | F45: 1543.438038 | G45: 1724.60169 | H45: 1947.867343 | I45: 2228.642364 | J45: 2600.581918 | K45: 3092.763617 | L45: ==> | M45: ='2010'!AN86 -> CICLO DO COMBUSTÍVEL NUCLEAR | P45: GLP | R45: P | S45: 3092.763617 | W45: 46 | X45: =IF(SUM(Y45:AG45)=0,"","Hidroviário") -> 
A46: 45 | B46: =IF(SUM(C46:K46)=0,"","Aéreo") -> Aéreo | C46: =IF($S$3*INDIRECT("'"&C$33&"'!"&$R$31&$A46)=0,"",INDIRECT("'"&C$33&"'!"&$R$31&$A46)) -> 3240.998909 | D46: 3657.928646 | E46: 3984.899131 | F46: 4607.106738 | G46: 5597.795232 | H46: 6395.985598 | I46: 7339.244151 | J46: 8105.350427 | K46: 9051.177602 | M46: ='2010'!AN87 -> CENTRAIS ELÉTRICAS DE SERVIÇO PÚBLICO | P46: NAFTA | R46: Q | S46: 9051.177602 | W46: 45 | X46: =IF(SUM(Y46:AG46)=0,"","Aéreo") -> 
A47: 44 | B47: =IF(SUM(C47:K47)=0,"","Ferroviário") -> Ferroviário | C47: 1135.4635 | D47: 1147.531595 | E47: 1108.492629 | F47: 1200.33163 | G47: 1461.800883 | H47: 1665.668737 | I47: 1924.163108 | J47: 2257.653687 | K47: 2698.199997 | L47: ==> | M47: ='2010'!AN88 -> CENTRAIS ELÉTRICAS AUTOPRODUTORAS | P47: QUEROSENE | R47: R | S47: 2698.199997 | W47: 44 | X47: =IF(SUM(Y47:AG47)=0,"","Ferroviário") -> 
A48: 43 | B48: =IF(SUM(C48:K48)=0,"","Rodoviário") -> Rodoviário | C48: 63963.30353 | D48: 78266.87611 | E48: 71106.79274 | F48: 72956.34082 | G48: 79616.41519 | H48: 85134.10235 | I48: 90569.62694 | J48: 94641.62577 | K48: 99984.22088 | M48: ='2010'!AN89 -> CARVOARIAS | P48: GÁS DE CIDADE E DE COQUERIA | R48: S | S48: 99984.22088 | W48: 43 | X48: =IF(SUM(Y48:AG48)=0,"","Rodoviário") -> 
A49: 41 | B49: =IF(SUM(C49:K49)=0,"","Agropecuário") -> Agropecuário | C49: =IF($R$3*INDIRECT("'"&C$33&"'!"&$R$31&$A49)=0,"",INDIRECT("'"&C$33&"'!"&$R$31&$A49)) -> 10029.04012 | D49: =IF($R$3*INDIRECT("'"&D$33&"'!"&$R$31&$A49)=0,"",INDIRECT("'"&D$33&"'!"&$R$31&$A49)) -> 11487.07669 | E49: 10983.98199 | F49: 11332.94918 | G49: 12013.92242 | H49: 12227.05925 | I49: 13123.98577 | J49: 13301.92518 | K49: 13626.8085 | M49: ='2010'!AN90 -> DESTILARIAS | P49: COQUE DE CARVÃO MINERAL | R49: T | S49: 13626.8085 | W49: 41 | X49: =IF(SUM(Y49:AG49)=0,"","Agropecuário") -> 
A50: 40 | B50: =IF(SUM(C50:K50)=0,"","Público") -> Público | C50: =IF($R$3*INDIRECT("'"&C$33&"'!"&$R$31&$A50)=0,"",INDIRECT("'"&C$33&"'!"&$R$31&$A50)) -> 3635.78343 | D50: 3980.448012 | E50: 3646.724307 | F50: 3624.191186 | G50: 3525.560236 | H50: 3637.594081 | I50: 3632.646935 | J50: 3526.055206 | K50: 3332.232322 | M50: ='2010'!AN91 -> OUTRAS TRANSFORMAÇÕES | P50: URÂNIO CONTIDO NO UO2 | R50: U | S50: 3332.232322 | W50: 40 | X50: =IF(SUM(Y50:AG50)=0,"","Público") -> 
A51: 39 | B51: =IF(SUM(C51:K51)=0,"","Comercial") -> Comercial | C51: 6730.7051 | D51: 8581.834333 | E51: 9818.323448 | F51: 11416.22176 | G51: 13000.89383 | H51: 15740.46955 | I51: 18523.27711 | J51: 21335.22272 | K51: 24124.68216 | M51: ='2010'!AN92 -> PERDAS NA DISTRIBUIÇÃO E ARMAZENAGEM | P51: ELETRICIDADE | R51: V | S51: 24124.68216 | W51: 39 | X51: =IF(SUM(Y51:AG51)=0,"","Comercial") -> 
A52: 38 | B52: =IF(SUM(C52:K52)=0,"","Residencial") -> Residencial | C52: 23562.41717 | D52: 24951.43342 | E52: 27161.3579 | F52: 29837.67965 | G52: 31875.32513 | H52: 33385.65777 | I52: 35536.14871 | J52: 37544.58465 | K52: 38617.6647 | M52: ='2010'!AN93 -> CONSUMO FINAL | P52: CARVÃO VEGETAL | R52: W | S52: 38617.6647 | W52: 38 | X52: =IF(SUM(Y52:AG52)=0,"","Residencial") -> 
A53: 37 | B53: =IF(SUM(C53:K53)=0,"","Set. Energetico") -> Set. Energetico | C53: =IF($Q$3*INDIRECT("'"&C$33&"'!"&$R$31&$A53)=0,"",INDIRECT("'"&C$33&"'!"&$R$31&$A53)) -> 24263.40092 | D53: =IF($Q$3*INDIRECT("'"&D$33&"'!"&$R$31&$A53)=0,"",INDIRECT("'"&D$33&"'!"&$R$31&$A53)) -> 27763.36612 | E53: 27218.42406 | F53: 30679.08312 | G53: 34054.07994 | H53: 38114.36002 | I53: 44081.52758 | J53: 49111.71297 | K53: 51570.76115 | M53: ='2010'!AN94 -> CONSUMO FINAL NÃO-ENERGÉTICO | P53: ÁLCOOL ETÍLICO (anidro/hidr) | R53: X | S53: 51570.76115 | W53: 37 | X53: =IF(SUM(Y53:AG53)=0,"","Set. Energetico") -> 
A54: 61 | B54: =IF(SUM(C54:K54)=0,"","Geração Eletr.") -> Geração Eletr. | C54: =IF($Q$3*INDIRECT("'"&C$33&"'!"&$R$31&$A54)=0,"",-INDIRECT("'"&C$33&"'!"&$R$31&$A54)) -> 13855.08493 | D54: =IF($Q$3*INDIRECT("'"&D$33&"'!"&$R$31&$A54)=0,"",-INDIRECT("'"&D$33&"'!"&$R$31&$A54)) -> 24711.12269 | E54: 17637.64583 | F54: 17657.14583 | G54: 21612.44583 | H54: 21681.24583 | I54: 27596.54583 | J54: 33564.64583 | K54: 31718.54583 | M54: ='2010'!AN95 -> CONSUMO FINAL ENERGÉTICO | P54: OUTRAS SECUNDÁRIAS DE PETRÓLEO | R54: Y | W54: 61 | X54: =IF(SUM(Y54:AG54)=0,"","Geração Eletr.") -> 
M55: ='2010'!AN96 -> SETOR ENERGÉTICO | P55: PRODUTOS N-ENERG. DE PETRÓLEO | R55: Z
M56: ='2010'!AN97 -> RESIDENCIAL | P56: ALCATRÃO | R56: AA
M57: ='2010'!AN98 -> COMERCIAL | P57: ENERGIA SECUNDÁRIA TOTAL | R57: AB
L58: ==> | M58: ='2010'!AN99 -> PÚBLICO | P58: TOTAL SEM ELETRIC | R58: AC
M59: ='2010'!AN100 -> AGROPECUÁRIO | P59: TOTAL COM ELETRIC | R59: AD
A60: AD | B60: Total Geral com Eletric | C60: =INDIRECT("'"&C$33&"'!"&$A60&"$64") -> 237363.6032 | D60: =INDIRECT("'"&D$33&"'!"&$A60&"$64") -> 270157.2278 | E60: 261174.0267 | F60: 285414.2414 | G60: 310245.0283 | H60: 338081.1548 | I60: 389221.5218 | J60: 435475.2907 | K60: 451762.5727 | M60: ='2010'!AN101 -> TRANSPORTES - TOTAL | P60: OUTRAS SECUNDÁRIAS DE PETRÓLEO | R60: AE
A61: AD | B61: Part. consumo total | C61: =ABS(SUM(C34:C54)/C60) -> 1 | D61: =ABS(SUM(D34:D54)/D60) -> 1 | E61: 1 | F61: 1 | G61: 1 | H61: 1 | I61: 1 | J61: 1 | K61: 1 | M61: ='2010'!AN102 -> RODOVIÁRIO | P61: LIXÍVIA | R61: AF
M62: ='2010'!AN103 -> FERROVIÁRIO | P62: OUTRAS PRIM. RENOVÁVEIS | R62: AG
B63: =B32 -> Linha | C63: =C32+59+IF(C32=64,1,0) -> 106 | D63: ="EMISSÕES INDUSTR, COMBUST: "&TRIM(OFFSET(P31,S31,0)) -> EMISSÕES INDUSTR, COMBUST: TOTAL COM ELETRIC | M63: ='2010'!AN104 -> AÉREO | P63: OUTRAS PRIM. NÃO RENOV. | R63: AH
A64: =A33 -> Col | C64: =C33 -> 2010 | D64: 2015 | E64: 2020 | F64: 2025 | G64: 2030 | H64: 2035 | I64: 2040 | J64: 2045 | K64: 2050 | M64: ='2010'!AN105 -> HIDROVIÁRIO | P64: ÓLEO DIESEL MINERAL | R64: AI
A65: =A34+59 -> 117 | B65: =B34 -> Outras Inds | C65: =IF(INDIRECT("'"&C$33&"'!"&$R$31&$A65)=0,"",INDIRECT("'"&C$33&"'!"&$R$31&$A65)) -> 11205951.73 | D65: =IF(INDIRECT("'"&D$33&"'!"&$R$31&$A65)=0,"",INDIRECT("'"&D$33&"'!"&$R$31&$A65)) -> 14944471.81 | E65: 10267781.75 | F65: 9890663.207 | G65: 10504349.2 | H65: 10381180.19 | I65: 14638165.97 | J65: 21274020.8 | K65: 18622645.87 | M65: ='2010'!AN106 -> INDUSTRIAL - TOTAL | P65: BIODIESEL | R65: AJ
A66: =A35+59 -> 116 | B66: Cerâmica | C66: =IF(INDIRECT("'"&C$33&"'!"&$R$31&$A66)=0,"",INDIRECT("'"&C$33&"'!"&$R$31&$A66)) -> 5294040.646 | D66: 5726258.51 | E66: 4987245.381 | F66: 5945514.284 | G66: 6572783.964 | H66: 7713368.4 | I66: 9780468.08 | J66: 11505032.55 | K66: 13498866.51 | M66: ='2010'!AN107 -> CIMENTO | P66: GÁS DE REFINARIA | R66: AK
A67: 115 | B67: Papel e Celulose | C67: 5322365.421 | D67: 7221707.614 | E67: 5348570.194 | F67: 5965692.334 | G67: 6859965.992 | H67: 8178704.721 | I67: 11393730 | J67: 13624265.81 | K67: 13170673.59 | M67: ='2010'!AN108 -> FERRO-GUSA E AÇO | P67: COQUE DE PETRÓLEO | R67: AL
A68: 114 | B68: Têxtil | C68: 1656405.661 | D68: 1627506.201 | E68: 1441655.694 | F68: 1502689.023 | G68: 1890483.386 | H68: 1803459.046 | I68: 1947250.854 | J68: 2272601.304 | K68: 2394338.943 | M68: ='2010'!AN109 -> FERRO-LIGAS | P68: OUTROS EN. DE PETRÓLEO | R68: AM
A69: 113 | B69: Alim e bebidas | C69: 6043871.441 | D69: 8069148.042 | E69: 5770305.063 | F69: 6630094.258 | G69: 8360377.387 | H69: 10541832.41 | I69: 15420384.53 | J69: 18270706.66 | K69: 20199117.26 | M69: ='2010'!AN110 -> MINERAÇÃO E PELOTIZ.
A70: 112 | B70: Química | C70: 15690642.94 | D70: 16548304.93 | E70: 17881698.06 | F70: 20061831.29 | G70: 19055016.73 | H70: 19176672.81 | I70: 23802675.92 | J70: 27869286.86 | K70: 25908909.95 | M70: ='2010'!AN111 -> NÃO-FERROSOS E OUTROS DA METALURGIA
A71: 111 | B71: N-Ferr e Out Metal | C71: 8346967.859 | D71: 9482305.011 | E71: 6597381.509 | F71: 6793798.863 | G71: 6819824.179 | H71: 7747575.301 | I71: 10557592.52 | J71: 12443959.21 | K71: 11021938.09 | M71: ='2010'!AN112 -> QUÍMICA
A72: 110 | B72: Mineração e Pelot. | C72: 8173467.218 | D72: 9282560.498 | E72: 8588266.771 | F72: 12015461.75 | G72: 12771254.61 | H72: 11210373.14 | I72: 14363506.76 | J72: 17563641.62 | K72: 15961099.74 | M72: ='2010'!AN113 -> ALIMENTOS E BEBIDAS
A73: 109 | B73: Ferro-Ligas | C73: 754592.0169 | D73: 1012376.778 | E73: 519139.864 | F73: 415711.1872 | G73: 539152.0151 | H73: 648367.5854 | I73: 942973.5549 | J73: 1102781.067 | K73: 993406.015 | M73: ='2010'!AN114 -> TÊXTIL
A74: 108 | B74: Ferro Gusa e Aço | C74: 6975262.267 | D74: 8231553.956 | E74: 8028856.109 | F74: 8814358.037 | G74: 8782414.499 | H74: 9868722.037 | I74: 14175229.23 | J74: 17201344.87 | K74: 15951327.22 | M74: ='2010'!AN115 -> PAPEL E CELULOSE
A75: 107 | B75: Cimento | C75: 14758310.14 | D75: 16955370.29 | E75: 15880552.32 | F75: 16025769.54 | G75: 16770408.69 | H75: 17197520.22 | I75: 22634676.77 | J75: 24858879.07 | K75: 24119906.85 | M75: ='2010'!AN116 -> CERÂMICA
A76: 105 | B76: Hidroviário | C76: 4416501.816 | D76: 3093051.628 | E76: 4452523.548 | F76: 4939634.683 | G76: 5519817.051 | H76: 6233171.323 | I76: 7130830.747 | J76: 8319533.451 | K76: 9893000.725 | M76: ='2010'!AN117 -> OUTROS
M77: ='2010'!AN118 -> CONSUMO NÃO-IDENTIFICADO
M78: ='2010'!AN119 -> AJUSTES
M79: ='2010'!AN120 -> CENTRAIS ELÉTRICAS (CESP+AUTOP.)
M80: ='2010'!AN121 -> EDIFICAÇÕES (Res+Com+Pub) + AGROPECUÁRIA
L81: ==> | M81: ='2010'!AN122 -> SETOR ENERGÉTICO E PROD. DE ELETRICIDADE
M82: ='2010'!AN123 -> CONSUMO FINAL E PROD. DE ELETRICIDADE
L83: =OFFSET(L31,C32-13,0) -> 0
B91: Emissão/Energia | C91: =C76/C45 -> 3200.158518 | D91: =D76/D45 -> 3206.179116 | E91: 3200.08817 | F91: 3200.410099 | G91: 3200.632983 | H91: 3199.997857 | I91: 3199.629901 | J91: 3199.104552 | K91: 3198.757471

Sheet 2010
AK8: Conversão m3 =>tep
AK9: 0.655 | AL9: 0.87308 | AM9: 0.889587 | AN9: 0.652 | AO9: 0.87 | AP9: 0.88
B10: Oferta e Demanda EPE (BEN Ano Base 2010) | AF10: =K13 -> OUTRAS FONTES PRIMÁRIAS | AI10: ="Teor biodiesel na ind. "&LEFT(B11,4) -> Teor biodiesel na ind. 2010 | AK10: =Y13 -> OUTRAS SECUNDÁRIAS DE PETRÓLEO
B11: 2010 - 10³ tep | AI11: 0.04830287206
C12: FONTES DE ENERGIA PRIMÁRIA | M12: FONTES DE ENERGIA SECUNDÁRIA | AC12: TOTAIS | AF12: O U T R O S
B13: CONTA | C13: PETRÓLEO | D13: GÁS NATURAL | E13: CARVÃO VAPOR | F13: CARVÃO METALÚRGICO | G13: URÂNIO U3O8 | H13: ENERGIA HIDRÁULICA | I13: LENHA | J13: PRODUTOS DA CANA | K13: OUTRAS FONTES PRIMÁRIAS | L13: ENERGIA PRIMÁRIA TOTAL | M13: ÓLEO DIESEL | N13: ÓLEO COMBUSTIVEL | O13: GASOLINA | P13: GLP | Q13: NAFTA | R13: QUEROSENE | S13: GÁS DE CIDADE E DE COQUERIA | T13: COQUE DE CARVÃO MINERAL | U13: URÂNIO CONTIDO NO UO2 | V13: ELETRICIDADE | W13: CARVÃO VEGETAL | X13: ÁLCOOL ETÍLICO ANIDRO E HIDRATADO | Y13: OUTRAS SECUNDÁRIAS DE PETRÓLEO | Z13: PRODUTOS NÃO ENERGÉTICOS DE PETRÓLEO | AA13: ALCATRÃO | AB13: ENERGIA SECUNDÁRIA TOTAL | AC13: TOTAL SEM ELETRIC | AD13: TOTAL COM ELETRIC | AE13: OUTRAS SECUNDÁRIAS DE PETRÓLEO | AF13: =COMENTÁRIOS!AB20 -> LIXÍVIA | AG13: =COMENTÁRIOS!AC20 -> OUTRAS PRIM. RENOVÁVEIS | AH13: =COMENTÁRIOS!AD20 -> OUTRAS PRIM. NÃO RENOV. | AI13: =COMENTÁRIOS!AE20 -> ÓLEO DIESEL MINERAL | AJ13: =COMENTÁRIOS!AF20 -> BIODIESEL | AK13: =COMENTÁRIOS!AG20 -> GÁS DE REFINARIA | AL13: =COMENTÁRIOS!AH20 -> COQUE DE PETRÓLEO | AM13: =COMENTÁRIOS!AI20 -> OUTROS EN. DE PETRÓLEO
B14: PRODUÇÃO | C14: 106558.8024 | D14: 22770.99585 | E14: 2104.468749 | G14: 1766.812001 | H14: 34682.92394 | I14: 25997.34622 | J14: 48852.28487 | K14: 10464.44186 | L14: =SUM(C14:K14) -> 253198.0759 | AB14: =SUM(M14:AA14) -> 0 | AC14: =AD14-V14 -> 253198.0759 | AD14: =AB14+L14 -> 253198.0759 | BE14: =COUNT($C14:$K14)+COUNT($M14:$AA14) -> 8
B15: IMPORTAÇÃO | C15: 17515.74654 | D15: 11129.50349 | E15: 2895.395 | F15: 7972.02 | G15: 1418.584396 | L15: =SUM(C15:K15) -> 40931.24943 | M15: 7637.932816 | N15: 154.1233912 | O15: 393.6693368 | P15: 1907.893292 | Q15: 5136.225292 | R15: 1580.539528 | T15: 1242.951098 | U15: 3526.661029 | V15: 3087.889082 | W15: 0.646 | X15: 39.01722516 | Y15: =SUMPRODUCT(AK15:AM15,$AK$9:$AM$9) -> 3384.49462 | Z15: 1722.567404 | AB15: =SUM(M15:AA15) -> 29814.61011 | AC15: =AD15-V15 -> 67657.97046 | AD15: 70745.85954 | AE15: 3384.621 | AL15: 3876.5 | BE15: =COUNT($C15:$K15)+COUNT($M15:$AA15) -> 18
B16: VARIAÇÃO DE ESTOQUES | C16: 1185.18147 | E16: 141.013369 | F16: 163.54 | G16: 1636.017988 | L16: 3125.752827 | M16: 8.016144 | N16: -10.576811 | O16: -64.891967 | P16: 34.53575391 | Q16: -86.56041712 | R16: -10.893966 | T16: -56.58 | U16: -4491.440069 | X16: -805.7064 | Y16: =SUMPRODUCT(AK16:AM16,$AK$9:$AM$9) -> -8.2978808 | Z16: -174.6264375 | AB16: -5667.022051 | AC16: -2541.269223 | AD16: -2541.269223 | AE16: -9.72522 | AL16: 50 | AM16: -58.4 | BE16: 15
B17: OFERTA TOTAL | C17: 125259.7304 | D17: 33900.49935 | E17: 5140.877118 | F17: 8135.56 | G17: 4821.414385 | H17: 34682.92394 | I17: 25997.34622 | J17: 48852.28487 | K17: 10464.44186 | L17: 297255.0782 | M17: 7645.94896 | N17: 143.5465802 | O17: 328.7773698 | P17: 1942.429046 | Q17: 5049.664875 | R17: 1569.645562 | T17: 1186.371098 | U17: -964.7790402 | V17: 3087.889082 | W17: 0.646 | X17: -766.6891748 | Y17: =SUM(Y14:Y16) -> 3376.196739 | Z17: 1547.940967 | AB17: 24147.58806 | AC17: 318314.7772 | AD17: 321402.6662 | AE17: 3374.89578 | AL17: =SUM(AL14:AL16) -> 3926.5 | AM17: =SUM(AM14:AM16) -> -58.4 | BE17: 22
B18: EXPORTAÇÃO | C18: -32650.90842 | L18: -32650.90842 | M18: -1310.400613 | N18: -7966.36919 | O18: -594.6921528 | P18: -4.582503321 | R18: -1976.871805 | V18: -108.1436309 | X18: -983.6025123 | Y18: =SUMPRODUCT(AK18:AM18,$AK$9:$AM$9) -> -156.805168 | Z18: -489.3750462 | AA18: -0.4143461538 | AB18: -13591.25697 | AC18: -46134.02176 | AD18: -46242.16539 | AE18: -157.14 | AL18: -179.6 | BE18: 11
B19: NÃO-APROVEITADA | D19: -2365.300858 | L19: -2365.300858 | AB19: 0 | AC19: -2365.300858 | AD19: -2365.300858 | BE19: 1
B20: REINJEÇÃO | D20: -3999.646643 | L20: -3999.646643 | AB20: 0 | AC20: -3999.646643 | AD20: -3999.646643 | BE20: 1
B21: OFERTA INTERNA BRUTA | C21: =C17+SUM(C18:C20) -> 92608.82201 | D21: =D17+SUM(D18:D20) -> 27535.55184 | E21: 5140.877118 | F21: 8135.56 | G21: 4821.414385 | H21: 34682.92394 | I21: 25997.34622 | J21: 48852.28487 | K21: 10464.44186 | L21: =SUM(C21:K21) -> 258239.2223 | M21: =M17+SUM(M18:M20) -> 6335.548347 | N21: =N17+SUM(N18:N20) -> -7822.82261 | O21: -265.914783 | P21: 1937.846542 | Q21: 5049.664875 | R21: -407.2262431 | S21: 0 | T21: 1186.371098 | U21: -964.7790402 | V21: 2979.745451 | W21: 0.646 | X21: -1750.291687 | Y21: 3219.391571 | Z21: 1058.565921 | AA21: -0.4143461538 | AB21: 10556.3311 | AC21: 265815.8079 | AD21: 268795.5534 | AE21: 3217.75578 | AL21: =AL17+SUM(AL18:AL20) -> 3746.9 | AM21: =AM17+SUM(AM18:AM20) -> -58.4 | BE21: 24
B22: TOTAL TRANSFORMAÇÃO | C22: =SUM(C23:C32) -> -92407.63003 | D22: =SUM(D23:D32) -> -10211.31077 | E22: -1905.38207 | F22: -8105.534908 | G22: -4821.414385 | H22: -34682.92394 | I22: -8945.414218 | J22: -18786.62114 | K22: -4421.267672 | L22: =SUM(C22:K22) -> -184287.4991 | M22: =SUM(M23:M32) -> 35001.34763 | N22: =SUM(N23:N32) -> 13118.59219 | O22: 17830.5338 | P22: 5846.974715 | Q22: 2590.753203 | R22: 3854.365398 | S22: 1433.616196 | T22: 6340.094274 | U22: 964.7790402 | V22: 44358.68713 | W22: 4766.619573 | X22: 14441.7877 | Y22: 7938.664643 | Z22: 6918.644566 | AA22: 224.242937 | AB22: 165629.703 | AC22: -63016.48326 | AD22: -18657.79613 | AE22: 8683.387437 | AK22: =SUM(AK23:AK32) -> 5535.570532 | AL22: =SUM(AL23:AL32) -> 2341.874653 | AM22: =SUM(AM23:AM32) -> 2549.747268 | AN22: =AK22 -> 5535.570532 | AQ22: ATUAL | AR22: Desejado | BE22: 24
B23: REFINARIAS DE PETRÓLEO | C23: -92407.63003 | K23: -1211.185121 | L23: =SUM(C23:K23) -> -93618.81515 | M23: 35132.0153 | N23: 14246.95212 | O23: 16628.52922 | P23: 4692.750868 | Q23: 5625.682995 | R23: 3854.365398 | Y23: =SUMPRODUCT(AK23:AM23,$AK$9:$AM$9) -> 6979 | Z23: 6302.125567 | AB23: 93461.42147 | AC23: -157.3936829 | AD23: -157.3936829 | AE23: 7012.612794 | AK23: =AN23/$AQ23*$AR23 -> 6245.494196 | AL23: =AO23/$AQ23*$AR23 -> 3042.383198 | AM23: =AP23/$AQ23*$AR23 -> 260.7472678 | AN23: 6275.5 | AO23: 3057 | AP23: 262 | AQ23: 7012.529854 | AR23: 6979 | BE23: 10
B24: PLANTAS DE GAS NATURAL | D24: -2844.38961 | K24: 839.9153208 | L24: =SUM(C24:K24) -> -2004.47429 | P24: 1093.69 | Z24: 881.2636792 | AB24: 1974.953679 | AC24: -29.5206104 | AD24: -29.5206104 | BE24: 4
B25: USINAS DE GASEIFICAÇÃO | L25: 0 | AB25: 0 | AC25: 0 | AD25: 0 | BE25: 0
B26: COQUERIAS | F26: -8105.534908 | L26: -8105.534908 | S26: 1737.773432 | T26: 6340.094274 | Y26: =SUMPRODUCT(AK26:AM26,$AK$9:$AM$9) -> -611.6 | AA26: 235.4329255 | AB26: 7701.700632 | AC26: -403.8342754 | AD26: -403.8342754 | AE26: 0 | AL26: =AO26/$AQ26*$AR26 -> -700.5085445 | AO26: 10 | AQ26: 8.7308 | AR26: -611.6 | BE26: 5
B27: CICLO DO COMBUSTÍVEL NUCLEAR | G27: -4821.414385 | L27: -4821.414385 | U27: 4744.475675 | AB27: 4744.475675 | AC27: -76.93871067 | AD27: -76.93871067 | BE27: 2
B28: CENTRAIS ELÉTRICAS DE SERVIÇO PÚBLICO | D28: -4818.463449 | E28: -1721.307537 | H28: -32903.54431 | I28: -13.95 | K28: -193.3284189 | L28: -39650.59372 | M28: -1820.0624 | N28: -889.952 | U28: -3779.696635 | V28: 38081.08732 | Y28: =SUMPRODUCT(AK28:AM28,$AK$9:$AM$9) -> 0 | AB28: 31591.37629 | AC28: -46140.30475 | AD28: -8059.21743 | AE28: 0 | AI28: =(1-$AI$11)*M28 -> -1732.148159 | AJ28: =$AI$11*M28 -> -87.91424125 | BE28: 10
B29: CENTRAIS ELÉTRICAS AUTOPRODUTORAS | D29: -2177.187909 | E29: -184.0745329 | H29: -1779.37963 | I29: -294.8388415 | J29: -4080.686728 | K29: -2195.052597 | L29: -10711.22024 | M29: -343.4919169 | N29: -238.4079357 | S29: -304.1572359 | V29: 6277.599812 | Y29: =SUMPRODUCT(AK29:AM29,$AK$9:$AM$9) -> -465 | AA29: -11.18998858 | AB29: 4915.352735 | AC29: -12073.46732 | AD29: -5795.867504 | AE29: -365.49 | AI29: =(1-$AI$11)*M29 -> -326.9002708 | AJ29: =$AI$11*M29 -> -16.59164612 | AK29: =AN29/$AQ29*$AR29 -> -709.9236641 | AN29: -558.49 | AQ29: -365.81095 | AR29: -465 | BE29: 12
B30: CARVOARIAS | I30: -8636.625376 | L30: -8636.625376 | W30: 4766.619573 | AB30: 4766.619573 | AC30: -3870.005803 | AD30: -3870.005803 | BE30: 2
B31: DESTILARIAS | J31: -14705.93441 | L31: -14705.93441 | X31: 14441.7877 | AB31: 14441.7877 | AC31: -264.1467169 | AD31: -264.1467169 | BE31: 2
B32: OUTRAS TRANSFORMAÇÕES | D32: -371.2698 | K32: -1661.616856 | L32: -2032.886656 | M32: 2032.886656 | O32: 1202.004583 | P32: 60.53384679 | Q32: -3034.929792 | Y32: =SUMPRODUCT(AK32:AM32,$AK$9:$AM$9) -> 2036.264643 | Z32: -264.7446804 | AB32: 2032.015257 | AC32: -0.871399071 | AD32: -0.871399071 | AE32: 2036.264643 | AM32: 2289 | BE32: 8
B33: PERDAS NA DISTRIBUIÇÃO E ARMAZENAGEM | D33: -433.1149312 | F33: -29.6 | I33: 0 | J33: 0 | K33: 0 | L33: -462.7149312 | M33: -33.92 | N33: -69.048 | O33: -0.01534030521 | P33: -6.11 | Q33: -22.95 | R33: -16.44 | S33: 0 | T33: -10.35 | U33: 0 | V33: -7374.350365 | W33: -119.6767132 | X33: -131.63583 | Y33: 0 | Z33: -63.01002685 | AA33: 0 | AB33: -7847.506276 | AC33: -935.8708416 | AD33: -8310.221207 | AE33: 0 | BE33: 20
B34: CONSUMO FINAL | D34: =SUM(D35:D36) -> 16887.1871 | E34: 3237.485824 | F34: 0.2626917896 | I34: 17051.932 | J34: 30065.66373 | K34: 6043.174191 | L34: =SUM(C34:K34) -> 73285.70554 | M34: =SUM(M35:M36) -> 41498.35944 | N34: 4939.400102 | O34: 17577.95504 | P34: 7701.117756 | Q34: 7600.667919 | R34: 3202.281757 | S34: 1433.552668 | T34: 7516.377652 | U34: 0 | V34: 39964.11759 | W34: 4647.785 | X34: 12628.05801 | Y34: =SUM(Y35:Y36) -> 11164.31174 | Z34: 7796.851871 | AA34: 237.600396 | AB34: 167908.4369 | AC34: 201230.0249 | AD34: 241194.1425 | AE34: 11163.2323 | AK34: =SUM(AK35:AK36) -> 5709.738177 | AL34: =SUM(AL35:AL36) -> 6102.705571 | AM34: =SUM(AM35:AM36) -> 2356.467721 | AN34: =AK34 -> 5709.738177 | BE34: 21
B35: CONSUMO FINAL NÃO-ENERGÉTICO | D35: 1452.587568 | L35: =SUM(C35:K35) -> 1452.587568 | Q35: 7600.667919 | R35: 7.398 | X35: 587.212764 | Y35: =SUMPRODUCT(AK35:AM35,$AK$9:$AM$9) -> 98.25 | Z35: 7796.851871 | AA35: 142.656066 | AB35: 16233.03662 | AC35: 17685.62419 | AD35: 17685.62419 | AE35: 98.25 | AK35: 150 | BE35: 7
B36: CONSUMO FINAL ENERGÉTICO | D36: =SUM(D37:D42)+D47+D59 -> 15434.59953 | E36: 3237.485824 | F36: 0.2626917896 | I36: 17051.932 | J36: 30065.66373 | K36: 6043.174191 | L36: =SUM(C36:K36) -> 71833.11797 | M36: =SUM(M37:M42)+M47+M59 -> 41498.35944 | N36: 4939.400102 | O36: 17577.95504 | P36: 7701.117756 | Q36: 0 | R36: 3194.883757 | S36: 1433.552668 | T36: 7516.377652 | U36: 0 | V36: 39964.11759 | W36: 4647.785 | X36: 12040.84524 | Y36: 11066.06174 | Z36: 0 | AA36: 94.94433 | AB36: =SUM(M36:AA36) -> 151675.4003 | AC36: 183544.4007 | AD36: =L36+AB36 -> 223508.5183 | AE36: 11064.9823 | AK36: =SUM(AK37:AK42)+AK47+AK59 -> 5559.738177 | AL36: =SUM(AL37:AL42)+AL47+AL59 -> 6102.705571 | AM36: =SUM(AM37:AM42)+AM47+AM59 -> 2356.467721 | BE36: 21
B37: SETOR ENERGÉTICO | D37: 3874.784827 | E37: 4.999286888 | J37: 12776.86255 | L37: =SUM(C37:K37) -> 16656.64667 | M37: 907.9483983 | N37: 631.3337285 | P37: 15.07857461 | S37: 183.8207641 | V37: 2307.992783 | Y37: =SUMPRODUCT(AK37:AM37,$AK$9:$AM$9) -> 3560.58 | AB37: =SUM(M37:AA37) -> 7606.754248 | AC37: 21955.40813 | AD37: 24263.40092 | AE37: 3560.58 | AI37: =(1-$AI$11)*M37 -> 864.091883 | AJ37: =$AI$11*M37 -> 43.85651532 | AK37: 5436 | BE37: 9
B38: RESIDENCIAL | D38: 255.2 | I38: 7276 | L38: =SUM(C38:K38) -> 7531.2 | P38: 6297.577 | R38: 4.178551101 | V38: 9220.46162 | W38: 509 | AB38: =SUM(M38:AA38) -> 16031.21717 | AC38: 14341.95555 | AD38: 23562.41717 | AS38: BEN do NBU | AU38: Tot | AV38: Em mil m3 | AX38: Teor biodiesel | AY38: em ktep, fc= | AZ38: 0.848 | BA38: Tot | BB38: BEN public 2016 | BE38: 6
B39: COMERCIAL | D39: 201.9213607 | I39: 88.86668605 | L39: 290.7880467 | M39: 35.64292637 | N39: 24.57902807 | P39: 297.8133211 | V39: 5995.709577 | W39: 86.172201 | AB39: 6439.917054 | AC39: 734.9955233 | AD39: 6730.7051 | AI39: =AY39 -> 34.28571429 | AJ39: 1.714285714 | AS39: =B39 -> COMERCIAL | AT39: 42.0317528 | AU39: =SUM(AV39:AW39) -> 42 | AV39: 40 | AW39: 2 | AX39: =AW39/SUM(AV39:AW39) -> 0.04761904762 | AY39: =$AZ$38*AV39*BB39/BA39 -> 34.28571429 | AZ39: =$AZ$38*AW39*BB39/BA39 -> 1.714285714 | BA39: 35.616 | BB39: 36 | BE39: 7
B40: PÚBLICO | D40: 59.84 | L40: 59.84 | M40: 11.60382177 | N40: 3.345756323 | P40: 380.7941593 | V40: 3180.199692 | AB40: 3575.94343 | AC40: 455.5837374 | AD40: 3635.78343 | AI40: 11.42036554 | AJ40: 0.5796344648 | AS40: PÚBLICO | AT40: 13.68375208 | AU40: =SUM(AV40:AW40) -> 13.65980796 | AV40: 13 | AW40: =AV40*AI11/(1-AI11) -> 0.6598079561 | AX40: 0.04830287206 | AY40: 11.42036554 | AZ40: 0.5796344648 | BA40: 11.58351715 | BB40: 12 | BE40: 5
B41: AGROPECUÁRIO | D41: 2.292916102 | I41: 2523.452404 | L41: 2525.74532 | M41: 5772.224985 | N41: 78.84919146 | P41: 8.091043078 | V41: 1628.687642 | W41: 7.50546702 | X41: 7.936467 | AB41: 7503.294796 | AC41: 8400.352473 | AD41: 10029.04012 | AI41: 5492.176289 | AJ41: 279.8237109 | AS41: AGROPECUÁRIO | AT41: 6806.869086 | AU41: 6807 | AV41: 6477 | AW41: 330 | AX41: 0.04847950639 | AY41: 5492.176289 | AZ41: 279.8237109 | BA41: 5772.336 | BB41: 5772 | BE41: 8
B42: TRANSPORTES - TOTAL | D42: 1766.684616 | L42: 1766.684616 | M42: 34045.87882 | N42: 965.5663258 | O42: 17577.95504 | R42: 3187.928818 | V42: 142.932 | X42: 12032.90878 | AB42: 67953.16978 | AC42: 69576.92239 | AD42: 69719.85439 | AI42: 32415.98038 | AJ42: 1631.019619 | AS42: TRANSPORTES - TOTAL | AT42: =SUM(AT43:AT46) -> 40062.042 | AU42: 39808 | AV42: =SUM(AV43:AV46) -> 37901 | AW42: =SUM(AW43:AW46) -> 1907 | AX42: 0.04790494373 | AY42: 32415.98038 | AZ42: 1631.019619 | BA42: 33757.184 | BB42: =SUM(BB43:BB46) -> 34047 | BE42: 7
B43: RODOVIÁRIO | D43: 1766.684616 | L43: 1766.684616 | M43: 32638.82519 | O43: 17524.88495 | V43: 0 | X43: 12032.90878 | AB43: 62196.61892 | AC43: 63963.30353 | AD43: 63963.30353 | AI43: 31055.80922 | AJ43: 1583.190777 | AS43: RODOVIÁRIO | AT43: 38489.18065 | AU43: 38490 | AV43: 36623 | AW43: 1867 | AX43: 0.04850610548 | AY43: 31055.80922 | AZ43: 1583.190777 | BA43: 32639.52 | BB43: 32639 | BE43: 5
B44: FERROVIÁRIO | L44: 0 | M44: 992.5315003 | V44: 142.932 | AB44: 1135.4635 | AC44: 992.5315003 | AD44: 1135.4635 | AI44: 945.0868516 | AJ44: 47.91314837 | AS44: FERROVIÁRIO | AT44: 1084.03809 | AU44: 829 | AV44: 789 | AW44: 40 | AX44: 0.0482509047 | AY44: 945.0868516 | AZ44: 47.91314837 | BA44: 702.992 | BB44: 993 | BE44: 2
B45: AÉREO | L45: 0 | O45: 53.07009113 | R45: 3187.928818 | AB45: 3240.998909 | AC45: 3240.998909 | AD45: 3240.998909 | AI45: 0 | AJ45: 0 | AS45: AÉREO | AT45: 0 | AU45: 0 | AV45: 0 | AW45: 0 | AY45: =$AZ$38*AV45 -> 0 | AZ45: =$AZ$38*AW45 -> 0 | BA45: 0 | BB45: 0 | BE45: 2
B46: HIDROVIÁRIO | L46: 0 | M46: 414.5221264 | N46: 965.5663258 | AB46: 1380.088452 | AC46: 1380.088452 | AD46: 1380.088452 | AI46: 415 | AJ46: 0 | AS46: HIDROVIÁRIO | AT46: 488.8232623 | AU46: 489 | AV46: 489 | AW46: 0 | AY46: =$AZ$38*AV46*BB46/BA46 -> 415 | AZ46: =$AZ$38*AW46*BB46/BA46 -> 0 | BA46: 414.672 | BB46: 415 | BE46: 2
B47: INDUSTRIAL - TOTAL | D47: =SUM(D48:D59) -> 9273.875808 | E47: =SUM(E48:E59) -> 3232.486537 | F47: =SUM(F48:F59) -> 0.2626917896 | I47: =SUM(I48:I59) -> 7163.612912 | J47: =SUM(J48:J59) -> 17288.80118 | K47: =SUM(K48:K59) -> 6043.174191 | L47: 43002.21332 | M47: =SUM(M48:M59) -> 725.0604923 | N47: =SUM(N48:N59) -> 3235.726072 | P47: =SUM(P48:P59) -> 701.7636582 | R47: =SUM(R48:R59) -> 2.7763872 | S47: =SUM(S48:S59) -> 1249.731904 | T47: =SUM(T48:T59) -> 7516.377652 | V47: =SUM(V48:V59) -> 17488.13428 | W47: =SUM(W48:W59) -> 4045.107332 | Y47: =SUM(Y48:Y59) -> 7505.481736 | AA47: =SUM(AA48:AA59) -> 94.94433 | AB47: 42565.10384 | AC47: 68079.18288 | AD47: 85567.31716 | AE47: 7504.402295 | AF47: =SUM(AF48:AF59) -> 4710.601575 | AG47: 1214.142176 | AH47: 119 | AI47: 690.0379881 | AJ47: 35.0225042 | AK47: 123.7381767 | AL47: 6102.705571 | AM47: 2356.467721 | BE47: 16
B48: CIMENTO | D48: 22.51634361 | E48: 52.14601201 | F48: 0.003479616237 | K48: 297.465168 | L48: 372.1310032 | M48: 45.20205766 | N48: 8.088882365 | P48: 4.888 | T48: 47.33612188 | V48: 553.4513102 | W48: 62.99514995 | Y48: =SUMPRODUCT(AK48:AM48,$AK$9:$AM$9) -> 3160.5496 | AB48: 3882.511122 | AC48: 3701.190815 | AD48: 4254.642125 | AE48: 3160.26 | AG48: 179 | AH48: 119 | AI48: =(1-$AI$11)*M48 -> 43.01866845 | AJ48: =$AI$11*M48 -> 2.183389208 | AL48: 3620 | AN48: ATUAL | AR48: Desejado | BE48: 11
B49: FERRO-GUSA E AÇO | D49: 896.5963993 | E49: 1772.218294 | F49: 0.004718308191 | L49: 2668.819412 | M49: 15.32093811 | N49: 168.336147 | P49: 70.79964277 | S49: 1249.731904 | T49: 7153.205913 | V49: 1612.93 | W49: 3371.976492 | Y49: 39.258 | AA49: 94.94433 | AB49: 13776.50337 | AC49: 14832.39278 | AD49: 16445.32278 | AE49: 39.285 | AI49: 14.5808928 | AJ49: 0.7400453135 | AL49: =AO49/$AQ49*$AR49 -> 44.96495167 | AO49: 746 | AQ49: 651.31768 | AR49: 39.258 | BE49: 12
B50: FERRO-LIGAS | D50: 1.9594168 | E50: 0 | I50: 92.0412596 | L50: 94.0006764 | N50: 29.05109728 | P50: 0 | R50: 0.9385596 | T50: 107.4297471 | V50: 727.6373335 | W50: 568.3646158 | Y50: 167.63136 | AB50: 1601.052713 | AC50: 967.4160562 | AD50: 1695.05339 | AE50: 167.616 | AI50: 0 | AJ50: 0 | AL50: 192 | BE50: 10
B51: MINERAÇÃO E PELOTIZ. | D51: 628.3988073 | E51: 367.5677878 | F51: 0.04716665651 | L51: 996.0137618 | M51: 260.0659619 | N51: 370.96272 | P51: 18.941 | R51: 0.6105816 | T51: 56.30272551 | V51: 971.8 | Y51: 507.608712 | AB51: 2186.291701 | AC51: 2210.505463 | AD51: 3182.305463 | AE51: 507.213 | AI51: 247.5040291 | AJ51: 12.56193289 | AL51: 581.4 | BE51: 10
B52: NÃO-FERROSOS E OUTROS DA METALURGIA | D52: 726.560128 | E52: 615.8030135 | F52: 0.1644095 | L52: 1342.527551 | N52: 1098.387253 | P52: 79.43 | T52: 152.1031446 | V52: 3198.430311 | W52: 9.303056548 | Y52: 612.02908 | AB52: 5149.682845 | AC52: 3293.780085 | AD52: 6492.210396 | AE52: 611.973 | AI52: 0 | AJ52: 0 | AL52: 701 | AN52: ATUAL | AR52: Desejado | BE52: 9
B53: QUÍMICA | D53: 2289.287496 | E53: 125.1712287 | I53: 49.22917589 | K53: 92.554358 | L53: 2556.242259 | M53: 26.97777295 | N53: 233.2080319 | P53: 63.544 | V53: 2055.226104 | W53: 20.18874455 | Y53: 2259 | AB53: 4658.144654 | AC53: 5159.160808 | AD53: 7214.386912 | AE53: 2258.545295 | AG53: 93 | AH53: 0 | AI53: 25.67466904 | AJ53: 1.303103915 | AK53: =AN53/$AQ53*$AR53 -> 123.7381767 | AL53: =AO53/$AQ53*$AR53 -> 93.54061923 | AM53: =AP53/$AQ53*$AR53 -> 2356.467721 | AN53: 130.96 | AO53: 99 | AP53: 2494 | AQ53: 2390.843698 | AR53: 2259 | BE53: 10
B54: ALIMENTOS E BEBIDAS | D54: 662.0031089 | E54: 71.3024892 | I54: 2267.265745 | J54: 17248.25219 | K54: 11.122 | L54: 20259.94553 | M54: 148.4994062 | N54: 325.2052164 | P54: 105.703 | R54: 0.02466 | V54: 2318.90666 | Y54: 85.56184 | AB54: 2983.900782 | AC54: 20924.93965 | AD54: 23243.84631 | AE54: 85.554 | AG54: 11 | AI54: 141.3264584 | AJ54: 7.17294782 | AL54: 98 | AR54: =AN53*AN9 -> 85.38592 | BE54: 11
B55: TÊXTIL | D55: 328.5727298 | E55: 0 | I55: 91.88159099 | L55: 420.4543207 | M55: 2.838861023 | N55: 64.20961388 | P55: 10.18801539 | R55: 0.00411 | V55: 714.5248958 | AB55: 791.7654961 | AC55: 497.694921 | AD55: 1212.219817 | AI55: 2.701735882 | AJ55: 0.1371251408 | BE55: 8
B56: PAPEL E CELULOSE | D56: 676.3117549 | E56: 111.6078999 | I56: 1513.356274 | J56: 40.54899178 | K56: 5580.682961 | L56: 7922.507881 | M56: 76.32 | N56: 466.1781817 | P56: 30.55 | R56: 0.00822 | V56: 1635.729546 | AB56: 2208.785948 | AC56: 8495.564283 | AD56: 10131.29383 | AF56: 4710.601575 | AG56: 870.0813859 | AI56: 72.6335248 | AJ56: 3.686475196 | AN56: A partir do BEN ano base 2010 em PDF | BE56: 10
B57: CERÂMICA | D57: 1140.822804 | E57: 29.750134 | I57: 2275.393269 | K57: 58.0607898 | L57: 3504.026997 | M57: 5.936 | N57: 295.372 | P57: 164.97 | V57: 319.3614169 | Y57: =SUMPRODUCT(AK57:AM57,$AK$9:$AM$9) -> 195.395304 | AB57: 981.0347209 | AC57: 4165.700301 | AD57: 4485.061718 | AE57: 195.552 | AG57: 58.0607898 | AI57: 5.649274151 | AJ57: 0.2867258486 | AL57: 223.8 | BE57: 9
B58: OUTROS | D58: 1900.846819 | E58: 86.91967755 | F58: 0.04291770867 | I58: 874.4455976 | K58: 3.2889144 | L58: 2865.543927 | M58: 143.8994944 | N58: 176.7269285 | P58: 152.75 | R58: 1.190256 | V58: 3380.136699 | W58: 12.27927305 | Y58: =SUMPRODUCT(AK58:AM58,$AK$9:$AM$9) -> 478.44784 | AB58: 4345.430491 | AC58: 3830.837718 | AD58: 7210.974417 | AE58: 478.404 | AG58: 3 | AI58: 136.9487355 | AJ58: 6.950758868 | AL58: 548 | BE58: 12
B59: CONSUMO NÃO-IDENTIFICADO
B60: AJUSTES | C60: -447.3846926 | D60: -3.980980287 | E60: -2.989618126 | G60: 0.4452088096 | J60: -0.004421808114 | K60: -2.273736754e-13 | L60: =SUM(C60:K60) -> -453.914504 | M60: -25.02814454 | N60: -32.64621988 | O60: 5.060910766 | P60: -174.3328179 | Q60: 3.030165 | R60: 244.4002722 | S60: -0.4301231178 | U60: -2.625742113e-13 | X60: 53.075472 | Y60: 0.3158037468 | Z60: -16.88803202 | AA60: 0.2835384615 | AB60: =SUM(M60:AA60) -> 56.8408247 | AC60: =AD60-V60 -> -397.0736793 | AD60: =L60+AB60 -> -397.0736793 | AE60: 0.3158037468
B61: CENTRAIS ELÉTRICAS (CESP+AUTOP.) | D61: =SUM(D28:D29) -> -6995.651358 | E61: -1905.38207 | H61: =SUM(H28:H29) -> -34682.92394 | I61: -308.7888415 | J61: -4080.686728 | K61: -2388.381016 | L61: -50361.81395 | M61: -2163.554317 | N61: -1128.359936 | S61: =SUM(S28:S29) -> -304.1572359 | U61: =SUM(U28:U29) -> -3779.696635 | V61: 44358.68713 | Y61: =SUM(Y28:Y29) -> -465 | AA61: -11.18998858 | AB61: =SUM(AB28:AB29) -> 36506.72902 | AC61: -58213.77207 | AD61: -13855.08493 | AF61: 0 | AG61: 0 | AH61: 0 | AI61: -2059.04843 | AJ61: -104.5058874 | AK61: -709.9236641 | AL61: 0 | AM61: 0
B62: EDIFICAÇÕES (Res+Com+Pub) + AGROPECUÁRIA | C62: =SUM(C38:C41) -> 0 | D62: =SUM(D38:D41) -> 519.2542768 | E62: 0 | F62: 0 | G62: 0 | H62: 0 | I62: 9888.31909 | J62: 0 | K62: 0 | L62: 10407.57337 | M62: 5819.471733 | N62: 106.7739759 | O62: 0 | P62: 6984.275523 | Q62: 0 | R62: 4.178551101 | S62: 0 | T62: 0 | U62: 0 | V62: 20025.05853 | W62: 602.677668 | X62: 7.936467 | Y62: 0 | Z62: 0 | AA62: 0 | AB62: 33550.37245 | AC62: 23932.88728 | AD62: 43957.94582
B63: SETOR ENERGÉTICO E PROD. DE ELETRICIDADE | C63: =C37-SUM(C28:C29) -> 0 | D63: =D37-SUM(D28:D29) -> 10870.43619 | E63: 1910.381357 | F63: 0 | G63: 0 | H63: 34682.92394 | I63: 308.7888415 | J63: 16857.54928 | K63: 2388.381016 | L63: 67018.46062 | M63: 3071.502715 | N63: 1759.693664 | O63: 0 | P63: 15.07857461 | Q63: 0 | R63: 0 | S63: 487.978 | T63: 0 | U63: 3779.696635 | V63: =V37 -> 2307.992783 | W63: 0 | X63: 0 | Y63: 4025.58 | Z63: 0 | AA63: 11.18998858 | AD63: 38118.48585
B64: CONSUMO FINAL E PROD. DE ELETRICIDADE | C64: =C36-SUM(C28:C29) -> 0 | D64: =D36-SUM(D28:D29) -> 22430.25089 | E64: 5142.867894 | F64: 0.2626917896 | G64: 0 | H64: 34682.92394 | I64: 17360.72084 | J64: 34146.35046 | K64: 8431.555207 | L64: 122194.9319 | M64: 43661.91376 | N64: 6067.760038 | O64: 17577.95504 | P64: 7701.117756 | Q64: 0 | R64: 3194.883757 | S64: 1737.709904 | T64: 7516.377652 | U64: 3779.696635 | V64: -4394.569542 | W64: 4647.785 | X64: 12040.84524 | Y64: 11531.06174 | Z64: 0 | AA64: 106.1343186 | AD64: =AD36-SUM(AD28:AD29) -> 237363.6032
B68: Fatores de emissão em tCO2/TJ ==> | D68: =COMENTÁRIOS!C21 -> 56.1 | E68: =COMENTÁRIOS!D21 -> 96.1 | F68: =COMENTÁRIOS!E21 -> 94.6 | G68: =COMENTÁRIOS!F21 -> 0 | H68: =COMENTÁRIOS!G21 -> 0 | I68: =COMENTÁRIOS!H21 -> 0 | J68: =COMENTÁRIOS!I21 -> 0 | K68: =COMENTÁRIOS!J21 -> Outros | M68: =COMENTÁRIOS!L21 -> Outros | N68: =COMENTÁRIOS!M21 -> 77.4 | O68: =COMENTÁRIOS!N21 -> 69.3 | P68: =COMENTÁRIOS!O21 -> 63.1 | Q68: =COMENTÁRIOS!P21 -> 73.3 | R68: =COMENTÁRIOS!Q21 -> 71.5 | S68: =COMENTÁRIOS!R21 -> 44.4 | T68: =COMENTÁRIOS!S21 -> 107 | U68: =COMENTÁRIOS!T21 -> 0 | V68: =COMENTÁRIOS!U21 -> 0 | W68: =COMENTÁRIOS!V21 -> 0 | X68: =COMENTÁRIOS!W21 -> 0 | Y68: =COMENTÁRIOS!X21 -> Outros | Z68: =COMENTÁRIOS!Y21 -> 73.3 | AA68: =COMENTÁRIOS!Z21 -> 80.7 | AF68: =COMENTÁRIOS!AB21 -> 0 | AG68: =COMENTÁRIOS!AC21 -> 0 | AH68: =COMENTÁRIOS!AD21 -> 143 | AI68: =COMENTÁRIOS!AE21 -> 74.1 | AJ68: =COMENTÁRIOS!AF21 -> 0 | AK68: =COMENTÁRIOS!AG21 -> 57.6 | AL68: =COMENTÁRIOS!AH21 -> 97.5 | AM68: =COMENTÁRIOS!AI21 -> 73.3
B69: CENÁRIO IES BRASIL 2 - EMISSÕES DE CO2 DA ENERGIA
B70: =LEFT(B11,4)&" - tCO2" -> 2010 - tCO2
C71: FONTES DE ENERGIA PRIMÁRIA | M71: FONTES DE ENERGIA SECUNDÁRIA | AC71: TOTAIS | AF71: =AF12 -> O U T R O S
B72: CONTA | C72: PETRÓLEO | D72: GÁS NATURAL | E72: CARVÃO VAPOR | F72: CARVÃO METALÚRGICO | G72: URÂNIO U3O8 | H72: ENERGIA HIDRÁULICA | I72: LENHA | J72: PRODUTOS DA CANA | K72: OUTRAS FONTES PRIMÁRIAS | L72: ENERGIA PRIMÁRIA TOTAL | M72: ÓLEO DIESEL | N72: ÓLEO COMBUSTIVEL | O72: GASOLINA | P72: GLP | Q72: NAFTA | R72: QUEROSENE | S72: GÁS DE CIDADE E DE COQUERIA | T72: COQUE DE CARVÃO MINERAL | U72: URÂNIO CONTIDO NO UO2 | V72: ELETRICIDADE | W72: CARVÃO VEGETAL | X72: ÁLCOOL ETÍLICO ANIDRO E HIDRATADO | Y72: OUTRAS SECUNDÁRIAS DE PETRÓLEO | Z72: PRODUTOS NÃO ENERGÉTICOS DE PETRÓLEO | AA72: ALCATRÃO | AB72: ENERGIA SECUNDÁRIA TOTAL | AC72: TOTAL DIRETO | AD72: TOTAL COM ELETRIC | AF72: =AF13 -> LIXÍVIA | AG72: =AG13 -> OUTRAS PRIM. RENOVÁVEIS | AH72: OUTRAS PRIM. NÃO RENOV. | AI72: ÓLEO DIESEL MINERAL | AJ72: BIODIESEL | AK72: GÁS DE REFINARIA | AL72: COQUE DE PETRÓLEO | AM72: OUTROS EN. DE PETRÓLEO
B73: PRODUÇÃO | AN73: =TRIM(B73) -> PRODUÇÃO | AO73: ="" -> 
B74: IMPORTAÇÃO | AN74: IMPORTAÇÃO | AO74: ="" -> 
B75: VARIAÇÃO DE ESTOQUES | AN75: VARIAÇÃO DE ESTOQUES | AO75: ="" -> 
B76: OFERTA TOTAL | AN76: OFERTA TOTAL | AO76: ="" -> 
B77: EXPORTAÇÃO | AN77: EXPORTAÇÃO | AO77: ="" -> 
B78: NÃO-APROVEITADA | AN78: NÃO-APROVEITADA | AO78: ="" -> 
B79: REINJEÇÃO | AN79: REINJEÇÃO | AO79: ="" -> 
B80: OFERTA INTERNA BRUTA | AN80: OFERTA INTERNA BRUTA | AO80: ="" -> 
B81: TOTAL TRANSFORMAÇÃO | D81: =SUM(D82:D91) -> 16431349.53 | E81: =SUM(E82:E91) -> 7666332.958 | L81: =SUM(L82:L91) -> 24097682.49 | M81: =SUM(M82:M91) -> 6388030.558 | N81: =SUM(N82:N91) -> 3656544.251 | S81: =SUM(S82:S91) -> 565409.8089 | Y81: =SUM(Y82:Y91) -> 30575655.52 | AA81: =SUM(AA82:AA91) -> 37808.14706 | AB81: =SUM(AB82:AB91) -> 11769185.28 | AD81: =SUM(AD82:AD91) -> 35866867.77 | AI81: =SUM(AI82:AI91) -> 6388030.558 | AJ81: =SUM(AJ82:AJ91) -> 0 | AK81: =SUM(AK82:AK91) -> 10986749.56 | AL81: =SUM(AL82:AL91) -> 13339763.71 | AM81: =SUM(AM82:AM91) -> 6249142.248 | AN81: TOTAL TRANSFORMAÇÃO | AO81: ="" -> 
B82: REFINARIAS DE PETRÓLEO | Y82: =SUM(AK82:AM82) -> 20708490.05 | AK82: =ABS(AK23)*COMENTÁRIOS!$AE$1*AK$68*AK$9 -> 9865357.05 | AL82: =ABS(AL23)*COMENTÁRIOS!$AE$1*AL$68*AL$9 -> 10843133 | AN82: REFINARIAS DE PETRÓLEO | AO82: ="" -> 
B83: PLANTAS DE GAS NATURAL | AN83: PLANTAS DE GAS NATURAL | AO83: ="" -> 
B84: USINAS DE GASEIFICAÇÃO | AN84: USINAS DE GASEIFICAÇÃO | AO84: ="" -> 
B85: COQUERIAS | Y85: =SUM(AK85:AM85) -> 2496630.708 | AL85: =ABS(AL26)*COMENTÁRIOS!$AE$1*AL$68*AL$9 -> 2496630.708 | AN85: COQUERIAS | AO85: ="" -> 
B86: CICLO DO COMBUSTÍVEL NUCLEAR | AN86: CICLO DO COMBUSTÍVEL NUCLEAR | AO86: ="" -> 
B87: CENTRAIS ELÉTRICAS DE SERVIÇO PÚBLICO | D87: =ABS(D28)*COMENTÁRIOS!$AE$1*D$68 -> 11317581.89 | E87: =ABS(E28)*COMENTÁRIOS!$AE$1*E$68 -> 6925706.351 | L87: =SUM(C87:K87) -> 18243288.24 | M87: =SUM(AI87:AJ87) -> 5373849.012 | N87: =ABS(N28)*COMENTÁRIOS!$AE$1*N$68 -> 2883963.5 | Y87: =SUM(AK87:AM87) -> 0 | AB87: =SUM(M87:AA87) -> 8257812.512 | AD87: =AB87+L87 -> 26501100.76 | AE87: 26591951.7 | AI87: =ABS(AI28)*COMENTÁRIOS!$AE$1*AI$68 -> 5373849.012 | AJ87: =ABS(AJ28)*COMENTÁRIOS!$AE$1*AJ$68 -> 0 | AK87: =ABS(AK28)*COMENTÁRIOS!$AE$1*AK$68*AK$9 -> 0 | AN87: CENTRAIS ELÉTRICAS DE SERVIÇO PÚBLICO | AO87: 26591951.7
B88: CENTRAIS ELÉTRICAS AUTOPRODUTORAS | D88: =ABS(D29)*COMENTÁRIOS!$AE$1*D$68 -> 5113767.639 | E88: =ABS(E29)*COMENTÁRIOS!$AE$1*E$68 -> 740626.6072 | L88: =SUM(C88:K88) -> 5854394.247 | M88: =SUM(AI88:AJ88) -> 1014181.546 | N88: =ABS(N29)*COMENTÁRIOS!$AE$1*N$68 -> 772580.7512 | S88: =ABS(S29)*COMENTÁRIOS!$AE$1*S$68 -> 565409.8089 | Y88: =SUM(AK88:AM88) -> 1121392.512 | AA88: =ABS(AA29)*COMENTÁRIOS!$AE$1*AA$68 -> 37808.14706 | AB88: =SUM(M88:AA88) -> 3511372.765 | AD88: =AB88+L88 -> 9365767.012 | AE88: 9445432.092 | AI88: =ABS(AI29)*COMENTÁRIOS!$AE$1*AI$68 -> 1014181.546 | AJ88: =ABS(AJ29)*COMENTÁRIOS!$AE$1*AJ$68 -> 0 | AK88: =ABS(AK29)*COMENTÁRIOS!$AE$1*AK$68*AK$9 -> 1121392.512 | AM88: =ABS(AM29)*COMENTÁRIOS!$AE$1*AM$68*AM$9 -> 0 | AN88: CENTRAIS ELÉTRICAS AUTOPRODUTORAS | AO88: 9445432.092
B89: CARVOARIAS | AN89: CARVOARIAS | AO89: ="" -> 
B90: DESTILARIAS | AN90: DESTILARIAS | AO90: ="" -> 
B91: OUTRAS TRANSFORMAÇÕES | Y91: =SUM(AK91:AM91) -> 6249142.248 | AL91: =ABS(AL32)*COMENTÁRIOS!$AE$1*AL$68*AL$9 -> 0 | AM91: =ABS(AM32)*COMENTÁRIOS!$AE$1*AM$68*AM$9 -> 6249142.248 | AN91: OUTRAS TRANSFORMAÇÕES | AO91: ="" -> 
B92: PERDAS NA DISTRIBUIÇÃO E ARMAZENAGEM | AN92: PERDAS NA DISTRIBUIÇÃO E ARMAZENAGEM | AO92: ="" -> 
B93: CONSUMO FINAL | D93: =SUM(D94:D95) -> 39664537.24 | E93: =SUM(E94:E95) -> 3417833.052 | F93: =SUM(F94:F95) -> 1040.446734 | I93: =SUM(I94:I95) -> 0 | J93: =SUM(J94:J95) -> 0 | K93: =SUM(K94:K95) -> 712467.756 | L93: =SUM(C93:K93) -> 43795878.49 | M93: =SUM(M94:M95) -> 122570077.5 | N93: =SUM(N94:N95) -> 16006536.99 | O93: =SUM(O94:O95) -> 51001599.83 | P93: =SUM(P94:P95) -> 20345358.13 | R93: =SUM(R94:R95) -> 9586228.98 | S93: =SUM(S94:S95) -> 2664887.25 | T93: =SUM(T94:T95) -> 464289.1851 | V93: =SUM(V94:V95) -> 35866867.77 | W93: =SUM(W94:W95) -> 0 | X93: =SUM(X94:X95) -> 0 | Y93: =SUM(Y94:Y95) -> 33859683.4 | AA93: =SUM(AA94:AA95) -> 802791.7677 | AB93: =SUM(M93:AA93)-V93 -> 257301453 | AC93: =AB93+L93 -> 301097331.5 | AD93: =AC93+V93 -> 336964199.3 | AE93: =SUM(AE87:AE89)+SUM(AE94:AE118) -> 332758663.7 | AF93: =SUM(AF94:AF95) -> 0 | AG93: 0 | AH93: 712467.756 | AI93: 122570077.5 | AJ93: 0 | AK93: 9019079.037 | AL93: 21750201.69 | AM93: 6433334.203 | AN93: CONSUMO FINAL | AO93: 332758663.7
B94: CONSUMO FINAL NÃO-ENERGÉTICO | D94: =D35*COMENTÁRIOS!$AE$1*D$68 -> 3411830.127 | L94: =SUM(C94:K94) -> 3411830.127 | Q94: =Q35*COMENTÁRIOS!$AE$1*Q$68 -> 23325875.23 | R94: =R35*COMENTÁRIOS!$AE$1*R$68 -> 22146.37168 | Y94: =SUM(AK94:AM94) -> 236939.3856 | Z94: =Z35*COMENTÁRIOS!$AE$1*Z$68 -> 23927948.95 | AA94: =AA35*COMENTÁRIOS!$AE$1*AA$68 -> 481998.8406 | AB94: =SUM(M94:AA94)-V94 -> 47994908.78 | AC94: =AB94+L94 -> 51406738.91 | AD94: =AC94+V94 -> 51406738.91 | AK94: =ABS(AK35)*COMENTÁRIOS!$AE$1*AK$68*AK$9 -> 236939.3856 | AN94: CONSUMO FINAL NÃO-ENERGÉTICO | AO94: ="" -> 
B95: CONSUMO FINAL ENERGÉTICO | D95: =SUM(D96:D101)+D106 -> 36252707.11 | E95: =SUM(E96:E101)+E106 -> 3417833.052 | F95: =SUM(F96:F101)+F106 -> 1040.446734 | I95: =SUM(I96:I101)+I106 -> 0 | J95: =SUM(J96:J101)+J106 -> 0 | K95: =SUM(K96:K101)+K106 -> 712467.756 | L95: 40384048.37 | M95: =SUM(M96:M101)+M106 -> 122570077.5 | N95: =SUM(N96:N101)+N106 -> 16006536.99 | O95: =SUM(O96:O101)+O106 -> 51001599.83 | P95: =SUM(P96:P101)+P106 -> 20345358.13 | R95: =SUM(R96:R101)+R106 -> 9564082.608 | S95: =SUM(S96:S101)+S106 -> 2664887.25 | T95: =SUM(T96:T101)+T106 -> 464289.1851 | V95: =SUM(V96:V101)+V106 -> 35866867.77 | W95: =SUM(W96:W101)+W106 -> 0 | X95: =SUM(X96:X101)+X106 -> 0 | Y95: =SUM(Y96:Y101)+Y106 -> 33622744.02 | AA95: =SUM(AA96:AA101)+AA106 -> 320792.9271 | AB95: 256560368.4 | AC95: =AB95+L95 -> 296944416.8 | AD95: =AC95+V95 -> 332811284.6 | AF95: =SUM(AF96:AF101)+AF106 -> 0 | AG95: 0 | AH95: 712467.756 | AI95: 122570077.5 | AJ95: 0 | AK95: 8782139.651 | AL95: 21750201.69 | AM95: 6433334.203 | AN95: CONSUMO FINAL ENERGÉTICO | AO95: ="" -> 
B96: SETOR ENERGÉTICO | D96: =D37*COMENTÁRIOS!$AE$1*D$68 -> 9101074.452 | E96: =E37*COMENTÁRIOS!$AE$1*E$68 -> 20114.70478 | L96: 9121189.157 | M96: =SUM(AI96:AJ96) -> 2680774.903 | N96: =N37*COMENTÁRIOS!$AE$1*N$68 -> 2045889.474 | P96: =P37*COMENTÁRIOS!$AE$1*P$68 -> 39835.64597 | S96: =S37*COMENTÁRIOS!$AE$1*S$68 -> 341711.6241 | V96: =V37/V$34*$AD$123 -> 2071369.942 | Y96: =SUM(AK96:AM96) -> 8586683.334 | AB96: 13694894.98 | AC96: 22816084.14 | AD96: 24887454.08 | AE96: 22819777.13 | AI96: =ABS(AI37)*COMENTÁRIOS!$AE$1*AI$68 -> 2680774.903 | AJ96: =ABS(AJ37)*COMENTÁRIOS!$AE$1*AJ$68 -> 0 | AK96: =ABS(AK37)*COMENTÁRIOS!$AE$1*AK$68*AK$9 -> 8586683.334 | AN96: SETOR ENERGÉTICO | AO96: 22819777.13
B97: RESIDENCIAL | D97: =D38*COMENTÁRIOS!$AE$1*D$68 -> 599412.433 | I97: =I38*COMENTÁRIOS!$AE$1*I$68 -> 0 | L97: 599412.433 | P97: =P38*COMENTÁRIOS!$AE$1*P$68 -> 16637384.79 | R97: =R38*COMENTÁRIOS!$AE$1*R$68 -> 12508.75179 | V97: =V38/V$34*$AD$123 -> 8275150.25 | W97: =W38*COMENTÁRIOS!$AE$1*W$68 -> 0 | AB97: 16649893.54 | AC97: 17249305.97 | AD97: 25524456.22 | AE97: 17249375.95 | AN97: RESIDENCIAL | AO97: 17249375.95
B98: COMERCIAL | D98: =D39*COMENTÁRIOS!$AE$1*D$68 -> 474271.842 | I98: =I39*COMENTÁRIOS!$AE$1*I$68 -> 0 | L98: 474271.842 | M98: =SUM(AI98:AJ98) -> 106368.6446 | N98: =N39*COMENTÁRIOS!$AE$1*N$68 -> 79650.38543 | P98: =P39*COMENTÁRIOS!$AE$1*P$68 -> 786784.317 | V98: =V39/V$34*$AD$123 -> 5381010.155 | W98: =W39*COMENTÁRIOS!$AE$1*W$68 -> 0 | AB98: 972803.347 | AC98: 1447075.189 | AD98: 6828085.344 | AE98: 1446070.616 | AI98: =ABS(AI39)*COMENTÁRIOS!$AE$1*AI$68 -> 106368.6446 | AJ98: =ABS(AJ39)*COMENTÁRIOS!$AE$1*AJ$68 -> 0 | AN98: COMERCIAL | AO98: 1446070.616
B99: PÚBLICO | D99: =D40*COMENTÁRIOS!$AE$1*D$68 -> 140551.8808 | L99: 140551.8808 | M99: =SUM(AI99:AJ99) -> 35430.75674 | N99: =N40*COMENTÁRIOS!$AE$1*N$68 -> 10842.20173 | P99: =P40*COMENTÁRIOS!$AE$1*P$68 -> 1006008.97 | V99: =V40/V$34*$AD$123 -> 2854155.395 | AB99: 1052281.929 | AC99: 1192833.809 | AD99: 4046989.205 | AE99: 1191705.116 | AI99: =ABS(AI40)*COMENTÁRIOS!$AE$1*AI$68 -> 35430.75674 | AJ99: =ABS(AJ40)*COMENTÁRIOS!$AE$1*AJ$68 -> 0 | AN99: PÚBLICO | AO99: 1191705.116
B100: AGROPECUÁRIO | D100: =D41*COMENTÁRIOS!$AE$1*D$68 -> 5385.589418 | I100: =I41*COMENTÁRIOS!$AE$1*I$68 -> 0 | L100: 5385.589418 | M100: =SUM(AI100:AJ100) -> 17039030.97 | N100: =N41*COMENTÁRIOS!$AE$1*N$68 -> 255517.3652 | P100: =P41*COMENTÁRIOS!$AE$1*P$68 -> 21375.49045 | V100: =V41/V$34*$AD$123 -> 1461709.349 | W100: =W41*COMENTÁRIOS!$AE$1*W$68 -> 0 | X100: =X41*COMENTÁRIOS!$AE$1*X$68 -> 0 | AB100: 17315923.83 | AC100: 17321309.42 | AD100: 18783018.77 | AE100: 17345555.49 | AI100: =ABS(AI41)*COMENTÁRIOS!$AE$1*AI$68 -> 17039030.97 | AJ100: =ABS(AJ41)*COMENTÁRIOS!$AE$1*AJ$68 -> 0 | AN100: AGROPECUÁRIO | AO100: 17345555.49
B101: TRANSPORTES - TOTAL | D101: =SUM(D102:D105) -> 4149579.64 | L101: 4149579.64 | M101: =SUM(M102:M105) -> 100567685.4 | N101: =SUM(N102:N105) -> 3128998.014 | O101: =SUM(O102:O105) -> 51001599.83 | R101: =SUM(R102:R105) -> 9543262.569 | V101: =SUM(V102:V105) -> 128278.1518 | X101: =SUM(X102:X105) -> 0 | AB101: 164241545.8 | AC101: 168391125.5 | AD101: 168519403.6 | AI101: =SUM(AI102:AI105) -> 100567685.4 | AJ101: =SUM(AJ102:AJ105) -> 0 | AN101: TRANSPORTES - TOTAL | AO101: ="" -> 
B102: RODOVIÁRIO | D102: =D43*COMENTÁRIOS!$AE$1*D$68 -> 4149579.64 | L102: 4149579.64 | M102: =SUM(AI102:AJ102) -> 96348126.38 | O102: =O43*COMENTÁRIOS!$AE$1*O$68 -> 50847619.49 | V102: =V43/V$34*$AD$123 -> 0 | X102: =X43*COMENTÁRIOS!$AE$1*X$68 -> 0 | AB102: 147195745.9 | AC102: 151345325.5 | AD102: 151345325.5 | AE102: 151480846 | AI102: =ABS(AI43)*COMENTÁRIOS!$AE$1*AI$68 -> 96348126.38 | AJ102: =ABS(AJ43)*COMENTÁRIOS!$AE$1*AJ$68 -> 0 | AN102: RODOVIÁRIO | AO102: 151480846
B103: FERROVIÁRIO | M103: =SUM(AI103:AJ103) -> 2932055.216 | V103: =V44/V$34*$AD$123 -> 128278.1518 | AB103: 2932055.216 | AC103: 2932055.216 | AD103: 3060333.368 | AE103: 2717437.64 | AI103: =ABS(AI44)*COMENTÁRIOS!$AE$1*AI$68 -> 2932055.216 | AJ103: =ABS(AJ44)*COMENTÁRIOS!$AE$1*AJ$68 -> 0 | AN103: FERROVIÁRIO | AO103: 2717437.64
B104: AÉREO | O104: =O45*COMENTÁRIOS!$AE$1*O$68 -> 153980.3433 | R104: =R45*COMENTÁRIOS!$AE$1*R$68 -> 9543262.569 | AB104: 9697242.912 | AC104: 9697242.912 | AD104: 9697242.912 | AE104: 9750907.906 | AN104: AÉREO | AO104: 9750907.906
B105: HIDROVIÁRIO | M105: =SUM(AI105:AJ105) -> 1287503.802 | N105: =N46*COMENTÁRIOS!$AE$1*N$68 -> 3128998.014 | AB105: 4416501.816 | AC105: 4416501.816 | AD105: 4416501.816 | AE105: 4415019.252 | AI105: =ABS(AI46)*COMENTÁRIOS!$AE$1*AI$68 -> 1287503.802 | AJ105: =ABS(AJ46)*COMENTÁRIOS!$AE$1*AJ$68 -> 0 | AN105: HIDROVIÁRIO | AO105: 4415019.252
B106: INDUSTRIAL - TOTAL | D106: =SUM(D107:D117) -> 21782431.27 | E106: =SUM(E107:E117) -> 3397718.348 | F106: =SUM(F107:F117) -> 1040.446734 | I106: =SUM(I107:I117) -> 0 | J106: =SUM(J107:J117) -> 0 | K106: =SUM(K107:K117) -> 712467.756 | L106: 25893657.83 | M106: =SUM(M107:M117) -> 2140786.827 | N106: =SUM(N107:N117) -> 10485639.55 | P106: =SUM(P107:P117) -> 1853968.917 | R106: =SUM(R107:R117) -> 8311.287219 | S106: =SUM(S107:S117) -> 2323175.626 | T106: =SUM(T107:T117) -> 464289.1851 | V106: =SUM(V107:V117) -> 15695194.52 | W106: =SUM(W107:W117) -> 0 | Y106: =SUM(Y107:Y117) -> 25036060.68 | AA106: =SUM(AA107:AA117) -> 320792.9271 | AB106: 42633025 | AC106: 68526682.83 | AD106: 84221877.35 | AF106: =SUM(AF107:AF117) -> 0 | AG106: 0 | AH106: 712467.756 | AI106: 2140786.827 | AJ106: 0 | AK106: 195456.3171 | AL106: 21750201.69 | AM106: 6433334.203 | AN106: INDUSTRIAL - TOTAL | AO106: ="" -> 
B107: CIMENTO | D107: =D48*COMENTÁRIOS!$AE$1*D$68 -> 52886.27078 | E107: =E48*COMENTÁRIOS!$AE$1*E$68 -> 209810.2511 | F107: =F48*COMENTÁRIOS!$AE$1*F$68 -> 13.78176057 | I107: =I48*COMENTÁRIOS!$AE$1*I$68 -> 0 | K107: =SUM(AF107:AH107) -> 712467.756 | L107: 975178.0596 | M107: =SUM(AI107:AJ107) -> 133461.9257 | N107: =N48*COMENTÁRIOS!$AE$1*N$68 -> 26212.6963 | P107: =P48*COMENTÁRIOS!$AE$1*P$68 -> 12913.46447 | T107: =T48*COMENTÁRIOS!$AE$1*T$68 -> 212059.9563 | V107: =V48/V$34*$AD$123 -> 496709.7025 | W107: =W48*COMENTÁRIOS!$AE$1*W$68 -> 0 | Y107: =SUM(AK107:AM107) -> 12901774.34 | AB107: 13286422.38 | AC107: 14261600.44 | AD107: 14758310.14 | AE107: 14258611.71 | AF107: =ABS(AF48)*COMENTÁRIOS!$AE$1*AF$68 -> 0 | AG107: =ABS(AG48)*COMENTÁRIOS!$AE$1*AG$68 -> 0 | AH107: =ABS(AH48)*COMENTÁRIOS!$AE$1*AH$68 -> 712467.756 | AI107: =ABS(AI48)*COMENTÁRIOS!$AE$1*AI$68 -> 133461.9257 | AJ107: =ABS(AJ48)*COMENTÁRIOS!$AE$1*AJ$68 -> 0 | AL107: =ABS(AL48)*COMENTÁRIOS!$AE$1*AL$68*AL$9 -> 12901774.34 | AN107: CIMENTO | AO107: 14258611.71
B108: FERRO-GUSA E AÇO | D108: =D49*COMENTÁRIOS!$AE$1*D$68 -> 2105920.96 | E108: =E49*COMENTÁRIOS!$AE$1*E$68*AF125 -> 0 | F108: =F49*COMENTÁRIOS!$AE$1*F$68 -> 18.68786365 | K108: =SUM(AF108:AH108) -> 0 | L108: 2105939.648 | M108: 45236.03594 | N108: =N49*COMENTÁRIOS!$AE$1*N$68 -> 545507.2899 | P108: =P49*COMENTÁRIOS!$AE$1*P$68 -> 187043.5089 | S108: =S49*COMENTÁRIOS!$AE$1*S$68 -> 2323175.626 | T108: =T49*COMENTÁRIOS!$AE$1*T$68*AF124 -> 0 | V108: 1447567.231 | W108: =W49*COMENTÁRIOS!$AE$1*W$68 -> 0 | Y108: =SUM(AK108:AM108)*AF123 -> 0 | AA108: =AA49*COMENTÁRIOS!$AE$1*AA$68 -> 320792.9271 | AB108: 3421755.388 | AC108: 5527695.036 | AD108: 6975262.267 | AE108: 5540155.616 | AF108: =ABS(AF49)*COMENTÁRIOS!$AE$1*AF$68 -> 0 | AG108: =ABS(AG49)*COMENTÁRIOS!$AE$1*AG$68 -> 0 | AH108: =ABS(AH49)*COMENTÁRIOS!$AE$1*AH$68 -> 0 | AI108: =ABS(AI49)*COMENTÁRIOS!$AE$1*AI$68 -> 45236.03594 | AJ108: =ABS(AJ49)*COMENTÁRIOS!$AE$1*AJ$68 -> 0 | AL108: =ABS(AL49)*COMENTÁRIOS!$AE$1*AL$68*AL$9 -> 160256.2595 | AN108: FERRO-GUSA E AÇO | AO108: 5540155.616
B109: FERRO-LIGAS | D109: =D50*COMENTÁRIOS!$AE$1*D$68 -> 4602.267991 | I109: =I50*COMENTÁRIOS!$AE$1*I$68 -> 0 | K109: 0 | L109: 4602.267991 | M109: 0 | N109: =N50*COMENTÁRIOS!$AE$1*N$68 -> 94142.4978 | P109: =P50*COMENTÁRIOS!$AE$1*P$68 -> 0 | R109: =R50*COMENTÁRIOS!$AE$1*R$68 -> 2809.636353 | T109: =T50*COMENTÁRIOS!$AE$1*T$68*AF124 -> 0 | V109: 653037.6147 | W109: =W50*COMENTÁRIOS!$AE$1*W$68 -> 0 | Y109: =SUM(AK109:AM109)*AF123 -> 0 | AB109: 96952.13416 | AC109: 101554.4021 | AD109: 754592.0169 | AE109: 101570.1204 | AF109: =ABS(AF50)*COMENTÁRIOS!$AE$1*AF$68 -> 0 | AG109: =ABS(AG50)*COMENTÁRIOS!$AE$1*AG$68 -> 0 | AH109: =ABS(AH50)*COMENTÁRIOS!$AE$1*AH$68 -> 0 | AI109: =ABS(AI50)*COMENTÁRIOS!$AE$1*AI$68 -> 0 | AJ109: =ABS(AJ50)*COMENTÁRIOS!$AE$1*AJ$68 -> 0 | AL109: =ABS(AL50)*COMENTÁRIOS!$AE$1*AL$68*AL$9 -> 684293.0036 | AN109: FERRO-LIGAS | AO109: 101570.1204
B110: MINERAÇÃO E PELOTIZ. | D110: =D51*COMENTÁRIOS!$AE$1*D$68 -> 1475979.851 | E110: =E51*COMENTÁRIOS!$AE$1*E$68 -> 1478914.434 | F110: =F51*COMENTÁRIOS!$AE$1*F$68 -> 186.8135802 | K110: 0 | L110: 2955081.099 | M110: 767861.1528 | N110: =N51*COMENTÁRIOS!$AE$1*N$68 -> 1202135.558 | P110: =P51*COMENTÁRIOS!$AE$1*P$68 -> 50039.67482 | R110: =R51*COMENTÁRIOS!$AE$1*R$68 -> 1827.813876 | T110: =T51*COMENTÁRIOS!$AE$1*T$68 -> 252229.2287 | V110: 872167.9396 | Y110: 2072124.752 | AB110: 4346218.18 | AC110: 7301299.279 | AD110: 8173467.218 | AE110: 7288716.644 | AF110: =ABS(AF51)*COMENTÁRIOS!$AE$1*AF$68 -> 0 | AG110: =ABS(AG51)*COMENTÁRIOS!$AE$1*AG$68 -> 0 | AH110: =ABS(AH51)*COMENTÁRIOS!$AE$1*AH$68 -> 0 | AI110: =ABS(AI51)*COMENTÁRIOS!$AE$1*AI$68 -> 767861.1528 | AJ110: =ABS(AJ51)*COMENTÁRIOS!$AE$1*AJ$68 -> 0 | AL110: =ABS(AL51)*COMENTÁRIOS!$AE$1*AL$68*AL$9 -> 2072124.752 | AN110: MINERAÇÃO E PELOTIZ. | AO110: 7288716.644
B111: NÃO-FERROSOS E OUTROS DA METALURGIA | D111: =D52*COMENTÁRIOS!$AE$1*D$68 -> 1706540.65 | E111: =E52*COMENTÁRIOS!$AE$1*E$68*AF125 -> 0 | F111: =F52*COMENTÁRIOS!$AE$1*F$68 -> 651.1788111 | K111: 0 | L111: 1707191.829 | M111: 0 | N111: =N52*COMENTÁRIOS!$AE$1*N$68 -> 3559415.28 | P111: =P52*COMENTÁRIOS!$AE$1*P$68 -> 209843.7976 | T111: =T52*COMENTÁRIOS!$AE$1*T$68*AF124 -> 0 | V111: 2870516.952 | W111: =W52*COMENTÁRIOS!$AE$1*W$68 -> 0 | Y111: =SUM(AK111:AM111)*AF123 -> 0 | AB111: 3769259.078 | AC111: 5476450.907 | AD111: 8346967.859 | AE111: 5475799.728 | AF111: =ABS(AF52)*COMENTÁRIOS!$AE$1*AF$68 -> 0 | AG111: =ABS(AG52)*COMENTÁRIOS!$AE$1*AG$68 -> 0 | AH111: =ABS(AH52)*COMENTÁRIOS!$AE$1*AH$68 -> 0 | AI111: =ABS(AI52)*COMENTÁRIOS!$AE$1*AI$68 -> 0 | AJ111: =ABS(AJ52)*COMENTÁRIOS!$AE$1*AJ$68 -> 0 | AL111: =ABS(AL52)*COMENTÁRIOS!$AE$1*AL$68*AL$9 -> 2498382.268 | AN111: NÃO-FERROSOS E OUTROS DA METALURGIA | AO111: 5475799.728
B112: QUÍMICA | D112: =D53*COMENTÁRIOS!$AE$1*D$68 -> 5377066.567 | E112: =E53*COMENTÁRIOS!$AE$1*E$68 -> 503628.2912 | I112: =I53*COMENTÁRIOS!$AE$1*I$68 -> 0 | K112: 0 | L112: 5880694.858 | M112: 79653.5759 | N112: =N53*COMENTÁRIOS!$AE$1*N$68 -> 755730.0303 | P112: =P53*COMENTÁRIOS!$AE$1*P$68 -> 167875.0381 | V112: 1844517.716 | W112: =W53*COMENTÁRIOS!$AE$1*W$68 -> 0 | Y112: 6962171.724 | AB112: 7965430.369 | AC112: 13846125.23 | AD112: 15690642.94 | AE112: 13847213.62 | AF112: =ABS(AF53)*COMENTÁRIOS!$AE$1*AF$68 -> 0 | AG112: =ABS(AG53)*COMENTÁRIOS!$AE$1*AG$68 -> 0 | AH112: =ABS(AH53)*COMENTÁRIOS!$AE$1*AH$68 -> 0 | AI112: =ABS(AI53)*COMENTÁRIOS!$AE$1*AI$68 -> 79653.5759 | AJ112: =ABS(AJ53)*COMENTÁRIOS!$AE$1*AJ$68 -> 0 | AK112: =ABS(AK53)*COMENTÁRIOS!$AE$1*AK$68*AK$9 -> 195456.3171 | AL112: =ABS(AL53)*COMENTÁRIOS!$AE$1*AL$68*AL$9 -> 333381.2047 | AM112: =ABS(AM53)*COMENTÁRIOS!$AE$1*AM$68*AM$9 -> 6433334.203 | AN112: QUÍMICA | AO112: 13847213.62
B113: ALIMENTOS E BEBIDAS | D113: =D54*COMENTÁRIOS!$AE$1*D$68 -> 1554909.46 | E113: =E54*COMENTÁRIOS!$AE$1*E$68 -> 286886.6206 | I113: =I54*COMENTÁRIOS!$AE$1*I$68 -> 0 | J113: =J54*COMENTÁRIOS!$AE$1*J$68 -> 0 | K113: 0 | L113: 1841796.08 | M113: 438453.8615 | N113: =N54*COMENTÁRIOS!$AE$1*N$68 -> 1053854.561 | P113: =P54*COMENTÁRIOS!$AE$1*P$68 -> 279253.6692 | R113: =R54*COMENTÁRIOS!$AE$1*R$68 -> 73.82123892 | V113: 2081164.893 | Y113: 349274.5539 | AB113: 2120910.467 | AC113: 3962706.547 | AD113: 6043871.441 | AE113: 3964898.695 | AF113: =ABS(AF54)*COMENTÁRIOS!$AE$1*AF$68 -> 0 | AG113: =ABS(AG54)*COMENTÁRIOS!$AE$1*AG$68 -> 0 | AH113: =ABS(AH54)*COMENTÁRIOS!$AE$1*AH$68 -> 0 | AI113: =ABS(AI54)*COMENTÁRIOS!$AE$1*AI$68 -> 438453.8615 | AJ113: =ABS(AJ54)*COMENTÁRIOS!$AE$1*AJ$68 -> 0 | AL113: =ABS(AL54)*COMENTÁRIOS!$AE$1*AL$68*AL$9 -> 349274.5539 | AN113: ALIMENTOS E BEBIDAS | AO113: 3964898.695
B114: TÊXTIL | D114: =D55*COMENTÁRIOS!$AE$1*D$68 -> 771749.9191 | I114: =I55*COMENTÁRIOS!$AE$1*I$68 -> 0 | K114: 0 | L114: 771749.9191 | M114: 8381.916194 | N114: =N55*COMENTÁRIOS!$AE$1*N$68 -> 208076.596 | P114: =P55*COMENTÁRIOS!$AE$1*P$68 -> 26915.42038 | R114: =R55*COMENTÁRIOS!$AE$1*R$68 -> 12.30353982 | V114: 641269.5062 | AB114: 243386.2361 | AC114: 1015136.155 | AD114: 1656405.661 | AE114: 1015146.266 | AF114: =ABS(AF55)*COMENTÁRIOS!$AE$1*AF$68 -> 0 | AG114: =ABS(AG55)*COMENTÁRIOS!$AE$1*AG$68 -> 0 | AH114: =ABS(AH55)*COMENTÁRIOS!$AE$1*AH$68 -> 0 | AI114: =ABS(AI55)*COMENTÁRIOS!$AE$1*AI$68 -> 8381.916194 | AJ114: =ABS(AJ55)*COMENTÁRIOS!$AE$1*AJ$68 -> 0 | AN114: TÊXTIL | AO114: 1015146.266
B115: PAPEL E CELULOSE | D115: =D56*COMENTÁRIOS!$AE$1*D$68 -> 1588517.533 | E115: =E56*COMENTÁRIOS!$AE$1*E$68 -> 449056.0371 | I115: =I56*COMENTÁRIOS!$AE$1*I$68 -> 0 | J115: =J56*COMENTÁRIOS!$AE$1*J$68 -> 0 | K115: 0 | L115: 2037573.57 | M115: 225339.6129 | N115: =N56*COMENTÁRIOS!$AE$1*N$68 -> 1510689.184 | P115: =P56*COMENTÁRIOS!$AE$1*P$68 -> 80709.15294 | R115: =R56*COMENTÁRIOS!$AE$1*R$68 -> 24.60707964 | V115: 1468029.294 | AB115: 1816762.557 | AC115: 3854336.127 | AD115: 5322365.421 | AE115: 3632064.622 | AF115: =ABS(AF56)*COMENTÁRIOS!$AE$1*AF$68 -> 0 | AG115: =ABS(AG56)*COMENTÁRIOS!$AE$1*AG$68 -> 0 | AH115: =ABS(AH56)*COMENTÁRIOS!$AE$1*AH$68 -> 0 | AI115: =ABS(AI56)*COMENTÁRIOS!$AE$1*AI$68 -> 225339.6129 | AJ115: =ABS(AJ56)*COMENTÁRIOS!$AE$1*AJ$68 -> 0 | AN115: PAPEL E CELULOSE | AO115: 3632064.622
B116: CERÂMICA | D116: =D57*COMENTÁRIOS!$AE$1*D$68 -> 2679558.671 | E116: =E57*COMENTÁRIOS!$AE$1*E$68 -> 119700.1044 | I116: =I57*COMENTÁRIOS!$AE$1*I$68 -> 0 | J116: =J57*COMENTÁRIOS!$AE$1*J$68 -> 0 | K116: 0 | L116: 2799258.775 | M116: 17526.41433 | N116: =N57*COMENTÁRIOS!$AE$1*N$68 -> 957177.541 | P116: =P57*COMENTÁRIOS!$AE$1*P$68 -> 435829.4259 | V116: 286619.4577 | Y116: =SUM(AK116:AM116) -> 797629.0323 | AB116: 2208162.413 | AC116: 5007421.189 | AD116: 5294040.646 | AE116: 4887531.8 | AF116: =ABS(AF57)*COMENTÁRIOS!$AE$1*AF$68 -> 0 | AG116: =ABS(AG57)*COMENTÁRIOS!$AE$1*AG$68 -> 0 | AH116: =ABS(AH57)*COMENTÁRIOS!$AE$1*AH$68 -> 0 | AI116: =ABS(AI57)*COMENTÁRIOS!$AE$1*AI$68 -> 17526.41433 | AJ116: =ABS(AJ57)*COMENTÁRIOS!$AE$1*AJ$68 -> 0 | AL116: =ABS(AL57)*COMENTÁRIOS!$AE$1*AL$68*AL$9 -> 797629.0323 | AN116: CERÂMICA | AO116: 4887531.8
B117: OUTROS | D117: =D58*COMENTÁRIOS!$AE$1*D$68 -> 4464699.125 | E117: =E58*COMENTÁRIOS!$AE$1*E$68 -> 349722.609 | F117: =F58*COMENTÁRIOS!$AE$1*F$68 -> 169.9847181 | I117: =I58*COMENTÁRIOS!$AE$1*I$68 -> 0 | K117: 0 | L117: 4814591.718 | M117: 424872.3318 | N117: =N58*COMENTÁRIOS!$AE$1*N$68 -> 572698.3156 | P117: =P58*COMENTÁRIOS!$AE$1*P$68 -> 403545.7647 | R117: =R58*COMENTÁRIOS!$AE$1*R$68 -> 3563.105132 | V117: 3033594.217 | W117: =W58*COMENTÁRIOS!$AE$1*W$68 -> 0 | Y117: =SUM(AK117:AM117) -> 1953086.281 | AB117: =SUM(M117:AA117)-V117 -> 3357765.798 | AC117: 8172357.517 | AD117: 11205951.73 | AE117: 8292875.989 | AF117: =ABS(AF58)*COMENTÁRIOS!$AE$1*AF$68 -> 0 | AG117: =ABS(AG58)*COMENTÁRIOS!$AE$1*AG$68 -> 0 | AH117: =ABS(AH58)*COMENTÁRIOS!$AE$1*AH$68 -> 0 | AI117: =ABS(AI58)*COMENTÁRIOS!$AE$1*AI$68 -> 424872.3318 | AJ117: =ABS(AJ58)*COMENTÁRIOS!$AE$1*AJ$68 -> 0 | AL117: =ABS(AL58)*COMENTÁRIOS!$AE$1*AL$68*AL$9 -> 1953086.281 | AN117: OUTROS | AO117: 8292875.989
B118: CONSUMO NÃO-IDENTIFICADO | AN118: CONSUMO NÃO-IDENTIFICADO | AO118: ="" ->  | AP118: ="" -> 
B119: AJUSTES | AN119: AJUSTES | AO119: ="" ->  | AP119: ="" -> 
B120: CENTRAIS ELÉTRICAS (CESP+AUTOP.) | D120: =SUM(D87:D88) -> 16431349.53 | E120: =SUM(E87:E88) -> 7666332.958 | H120: =SUM(H87:H88) -> 0 | I120: 0 | J120: 0 | K120: 0 | L120: 24097682.49 | M120: 6388030.558 | N120: 3656544.251 | S120: =SUM(S87:S88) -> 565409.8089 | U120: =SUM(U87:U88) -> 0 | V120: 0 | Y120: =SUM(Y87:Y88) -> 1121392.512 | AA120: 37808.14706 | AB120: 11769185.28 | AC120: 0 | AD120: 35866867.77 | AF120: 0 | AG120: 0 | AH120: 0 | AI120: 6388030.558 | AJ120: 0 | AK120: 1121392.512 | AL120: 0 | AM120: 0 | AN120: CENTRAIS ELÉTRICAS (CESP+AUTOP.) | AO120: ="" ->  | AP120: ="" -> 
B121: =B62 -> EDIFICAÇÕES (Res+Com+Pub) + AGROPECUÁRIA | C121: =SUM(C97:C100) -> 0 | D121: =SUM(D97:D100) -> 1219621.745 | E121: 0 | F121: 0 | G121: 0 | H121: 0 | I121: 0 | J121: 0 | K121: 0 | L121: 1219621.745 | M121: 17180830.37 | N121: 346009.9523 | O121: 0 | P121: 18451553.56 | Q121: 0 | R121: 12508.75179 | S121: 0 | T121: 0 | U121: 0 | V121: 17972025.15 | W121: 0 | X121: 0 | Y121: 0 | Z121: 0 | AA121: 0 | AB121: 35990902.64 | AC121: 37210524.39 | AD121: 55182549.54 | AN121: =TRIM(B121) -> EDIFICAÇÕES (Res+Com+Pub) + AGROPECUÁRIA | AO121: ="" ->  | AP121: ="" -> 
B122: =B63 -> SETOR ENERGÉTICO E PROD. DE ELETRICIDADE | C122: =C96+SUM(C87:C88) -> 0 | D122: 25532423.99 | E122: 7686447.663 | F122: 0 | G122: 0 | H122: 0 | I122: 0 | J122: 0 | K122: 0 | L122: 33218871.65 | M122: 9068805.461 | N122: 5702433.725 | O122: 0 | P122: 39835.64597 | Q122: 0 | R122: 0 | S122: 907121.433 | T122: 0 | U122: 0 | V122: 2071369.942 | W122: 0 | X122: 0 | Y122: 9708075.846 | Z122: 0 | AA122: 37808.14706 | AB122: 25464080.26 | AC122: 22816084.14 | AD122: 60754321.85 | AN122: =TRIM(B122) -> SETOR ENERGÉTICO E PROD. DE ELETRICIDADE | AO122: ="" ->  | AP122: ="" -> 
B123: EMISSÕES DE CO2 DA ELETRICIDADE | D123: =SUM(D87:D88) -> 16431349.53 | E123: =SUM(E87:E88) -> 7666332.958 | F123: =SUM(F87:F88) -> 0 | I123: =SUM(I87:I88) -> 0 | J123: 0 | K123: 0 | L123: 24097682.49 | M123: 6388030.558 | N123: 3656544.251 | O123: 0 | P123: 0 | R123: =SUM(R87:R88) -> 0 | S123: =SUM(S87:S88) -> 565409.8089 | T123: =SUM(T87:T88) -> 0 | V123: =V93 -> 35866867.77 | W123: =SUM(W87:W88) -> 0 | X123: =SUM(X87:X88) -> 0 | Y123: =SUM(Y87:Y88) -> 1121392.512 | AA123: =SUM(AA87:AA88) -> 37808.14706 | AB123: =SUM(M123:AA123)-V123 -> 11769185.28 | AD123: =SUM(AD87:AD88) -> 35866867.77 | AE123: CH coque Pet | AF123: =COMENTÁRIOS!AF$2 -> 0 | AG123: =AC95 -> 296944416.8 | AN123: CONSUMO FINAL E PROD. DE ELETRICIDADE | AO123: ="" -> 
B124: EMISSÕES DE CO2 DO CONSUMO FINAL | D124: =D93 -> 39664537.24 | E124: =E93 -> 3417833.052 | F124: =F93 -> 1040.446734 | I124: =I93 -> 0 | J124: 0 | K124: 712467.756 | L124: 43795878.49 | M124: 122570077.5 | N124: 16006536.99 | O124: 51001599.83 | P124: 20345358.13 | R124: =R93 -> 9586228.98 | S124: =S93 -> 2664887.25 | T124: =T93 -> 464289.1851 | W124: =W93 -> 0 | X124: =X93 -> 0 | Y124: =Y93 -> 33859683.4 | AA124: =AA93 -> 802791.7677 | AB124: =SUM(M124:AA124)-V124 -> 257301453 | AC124: =AB124+L124 -> 301097331.5 | AD124: =AC124+V124 -> 301097331.5 | AE124: CH coque CM | AF124: =COMENTÁRIOS!AF$2 -> 0 | AG124: =SUM(AD87:AD88) -> 35866867.77 | AN124: CONSUMO FINAL E PROD. DE ELETRICIDADE
B125: EMISSÕES TOTAIS DE CO2 DA ENERGIA | D125: =SUM(D123:D124) -> 56095886.77 | E125: =SUM(E123:E124) -> 11084166.01 | F125: =SUM(F123:F124) -> 1040.446734 | I125: 0 | J125: 0 | K125: 712467.756 | L125: 67893560.99 | M125: 128958108.1 | N125: 19663081.24 | O125: 51001599.83 | P125: 20345358.13 | R125: =SUM(R123:R124) -> 9586228.98 | S125: =SUM(S123:S124) -> 3230297.059 | T125: =SUM(T123:T124) -> 464289.1851 | V125: =SUM(V123:V124) -> 35866867.77 | W125: =SUM(W123:W124) -> 0 | X125: =SUM(X123:X124) -> 0 | Y125: =SUM(Y123:Y124) -> 34981075.91 | AA125: =SUM(AA123:AA124) -> 840599.9148 | AB125: =SUM(AB123:AB124) -> 269070638.3 | AC125: =SUM(AC123:AC124) -> 301097331.5 | AD125: =SUM(AD123:AD124) -> 336964199.3 | AE125: CH carvão vapor | AF125: =COMENTÁRIOS!AF$2 -> 0 | AG125: =SUM(AG123:AG124) -> 332811284.6
C126: Petróleo | D126: Gás Natural | E126: Carvão Vapor | F126: Carvão Metalúrgico | G126: Urânio U3O8 | H126: Energia Hidráulica | I126: Lenha | J126: Produtos da Cana | K126: Out. Font. Prim. | L126: Energia Prim. Total | M126: Óleo Diesel | N126: Óleo Combustível | O126: Gasolina | P126: GLP | Q126: Nafta | R126: Querosene | S126: Gás de Cid/Coqueria | T126: Coque de Carv. Min. | U126: Urânio cont. no UO2 | V126: Eletricidade | W126: Carvão Vegetal | X126: Álcool Etíl. An./Hidr. | Y126: Outras Sec. de Petr. | Z126: Prod. n-En. de Petr. | AA126: Alcatrão | AB126: Energia Sec. Total | AC126: Total sem Eletric | AD126: Total com Eletric

Sheet 2015
AK8: Conversão m3 =>tep
AK9: 0.652 | AL9: 0.87 | AM9: 0.88 | AN9: 0.655 | AO9: 0.873 | AP9: 0.889587
B10: Oferta e Demanda EPE (BEN Ano Base 2015) | AF10: =K13 -> OUTRAS FONTES PRIMÁRIAS | AI10: ="Teor biodiesel na ind. "&LEFT(B11,4) -> Teor biodiesel na ind. 2015 | AK10: =Y13 -> OUTRAS SECUNDÁRIAS DE PETRÓLEO
B11: 2015 - 10³ tep | AI11: 0.06568097811
C12: FONTES DE ENERGIA PRIMÁRIA | M12: FONTES DE ENERGIA SECUNDÁRIA | AC12: TOTAIS | AF12: O U T R O S
B13: CONTA | C13: PETRÓLEO | D13: GÁS NATURAL | E13: CARVÃO VAPOR | F13: CARVÃO METALÚRGICO | G13: URÂNIO U3O8 | H13: ENERGIA HIDRÁULICA | I13: LENHA | J13: PRODUTOS DA CANA | K13: OUTRAS FONTES PRIMÁRIAS | L13: ENERGIA PRIMÁRIA TOTAL | M13: ÓLEO DIESEL | N13: ÓLEO COMBUSTIVEL | O13: GASOLINA | P13: GLP | Q13: NAFTA | R13: QUEROSENE | S13: GÁS DE CIDADE E DE COQUERIA | T13: COQUE DE CARVÃO MINERAL | U13: URÂNIO CONTIDO NO UO2 | V13: ELETRICIDADE | W13: CARVÃO VEGETAL | X13: ÁLCOOL ETÍLICO ANIDRO E HIDRATADO | Y13: OUTRAS SECUNDÁRIAS DE PETRÓLEO | Z13: PRODUTOS NÃO ENERGÉTICOS DE PETRÓLEO | AA13: ALCATRÃO | AB13: ENERGIA SECUNDÁRIA TOTAL | AC13: TOTAL SEM ELETRIC | AD13: TOTAL COM ELETRIC | AF13: =COMENTÁRIOS!AB20 -> LIXÍVIA | AG13: =COMENTÁRIOS!AC20 -> OUTRAS PRIM. RENOVÁVEIS | AH13: =COMENTÁRIOS!AD20 -> OUTRAS PRIM. NÃO RENOV. | AI13: =COMENTÁRIOS!AE20 -> ÓLEO DIESEL MINERAL | AJ13: =COMENTÁRIOS!AF20 -> BIODIESEL | AK13: =COMENTÁRIOS!AG20 -> GÁS DE REFINARIA | AL13: =COMENTÁRIOS!AH20 -> COQUE DE PETRÓLEO | AM13: =COMENTÁRIOS!AI20 -> OUTROS EN. DE PETRÓLEO
B14: PRODUÇÃO | C14: 126127.013 | D14: 34871.16852 | E14: 3066.081168 | F14: 0 | G14: 512.4478651 | H14: 30937.8815 | I14: 24519.1714 | J14: 50424.27638 | K14: 16012.85869 | L14: =SUM(C14:K14) -> 286470.8986 | AB14: =SUM(M14:AA14) -> 0 | AC14: =AD14-V14 -> 286470.8986 | AD14: =AB14+L14 -> 286470.8986
B15: IMPORTAÇÃO | C15: 15376.68154 | D15: 16198.116 | E15: 5637.64851 | F15: 7625.29448 | G15: 2159.212189 | L15: =SUM(C15:K15) -> 46996.95272 | M15: 5885.2048 | N15: 339.467997 | O15: 2259.62352 | P15: 1949.805481 | Q15: 6171.857055 | R15: 1129.388544 | T15: 1583.55 | U15: 2729.21217 | V15: 2977.994839 | X15: 431.888706 | Y15: =SUMPRODUCT(AK15:AM15,$AK$9:$AM$9) -> 2586.15852 | Z15: 1160.019162 | AA15: 0.1308076923 | AB15: =SUM(M15:AA15) -> 29204.3016 | AC15: =AD15-V15 -> 73223.25948 | AD15: 76201.25432 | AL15: 2972.596 | AP15: 1
B16: VARIAÇÃO DE ESTOQUES | C16: -1164.91121 | E16: -336.530679 | F16: 55.5 | G16: -1700.985429 | K16: 8.113664 | L16: -3138.813654 | M16: 313.4844 | N16: -27.577869 | O16: -2.585415 | P16: -1.775566 | Q16: 65.942235 | R16: 25.848612 | T16: 43.8702 | U16: 155.4214581 | X16: 898.9011 | Y16: =SUMPRODUCT(AK16:AM16,$AK$9:$AM$9) -> -24.46266 | Z16: 33.986016 | AB16: 1481.052511 | AC16: -1657.761143 | AD16: -1657.761143 | AL16: -28.118 | AP16: 1
B17: OFERTA TOTAL | C17: 140338.7834 | D17: 51069.28452 | E17: 8367.198999 | F17: 7680.79448 | G17: 970.6746256 | H17: 30937.8815 | I17: 24519.1714 | J17: 50424.27638 | K17: 16020.97236 | L17: 330329.0376 | M17: 6198.6892 | N17: 311.890128 | O17: 2257.038105 | P17: 1948.029915 | Q17: 6237.79929 | R17: 1155.237156 | T17: 1627.4202 | U17: 2884.633628 | V17: 2977.994839 | X17: 1330.789806 | Y17: =SUM(Y14:Y16) -> 2561.69586 | Z17: 1194.005178 | AA17: 0.1308076923 | AB17: 30685.35411 | AC17: 358036.3969 | AD17: 361014.3918 | AL17: =SUM(AL14:AL16) -> 2944.478
B18: EXPORTAÇÃO | C18: -38050.47349 | L18: -38050.47349 | M18: -651.1604448 | N18: -7932.407739 | O18: -474.170193 | P18: -16.777449 | R18: -2440.225753 | V18: -18.86513974 | X18: -1107.50898 | Y18: =SUMPRODUCT(AK18:AM18,$AK$9:$AM$9) -> -385.35519 | Z18: -627.0455573 | AA18: -0.4143461538 | AB18: -13653.93079 | AC18: -51685.53914 | AD18: -51704.40428 | AL18: -442.937 | AP18: 1
B19: NÃO-APROVEITADA | D19: -1376.706 | L19: -1376.706 | AB19: 0 | AC19: -1376.706 | AD19: -1376.706
B20: REINJEÇÃO | D20: -8721.9181 | L20: -8721.9181 | AB20: 0 | AC20: -8721.9181 | AD20: -8721.9181
B21: OFERTA INTERNA BRUTA | C21: =C17+SUM(C18:C20) -> 102288.3099 | D21: =D17+SUM(D18:D20) -> 40970.66042 | E21: 8367.198999 | F21: 7680.79448 | G21: 970.6746256 | H21: 30937.8815 | I21: 24519.1714 | J21: 50424.27638 | K21: 16020.97236 | L21: =SUM(C21:K21) -> 282179.9401 | M21: =M17+SUM(M18:M20) -> 5547.528755 | N21: =N17+SUM(N18:N20) -> -7620.517611 | O21: 1782.867912 | P21: 1931.252466 | Q21: 6237.79929 | R21: -1284.988597 | S21: 0 | T21: 1627.4202 | U21: 2884.633628 | V21: 2959.1297 | W21: 0 | X21: 223.280826 | Y21: 2176.34067 | Z21: 566.9596206 | AA21: -0.2835384615 | AB21: 17031.42332 | AC21: 296252.2337 | AD21: 299211.3634 | AL21: =AL17+SUM(AL18:AL20) -> 2501.541
B22: TOTAL TRANSFORMAÇÃO | C22: =SUM(C23:C32) -> -101840.9252 | D22: =SUM(D23:D32) -> -21736.95534 | E22: -4502.57755 | F22: -7675.61448 | G22: -970.6746256 | H22: -30937.8815 | I22: -7849.206738 | J22: -21756.86061 | K22: -9007.641683 | L22: =SUM(C22:K22) -> -206278.3377 | M22: =SUM(M23:M32) -> 42510.52408 | N22: =SUM(N23:N32) -> 10875.57636 | O22: 21517.57226 | P22: 6366.863121 | Q22: 688.1661614 | R22: 4656.01761 | S22: 1336.757313 | T22: 6264.57762 | U22: -2884.633628 | V22: 49987.80382 | W22: 3959.613453 | X22: 15704.62069 | Y22: 9447.022747 | Z22: 6180.804981 | AA22: 228.4737146 | AB22: 176839.7603 | AC22: -79426.38124 | AD22: -29438.57742 | AK22: =SUM(AK23:AK32) -> 6699.267237 | AL22: =SUM(AL23:AL32) -> 3820.93259 | AM22: =SUM(AM23:AM32) -> 1994.192222
B23: REFINARIAS DE PETRÓLEO | C23: -99972.27155 | K23: -3782.66767 | L23: =SUM(C23:K23) -> -103754.9392 | M23: 42248.43611 | N23: 14188.42267 | O23: 19864.4531 | P23: 4581.620103 | Q23: 3545.4996 | R23: 4656.01761 | Y23: =SUMPRODUCT(AK23:AM23,$AK$9:$AM$9) -> 9127.0797 | Z23: 5134.025804 | AB23: 103345.5547 | AC23: -409.3845273 | AD23: -409.3845273 | AK23: 7382.025 | AL23: 4958.62 | AO23: 0.5981879391 | AP23: 0.4018120609
B24: PLANTAS DE GAS NATURAL | D24: -3726.56576 | K24: 244.8344781 | L24: =SUM(C24:K24) -> -3481.731281 | O24: 731.5 | P24: 1620.581573 | Z24: 921.3982732 | AB24: 3273.479846 | AC24: -208.2514352 | AD24: -208.2514352
B25: USINAS DE GASEIFICAÇÃO | L25: 0 | AB25: 0 | AC25: 0 | AD25: 0
B26: COQUERIAS | F26: -7675.61448 | L26: -7675.61448 | S26: 1634.688 | T26: 6264.57762 | Y26: =SUMPRODUCT(AK26:AM26,$AK$9:$AM$9) -> -801.74937 | AA26: 236.79225 | AB26: 7334.3085 | AC26: -341.30598 | AD26: -341.30598 | AL26: -921.551 | AP26: 1
B27: CICLO DO COMBUSTÍVEL NUCLEAR | G27: -970.6746256 | L27: -970.6746256 | U27: 955.1758479 | AB27: 955.1758479 | AC27: -15.49877766 | AD27: -15.49877766
B28: CENTRAIS ELÉTRICAS DE SERVIÇO PÚBLICO | D28: -13704.32483 | E28: -4264.530076 | H28: -29125.87135 | I28: -65.89778386 | K28: -2001.152016 | L28: -49161.77605 | M28: -2030.782336 | N28: -3055.3875 | U28: -3839.809476 | V28: 41683.92735 | Y28: =SUMPRODUCT(AK28:AM28,$AK$9:$AM$9) -> -74.91427353 | AB28: 32683.03376 | AC28: -58162.66963 | AD28: -16478.74229 | AI28: =(1-$AI$11)*M28 -> -1897.398566 | AJ28: =$AI$11*M28 -> -133.3837702 | AK28: -114.8991925 | AO28: 1
B29: CENTRAIS ELÉTRICAS AUTOPRODUTORAS | D29: -2706.426741 | E29: -238.0474741 | H29: -1812.010158 | I29: -354.3906564 | J29: -5959.07187 | K29: -3880.594763 | L29: -14950.54166 | M29: -399.4629189 | N29: -257.4588043 | S29: -297.9306874 | V29: 8303.87647 | Y29: =SUMPRODUCT(AK29:AM29,$AK$9:$AM$9) -> -622.5442659 | AA29: -8.31853545 | AB29: 6718.161258 | AC29: -16536.25687 | AD29: -8232.380403 | AI29: =(1-$AI$11)*M29 -> -373.2258037 | AJ29: =$AI$11*M29 -> -26.23711523 | AK29: -567.8585706 | AM29: -286.7050885 | AO29: 0.6645011926 | AQ29: 0.3354988074
B30: CARVOARIAS | I30: -7428.918297 | L30: -7428.918297 | W30: 3959.613453 | AB30: 3959.613453 | AC30: -3469.304845 | AD30: -3469.304845
B31: DESTILARIAS | J31: -15797.78874 | L31: -15797.78874 | X31: 15704.62069 | AB31: 15704.62069 | AC31: -93.16804544 | AD31: -93.16804544
B32: OUTRAS TRANSFORMAÇÕES | C32: -1868.653648 | D32: -1599.638012 | K32: 411.9382882 | L32: -3056.353372 | M32: 2692.33322 | O32: 921.61916 | P32: 164.661445 | Q32: -2857.333439 | Y32: =SUMPRODUCT(AK32:AM32,$AK$9:$AM$9) -> 1819.150957 | Z32: 125.380904 | AB32: 2865.812247 | AC32: -190.5411243 | AD32: -190.5411243 | AL32: -216.13641 | AM32: 2280.897311 | AP32: -0.1046786627 | AQ32: 1.104678663
B33: PERDAS NA DISTRIBUIÇÃO E ARMAZENAGEM | C33: =IF(ABS(C34-C22-C21-C60)<0.0000001,0,C34-C22-C21-C60) -> 0 | D33: =IF(ABS(D34-D22-D21-D60)<0.0000001,0,D34-D22-D21-D60) -> -464.4379866 | E33: =IF(ABS(E34-E22-E21-E60)<0.0000001,0,E34-E22-E21-E60) -> -6.84 | F33: -5.18 | G33: -0.4452088096 | H33: 0 | I33: 0 | J33: 0.004421808114 | K33: 0 | L33: -476.8987736 | M33: =IF(ABS(M34-M22-M21-M60)<0.0000001,0,M34-M22-M21-M60) -> 0 | N33: 0 | O33: 0 | P33: 0 | Q33: 0 | R33: 0 | S33: 0 | T33: -5.52 | U33: 0 | V33: -8001.292618 | W33: -58.51645496 | X33: -54.269298 | Y33: -95.7 | Z33: =IF(ABS(Z34-Z22-Z21-Z60)<0.0000001,0,Z34-Z22-Z21-Z60) -> 0 | AA33: =IF(ABS(AA34-AA22-AA21-AA60)<0.0000001,0,AA34-AA22-AA21-AA60) -> 0 | AB33: -8215.298371 | AC33: -690.9045266 | AD33: -8692.197145 | AL33: -110 | AP33: 1
B34: CONSUMO FINAL | C34: =SUM(C35:C36) -> 0 | D34: =SUM(D35:D36) -> 18765.28611 | E34: 3854.791831 | F34: 0 | G34: 0 | H34: 0 | I34: 16669.96466 | J34: 28667.41577 | K34: 7013.330674 | L34: =SUM(C34:K34) -> 74970.78905 | M34: =SUM(M35:M36) -> 48033.02469 | N34: 3222.412532 | O34: 23305.50108 | P34: 8123.782769 | Q34: 6928.995616 | R34: 3615.429285 | S34: 1336.327189 | T34: 7886.47782 | U34: 0 | V34: 44945.6409 | W34: 3901.096998 | X34: 15926.70769 | Y34: 11527.97922 | Z34: 6730.87657 | AA34: 228.4737146 | AB34: 185712.7261 | AC34: 215737.8742 | AD34: 260683.5151 | AK34: =SUM(AK35:AK36) -> 6655.56325 | AL34: =SUM(AL35:AL36) -> 6245.589456 | AM34: =SUM(AM35:AM36) -> 1994.192222
B35: CONSUMO FINAL NÃO-ENERGÉTICO | D35: 684.948 | L35: =SUM(C35:K35) -> 684.948 | Q35: 6928.995616 | R35: 2.656892238 | X35: 489.717528 | Y35: 266.5348702 | Z35: 6730.87657 | AA35: 133.6805486 | AB35: 14552.46203 | AC35: 15237.41003 | AD35: 15237.41003 | AK35: 408.7958132 | AO35: 1
B36: CONSUMO FINAL ENERGÉTICO | C36: =SUM(C37:C42)+C47+C59 -> 0 | D36: =SUM(D37:D42)+D47+D59 -> 18080.33811 | E36: 3854.791831 | F36: 0 | G36: 0 | H36: 0 | I36: 16669.96466 | J36: 28667.41577 | K36: 7013.330674 | L36: =SUM(C36:K36) -> 74285.84105 | M36: =SUM(M37:M42)+M47+M59 -> 48033.02469 | N36: 3222.412532 | O36: 23305.50108 | P36: 8123.782769 | Q36: 0 | R36: 3612.772393 | S36: 1336.327189 | T36: 7886.47782 | U36: 0 | V36: 44945.6409 | W36: 3901.096998 | X36: 15436.99016 | Y36: 11261.44435 | Z36: 0 | AA36: 94.793166 | AB36: =SUM(M36:AA36) -> 171160.2641 | AC36: 200500.4642 | AD36: =L36+AB36 -> 245446.1051 | AK36: =SUM(AK37:AK42)+AK47+AK59 -> 6246.767436 | AL36: =SUM(AL37:AL42)+AL47+AL59 -> 6245.589456 | AM36: =SUM(AM37:AM42)+AM47+AM59 -> 1994.192222
B37: SETOR ENERGÉTICO | D37: 6111.516115 | J37: 13154.95898 | L37: =SUM(C37:K37) -> 19266.4751 | M37: 1337.946413 | N37: 243.5270467 | P37: 29.32 | S37: 188.2142895 | V37: 2741.886282 | Y37: 3955.996991 | AB37: =SUM(M37:AA37) -> 8496.891023 | AC37: 25021.47984 | AD37: 27763.36612 | AI37: =(1-$AI$11)*M37 -> 1250.068784 | AJ37: =$AI$11*M37 -> 87.87762903 | AK37: 6067.480048 | AO37: 1
B38: RESIDENCIAL | D38: 311.564 | I38: 6333.623714 | L38: =SUM(C38:K38) -> 6645.187714 | P38: 6541.262846 | R38: 2.55031665 | V38: 11288.56843 | W38: 473.8641224 | AB38: =SUM(M38:AA38) -> 18306.24571 | AC38: 13662.865 | AD38: 24951.43342
B39: COMERCIAL | D39: 114.1037652 | I39: 94.1191 | L39: 208.2228652 | M39: 4.168715217 | N39: 26.67072076 | P39: 396.1491942 | V39: 7858.269418 | W39: 88.35342 | AB39: 8373.611468 | AC39: 723.5649154 | AD39: 8581.834333 | AI39: 3.893580013 | AJ39: 0.2751352043
B40: PÚBLICO | D40: 43.40122412 | L40: 43.40122412 | M40: 2.625464555 | N40: 9.253260222 | P40: 256.8116846 | R40: 0.0029592 | V40: 3668.353419 | AB40: 3937.046787 | AC40: 312.0945927 | AD40: 3980.448012 | AI40: 2.452183894 | AJ40: 0.1732806606
B41: AGROPECUÁRIO | I41: 2813.739152 | L41: 2813.739152 | M41: 6326.819198 | N41: 13.60111425 | P41: 2.056143399 | R41: 4.932e-06 | V41: 2309.972095 | W41: 8.138985142 | X41: 12.75 | AB41: 8673.337542 | AC41: 9177.104598 | AD41: 11487.07669 | AI41: 5909.249131 | AJ41: 417.5700671
B42: TRANSPORTES - TOTAL | D42: 1552.754478 | L42: 1552.754478 | M42: 39244.0828 | N42: 724.4935397 | O42: 23305.50108 | R42: 3609.304182 | V42: 176.6758994 | X42: 15424.24016 | AB42: 82484.29766 | AC42: 83860.37624 | AD42: 84037.05214 | AI42: 36690.74347 | AJ42: 2553.339326
B43: RODOVIÁRIO | D43: 1552.754478 | L43: 1552.754478 | M43: 38033.00485 | O43: 23256.87662 | X43: 15424.24016 | AB43: 76714.12163 | AC43: 78266.87611 | AD43: 78266.87611 | AI43: 35534.95989 | AJ43: 2498.044959
B44: FERROVIÁRIO | L44: 0 | M44: 970.8556952 | V44: 176.6758994 | AB44: 1147.531595 | AC44: 970.8556952 | AD44: 1147.531595 | AI44: 907.070476 | AJ44: 63.78521917
B45: AÉREO | L45: 0 | O45: 48.624464 | R45: 3609.304182 | AB45: 3657.928646 | AC45: 3657.928646 | AD45: 3657.928646 | AI45: 0 | AJ45: 0
B46: HIDROVIÁRIO | L46: 0 | M46: 240.2222532 | N46: 724.4935397 | AB46: 964.715793 | AC46: 964.715793 | AD46: 964.715793 | AI46: 240.2222532 | AJ46: 0
B47: INDUSTRIAL - TOTAL | D47: =SUM(D48:D59) -> 9946.998532 | E47: =SUM(E48:E59) -> 3854.791831 | I47: =SUM(I48:I59) -> 7428.482694 | J47: =SUM(J48:J59) -> 15512.45679 | K47: =SUM(K48:K59) -> 7013.330674 | L47: 43756.06052 | M47: =SUM(M48:M59) -> 1117.382101 | N47: =SUM(N48:N59) -> 2204.86685 | P47: =SUM(P48:P59) -> 898.1829007 | R47: =SUM(R48:R59) -> 0.914930388 | S47: =SUM(S48:S59) -> 1148.1129 | T47: =SUM(T48:T59) -> 7886.47782 | V47: =SUM(V48:V59) -> 16901.91536 | W47: =SUM(W48:W59) -> 3330.74047 | Y47: =SUM(Y48:Y59) -> 7305.44736 | AA47: =SUM(AA48:AA59) -> 94.793166 | AB47: 40888.83386 | AC47: 67742.97902 | AD47: 84644.89438 | AF47: =SUM(AF48:AF59) -> 5837.177674 | AG47: 890.003 | AH47: 286.15 | AI47: 1043.991351 | AJ47: 73.39074929 | AK47: 179.2873881 | AL47: 6245.589456 | AM47: 1994.192222
B48: CIMENTO | D48: 11.64891322 | E48: 70.40436724 | I48: 69.564 | K48: =SUM(AF48:AH48) -> 330.4 | L48: 482.0172805 | M48: 59.68274422 | N48: 8.934750099 | P48: 16.62389983 | T48: 69.552 | V48: 617.5717358 | W48: 109.3032 | Y48: =SUMPRODUCT(AK48:AM48,$AK$9:$AM$9) -> 3386.475 | AB48: 4268.14333 | AC48: 4132.588875 | AD48: 4750.16061 | AG48: 128.8 | AH48: 201.6 | AI48: =(1-$AI$11)*M48 -> 55.7627232 | AJ48: =$AI$11*M48 -> 3.920021016 | AL48: 3892.5 | AP48: 1
B49: FERRO-GUSA E AÇO | D49: 1223.450652 | E49: 2124.40995 | K49: =SUM(AF49:AH49) -> 1e-09 | L49: 3347.860602 | M49: 28.93597959 | N49: 0.4792618614 | P49: 25.12503173 | S49: 1148.1129 | T49: 7441.26222 | V49: 1608.798149 | W49: 2787.8453 | Y49: 40.3320255 | AA49: 94.793166 | AB49: 13175.68403 | AC49: 14914.74649 | AD49: 16523.54464 | AG49: 1e-09 | AI49: 27.03543615 | AJ49: 1.900543442 | AL49: 46.35865 | AP49: 1
B50: FERRO-LIGAS | D50: 5.761690301 | E50: 0.0513267 | I50: 63.054 | L50: 68.867017 | M50: 5.83837824 | N50: 8.475404454 | P50: 22.28419387 | R50: 0.0006576 | T50: 70.173 | V50: 523.6336627 | W50: 392.445 | Y50: 114.318 | AB50: 1137.168297 | AC50: 682.4016512 | AD50: 1206.035314 | AI50: 5.454907847 | AJ50: 0.3834703934 | AL50: 131.4 | AP50: 1
B51: MINERAÇÃO E PELOTIZ. | D51: 657.2560113 | E51: 417.4342106 | L51: 1074.690222 | M51: 394.6321065 | N51: 165.681171 | P51: 22.16259269 | R51: 0.52345371 | T51: 60.1818 | V51: 1095.382702 | Y51: 532.875 | AB51: 2271.438826 | AC51: 2250.746346 | AD51: 3346.129047 | AI51: 368.7122837 | AJ51: 25.91982275 | AL51: 612.5 | AP51: 1
B52: NÃO-FERROSOS E OUTROS DA METALURGIA | D52: 592.6350462 | E52: 689.3900887 | L52: 1282.025135 | M52: 9.607975532 | N52: 1237.537987 | P52: 35.14183214 | T52: 245.3088 | V52: 2314.942009 | W52: 10.60409 | Y52: 510.3949013 | AB52: 4363.537595 | AC52: 3330.620721 | AD52: 5645.56273 | AI52: 8.976914301 | AJ52: 0.6310612305 | AL52: 586.6608061 | AP52: 1
B53: QUÍMICA | D53: 2222.310085 | E53: 171.9203763 | I53: 47.85687 | K53: =SUM(AF53:AH53) -> 84.55 | L53: 2526.637331 | M53: 18.10174464 | N53: 174.0668502 | P53: 80.31127563 | V53: 1939.577273 | W53: 18.26888 | Y53: 1949.458133 | AB53: 4179.784156 | AC53: 4766.844214 | AD53: 6706.421487 | AH53: 84.55 | AI53: 16.91280435 | AJ53: 1.188940293 | AK53: 179.2873881 | AL53: 89.28 | AM53: 1994.192222 | AO53: 0.0596294827 | AP53: 0.03957659501 | AQ53: 0.9007939223
B54: ALIMENTOS E BEBIDAS | D54: 833.5051961 | E54: 64.935742 | I54: 2171.2307 | J54: 15485.23402 | K54: =SUM(AF54:AH54) -> 10.379 | L54: 18565.28466 | M54: 238.8672671 | N54: 119.2835438 | P54: 227.9635455 | R54: 0.028770822 | V54: 2242.102147 | Y54: 81.8583 | AB54: 2910.103574 | AC54: 19233.28608 | AD54: 21475.38823 | AG54: 10.379 | AI54: 223.1782313 | AJ54: 15.68903574 | AL54: 94.09 | AP54: 1
B55: TÊXTIL | D55: 214.8328488 | I55: 61.8016 | L55: 276.6344488 | M55: 2.301264679 | N55: 19.20356298 | P55: 36.52581577 | R55: 0.0001644 | V55: 559.8423734 | AB55: 617.8731813 | AC55: 334.6652567 | AD55: 894.5076301 | AI55: 2.150115364 | AJ55: 0.151149315 | AL55: 0
B56: PAPEL E CELULOSE | D56: 804.8482864 | E56: 85.89644135 | I56: 1832.549624 | J56: 27.22277316 | K56: =SUM(AF56:AH56) -> 6528.601674 | L56: 9279.118799 | M56: 173.2987676 | N56: 341.3033602 | P56: 71.5836498 | V56: 1864.101137 | AB56: 2450.286915 | AC56: 9865.304576 | AD56: 11729.40571 | AF56: 5837.177674 | AG56: 691.424 | AI56: 161.9163351 | AJ56: 11.38243256 | AL56: 0
B57: CERÂMICA | D57: 1324.004963 | E57: 62.24956318 | I57: 2311.5987 | K57: =SUM(AF57:AH57) -> 59.4 | L57: 3757.253226 | M57: 23.91784418 | N57: 58.65616398 | P57: 172.7886659 | V57: 338.7216571 | Y57: =SUMPRODUCT(AK57:AM57,$AK$9:$AM$9) -> 262.305 | AB57: 856.3893312 | AC57: 4274.9209 | AD57: 4613.642558 | AG57: 59.4 | AI57: 22.34689678 | AJ57: 1.5709474 | AL57: 301.5 | AP57: 1
B58: OUTROS | D58: 2056.74484 | E58: 168.0997646 | I58: 870.8272 | L58: 3095.671805 | M58: 162.1980285 | N58: 71.24479425 | P58: 187.6723979 | R58: 0.361883856 | V58: 3797.242516 | W58: 12.274 | Y58: =SUMPRODUCT(AK58:AM58,$AK$9:$AM$9) -> 427.431 | AB58: 4658.424621 | AC58: 3956.85391 | AD58: 7754.096426 | AI58: 151.5447033 | AJ58: 10.65332516 | AL58: 491.3 | AP58: 1
B59: CONSUMO NÃO-IDENTIFICADO
B60: AJUSTES | C60: -447.3846926 | D60: -3.980980287 | E60: -2.989618126 | G60: 0.4452088096 | J60: -0.004421808114 | K60: -2.273736754e-13 | L60: =SUM(C60:K60) -> -453.914504 | M60: -25.02814454 | N60: -32.64621988 | O60: 5.060910766 | P60: -174.3328179 | Q60: 3.030165 | R60: 244.4002722 | S60: -0.4301231178 | U60: -2.625742113e-13 | X60: 53.075472 | Y60: 0.3158037468 | Z60: -16.88803202 | AA60: 0.2835384615 | AB60: =SUM(M60:AA60) -> 56.8408247 | AC60: =AD60-V60 -> -397.0736793 | AD60: =L60+AB60 -> -397.0736793
B61: CENTRAIS ELÉTRICAS (CESP+AUTOP.) | D61: =SUM(D28:D29) -> -16410.75157 | E61: =SUM(E28:E29) -> -4502.57755 | H61: =SUM(H28:H29) -> -30937.8815 | I61: -420.2884403 | J61: -5959.07187 | K61: -5881.746779 | L61: -64112.31771 | M61: -2430.245255 | N61: -3312.846304 | S61: =SUM(S28:S29) -> -297.9306874 | U61: =SUM(U28:U29) -> -3839.809476 | V61: 49987.80382 | Y61: =SUM(Y28:Y29) -> -697.4585394 | AA61: -8.31853545 | AB61: 39401.19502 | AC61: -74698.92651 | AD61: -24711.12269 | AF61: 0 | AG61: 0 | AH61: 0 | AI61: -2270.62437 | AJ61: -159.6208854 | AK61: -682.7577631 | AL61: 0 | AM61: -286.7050885
B62: EDIFICAÇÕES (Re+Co+Pu)+ AGROPECUÁRIA | C62: =SUM(C38:C41) -> 0 | D62: =SUM(D38:D41) -> 469.0689893 | E62: 0 | F62: 0 | G62: 0 | H62: 0 | I62: 9241.481966 | J62: 0 | K62: 0 | L62: 9710.550956 | M62: 6333.613378 | N62: 49.52509523 | O62: 0 | P62: 7196.279868 | Q62: 0 | R62: 2.553280782 | S62: 0 | T62: 0 | U62: 0 | V62: 25125.16336 | W62: 570.3565275 | X62: 12.75 | Y62: 0 | Z62: 0 | AA62: 0 | AB62: 39290.24151 | AC62: 23875.62911 | AD62: 49000.79246
B63: SETOR ENERGÉTICO E PROD. DE ELETRICIDADE | C63: =C37-SUM(C28:C29) -> 0 | D63: =D37-SUM(D28:D29) -> 22522.26768 | E63: 4502.57755 | F63: 0 | G63: 0 | H63: 30937.8815 | I63: 420.2884403 | J63: 19114.03085 | K63: 5881.746779 | L63: 83378.79281 | M63: 3768.191668 | N63: 3556.373351 | O63: 0 | P63: 29.32 | Q63: 0 | R63: 0 | S63: 486.1449769 | T63: 0 | U63: 3839.809476 | V63: =V37 -> 2741.886282 | W63: 0 | X63: 0 | Y63: 4653.455531 | Z63: 0 | AA63: 8.31853545 | AD63: 52474.48881
B64: CONSUMO FINAL E PROD. DE ELETRICIDADE | C64: =C36-SUM(C28:C29) -> 0 | D64: =D36-SUM(D28:D29) -> 34491.08968 | E64: 8357.369381 | F64: 0 | G64: 0 | H64: 30937.8815 | I64: 17090.2531 | J64: 34626.48764 | K64: 12895.07745 | L64: 138398.1588 | M64: 50463.26994 | N64: 6535.258836 | O64: 23305.50108 | P64: 8123.782769 | Q64: 0 | R64: 3612.772393 | S64: 1634.257877 | T64: 7886.47782 | U64: 3839.809476 | V64: -5042.162918 | W64: 3901.096998 | X64: 15436.99016 | Y64: 11958.90289 | Z64: 0 | AA64: 103.1117014 | AD64: =AD36-SUM(AD28:AD29) -> 270157.2278
B68: Fatores de emissão em tCO2/TJ ==> | D68: =COMENTÁRIOS!C21 -> 56.1 | E68: =COMENTÁRIOS!D21 -> 96.1 | F68: =COMENTÁRIOS!E21 -> 94.6 | G68: =COMENTÁRIOS!F21 -> 0 | H68: =COMENTÁRIOS!G21 -> 0 | I68: =COMENTÁRIOS!H21 -> 0 | J68: =COMENTÁRIOS!I21 -> 0 | K68: =COMENTÁRIOS!J21 -> Outros | M68: =COMENTÁRIOS!L21 -> Outros | N68: =COMENTÁRIOS!M21 -> 77.4 | O68: =COMENTÁRIOS!N21 -> 69.3 | P68: =COMENTÁRIOS!O21 -> 63.1 | Q68: =COMENTÁRIOS!P21 -> 73.3 | R68: =COMENTÁRIOS!Q21 -> 71.5 | S68: =COMENTÁRIOS!R21 -> 44.4 | T68: =COMENTÁRIOS!S21 -> 107 | U68: =COMENTÁRIOS!T21 -> 0 | V68: =COMENTÁRIOS!U21 -> 0 | W68: =COMENTÁRIOS!V21 -> 0 | X68: =COMENTÁRIOS!W21 -> 0 | Y68: =COMENTÁRIOS!X21 -> Outros | Z68: =COMENTÁRIOS!Y21 -> 73.3 | AA68: =COMENTÁRIOS!Z21 -> 80.7 | AF68: =COMENTÁRIOS!AB21 -> 0 | AG68: =COMENTÁRIOS!AC21 -> 0 | AH68: =COMENTÁRIOS!AD21 -> 143 | AI68: =COMENTÁRIOS!AE21 -> 74.1 | AJ68: =COMENTÁRIOS!AF21 -> 0 | AK68: =COMENTÁRIOS!AG21 -> 57.6 | AL68: =COMENTÁRIOS!AH21 -> 97.5 | AM68: =COMENTÁRIOS!AI21 -> 73.3
B69: CENÁRIO IES BRASIL 2 - EMISSÕES DE CO2 DA ENERGIA
B70: =LEFT(B11,4)&" - tCO2" -> 2015 - tCO2
C71: FONTES DE ENERGIA PRIMÁRIA | M71: FONTES DE ENERGIA SECUNDÁRIA | AC71: TOTAIS | AF71: =AF12 -> O U T R O S
B72: CONTA | C72: PETRÓLEO | D72: GÁS NATURAL | E72: CARVÃO VAPOR | F72: CARVÃO METALÚRGICO | G72: URÂNIO U3O8 | H72: ENERGIA HIDRÁULICA | I72: LENHA | J72: PRODUTOS DA CANA | K72: OUTRAS FONTES PRIMÁRIAS | L72: ENERGIA PRIMÁRIA TOTAL | M72: ÓLEO DIESEL | N72: ÓLEO COMBUSTIVEL | O72: GASOLINA | P72: GLP | Q72: NAFTA | R72: QUEROSENE | S72: GÁS DE CIDADE E DE COQUERIA | T72: COQUE DE CARVÃO MINERAL | U72: URÂNIO CONTIDO NO UO2 | V72: ELETRICIDADE | W72: CARVÃO VEGETAL | X72: ÁLCOOL ETÍLICO ANIDRO E HIDRATADO | Y72: OUTRAS SECUNDÁRIAS DE PETRÓLEO | Z72: PRODUTOS NÃO ENERGÉTICOS DE PETRÓLEO | AA72: ALCATRÃO | AB72: ENERGIA SECUNDÁRIA TOTAL | AC72: TOTAL DIRETO | AD72: TOTAL COM ELETRIC | AF72: =AF13 -> LIXÍVIA | AG72: =AG13 -> OUTRAS PRIM. RENOVÁVEIS | AH72: OUTRAS PRIM. NÃO RENOV. | AI72: ÓLEO DIESEL MINERAL | AJ72: BIODIESEL | AK72: GÁS DE REFINARIA | AL72: COQUE DE PETRÓLEO | AM72: OUTROS EN. DE PETRÓLEO
B73: PRODUÇÃO
B74: IMPORTAÇÃO
B75: VARIAÇÃO DE ESTOQUES
B76: OFERTA TOTAL
B77: EXPORTAÇÃO
B78: NÃO-APROVEITADA
B79: REINJEÇÃO
B80: OFERTA INTERNA BRUTA
B81: TOTAL TRANSFORMAÇÃO | D81: =SUM(D82:D91) -> 38545487.94 | E81: =SUM(E82:E91) -> 18116187.41 | L81: =SUM(L82:L91) -> 56661675.35 | M81: =SUM(M82:M91) -> 7044427.733 | N81: =SUM(N82:N91) -> 10735554.08 | S81: =SUM(S82:S91) -> 553835.0337 | Y81: =SUM(Y82:Y91) -> 41265704.99 | AA81: =SUM(AA82:AA91) -> 28106.23169 | AB81: =SUM(AB82:AB91) -> 20209755.92 | AD81: =SUM(AD82:AD91) -> 76871431.28 | AI81: =SUM(AI82:AI91) -> 7044427.733 | AJ81: =SUM(AJ82:AJ91) -> 0 | AK81: =SUM(AK82:AK91) -> 12680750.81 | AL81: =SUM(AL82:AL91) -> 21650749.85 | AM81: =SUM(AM82:AM91) -> 6934204.334
B82: REFINARIAS DE PETRÓLEO | Y82: =SUM(AK82:AM82) -> 29217515.42 | AK82: =ABS(AK23)*COMENTÁRIOS!$AE$1*AK$68*AK$9 -> 11607209.05 | AL82: =ABS(AL23)*COMENTÁRIOS!$AE$1*AL$68*AL$9 -> 17610306.37
B83: PLANTAS DE GAS NATURAL
B84: USINAS DE GASEIFICAÇÃO
B85: COQUERIAS | Y85: =SUM(AK85:AM85) -> 3272845.156 | AL85: =ABS(AL26)*COMENTÁRIOS!$AE$1*AL$68*AL$9 -> 3272845.156
B86: CICLO DO COMBUSTÍVEL NUCLEAR
B87: CENTRAIS ELÉTRICAS DE SERVIÇO PÚBLICO | D87: =ABS(D28)*COMENTÁRIOS!$AE$1*D$68 -> 32188646.89 | E87: =ABS(E28)*COMENTÁRIOS!$AE$1*E$68 -> 17158399.88 | L87: =SUM(C87:K87) -> 49347046.77 | M87: =SUM(AI87:AJ87) -> 5886524.982 | N87: =ABS(N28)*COMENTÁRIOS!$AE$1*N$68 -> 9901237.401 | Y87: =SUM(AK87:AM87) -> 180663.0223 | AB87: =SUM(M87:AA87) -> 15968425.41 | AD87: =AB87+L87 -> 65315472.17 | AI87: =ABS(AI28)*COMENTÁRIOS!$AE$1*AI$68 -> 5886524.982 | AJ87: =ABS(AJ28)*COMENTÁRIOS!$AE$1*AJ$68 -> 0 | AK87: =ABS(AK28)*COMENTÁRIOS!$AE$1*AK$68*AK$9 -> 180663.0223
B88: CENTRAIS ELÉTRICAS AUTOPRODUTORAS | D88: =ABS(D29)*COMENTÁRIOS!$AE$1*D$68 -> 6356841.055 | E88: =ABS(E29)*COMENTÁRIOS!$AE$1*E$68 -> 957787.5351 | L88: =SUM(C88:K88) -> 7314628.59 | M88: =SUM(AI88:AJ88) -> 1157902.75 | N88: =ABS(N29)*COMENTÁRIOS!$AE$1*N$68 -> 834316.676 | S88: =ABS(S29)*COMENTÁRIOS!$AE$1*S$68 -> 553835.0337 | Y88: =SUM(AK88:AM88) -> 1667169.827 | AA88: =ABS(AA29)*COMENTÁRIOS!$AE$1*AA$68 -> 28106.23169 | AB88: =SUM(M88:AA88) -> 4241330.518 | AD88: =AB88+L88 -> 11555959.11 | AI88: =ABS(AI29)*COMENTÁRIOS!$AE$1*AI$68 -> 1157902.75 | AJ88: =ABS(AJ29)*COMENTÁRIOS!$AE$1*AJ$68 -> 0 | AK88: =ABS(AK29)*COMENTÁRIOS!$AE$1*AK$68*AK$9 -> 892878.7344 | AM88: =ABS(AM29)*COMENTÁRIOS!$AE$1*AM$68*AM$9 -> 774291.0926
B89: CARVOARIAS
B90: DESTILARIAS
B91: OUTRAS TRANSFORMAÇÕES | Y91: =SUM(AK91:AM91) -> 6927511.565 | AL91: =ABS(AL32)*COMENTÁRIOS!$AE$1*AL$68*AL$9 -> 767598.3233 | AM91: =ABS(AM32)*COMENTÁRIOS!$AE$1*AM$68*AM$9 -> 6159913.242
B92: PERDAS NA DISTRIBUIÇÃO E ARMAZENAGEM
B93: CONSUMO FINAL | D93: =SUM(D94:D95) -> 44075806.45 | E93: =SUM(E94:E95) -> 4188239.368 | I93: =SUM(I94:I95) -> 0 | J93: =SUM(J94:J95) -> 0 | K93: =SUM(K94:K95) -> 1713215.533 | L93: =SUM(C93:K93) -> 49977261.35 | M93: =SUM(M94:M95) -> 139273498.3 | N93: =SUM(N94:N95) -> 10442495.91 | O93: =SUM(O94:O95) -> 67619802.04 | P93: =SUM(P94:P95) -> 21461984.48 | R93: =SUM(R94:R95) -> 10823002.85 | S93: =SUM(S94:S95) -> 2484150.997 | T93: =SUM(T94:T95) -> 581191.337 | V93: =SUM(V94:V95) -> 76871431.28 | W93: =SUM(W94:W95) -> 0 | X93: =SUM(X94:X95) -> 0 | Y93: =SUM(Y94:Y95) -> 35316689.18 | AA93: =SUM(AA94:AA95) -> 771955.0147 | AB93: =SUM(M93:AA93)-V93 -> 288774770.1 | AC93: =AB93+L93 -> 338752031.4 | AD93: =AC93+V93 -> 415623462.7 | AF93: =SUM(AF94:AF95) -> 0 | AG93: 0 | AH93: 1713215.533 | AI93: 139273498.3 | AJ93: 0 | AK93: 10464948.84 | AL93: 22180918.04 | AM93: 5385622.149
B94: CONSUMO FINAL NÃO-ENERGÉTICO | D94: =D35*COMENTÁRIOS!$AE$1*D$68 -> 1608802.301 | L94: =SUM(C94:K94) -> 1608802.301 | Q94: =Q35*COMENTÁRIOS!$AE$1*Q$68 -> 21264563.71 | R94: =R35*COMENTÁRIOS!$AE$1*R$68 -> 7953.571642 | Y94: =SUM(AK94:AM94) -> 642774.64 | Z94: =Z35*COMENTÁRIOS!$AE$1*Z$68 -> 20656551.34 | AA94: =AA35*COMENTÁRIOS!$AE$1*AA$68 -> 451672.8326 | AB94: =SUM(M94:AA94)-V94 -> 43023516.1 | AC94: =AB94+L94 -> 44632318.4 | AD94: =AC94+V94 -> 44632318.4 | AK94: =ABS(AK35)*COMENTÁRIOS!$AE$1*AK$68*AK$9 -> 642774.64
B95: CONSUMO FINAL ENERGÉTICO | D95: =SUM(D96:D101)+D106 -> 42467004.15 | E95: =SUM(E96:E101)+E106 -> 4188239.368 | I95: =SUM(I96:I101)+I106 -> 0 | J95: =SUM(J96:J101)+J106 -> 0 | K95: =SUM(K96:K101)+K106 -> 1713215.533 | L95: =SUM(C95:K95) -> 48368459.05 | M95: =SUM(M96:M101)+M106 -> 139273498.3 | N95: =SUM(N96:N101)+N106 -> 10442495.91 | O95: =SUM(O96:O101)+O106 -> 67619802.04 | P95: =SUM(P96:P101)+P106 -> 21461984.48 | R95: =SUM(R96:R101)+R106 -> 10815049.28 | S95: =SUM(S96:S101)+S106 -> 2484150.997 | T95: =SUM(T96:T101)+T106 -> 581191.337 | V95: =SUM(V96:V101)+V106 -> 76871431.28 | W95: =SUM(W96:W101)+W106 -> 0 | X95: =SUM(X96:X101)+X106 -> 0 | Y95: =SUM(Y96:Y101)+Y106 -> 34673914.54 | AA95: =SUM(AA96:AA101)+AA106 -> 320282.1821 | AB95: 287672369 | AC95: =AB95+L95 -> 336040828.1 | AD95: =AC95+V95 -> 412912259.4 | AF95: =SUM(AF96:AF101)+AF106 -> 0 | AG95: 0 | AH95: 1713215.533 | AI95: 139273498.3 | AJ95: 0 | AK95: 9822174.203 | AL95: 22180918.04 | AM95: 5385622.149
B96: SETOR ENERGÉTICO | D96: =D37*COMENTÁRIOS!$AE$1*D$68 -> 14354697.27 | L96: 14354697.27 | M96: =SUM(AI96:AJ96) -> 3878236.895 | N96: =N37*COMENTÁRIOS!$AE$1*N$68 -> 789169.6562 | P96: =P37*COMENTÁRIOS!$AE$1*P$68 -> 77459.65186 | S96: =S37*COMENTÁRIOS!$AE$1*S$68 -> 349878.9208 | V96: =V37/V$34*$AD$123 -> 4689503.113 | Y96: =SUM(AK96:AM96) -> 9540269.685 | AB96: 14635014.81 | AC96: 28989712.08 | AD96: 33679215.19 | AI96: =ABS(AI37)*COMENTÁRIOS!$AE$1*AI$68 -> 3878236.895 | AJ96: =ABS(AJ37)*COMENTÁRIOS!$AE$1*AJ$68 -> 0 | AK96: =ABS(AK37)*COMENTÁRIOS!$AE$1*AK$68*AK$9 -> 9540269.685
B97: RESIDENCIAL | D97: =D38*COMENTÁRIOS!$AE$1*D$68 -> 731799.9031 | I97: =I38*COMENTÁRIOS!$AE$1*I$68 -> 0 | L97: 731799.9031 | P97: =P38*COMENTÁRIOS!$AE$1*P$68 -> 17281171.31 | R97: =R38*COMENTÁRIOS!$AE$1*R$68 -> 7634.531011 | V97: =V38/V$34*$AD$123 -> 19307065.04 | W97: =W38*COMENTÁRIOS!$AE$1*W$68 -> 0 | AB97: 17288805.84 | AC97: 18020605.74 | AD97: 37327670.78
B98: COMERCIAL | D98: =D39*COMENTÁRIOS!$AE$1*D$68 -> 268006.3304 | I98: =I39*COMENTÁRIOS!$AE$1*I$68 -> 0 | L98: 268006.3304 | M98: =SUM(AI98:AJ98) -> 12079.51583 | N98: =N39*COMENTÁRIOS!$AE$1*N$68 -> 86428.68961 | P98: =P39*COMENTÁRIOS!$AE$1*P$68 -> 1046574.989 | V98: =V39/V$34*$AD$123 -> 13440155.83 | W98: =W39*COMENTÁRIOS!$AE$1*W$68 -> 0 | AB98: 1145083.194 | AC98: 1413089.524 | AD98: 14853245.35 | AI98: =ABS(AI39)*COMENTÁRIOS!$AE$1*AI$68 -> 12079.51583 | AJ98: =ABS(AJ39)*COMENTÁRIOS!$AE$1*AJ$68 -> 0
B99: PÚBLICO | D99: =D40*COMENTÁRIOS!$AE$1*D$68 -> 101940.5695 | L99: 101940.5695 | M99: =SUM(AI99:AJ99) -> 7607.701414 | N99: =N40*COMENTÁRIOS!$AE$1*N$68 -> 29985.95962 | P99: =P40*COMENTÁRIOS!$AE$1*P$68 -> 678463.2908 | V99: =V40/V$34*$AD$123 -> 6274058.442 | AB99: 716056.9518 | AC99: 817997.5213 | AD99: 7092055.964 | AI99: =ABS(AI40)*COMENTÁRIOS!$AE$1*AI$68 -> 7607.701414 | AJ99: =ABS(AJ40)*COMENTÁRIOS!$AE$1*AJ$68 -> 0
B100: AGROPECUÁRIO | I100: =I41*COMENTÁRIOS!$AE$1*I$68 -> 0 | L100: 0 | M100: =SUM(AI100:AJ100) -> 18332965.6 | N100: =N41*COMENTÁRIOS!$AE$1*N$68 -> 44075.54235 | P100: =P41*COMENTÁRIOS!$AE$1*P$68 -> 5432.065205 | V100: =V41/V$34*$AD$123 -> 3950791.615 | W100: =W41*COMENTÁRIOS!$AE$1*W$68 -> 0 | X100: =X41*COMENTÁRIOS!$AE$1*X$68 -> 0 | AB100: 18382473.21 | AC100: 18382473.21 | AD100: 22333264.82 | AI100: =ABS(AI41)*COMENTÁRIOS!$AE$1*AI$68 -> 18332965.6 | AJ100: =ABS(AJ41)*COMENTÁRIOS!$AE$1*AJ$68 -> 0
B101: TRANSPORTES - TOTAL | D101: =SUM(D102:D105) -> 3647101.645 | L101: 3647101.645 | M101: =SUM(M102:M105) -> 113803710.1 | N101: =SUM(N102:N105) -> 2347781.593 | O101: =SUM(O102:O105) -> 67619802.04 | R101: =SUM(R102:R105) -> 10804675.85 | V101: =SUM(V102:V105) -> 302172.3349 | X101: =SUM(X102:X105) -> 0 | AB101: 194575969.6 | AC101: 198223071.3 | AD101: 198525243.6 | AI101: =SUM(AI102:AI105) -> 113803710.1 | AJ101: =SUM(AJ102:AJ105) -> 0
B102: RODOVIÁRIO | D102: =D43*COMENTÁRIOS!$AE$1*D$68 -> 3647101.645 | L102: 3647101.645 | M102: =SUM(AI102:AJ102) -> 110244327.6 | O102: =O43*COMENTÁRIOS!$AE$1*O$68 -> 67478720.48 | V102: =V43/V$34*$AD$123 -> 0 | X102: =X43*COMENTÁRIOS!$AE$1*X$68 -> 0 | AB102: 177723048.1 | AC102: 181370149.7 | AD102: 181370149.7 | AI102: =ABS(AI43)*COMENTÁRIOS!$AE$1*AI$68 -> 110244327.6 | AJ102: =ABS(AJ43)*COMENTÁRIOS!$AE$1*AJ$68 -> 0
B103: FERROVIÁRIO | M103: =SUM(AI103:AJ103) -> 2814112.498 | V103: =V44/V$34*$AD$123 -> 302172.3349 | AB103: 2814112.498 | AC103: 2814112.498 | AD103: 3116284.833 | AI103: =ABS(AI44)*COMENTÁRIOS!$AE$1*AI$68 -> 2814112.498 | AJ103: =ABS(AJ44)*COMENTÁRIOS!$AE$1*AJ$68 -> 0
B104: AÉREO | O104: =O45*COMENTÁRIOS!$AE$1*O$68 -> 141081.5678 | R104: =R45*COMENTÁRIOS!$AE$1*R$68 -> 10804675.85 | AB104: 10945757.41 | AC104: 10945757.41 | AD104: 10945757.41
B105: HIDROVIÁRIO | M105: =SUM(AI105:AJ105) -> 745270.0346 | N105: =N46*COMENTÁRIOS!$AE$1*N$68 -> 2347781.593 | AB105: 3093051.628 | AC105: 3093051.628 | AD105: 3093051.628 | AI105: =ABS(AI46)*COMENTÁRIOS!$AE$1*AI$68 -> 745270.0346 | AJ105: =ABS(AJ46)*COMENTÁRIOS!$AE$1*AJ$68 -> 0
B106: INDUSTRIAL - TOTAL | D106: =SUM(D107:D117) -> 23363458.43 | E106: =SUM(E107:E117) -> 4188239.368 | I106: =SUM(I107:I117) -> 0 | J106: =SUM(J107:J117) -> 0 | K106: =SUM(K107:K117) -> 1713215.533 | L106: 29264913.33 | M106: =SUM(M107:M117) -> 3238898.396 | N106: =SUM(N107:N117) -> 7145054.472 | P106: =SUM(P107:P117) -> 2372883.179 | R106: =SUM(R107:R117) -> 2738.900842 | S106: =SUM(S107:S117) -> 2134272.076 | T106: =SUM(T107:T117) -> 581191.337 | V106: =SUM(V107:V117) -> 28907684.91 | W106: =SUM(W107:W117) -> 0 | Y106: =SUM(Y107:Y117) -> 25133644.85 | AA106: =SUM(AA107:AA117) -> 320282.1821 | AB106: 40928965.4 | AC106: 70193878.73 | AD106: 99101563.64 | AF106: =SUM(AF107:AF117) -> 0 | AG106: 0 | AH106: 1713215.533 | AI106: 3238898.396 | AJ106: 0 | AK106: 281904.5172 | AL106: 22180918.04 | AM106: 5385622.149
B107: CIMENTO | D107: =D48*COMENTÁRIOS!$AE$1*D$68 -> 27360.90679 | E107: =E48*COMENTÁRIOS!$AE$1*E$68 -> 283273.0136 | I107: =I48*COMENTÁRIOS!$AE$1*I$68 -> 0 | K107: =SUM(AF107:AH107) -> 1207004.198 | L107: 1517638.119 | M107: =SUM(AI107:AJ107) -> 172999.3208 | N107: =N48*COMENTÁRIOS!$AE$1*N$68 -> 28953.80107 | P107: =P48*COMENTÁRIOS!$AE$1*P$68 -> 43918.19554 | T107: =T48*COMENTÁRIOS!$AE$1*T$68 -> 311584.3356 | V107: =V48/V$34*$AD$123 -> 1056245.329 | W107: =W48*COMENTÁRIOS!$AE$1*W$68 -> 0 | Y107: =SUM(AK107:AM107) -> 13824031.19 | AB107: 14381486.84 | AC107: 15899124.96 | AD107: 16955370.29 | AF107: =ABS(AF48)*COMENTÁRIOS!$AE$1*AF$68 -> 0 | AG107: =ABS(AG48)*COMENTÁRIOS!$AE$1*AG$68 -> 0 | AH107: =ABS(AH48)*COMENTÁRIOS!$AE$1*AH$68 -> 1207004.198 | AI107: =ABS(AI48)*COMENTÁRIOS!$AE$1*AI$68 -> 172999.3208 | AJ107: =ABS(AJ48)*COMENTÁRIOS!$AE$1*AJ$68 -> 0 | AL107: =ABS(AL48)*COMENTÁRIOS!$AE$1*AL$68*AL$9 -> 13824031.19
B108: FERRO-GUSA E AÇO | D108: =D49*COMENTÁRIOS!$AE$1*D$68 -> 2873634.529 | E108: =E49*COMENTÁRIOS!$AE$1*E$68*AF125 -> 0 | K108: =SUM(AF108:AH108) -> 0 | L108: 2873634.529 | M108: 83875.24537 | N108: =N49*COMENTÁRIOS!$AE$1*N$68 -> 1553.087936 | P108: =P49*COMENTÁRIOS!$AE$1*P$68 -> 66377.08767 | S108: =S49*COMENTÁRIOS!$AE$1*S$68 -> 2134272.076 | T108: =T49*COMENTÁRIOS!$AE$1*T$68*AF124 -> 0 | V108: 2751559.748 | W108: =W49*COMENTÁRIOS!$AE$1*W$68 -> 0 | Y108: =SUM(AK108:AM108)*AF123 -> 0 | AA108: =AA49*COMENTÁRIOS!$AE$1*AA$68 -> 320282.1821 | AB108: 2606359.679 | AC108: 5479994.208 | AD108: 8231553.956 | AF108: =ABS(AF49)*COMENTÁRIOS!$AE$1*AF$68 -> 0 | AG108: =ABS(AG49)*COMENTÁRIOS!$AE$1*AG$68 -> 0 | AH108: =ABS(AH49)*COMENTÁRIOS!$AE$1*AH$68 -> 0 | AI108: =ABS(AI49)*COMENTÁRIOS!$AE$1*AI$68 -> 83875.24537 | AJ108: =ABS(AJ49)*COMENTÁRIOS!$AE$1*AJ$68 -> 0 | AL108: =ABS(AL49)*COMENTÁRIOS!$AE$1*AL$68*AL$9 -> 164640.5713
B109: FERRO-LIGAS | D109: =D50*COMENTÁRIOS!$AE$1*D$68 -> 13533.02822 | I109: =I50*COMENTÁRIOS!$AE$1*I$68 -> 0 | K109: =SUM(AF109:AH109) -> 0 | L109: 13533.02822 | M109: 16923.40866 | N109: =N50*COMENTÁRIOS!$AE$1*N$68 -> 27465.25329 | P109: =P50*COMENTÁRIOS!$AE$1*P$68 -> 58871.96108 | R109: =R50*COMENTÁRIOS!$AE$1*R$68 -> 1.968566371 | V109: 895581.1579 | W109: =W50*COMENTÁRIOS!$AE$1*W$68 -> 0 | Y109: =SUM(AK109:AM109)*AF123 -> 0 | AB109: 103262.5916 | AC109: 116795.6198 | AD109: 1012376.778 | AF109: =ABS(AF50)*COMENTÁRIOS!$AE$1*AF$68 -> 0 | AG109: =ABS(AG50)*COMENTÁRIOS!$AE$1*AG$68 -> 0 | AH109: =ABS(AH50)*COMENTÁRIOS!$AE$1*AH$68 -> 0 | AI109: =ABS(AI50)*COMENTÁRIOS!$AE$1*AI$68 -> 16923.40866 | AJ109: =ABS(AJ50)*COMENTÁRIOS!$AE$1*AJ$68 -> 0 | AL109: =ABS(AL50)*COMENTÁRIOS!$AE$1*AL$68*AL$9 -> 466660.9373
B110: MINERAÇÃO E PELOTIZ. | D110: =D51*COMENTÁRIOS!$AE$1*D$68 -> 1543759.502 | E110: =E51*COMENTÁRIOS!$AE$1*E$68 -> 1679552.724 | K110: =SUM(AF110:AH110) -> 0 | L110: 3223312.226 | M110: 1143899.921 | N110: =N51*COMENTÁRIOS!$AE$1*N$68 -> 536903.6194 | P110: =P51*COMENTÁRIOS!$AE$1*P$68 -> 58550.70649 | R110: =R51*COMENTÁRIOS!$AE$1*R$68 -> 1566.991135 | T110: =T51*COMENTÁRIOS!$AE$1*T$68 -> 269607.0015 | V110: 1873455.009 | Y110: =SUM(AK110:AM110) -> 2175265.024 | AB110: 4185793.263 | AC110: 7409105.489 | AD110: 9282560.498 | AF110: =ABS(AF51)*COMENTÁRIOS!$AE$1*AF$68 -> 0 | AG110: =ABS(AG51)*COMENTÁRIOS!$AE$1*AG$68 -> 0 | AH110: =ABS(AH51)*COMENTÁRIOS!$AE$1*AH$68 -> 0 | AI110: =ABS(AI51)*COMENTÁRIOS!$AE$1*AI$68 -> 1143899.921 | AJ110: =ABS(AJ51)*COMENTÁRIOS!$AE$1*AJ$68 -> 0 | AL110: =ABS(AL51)*COMENTÁRIOS!$AE$1*AL$68*AL$9 -> 2175265.024
B111: NÃO-FERROSOS E OUTROS DA METALURGIA | D111: =D52*COMENTÁRIOS!$AE$1*D$68 -> 1391978.115 | E111: =E52*COMENTÁRIOS!$AE$1*E$68*AF125 -> 0 | K111: =SUM(AF111:AH111) -> 0 | L111: 1391978.115 | M111: 27850.14769 | N111: =N52*COMENTÁRIOS!$AE$1*N$68 -> 4010344.811 | P111: =P52*COMENTÁRIOS!$AE$1*P$68 -> 92840.18019 | T111: =T52*COMENTÁRIOS!$AE$1*T$68*AF124 -> 0 | V111: 3959291.758 | W111: =W52*COMENTÁRIOS!$AE$1*W$68 -> 0 | Y111: =SUM(AK111:AM111)*AF123 -> 0 | AB111: 4131035.138 | AC111: 5523013.253 | AD111: 9482305.011 | AF111: =ABS(AF52)*COMENTÁRIOS!$AE$1*AF$68 -> 0 | AG111: =ABS(AG52)*COMENTÁRIOS!$AE$1*AG$68 -> 0 | AH111: =ABS(AH52)*COMENTÁRIOS!$AE$1*AH$68 -> 0 | AI111: =ABS(AI52)*COMENTÁRIOS!$AE$1*AI$68 -> 27850.14769 | AJ111: =ABS(AJ52)*COMENTÁRIOS!$AE$1*AJ$68 -> 0 | AL111: =ABS(AL52)*COMENTÁRIOS!$AE$1*AL$68*AL$9 -> 2083498.338
B112: QUÍMICA | D112: =D53*COMENTÁRIOS!$AE$1*D$68 -> 5219750.371 | E112: =E53*COMENTÁRIOS!$AE$1*E$68 -> 691724.1785 | I112: =I53*COMENTÁRIOS!$AE$1*I$68 -> 0 | K112: =SUM(AF112:AH112) -> 506211.3342 | L112: 6417685.883 | M112: 52470.60216 | N112: =N53*COMENTÁRIOS!$AE$1*N$68 -> 564078.1105 | P112: =P53*COMENTÁRIOS!$AE$1*P$68 -> 212172.014 | V112: 3317297.919 | W112: =W53*COMENTÁRIOS!$AE$1*W$68 -> 0 | Y112: 5984600.399 | AB112: 6813321.126 | AC112: 13231007.01 | AD112: 16548304.93 | AF112: =ABS(AF53)*COMENTÁRIOS!$AE$1*AF$68 -> 0 | AG112: =ABS(AG53)*COMENTÁRIOS!$AE$1*AG$68 -> 0 | AH112: =ABS(AH53)*COMENTÁRIOS!$AE$1*AH$68 -> 506211.3342 | AI112: =ABS(AI53)*COMENTÁRIOS!$AE$1*AI$68 -> 52470.60216 | AJ112: =ABS(AJ53)*COMENTÁRIOS!$AE$1*AJ$68 -> 0 | AK112: =ABS(AK53)*COMENTÁRIOS!$AE$1*AK$68*AK$9 -> 281904.5172 | AL112: =ABS(AL53)*COMENTÁRIOS!$AE$1*AL$68*AL$9 -> 317073.7328 | AM112: =ABS(AM53)*COMENTÁRIOS!$AE$1*AM$68*AM$9 -> 5385622.149
B113: ALIMENTOS E BEBIDAS | D113: =D54*COMENTÁRIOS!$AE$1*D$68 -> 1957732.67 | E113: =E54*COMENTÁRIOS!$AE$1*E$68 -> 261269.919 | I113: =I54*COMENTÁRIOS!$AE$1*I$68 -> 0 | J113: =J54*COMENTÁRIOS!$AE$1*J$68 -> 0 | K113: 0 | L113: 2219002.589 | M113: 692392.3406 | N113: =N54*COMENTÁRIOS!$AE$1*N$68 -> 386548.248 | P113: =P54*COMENTÁRIOS!$AE$1*P$68 -> 602250.2342 | R113: =R54*COMENTÁRIOS!$AE$1*R$68 -> 86.12723945 | V113: 3834712.28 | Y113: 334156.2222 | AB113: 2015433.172 | AC113: 4234435.762 | AD113: 8069148.042 | AF113: =ABS(AF54)*COMENTÁRIOS!$AE$1*AF$68 -> 0 | AG113: =ABS(AG54)*COMENTÁRIOS!$AE$1*AG$68 -> 0 | AH113: =ABS(AH54)*COMENTÁRIOS!$AE$1*AH$68 -> 0 | AI113: =ABS(AI54)*COMENTÁRIOS!$AE$1*AI$68 -> 692392.3406 | AJ113: =ABS(AJ54)*COMENTÁRIOS!$AE$1*AJ$68 -> 0 | AL113: =ABS(AL54)*COMENTÁRIOS!$AE$1*AL$68*AL$9 -> 334156.2222
B114: TÊXTIL | D114: =D55*COMENTÁRIOS!$AE$1*D$68 -> 504598.2782 | I114: =I55*COMENTÁRIOS!$AE$1*I$68 -> 0 | K114: 0 | L114: 504598.2782 | M114: 6670.558326 | N114: =N55*COMENTÁRIOS!$AE$1*N$68 -> 62230.74358 | P114: =P55*COMENTÁRIOS!$AE$1*P$68 -> 96496.48612 | R114: =R55*COMENTÁRIOS!$AE$1*R$68 -> 0.4921415928 | V114: 957509.6422 | AB114: 165398.2802 | AC114: 669996.5584 | AD114: 1627506.201 | AF114: =ABS(AF55)*COMENTÁRIOS!$AE$1*AF$68 -> 0 | AG114: =ABS(AG55)*COMENTÁRIOS!$AE$1*AG$68 -> 0 | AH114: =ABS(AH55)*COMENTÁRIOS!$AE$1*AH$68 -> 0 | AI114: =ABS(AI55)*COMENTÁRIOS!$AE$1*AI$68 -> 6670.558326 | AJ114: =ABS(AJ55)*COMENTÁRIOS!$AE$1*AJ$68 -> 0
B115: PAPEL E CELULOSE | D115: =D56*COMENTÁRIOS!$AE$1*D$68 -> 1890423.47 | E115: =E56*COMENTÁRIOS!$AE$1*E$68 -> 345605.603 | I115: =I56*COMENTÁRIOS!$AE$1*I$68 -> 0 | J115: =J56*COMENTÁRIOS!$AE$1*J$68 -> 0 | K115: 0 | L115: 2236029.073 | M115: 502332.2819 | N115: =N56*COMENTÁRIOS!$AE$1*N$68 -> 1106021.935 | P115: =P56*COMENTÁRIOS!$AE$1*P$68 -> 189114.7542 | V115: 3188209.57 | AB115: 1797468.971 | AC115: 4033498.044 | AD115: 7221707.614 | AF115: =ABS(AF56)*COMENTÁRIOS!$AE$1*AF$68 -> 0 | AG115: =ABS(AG56)*COMENTÁRIOS!$AE$1*AG$68 -> 0 | AH115: =ABS(AH56)*COMENTÁRIOS!$AE$1*AH$68 -> 0 | AI115: =ABS(AI56)*COMENTÁRIOS!$AE$1*AI$68 -> 502332.2819 | AJ115: =ABS(AJ56)*COMENTÁRIOS!$AE$1*AJ$68 -> 0
B116: CERÂMICA | D116: =D57*COMENTÁRIOS!$AE$1*D$68 -> 3109815.973 | E116: =E57*COMENTÁRIOS!$AE$1*E$68 -> 250462.0387 | I116: =I57*COMENTÁRIOS!$AE$1*I$68 -> 0 | J116: =J57*COMENTÁRIOS!$AE$1*J$68 -> 0 | K116: 0 | L116: 3360278.011 | M116: 69329.4327 | N116: =N57*COMENTÁRIOS!$AE$1*N$68 -> 190080.1796 | P116: =P57*COMENTÁRIOS!$AE$1*P$68 -> 456485.3311 | V116: 579322.4452 | Y116: =SUM(AK116:AM116) -> 1070763.11 | AB116: 1786658.053 | AC116: 5146936.064 | AD116: 5726258.51 | AF116: =ABS(AF57)*COMENTÁRIOS!$AE$1*AF$68 -> 0 | AG116: =ABS(AG57)*COMENTÁRIOS!$AE$1*AG$68 -> 0 | AH116: =ABS(AH57)*COMENTÁRIOS!$AE$1*AH$68 -> 0 | AI116: =ABS(AI57)*COMENTÁRIOS!$AE$1*AI$68 -> 69329.4327 | AJ116: =ABS(AJ57)*COMENTÁRIOS!$AE$1*AJ$68 -> 0 | AL116: =ABS(AL57)*COMENTÁRIOS!$AE$1*AL$68*AL$9 -> 1070763.11
B117: OUTROS | D117: =D58*COMENTÁRIOS!$AE$1*D$68 -> 4830871.586 | E117: =E58*COMENTÁRIOS!$AE$1*E$68 -> 676351.8909 | I117: =I58*COMENTÁRIOS!$AE$1*I$68 -> 0 | K117: 0 | L117: 5507223.477 | M117: 470155.1367 | N117: =N58*COMENTÁRIOS!$AE$1*N$68 -> 230874.6833 | P117: =P58*COMENTÁRIOS!$AE$1*P$68 -> 495806.228 | R117: =R58*COMENTÁRIOS!$AE$1*R$68 -> 1083.32176 | V117: 6494500.051 | W117: =W58*COMENTÁRIOS!$AE$1*W$68 -> 0 | Y117: =SUM(AK117:AM117) -> 1744828.908 | AB117: =SUM(M117:AA117)-V117 -> 2942748.278 | AC117: 8449971.755 | AD117: 14944471.81 | AF117: =ABS(AF58)*COMENTÁRIOS!$AE$1*AF$68 -> 0 | AG117: =ABS(AG58)*COMENTÁRIOS!$AE$1*AG$68 -> 0 | AH117: =ABS(AH58)*COMENTÁRIOS!$AE$1*AH$68 -> 0 | AI117: =ABS(AI58)*COMENTÁRIOS!$AE$1*AI$68 -> 470155.1367 | AJ117: =ABS(AJ58)*COMENTÁRIOS!$AE$1*AJ$68 -> 0 | AL117: =ABS(AL58)*COMENTÁRIOS!$AE$1*AL$68*AL$9 -> 1744828.908
B118: CONSUMO NÃO-IDENTIFICADO
B119: AJUSTES
B120: CENTRAIS ELÉTRICAS (CESP+AUTOP.) | D120: =SUM(D87:D88) -> 38545487.94 | E120: =SUM(E87:E88) -> 18116187.41 | H120: =SUM(H87:H88) -> 0 | I120: 0 | J120: 0 | K120: 0 | L120: 56661675.35 | M120: 7044427.733 | N120: 10735554.08 | S120: =SUM(S87:S88) -> 553835.0337 | U120: =SUM(U87:U88) -> 0 | V120: 0 | Y120: =SUM(Y87:Y88) -> 1847832.849 | AA120: 28106.23169 | AB120: 20209755.92 | AC120: 0 | AD120: 76871431.28 | AF120: 0 | AG120: 0 | AH120: 0 | AI120: 7044427.733 | AJ120: 0 | AK120: 1073541.757 | AL120: 0 | AM120: 774291.0926
B121: =B62 -> EDIFICAÇÕES (Re+Co+Pu)+ AGROPECUÁRIA | C121: =SUM(C97:C100) -> 0 | D121: =SUM(D97:D100) -> 1101746.803 | E121: 0 | F121: 0 | G121: 0 | H121: 0 | I121: 0 | J121: 0 | K121: 0 | L121: 1101746.803 | M121: 18352652.82 | N121: 160490.1916 | O121: 0 | P121: 19011641.65 | Q121: 0 | R121: 7634.531011 | S121: 0 | T121: 0 | U121: 0 | V121: 42972070.92 | W121: 0 | X121: 0 | Y121: 0 | Z121: 0 | AA121: 0 | AB121: 37532419.19 | AC121: 38634165.99 | AD121: 81606236.92
B122: =B63 -> SETOR ENERGÉTICO E PROD. DE ELETRICIDADE | C122: =C96+SUM(C87:C88) -> 0 | D122: 52900185.21 | E122: 18116187.41 | F122: 0 | G122: 0 | H122: 0 | I122: 0 | J122: 0 | K122: 0 | L122: 71016372.63 | M122: 10922664.63 | N122: 11524723.73 | O122: 0 | P122: 77459.65186 | Q122: 0 | R122: 0 | S122: 903713.9544 | T122: 0 | U122: 0 | V122: 4689503.113 | W122: 0 | X122: 0 | Y122: 11388102.53 | Z122: 0 | AA122: 28106.23169 | AB122: 34844770.73 | AC122: 28989712.08 | AD122: 110550646.5
B123: EMISSÕES DE CO2 DA ELETRICIDADE | D123: =SUM(D87:D88) -> 38545487.94 | E123: =SUM(E87:E88) -> 18116187.41 | F123: =SUM(F87:F88) -> 0 | I123: =SUM(I87:I88) -> 0 | J123: 0 | K123: 0 | L123: 56661675.35 | M123: 7044427.733 | N123: 10735554.08 | O123: 0 | P123: 0 | R123: =SUM(R87:R88) -> 0 | S123: =SUM(S87:S88) -> 553835.0337 | T123: =SUM(T87:T88) -> 0 | V123: =V93 -> 76871431.28 | W123: =SUM(W87:W88) -> 0 | X123: =SUM(X87:X88) -> 0 | Y123: =SUM(Y87:Y88) -> 1847832.849 | AA123: =SUM(AA87:AA88) -> 28106.23169 | AB123: =SUM(M123:AA123)-V123 -> 20209755.92 | AD123: =SUM(AD87:AD88) -> 76871431.28 | AE123: CH coque Pet | AF123: =COMENTÁRIOS!AF$2 -> 0
B124: EMISSÕES DE CO2 DO CONSUMO FINAL | D124: =D93 -> 44075806.45 | E124: =E93 -> 4188239.368 | F124: =F93 -> 0 | I124: =I93 -> 0 | J124: 0 | K124: 1713215.533 | L124: 49977261.35 | M124: 139273498.3 | N124: 10442495.91 | O124: 67619802.04 | P124: 21461984.48 | R124: =R93 -> 10823002.85 | S124: =S93 -> 2484150.997 | T124: =T93 -> 581191.337 | W124: =W93 -> 0 | X124: =X93 -> 0 | Y124: =Y93 -> 35316689.18 | AA124: =AA93 -> 771955.0147 | AB124: =SUM(M124:AA124)-V124 -> 288774770.1 | AC124: =AB124+L124 -> 338752031.4 | AD124: =AC124+V124 -> 338752031.4 | AE124: CH coque CM | AF124: =COMENTÁRIOS!AF$2 -> 0
B125: EMISSÕES TOTAIS DE CO2 DA ENERGIA | D125: =SUM(D123:D124) -> 82621294.39 | E125: =SUM(E123:E124) -> 22304426.78 | F125: =SUM(F123:F124) -> 0 | I125: 0 | J125: 0 | K125: 1713215.533 | L125: 106638936.7 | M125: 146317926 | N125: 21178049.99 | O125: 67619802.04 | P125: 21461984.48 | R125: =SUM(R123:R124) -> 10823002.85 | S125: =SUM(S123:S124) -> 3037986.03 | T125: =SUM(T123:T124) -> 581191.337 | V125: =SUM(V123:V124) -> 76871431.28 | W125: =SUM(W123:W124) -> 0 | X125: =SUM(X123:X124) -> 0 | Y125: =SUM(Y123:Y124) -> 37164522.03 | AA125: =SUM(AA123:AA124) -> 800061.2464 | AB125: =SUM(AB123:AB124) -> 308984526 | AC125: =SUM(AC123:AC124) -> 338752031.4 | AD125: =SUM(AD123:AD124) -> 415623462.7 | AE125: CH carvão vapor | AF125: =COMENTÁRIOS!AF$2 -> 0

Sheet 2020
AK8: Conversão m3 =>tep
AK9: 0.652 | AL9: 0.87 | AM9: 0.88 | AN9: 0.655 | AO9: 0.873 | AP9: 0.889587
B10: CENÁRIO IES BRASIL 2 | AF10: =K13 -> OUTRAS FONTES PRIMÁRIAS | AI10: ="Teor biodiesel na ind. "&LEFT(B11,4) -> Teor biodiesel na ind. 2020 | AK10: =Y13 -> OUTRAS SECUNDÁRIAS DE PETRÓLEO
B11: 2020 - 10³ tep | AI11: 0.09401709402
C12: FONTES DE ENERGIA PRIMÁRIA | M12: FONTES DE ENERGIA SECUNDÁRIA | AF12: O U T R O S
B13: CONTA | C13: PETRÓLEO | D13: GÁS NATURAL | E13: CARVÃO VAPOR | F13: CARVÃO METALÚRGICO | G13: URÂNIO U3O8 | H13: ENERGIA HIDRÁULICA | I13: LENHA | J13: PRODUTOS DA CANA | K13: OUTRAS FONTES PRIMÁRIAS | L13: ENERGIA PRIMÁRIA TOTAL | M13: ÓLEO DIESEL | N13: ÓLEO COMBUSTIVEL | O13: GASOLINA | P13: GLP | Q13: NAFTA | R13: QUEROSENE | S13: GÁS DE CIDADE E DE COQUERIA | T13: COQUE DE CARVÃO MINERAL | U13: URÂNIO CONTIDO NO UO2 | V13: ELETRICIDADE | W13: CARVÃO VEGETAL | X13: ÁLCOOL ETÍLICO ANIDRO E HIDRATADO | Y13: OUTRAS SECUNDÁRIAS DE PETRÓLEO | Z13: PRODUTOS NÃO ENERGÉTICOS DE PETRÓLEO | AA13: ALCATRÃO | AB13: ENERGIA SECUNDÁRIA TOTAL | AC13: TOTAL SEM ELETRIC | AD13: TOTAL COM ELETRIC | AF13: =COMENTÁRIOS!AB20 -> LIXÍVIA | AG13: =COMENTÁRIOS!AC20 -> OUTRAS PRIM. RENOVÁVEIS | AH13: =COMENTÁRIOS!AD20 -> OUTRAS PRIM. NÃO RENOV. | AI13: =COMENTÁRIOS!AE20 -> ÓLEO DIESEL MINERAL | AJ13: =COMENTÁRIOS!AF20 -> BIODIESEL | AK13: =COMENTÁRIOS!AG20 -> GÁS DE REFINARIA | AL13: =COMENTÁRIOS!AH20 -> COQUE DE PETRÓLEO | AM13: =COMENTÁRIOS!AI20 -> OUTROS EN. DE PETRÓLEO
B14: PRODUÇÃO | C14: =[1]consolidado2020!B25 -> 129762.3 | D14: =[1]consolidado2020!C25 -> 29085.8 | E14: =[1]consolidado2020!D25 -> 4328 | F14: =[1]consolidado2020!E25 -> 0 | G14: =[1]consolidado2020!F25 -> 6183.2 | H14: =[1]consolidado2020!G25 -> 37558.2 | I14: =[1]consolidado2020!H25 -> 20281.6 | J14: =[1]consolidado2020!I25 -> 55941.7 | K14: =[1]consolidado2020!J25 -> 17479.3 | L14: =SUM(C14:K14) -> 300620.1 | M14: =[1]consolidado2020!L25 -> 0 | N14: =[1]consolidado2020!M25 -> 0 | O14: =[1]consolidado2020!N25 -> 0 | P14: =[1]consolidado2020!O25 -> 0 | Q14: =[1]consolidado2020!P25 -> 0 | R14: =[1]consolidado2020!Q25 -> 0 | S14: =[1]consolidado2020!R25 -> 0 | T14: =[1]consolidado2020!S25 -> 0 | U14: =[1]consolidado2020!T25 -> 0 | V14: =[1]consolidado2020!U25 -> 0 | W14: =[1]consolidado2020!V25 -> 0 | X14: =[1]consolidado2020!W25 -> 0 | Y14: =[1]consolidado2020!X25 -> 0 | Z14: =[1]consolidado2020!Y25 -> 0 | AA14: =[1]consolidado2020!Z25 -> 0 | AB14: =SUM(M14:AA14) -> 0 | AC14: =AD14-V14 -> 300620.1 | AD14: =AB14+L14 -> 300620.1
B15: IMPORTAÇÃO | C15: =[1]consolidado2020!B26 -> 17602.2 | D15: =[1]consolidado2020!C26 -> 10500.4 | E15: =[1]consolidado2020!D26 -> 3452.4 | F15: =[1]consolidado2020!E26 -> 7568.8 | G15: =[1]consolidado2020!F26 -> 0 | H15: =[1]consolidado2020!G26 -> 0 | I15: =[1]consolidado2020!H26 -> 0 | J15: =[1]consolidado2020!I26 -> 0 | K15: =[1]consolidado2020!J26 -> 0 | L15: =SUM(C15:K15) -> 39123.8 | M15: =[1]consolidado2020!L26 -> 0 | N15: =[1]consolidado2020!M26 -> 0 | O15: =[1]consolidado2020!N26 -> 0 | P15: =[1]consolidado2020!O26 -> 3716.7 | Q15: =[1]consolidado2020!P26 -> 3383.6 | R15: =[1]consolidado2020!Q26 -> 0 | S15: =[1]consolidado2020!R26 -> 0 | T15: =[1]consolidado2020!S26 -> 2666.8 | U15: =[1]consolidado2020!T26 -> 0 | V15: =[1]consolidado2020!U26 -> 2684.163521 | W15: =[1]consolidado2020!V26 -> 0 | X15: =[1]consolidado2020!W26 -> 0 | Y15: =[1]consolidado2020!X26 -> 4936 | Z15: =[1]consolidado2020!Y26 -> 1649.3 | AA15: =[1]consolidado2020!Z26 -> 0 | AB15: =SUM(M15:AA15) -> 19036.56352 | AC15: =AD15-V15 -> 55476.2 | AD15: =AB15+L15 -> 58160.36352 | AL15: =AP15*$Y15/AL$9 -> 5673.563218 | AP15: 1
B16: VARIAÇÃO DE ESTOQUES | C16: =[1]consolidado2020!B27 -> 0 | D16: =[1]consolidado2020!C27 -> 0 | E16: =[1]consolidado2020!D27 -> 0 | F16: =[1]consolidado2020!E27 -> 0 | G16: =[1]consolidado2020!F27 -> 0 | H16: =[1]consolidado2020!G27 -> 0 | I16: =[1]consolidado2020!H27 -> 0 | J16: =[1]consolidado2020!I27 -> 0 | K16: =[1]consolidado2020!J27 -> 0 | L16: 0 | M16: =[1]consolidado2020!L27 -> 0 | N16: =[1]consolidado2020!M27 -> 0 | O16: =[1]consolidado2020!N27 -> 0 | P16: =[1]consolidado2020!O27 -> 0 | Q16: =[1]consolidado2020!P27 -> 0 | R16: =[1]consolidado2020!Q27 -> 0 | S16: =[1]consolidado2020!R27 -> 0 | T16: =[1]consolidado2020!S27 -> 0 | U16: =[1]consolidado2020!T27 -> 0 | V16: =[1]consolidado2020!U27 -> 0 | W16: =[1]consolidado2020!V27 -> 0 | X16: =[1]consolidado2020!W27 -> 0 | Y16: =[1]consolidado2020!X27 -> 0 | Z16: =[1]consolidado2020!Y27 -> 0 | AA16: =[1]consolidado2020!Z27 -> 0 | AB16: 0 | AC16: 0 | AD16: 0 | AL16: =AP16*$Y16/AL$9 -> 0 | AP16: 1
B17: OFERTA TOTAL | C17: =SUM(C14:C16) -> 147364.5 | D17: =SUM(D14:D16) -> 39586.2 | E17: 7780.4 | F17: 7568.8 | G17: 6183.2 | H17: 37558.2 | I17: 20281.6 | J17: 55941.7 | K17: 17479.3 | L17: 339743.9 | M17: =SUM(M14:M16) -> 0 | N17: =SUM(N14:N16) -> 0 | O17: 0 | P17: 3716.7 | Q17: 3383.6 | R17: 0 | S17: 0 | T17: 2666.8 | U17: 0 | V17: 2684.163521 | W17: 0 | X17: 0 | Y17: 4936 | Z17: 1649.3 | AA17: 0 | AB17: 19036.56352 | AC17: 356096.3 | AD17: 358780.4635 | AL17: =SUM(AL14:AL16) -> 5673.563218
B18: EXPORTAÇÃO | C18: =[1]consolidado2020!B29 -> -46313.2 | D18: =[1]consolidado2020!C29 -> 0 | E18: =[1]consolidado2020!D29 -> 0 | F18: =[1]consolidado2020!E29 -> 0 | G18: =[1]consolidado2020!F29 -> 0 | H18: =[1]consolidado2020!G29 -> 0 | I18: =[1]consolidado2020!H29 -> 0 | J18: =[1]consolidado2020!I29 -> 0 | K18: =[1]consolidado2020!J29 -> 0 | L18: -46313.2 | M18: =[1]consolidado2020!L29 -> -1327.6 | N18: =[1]consolidado2020!M29 -> -9599.6 | O18: =[1]consolidado2020!N29 -> -989.4 | P18: =[1]consolidado2020!O29 -> 0 | Q18: =[1]consolidado2020!P29 -> 0 | R18: =[1]consolidado2020!Q29 -> 0 | S18: =[1]consolidado2020!R29 -> 0 | T18: =[1]consolidado2020!S29 -> 0 | U18: =[1]consolidado2020!T29 -> 0 | V18: =[1]consolidado2020!U29 -> 0 | W18: =[1]consolidado2020!V29 -> 0 | X18: =[1]consolidado2020!W29 -> -943.8 | Y18: =[1]consolidado2020!X29 -> 0 | Z18: =[1]consolidado2020!Y29 -> 0 | AA18: =[1]consolidado2020!Z29 -> 0 | AB18: -12860.4 | AC18: -59173.6 | AD18: -59173.6 | AL18: =AP18*$Y18/AL$9 -> 0 | AP18: 1
B19: NÃO-APROVEITADA | C19: =[1]consolidado2020!B30 -> 0 | D19: =[1]consolidado2020!C30 -> -1777.5 | E19: =[1]consolidado2020!D30 -> 0 | F19: =[1]consolidado2020!E30 -> 0 | G19: =[1]consolidado2020!F30 -> 0 | H19: =[1]consolidado2020!G30 -> 0 | I19: =[1]consolidado2020!H30 -> 0 | J19: =[1]consolidado2020!I30 -> 0 | K19: =[1]consolidado2020!J30 -> 0 | L19: -1777.5 | M19: =[1]consolidado2020!L30 -> 0 | N19: =[1]consolidado2020!M30 -> 0 | O19: =[1]consolidado2020!N30 -> 0 | P19: =[1]consolidado2020!O30 -> 0 | Q19: =[1]consolidado2020!P30 -> 0 | R19: =[1]consolidado2020!Q30 -> 0 | S19: =[1]consolidado2020!R30 -> 0 | T19: =[1]consolidado2020!S30 -> 0 | U19: =[1]consolidado2020!T30 -> 0 | V19: =[1]consolidado2020!U30 -> 0 | W19: =[1]consolidado2020!V30 -> 0 | X19: =[1]consolidado2020!W30 -> 0 | Y19: =[1]consolidado2020!X30 -> 0 | Z19: =[1]consolidado2020!Y30 -> 0 | AA19: =[1]consolidado2020!Z30 -> 0 | AB19: 0 | AC19: -1777.5 | AD19: -1777.5
B20: REINJEÇÃO | C20: =[1]consolidado2020!B31 -> 0 | D20: =[1]consolidado2020!C31 -> -5566.7 | E20: =[1]consolidado2020!D31 -> 0 | F20: =[1]consolidado2020!E31 -> 0 | G20: =[1]consolidado2020!F31 -> 0 | H20: =[1]consolidado2020!G31 -> 0 | I20: =[1]consolidado2020!H31 -> 0 | J20: =[1]consolidado2020!I31 -> 0 | K20: =[1]consolidado2020!J31 -> 0 | L20: -5566.7 | M20: =[1]consolidado2020!L31 -> 0 | N20: =[1]consolidado2020!M31 -> 0 | O20: =[1]consolidado2020!N31 -> 0 | P20: =[1]consolidado2020!O31 -> 0 | Q20: =[1]consolidado2020!P31 -> 0 | R20: =[1]consolidado2020!Q31 -> 0 | S20: =[1]consolidado2020!R31 -> 0 | T20: =[1]consolidado2020!S31 -> 0 | U20: =[1]consolidado2020!T31 -> 0 | V20: =[1]consolidado2020!U31 -> 0 | W20: =[1]consolidado2020!V31 -> 0 | X20: =[1]consolidado2020!W31 -> 0 | Y20: =[1]consolidado2020!X31 -> 0 | Z20: =[1]consolidado2020!Y31 -> 0 | AA20: =[1]consolidado2020!Z31 -> 0 | AB20: 0 | AC20: -5566.7 | AD20: -5566.7
B21: OFERTA INTERNA BRUTA | C21: =C17+SUM(C18:C20) -> 101051.3 | D21: =D17+SUM(D18:D20) -> 32242 | E21: 7780.4 | F21: 7568.8 | G21: 6183.2 | H21: 37558.2 | I21: 20281.6 | J21: 55941.7 | K21: 17479.3 | L21: =SUM(C21:K21) -> 286086.5 | M21: =M17+SUM(M18:M20) -> -1327.6 | N21: =N17+SUM(N18:N20) -> -9599.6 | O21: -989.4 | P21: 3716.7 | Q21: 3383.6 | R21: 0 | S21: 0 | T21: 2666.8 | U21: 0 | V21: 2684.163521 | W21: 0 | X21: -943.8 | Y21: 4936 | Z21: 1649.3 | AA21: 0 | AB21: 6176.163521 | AC21: 289578.5 | AD21: 292262.6635 | AL21: =AL17+SUM(AL18:AL20) -> 5673.563218
B22: TOTAL TRANSFORMAÇÃO | C22: =SUM(C23:C32) -> -101051.2 | D22: =SUM(D23:D32) -> -11294.8 | E22: -3319.6 | F22: -7568.8 | G22: -6183.2 | H22: -37558 | I22: -6559.6 | J22: -26941.7 | K22: -10358.5 | L22: =SUM(C22:K22) -> -210835.4 | M22: =SUM(M23:M32) -> 47110.4 | N22: =SUM(N23:N32) -> 13540.8 | O22: 19294.6 | P22: 5412.1 | Q22: 3840 | R22: 3940.8 | S22: 1627.2 | T22: 6168.4 | U22: 0 | V22: 53846.75417 | W22: 4246.8 | X22: 16424.7 | Y22: 6743.2 | Z22: 6882.7 | AA22: 212 | AB22: 189290.4542 | AC22: -75391.7 | AD22: -21544.94583 | AK22: =SUM(AK23:AK32) -> 6860.44499 | AL22: =SUM(AL23:AL32) -> 2609.41364
B23: REFINARIAS DE PETRÓLEO | C23: =[1]consolidado2020!B34 -> -101051.2 | D23: 0 | E23: =[1]consolidado2020!D34 -> 0 | F23: =[1]consolidado2020!E34 -> 0 | G23: =[1]consolidado2020!F34 -> 0 | H23: =[1]consolidado2020!G34 -> 0 | I23: =[1]consolidado2020!H34 -> 0 | J23: =[1]consolidado2020!I34 -> 0 | K23: =[1]consolidado2020!J34 -> -4972.4 | L23: =SUM(C23:K23) -> -106023.6 | M23: =[1]consolidado2020!L34 -> 47110.4 | N23: =[1]consolidado2020!M34 -> 13540.8 | O23: =[1]consolidado2020!N34 -> 19098.8 | P23: =[1]consolidado2020!O34 -> 4042.4 | Q23: =[1]consolidado2020!P34 -> 3840 | R23: =[1]consolidado2020!Q34 -> 3940.8 | S23: =[1]consolidado2020!R34 -> 0 | T23: =[1]consolidado2020!S34 -> 0 | U23: =[1]consolidado2020!T34 -> 0 | V23: =[1]consolidado2020!U34 -> -303.2 | W23: =[1]consolidado2020!V34 -> 0 | X23: =[1]consolidado2020!W34 -> 0 | Y23: =[1]consolidado2020!X34 -> 7477.6 | Z23: =[1]consolidado2020!Y34 -> 5860.8 | AA23: =[1]consolidado2020!Z34 -> 0 | AB23: 104608.4 | AC23: -1112 | AD23: -1415.2 | AK23: =AO23*$Y23/AK$9 -> 6860.44499 | AL23: =AP23*$Y23/AL$9 -> 3453.551571 | AO23: 0.5981879391 | AP23: 0.4018120609
B24: PLANTAS DE GAS NATURAL | C24: =[1]consolidado2020!B35 -> 0 | D24: =[1]consolidado2020!C35 -> -3870 | E24: =[1]consolidado2020!D35 -> 0 | F24: =[1]consolidado2020!E35 -> 0 | G24: =[1]consolidado2020!F35 -> 0 | H24: =[1]consolidado2020!G35 -> 0 | I24: =[1]consolidado2020!H35 -> 0 | J24: =[1]consolidado2020!I35 -> 0 | K24: =[1]consolidado2020!J35 -> 1304.9 | L24: =SUM(C24:K24) -> -2565.1 | M24: =[1]consolidado2020!L35 -> 0 | N24: =[1]consolidado2020!M35 -> 0 | O24: =[1]consolidado2020!N35 -> 195.8 | P24: =[1]consolidado2020!O35 -> 1369.7 | Q24: =[1]consolidado2020!P35 -> 0 | R24: =[1]consolidado2020!Q35 -> 0 | S24: =[1]consolidado2020!R35 -> 0 | T24: =[1]consolidado2020!S35 -> 0 | U24: =[1]consolidado2020!T35 -> 0 | V24: =[1]consolidado2020!U35 -> 0 | W24: =[1]consolidado2020!V35 -> 0 | X24: =[1]consolidado2020!W35 -> 0 | Y24: =[1]consolidado2020!X35 -> 0 | Z24: =[1]consolidado2020!Y35 -> 1021.9 | AA24: =[1]consolidado2020!Z35 -> 0 | AB24: 2587.4 | AC24: 22.3 | AD24: 22.3
B25: USINAS DE GASEIFICAÇÃO | C25: =[1]consolidado2020!B36 -> 0 | D25: =[1]consolidado2020!C36 -> 0 | E25: =[1]consolidado2020!D36 -> 0 | F25: =[1]consolidado2020!E36 -> 0 | G25: =[1]consolidado2020!F36 -> 0 | H25: =[1]consolidado2020!G36 -> 0 | I25: =[1]consolidado2020!H36 -> 0 | J25: =[1]consolidado2020!I36 -> 0 | K25: =[1]consolidado2020!J36 -> 0 | L25: 0 | M25: =[1]consolidado2020!L36 -> 0 | N25: =[1]consolidado2020!M36 -> 0 | O25: =[1]consolidado2020!N36 -> 0 | P25: =[1]consolidado2020!O36 -> 0 | Q25: =[1]consolidado2020!P36 -> 0 | R25: =[1]consolidado2020!Q36 -> 0 | S25: =[1]consolidado2020!R36 -> 0 | T25: =[1]consolidado2020!S36 -> 0 | U25: =[1]consolidado2020!T36 -> 0 | V25: =[1]consolidado2020!U36 -> 0 | W25: =[1]consolidado2020!V36 -> 0 | X25: =[1]consolidado2020!W36 -> 0 | Y25: =[1]consolidado2020!X36 -> 0 | Z25: =[1]consolidado2020!Y36 -> 0 | AA25: =[1]consolidado2020!Z36 -> 0 | AB25: 0 | AC25: 0 | AD25: 0
B26: COQUERIAS | C26: =[1]consolidado2020!B37 -> 0 | D26: =[1]consolidado2020!C37 -> 0 | E26: =[1]consolidado2020!D37 -> 0 | F26: =[1]consolidado2020!E37 -> -7568.8 | G26: =[1]consolidado2020!F37 -> 0 | H26: =[1]consolidado2020!G37 -> 0 | I26: =[1]consolidado2020!H37 -> 0 | J26: =[1]consolidado2020!I37 -> 0 | K26: =[1]consolidado2020!J37 -> 0 | L26: -7568.8 | M26: =[1]consolidado2020!L37 -> 0 | N26: =[1]consolidado2020!M37 -> 0 | O26: =[1]consolidado2020!N37 -> 0 | P26: =[1]consolidado2020!O37 -> 0 | Q26: =[1]consolidado2020!P37 -> 0 | R26: =[1]consolidado2020!Q37 -> 0 | S26: =[1]consolidado2020!R37 -> 1627.2 | T26: =[1]consolidado2020!S37 -> 6168.4 | U26: =[1]consolidado2020!T37 -> 0 | V26: =[1]consolidado2020!U37 -> 0 | W26: =[1]consolidado2020!V37 -> 0 | X26: =[1]consolidado2020!W37 -> 0 | Y26: =[1]consolidado2020!X37 -> -734.4 | Z26: =[1]consolidado2020!Y37 -> 0 | AA26: =[1]consolidado2020!Z37 -> 212 | AB26: 7273.2 | AC26: -295.6 | AD26: -295.6 | AL26: =AP26*$Y26/AL$9 -> -844.137931 | AP26: 1
B27: CICLO DO COMBUSTÍVEL NUCLEAR | C27: =[1]consolidado2020!B38 -> 0 | D27: =[1]consolidado2020!C38 -> 0 | E27: =[1]consolidado2020!D38 -> 0 | F27: =[1]consolidado2020!E38 -> 0 | G27: =[1]consolidado2020!F38 -> -6183.2 | H27: =[1]consolidado2020!G38 -> 0 | I27: =[1]consolidado2020!H38 -> 0 | J27: =[1]consolidado2020!I38 -> 0 | K27: =[1]consolidado2020!J38 -> 0 | L27: -6183.2 | M27: =[1]consolidado2020!L38 -> 0 | N27: =[1]consolidado2020!M38 -> 0 | O27: =[1]consolidado2020!N38 -> 0 | P27: =[1]consolidado2020!O38 -> 0 | Q27: =[1]consolidado2020!P38 -> 0 | R27: =[1]consolidado2020!Q38 -> 0 | S27: =[1]consolidado2020!R38 -> 0 | T27: =[1]consolidado2020!S38 -> 0 | U27: =[1]consolidado2020!T38 -> 6084.4 | V27: =[1]consolidado2020!U38 -> 0 | W27: =[1]consolidado2020!V38 -> 0 | X27: =[1]consolidado2020!W38 -> 0 | Y27: =[1]consolidado2020!X38 -> 0 | Z27: =[1]consolidado2020!Y38 -> 0 | AA27: =[1]consolidado2020!Z38 -> 0 | AB27: 6084.4 | AC27: -98.8 | AD27: -98.8
B28: CENTRAIS ELÉTRICAS DE SERVIÇO PÚBLICO | C28: =[1]consolidado2020!B39 -> 0 | D28: =[1]consolidado2020!C39 -> -7424.8 | E28: =[1]consolidado2020!D39 -> -3292.4 | F28: =[1]consolidado2020!E39 -> 0 | G28: =[1]consolidado2020!F39 -> 0 | H28: =[1]consolidado2020!G39 -> -37558 | I28: =[1]consolidado2020!H39 -> -192.8 | J28: =[1]consolidado2020!I39 -> 0 | K28: =[1]consolidado2020!J39 -> -5186.7 | L28: -53654.7 | M28: =[1]consolidado2020!L39 -> 0 | N28: =[1]consolidado2020!M39 -> 0 | O28: =[1]consolidado2020!N39 -> 0 | P28: =[1]consolidado2020!O39 -> 0 | Q28: =[1]consolidado2020!P39 -> 0 | R28: =[1]consolidado2020!Q39 -> 0 | S28: =[1]consolidado2020!R39 -> 0 | T28: =[1]consolidado2020!S39 -> 0 | U28: =[1]consolidado2020!T39 -> -6084.4 | V28: =[1]consolidado2020!U39 -> 48465.25417 | W28: =[1]consolidado2020!V39 -> 0 | X28: =[1]consolidado2020!W39 -> 0 | Y28: =[1]consolidado2020!X39 -> 0 | Z28: =[1]consolidado2020!Y39 -> 0 | AA28: =[1]consolidado2020!Z39 -> 0 | AB28: 42380.85417 | AC28: -59739.1 | AD28: -11273.84583 | AI28: =(1-$AI$11)*M28 -> 0 | AJ28: =$AI$11*M28 -> 0 | AK28: =AO28*$Y28/AK$9 -> 0 | AO28: 1
B29: CENTRAIS ELÉTRICAS AUTOPRODUTORAS | C29: =[1]consolidado2020!B40 -> 0 | D29: =[1]consolidado2020!C40 -> 0 | E29: =[1]consolidado2020!D40 -> -27.2 | F29: =[1]consolidado2020!E40 -> 0 | G29: =[1]consolidado2020!F40 -> 0 | H29: =[1]consolidado2020!G40 -> 0 | I29: =[1]consolidado2020!H40 -> 0 | J29: =[1]consolidado2020!I40 -> -10517 | K29: =[1]consolidado2020!J40 -> -1504.3 | L29: -12048.5 | M29: =[1]consolidado2020!L40 -> 0 | N29: =[1]consolidado2020!M40 -> 0 | O29: =[1]consolidado2020!N40 -> 0 | P29: =[1]consolidado2020!O40 -> 0 | Q29: =[1]consolidado2020!P40 -> 0 | R29: =[1]consolidado2020!Q40 -> 0 | S29: =[1]consolidado2020!R40 -> 0 | T29: =[1]consolidado2020!S40 -> 0 | U29: =[1]consolidado2020!T40 -> 0 | V29: =[1]consolidado2020!U40 -> 5684.7 | W29: =[1]consolidado2020!V40 -> 0 | X29: =[1]consolidado2020!W40 -> 0 | Y29: =[1]consolidado2020!X40 -> 0 | Z29: =[1]consolidado2020!Y40 -> 0 | AA29: =[1]consolidado2020!Z40 -> 0 | AB29: 5684.7 | AC29: -12048.5 | AD29: -6363.8 | AI29: =(1-$AI$11)*M29 -> 0 | AJ29: =$AI$11*M29 -> 0 | AK29: =AO29*$Y29/AK$9 -> 0 | AM29: =AQ29*$Y29/AM$9 -> 0 | AO29: 0.6645011926 | AQ29: 0.3354988074
B30: CARVOARIAS | C30: =[1]consolidado2020!B41 -> 0 | D30: =[1]consolidado2020!C41 -> 0 | E30: =[1]consolidado2020!D41 -> 0 | F30: =[1]consolidado2020!E41 -> 0 | G30: =[1]consolidado2020!F41 -> 0 | H30: =[1]consolidado2020!G41 -> 0 | I30: =[1]consolidado2020!H41 -> -6366.8 | J30: =[1]consolidado2020!I41 -> 0 | K30: =[1]consolidado2020!J41 -> 0 | L30: -6366.8 | M30: =[1]consolidado2020!L41 -> 0 | N30: =[1]consolidado2020!M41 -> 0 | O30: =[1]consolidado2020!N41 -> 0 | P30: =[1]consolidado2020!O41 -> 0 | Q30: =[1]consolidado2020!P41 -> 0 | R30: =[1]consolidado2020!Q41 -> 0 | S30: =[1]consolidado2020!R41 -> 0 | T30: =[1]consolidado2020!S41 -> 0 | U30: =[1]consolidado2020!T41 -> 0 | V30: =[1]consolidado2020!U41 -> 0 | W30: =[1]consolidado2020!V41 -> 4246.8 | X30: =[1]consolidado2020!W41 -> 0 | Y30: =[1]consolidado2020!X41 -> 0 | Z30: =[1]consolidado2020!Y41 -> 0 | AA30: =[1]consolidado2020!Z41 -> 0 | AB30: 4246.8 | AC30: -2120 | AD30: -2120
B31: DESTILARIAS | C31: =[1]consolidado2020!B42 -> 0 | D31: =[1]consolidado2020!C42 -> 0 | E31: =[1]consolidado2020!D42 -> 0 | F31: =[1]consolidado2020!E42 -> 0 | G31: =[1]consolidado2020!F42 -> 0 | H31: =[1]consolidado2020!G42 -> 0 | I31: =[1]consolidado2020!H42 -> 0 | J31: =[1]consolidado2020!I42 -> -16424.7 | K31: =[1]consolidado2020!J42 -> 0 | L31: -16424.7 | M31: =[1]consolidado2020!L42 -> 0 | N31: =[1]consolidado2020!M42 -> 0 | O31: =[1]consolidado2020!N42 -> 0 | P31: =[1]consolidado2020!O42 -> 0 | Q31: =[1]consolidado2020!P42 -> 0 | R31: =[1]consolidado2020!Q42 -> 0 | S31: =[1]consolidado2020!R42 -> 0 | T31: =[1]consolidado2020!S42 -> 0 | U31: =[1]consolidado2020!T42 -> 0 | V31: =[1]consolidado2020!U42 -> 0 | W31: =[1]consolidado2020!V42 -> 0 | X31: =[1]consolidado2020!W42 -> 16424.7 | Y31: =[1]consolidado2020!X42 -> 0 | Z31: =[1]consolidado2020!Y42 -> 0 | AA31: =[1]consolidado2020!Z42 -> 0 | AB31: 16424.7 | AC31: 0 | AD31: 0
B32: OUTRAS TRANSFORMAÇÕES | C32: =[1]consolidado2020!B43 -> 0 | D32: =[1]consolidado2020!C43 -> 0 | E32: =[1]consolidado2020!D43 -> 0 | F32: =[1]consolidado2020!E43 -> 0 | G32: =[1]consolidado2020!F43 -> 0 | H32: =[1]consolidado2020!G43 -> 0 | I32: =[1]consolidado2020!H43 -> 0 | J32: =[1]consolidado2020!I43 -> 0 | K32: =[1]consolidado2020!J43 -> 0 | L32: 0 | M32: =[1]consolidado2020!L43 -> 0 | N32: =[1]consolidado2020!M43 -> 0 | O32: =[1]consolidado2020!N43 -> 0 | P32: =[1]consolidado2020!O43 -> 0 | Q32: =[1]consolidado2020!P43 -> 0 | R32: =[1]consolidado2020!Q43 -> 0 | S32: =[1]consolidado2020!R43 -> 0 | T32: =[1]consolidado2020!S43 -> 0 | U32: =[1]consolidado2020!T43 -> 0 | V32: =[1]consolidado2020!U43 -> 0 | W32: =[1]consolidado2020!V43 -> 0 | X32: =[1]consolidado2020!W43 -> 0 | Y32: =[1]consolidado2020!X43 -> 0 | Z32: =[1]consolidado2020!Y43 -> 0 | AA32: =[1]consolidado2020!Z43 -> 0 | AB32: 0 | AC32: 0 | AD32: 0 | AL32: =AP32*$Y32/AL$9 -> 0 | AM32: =AQ32*$Y32/AM$9 -> 0 | AP32: -0.1046786627 | AQ32: 1.104678663
B33: PERDAS NA DISTRIBUIÇÃO E ARMAZENAGEM | C33: =IF(ABS(C34-C22-C21-C60)<0.0000001,0,C34-C22-C21-C60) -> -0.1 | D33: -199.1190462 | E33: -5.269384159 | F33: 0 | G33: 0 | H33: -0.2 | I33: -2.336878192 | J33: 0 | K33: -597.2799408 | L33: -804.3052494 | M33: =IF(ABS(M34-M22-M21-M60)<0.0000001,0,M34-M22-M21-M60) -> 6.9509136 | N33: 0.5353254287 | O33: -0.6253439244 | P33: -1.333323254 | Q33: -0.2853204751 | R33: 0 | S33: 0 | T33: -2.439013838 | U33: 0 | V33: -7096.002408 | W33: -7.639857986 | X33: 0 | Y33: -189.9264942 | Z33: 0 | AA33: -109.7674341 | AB33: -7400.532957 | AC33: -1108.835798 | AD33: -8204.838206 | AL33: =AP33*$Y33/AL$9 -> -218.3063152 | AP33: 1
B34: CONSUMO FINAL | C34: =SUM(C35:C36) -> 0 | D34: =SUM(D35:D36) -> 20748.08095 | E34: 4455.711036 | F34: 0 | G34: 0 | H34: 0 | I34: 13719.71448 | J34: 29000 | K34: 6523.520059 | L34: =SUM(C34:K34) -> 74447.02653 | M34: =SUM(M35:M36) -> 45790.0902 | N34: 3941.735325 | O34: 18304.57466 | P34: 9127.466677 | Q34: 7223.31468 | R34: 3941.003532 | S34: 1627.285006 | T34: 8832.760986 | U34: 0 | V34: 49434.91528 | W34: 4239.160142 | X34: 15480.9469 | Y34: 11489.63891 | Z34: 8532.143559 | AA34: 102.2325659 | AB34: 188067.2684 | AC34: 213079.3797 | AD34: 262514.295 | AK34: =SUM(AK35:AK36) -> 5645.682987 | AL34: =SUM(AL35:AL36) -> 6207.691782 | AM34: =SUM(AM35:AM36) -> 2736.320171
B35: CONSUMO FINAL NÃO-ENERGÉTICO | C35: =[1]consolidado2020!B46 -> 0 | D35: =[1]consolidado2020!C46 -> 2687.090476 | E35: =[1]consolidado2020!D46 -> 0 | F35: =[1]consolidado2020!E46 -> 0 | G35: =[1]consolidado2020!F46 -> 0 | H35: =[1]consolidado2020!G46 -> 0 | I35: =[1]consolidado2020!H46 -> 0 | J35: =[1]consolidado2020!I46 -> 0 | K35: =[1]consolidado2020!J46 -> 0 | L35: =SUM(C35:K35) -> 2687.090476 | M35: =[1]consolidado2020!L46 -> 0 | N35: =[1]consolidado2020!M46 -> 0 | O35: =[1]consolidado2020!N46 -> 0 | P35: =[1]consolidado2020!O46 -> 0 | Q35: =[1]consolidado2020!P46 -> 7223.31468 | R35: =[1]consolidado2020!Q46 -> 0 | S35: =[1]consolidado2020!R46 -> 0 | T35: =[1]consolidado2020!S46 -> 0 | U35: =[1]consolidado2020!T46 -> 0 | V35: =[1]consolidado2020!U46 -> 0 | W35: =[1]consolidado2020!V46 -> 0 | X35: =[1]consolidado2020!W46 -> 535.3653389 | Y35: =[1]consolidado2020!X46 -> 0 | Z35: =[1]consolidado2020!Y46 -> 8532.143559 | AA35: =[1]consolidado2020!Z46 -> 0 | AB35: 16290.82358 | AC35: 18977.91405 | AD35: 18977.91405 | AK35: =AO35*$Y35/AK$9 -> 0 | AO35: 1
B36: CONSUMO FINAL ENERGÉTICO | C36: =SUM(C37:C42)+C47+C59 -> 0 | D36: =SUM(D37:D42)+D47+D59 -> 18060.99048 | E36: 4455.711036 | F36: 0 | G36: 0 | H36: 0 | I36: 13719.71448 | J36: 29000 | K36: 6523.520059 | L36: =SUM(C36:K36) -> 71759.93605 | M36: =SUM(M37:M42)+M47+M59 -> 45790.0902 | N36: 3941.735325 | O36: 18304.57466 | P36: 9127.466677 | Q36: 0 | R36: 3941.003532 | S36: 1627.285006 | T36: 8832.760986 | U36: 0 | V36: 49434.91528 | W36: 4239.160142 | X36: 14945.58156 | Y36: 11489.63891 | Z36: 0 | AA36: 102.2325659 | AB36: =SUM(M36:AA36) -> 171776.4448 | AC36: 194101.4656 | AD36: =L36+AB36 -> 243536.3809 | AK36: =SUM(AK37:AK42)+AK47+AK59 -> 5645.682987 | AL36: =SUM(AL37:AL42)+AL47+AL59 -> 6207.691782 | AM36: =SUM(AM37:AM42)+AM47+AM59 -> 2736.320171
B37: SETOR ENERGÉTICO | C37: =[1]consolidado2020!B48 -> 0 | D37: =[1]consolidado2020!C48-[1]consolidado2020!$C$34 -> 5618.12754 | E37: =[1]consolidado2020!D48 -> 0 | F37: =[1]consolidado2020!E48 -> 0 | G37: =[1]consolidado2020!F48 -> 0 | H37: =[1]consolidado2020!G48 -> 0 | I37: =[1]consolidado2020!H48 -> 0 | J37: =-[1]consolidado2020!$I$44 -> 13549.97675 | K37: =[1]consolidado2020!J48 -> 0 | L37: =SUM(C37:K37) -> 19168.10429 | M37: =[1]consolidado2020!L48 -> 1157.907464 | N37: =[1]consolidado2020!M48 -> 393.4262556 | O37: =[1]consolidado2020!N48 -> 0 | P37: =[1]consolidado2020!O48 -> 25.13529439 | Q37: =[1]consolidado2020!P48 -> 0 | R37: =[1]consolidado2020!Q48 -> 0 | S37: =[1]consolidado2020!R48 -> 216.4393702 | T37: =[1]consolidado2020!S48 -> 0 | U37: =[1]consolidado2020!T48 -> 0 | V37: =[1]consolidado2020!U48-[1]consolidado2020!$U$25 -> 2735.824927 | W37: =[1]consolidado2020!V48 -> 0 | X37: =[1]consolidado2020!W48 -> 0 | Y37: =[1]consolidado2020!X48 -> 3521.58646 | Z37: =[1]consolidado2020!Y48 -> 0 | AA37: =[1]consolidado2020!Z48 -> 0 | AB37: =SUM(M37:AA37) -> 8050.31977 | AC37: 24482.59913 | AD37: =L37+AB37 -> 27218.42406 | AI37: =(1-$AI$11)*M37 -> 1049.044369 | AJ37: =$AI$11*M37 -> 108.8630949 | AK37: =AO37*$Y37/AK$9 -> 5401.206227 | AO37: 1
B38: RESIDENCIAL | D38: 534.7292298 | I38: 4897.690479 | L38: =SUM(C38:K38) -> 5432.419709 | P38: 7243.201326 | R38: 1.900090102 | V38: 13996.36632 | W38: 487.4704484 | AB38: =SUM(M38:AA38) -> 21728.93819 | AC38: 13164.99157 | AD38: =L38+AB38 -> 27161.3579
B39: COMERCIAL | D39: 195.3071404 | I39: 90.49714375 | L39: 285.8042842 | M39: 6.959469037 | N39: 18.2226704 | P39: 443.7720794 | V39: 8970.589153 | W39: 92.97579218 | AB39: 9532.519164 | AC39: 847.7342952 | AD39: 9818.323448 | AI39: 6.305278948 | AJ39: 0.6541900895
B40: PÚBLICO | D40: 37.72848724 | L40: 37.72848724 | M40: 2.887275368 | N40: 10.28920061 | P40: 232.9879212 | V40: 3362.831423 | AB40: 3608.99582 | AC40: 283.8928844 | AD40: 3646.724307 | AI40: 2.615871484 | AJ40: 0.2714038846
B41: AGROPECUÁRIO | I41: 2195.465722 | L41: 2195.465722 | M41: 6184.291278 | N41: 20.29540498 | P41: 111.2190004 | V41: 2442.77309 | W41: 18.19436813 | X41: 11.74312425 | AB41: 8788.516266 | AC41: 8541.208897 | AD41: 10983.98199 | AI41: 5602.967898 | AJ41: 581.3233801
B42: TRANSPORTES - TOTAL | D42: 1559.522266 | L42: 1559.522266 | M42: 37569.34855 | N42: 983.5728032 | O42: 18304.57466 | R42: 3938.13362 | V42: 302.5694433 | X42: 14933.83844 | AB42: 76032.0375 | AC42: 77288.99033 | AD42: 77591.55977 | AI42: 34075.52797 | AJ42: 3493.820571
B43: RODOVIÁRIO | D43: 1559.522266 | L43: 1559.522266 | M43: 36345.37837 | O43: 18257.80915 | V43: 10.24452366 | X43: 14933.83844 | AB43: 69547.27047 | AC43: 71096.54821 | AD43: 71106.79274 | AI43: 32928.29151 | AJ43: 3417.086855
B44: FERROVIÁRIO | L44: 0 | M44: 816.1677095 | V44: 292.3249196 | AB44: 1108.492629 | AC44: 816.1677095 | AD44: 1108.492629 | AI44: 739.4339932 | AJ44: 76.73371628
B45: AÉREO | L45: 0 | O45: 46.76551068 | R45: 3938.13362 | AB45: 3984.899131 | AC45: 3984.899131 | AD45: 3984.899131 | AI45: 0 | AJ45: 0
B46: HIDROVIÁRIO | L46: 0 | M46: 407.8024688 | N46: 983.5728032 | AB46: 1391.375272 | AC46: 1391.375272 | AD46: 1391.375272 | AI46: 407.8024688 | AJ46: 0
B47: INDUSTRIAL - TOTAL | D47: =SUM(D48:D59) -> 10115.57581 | E47: =SUM(E48:E59) -> 4455.711036 | I47: =SUM(I48:I59) -> 6536.061135 | J47: 15450.02325 | K47: =SUM(K48:K59) -> 6523.520059 | L47: 43080.8913 | M47: =SUM(M48:M59) -> 868.6961697 | N47: =SUM(N48:N59) -> 2515.928991 | P47: =SUM(P48:P59) -> 1071.151055 | R47: =SUM(R48:R59) -> 0.969821897 | S47: =SUM(S48:S59) -> 1410.845636 | T47: =SUM(T48:T59) -> 8832.760986 | V47: =SUM(V48:V59) -> 17623.96092 | W47: =SUM(W48:W59) -> 3640.519533 | Y47: =SUM(Y48:Y59) -> 7968.052449 | AA47: =SUM(AA48:AA59) -> 102.2325659 | AB47: 44035.11813 | AC47: 69492.04851 | AD47: 87116.00943 | AF47: =SUM(AF48:AF59) -> 5232.968384 | AG47: 1029.857606 | AH47: 260.6940696 | AI47: 787.0238803 | AJ47: 81.67228946 | AK47: 244.4767609 | AL47: 6207.691782 | AM47: 2736.320171
B48: CIMENTO | D48: 13.1128 | E48: 91.8864 | I48: 40.7496 | K48: =SUM(AF48:AH48) -> 339.1656356 | L48: 484.9144356 | M48: 39.3888 | N48: 10.5563 | P48: 17.9777 | T48: 39.9506 | V48: 574.823 | W48: 131.837 | Y48: 3311.9059 | AB48: 4126.4393 | AC48: 4036.530736 | AD48: 4611.353736 | AG48: 133.5680824 | AH48: 205.5975532 | AI48: =(1-$AI$11)*M48 -> 35.68557949 | AJ48: =$AI$11*M48 -> 3.703220513 | AL48: =AP48*$Y48/AL$9 -> 3806.788391 | AP48: 1
B49: FERRO-GUSA E AÇO | D49: 1566.499696 | E49: 2227.198713 | K49: =SUM(AF49:AH49) -> 0 | L49: 3793.698409 | M49: 66.82554839 | N49: 0 | P49: 21.3960934 | S49: 1410.845636 | T49: 8390.325199 | V49: 1825.201297 | W49: 3055.622854 | Y49: 46.46185356 | AA49: 102.2325659 | AB49: 14918.91105 | AC49: 16887.40816 | AD49: 18712.60946 | AI49: =(1-$AI$11)*M49 -> 60.54280452 | AJ49: =$AI$11*M49 -> 6.282743865 | AL49: =AP49*$Y49/AL$9 -> 53.40442938 | AP49: 1
B50: FERRO-LIGAS | D50: 61.10371797 | E50: 0 | I50: 64.86594265 | L50: 125.9696606 | M50: 6.514466023 | N50: 2.594637706 | P50: 13.13535339 | R50: 0 | T50: 62.6605006 | V50: 504.3680735 | W50: 410.601417 | Y50: 152.3052333 | AB50: 1152.179682 | AC50: 773.7812686 | AD50: 1278.149342 | AI50: 5.901994858 | AJ50: 0.6124711645 | AL50: 175.0634866 | AP50: 1
B51: MINERAÇÃO E PELOTIZ. | D51: 756.5013512 | E51: 673.0770029 | L51: 1429.578354 | M51: 284.8271711 | N51: 242.4163656 | P51: 51.96117811 | R51: 0.5286661105 | T51: 53.35751529 | V51: 1016.706089 | Y51: 368.89177 | AB51: 2018.688755 | AC51: 2431.56102 | AD51: 3448.267109 | AI51: 258.0485481 | AJ51: 26.77862292 | AL51: 424.0135287 | AP51: 1
B52: NÃO-FERROSOS E OUTROS DA METALURGIA | D52: 823.9086718 | E52: 877.8832656 | L52: 1701.791937 | M52: 8.248618432 | N52: 867.8435992 | P52: 35.07433029 | T52: 286.4671709 | V52: 2783.539056 | W52: 9.702920304 | Y52: 549.9078954 | AB52: 4540.78359 | AC52: 3459.036472 | AD52: 6242.575528 | AI52: 7.473107297 | AJ52: 0.7755111346 | AL52: 632.0780407 | AP52: 1
B53: QUÍMICA | D53: 2093.00957 | E53: 184.9308378 | I53: 49.75598416 | K53: =SUM(AF53:AH53) -> 126.3368079 | L53: 2454.0332 | M53: 39.26467221 | N53: 464.232156 | P53: 345.0778616 | V53: 1860.780565 | W53: 20.90319453 | Y53: 2673.154971 | AB53: 5403.41342 | AC53: 5996.666055 | AD53: 7857.44662 | AG53: 71.2402915 | AH53: 55.09651638 | AI53: 35.57312183 | AJ53: 3.691550379 | AK53: =AO53*$Y53/AK$9 -> 244.4767609 | AL53: 121.6027261 | AM53: =AQ53*$Y53/AM$9 -> 2736.320171 | AO53: 0.0596294827 | AP53: 0.03957659501 | AQ53: 0.9007939223
B54: ALIMENTOS E BEBIDAS | D54: 839.13898 | E54: 69.24809586 | I54: 1812.50549 | J54: 15411.43247 | K54: =SUM(AF54:AH54) -> 0.9750677648 | L54: 18133.3001 | M54: 226.0306131 | N54: 227.971816 | P54: 159.3275771 | V54: 2237.305912 | Y54: 81.32465872 | AB54: 2931.960577 | AC54: 18827.95477 | AD54: 21065.26068 | AG54: 0.9750677648 | AI54: 204.7798717 | AJ54: 21.25074141 | AL54: 93.47661922 | AP54: 1
B55: TÊXTIL | D55: 271.5254346 | I55: 140.1608346 | L55: 411.6862693 | M55: 5.759884115 | N55: 61.10700153 | P55: 60.13433978 | V55: 691.5720516 | AB55: 818.573277 | AC55: 538.6874947 | AD55: 1230.259546 | AI55: 5.218356549 | AJ55: 0.5415275664
B56: PAPEL E CELULOSE | D56: 885.4306217 | E56: 140.7522716 | I56: 1709.134727 | J56: 30.17247088 | K56: =SUM(AF56:AH56) -> 6011.127371 | L56: 8776.617462 | M56: 5.715291997 | N56: 386.7157567 | P56: 46.59449415 | V56: 2103.215139 | AB56: 2542.240682 | AC56: 9215.643005 | AD56: 11318.85814 | AF56: 5232.968384 | AG56: 778.1589873 | AI56: 5.177956852 | AJ56: 0.537335145
B57: CERÂMICA | D57: 1134.311079 | E57: 30.24044361 | I57: 1831.820371 | J57: 8.418312326 | K57: =SUM(AF57:AH57) -> 45.91517687 | L57: 3050.705383 | M57: 20.10682335 | N57: 68.32405207 | P57: 155.7196008 | V57: 339.2070742 | Y57: 318.6281432 | AB57: 901.9856936 | AC57: 3613.484002 | AD57: 3952.691077 | AG57: 45.91517687 | AI57: 18.21643825 | AJ57: 1.890385101 | AL57: =AP57*$Y57/AL$9 -> 366.239245 | AP57: 1
B58: OUTROS | D58: 1671.033892 | E58: 160.4940052 | I58: 887.0681866 | L58: 2718.596084 | M58: 166.014281 | N58: 184.1673057 | P58: 164.7525269 | R58: 0.4411557865 | V58: 3687.242667 | W58: 11.85214804 | Y58: 465.4720245 | AB58: 4679.942109 | AC58: 3711.295526 | AD58: 7398.538193 | AI58: 150.4061008 | AJ58: 15.60818027 | AL58: =AP58*$Y58/AL$9 -> 535.0253156 | AP58: 1
B59: CONSUMO NÃO-IDENTIFICADO
B60: AJUSTES | E60: 0.1804200552 | I60: 0.05135832122 | L60: 0.2317783764 | M60: 0.3392880518 | R60: 0.2035321613 | S60: 0.085006163 | X60: 0.0468985278 | Y60: 0.3654032655 | Z60: 0.1435593223 | AB60: 1.183687492 | AC60: =AD60-V60 -> 1.415465868 | AD60: =L60+AB60 -> 1.415465868
B61: CENTRAIS ELÉTRICAS (CESP+AUTOP.) | D61: =SUM(D28:D29) -> -7424.8 | E61: =SUM(E28:E29) -> -3319.6 | H61: =SUM(H28:H29) -> -37558 | I61: -192.8 | J61: -10517 | K61: -6691 | L61: -65703.2 | M61: 0 | N61: 0 | S61: =SUM(S28:S29) -> 0 | U61: =SUM(U28:U29) -> -6084.4 | V61: 54149.95417 | Y61: =SUM(Y28:Y29) -> 0 | AA61: 0 | AB61: 48065.55417 | AC61: -71787.6 | AD61: -17637.64583 | AF61: 0 | AG61: 0 | AH61: 0 | AI61: 0 | AJ61: 0 | AK61: 0 | AL61: 0 | AM61: 0
B62: EDIFICAÇÕES (Re+Co+Pu)+ AGROPECUÁRIA | C62: =SUM(C38:C41) -> 0 | D62: =SUM(D38:D41) -> 767.7648575 | E62: 0 | F62: 0 | G62: 0 | H62: 0 | I62: 7183.653345 | J62: 0 | K62: 0 | L62: 7951.418202 | M62: 6194.138022 | N62: 48.80727599 | O62: 0 | P62: 8031.180327 | Q62: 0 | R62: 1.900090102 | S62: 0 | T62: 0 | U62: 0 | V62: 28772.55999 | W62: 598.6406087 | X62: 11.74312425 | Y62: 0 | Z62: 0 | AA62: 0 | AB62: 43658.96944 | AC62: 22837.82765 | AD62: 51610.38764
B63: SETOR ENERGÉTICO E PROD. DE ELETRICIDADE | C63: =C37-SUM(C28:C29) -> 0 | D63: =D37-SUM(D28:D29) -> 13042.92754 | E63: 3319.6 | F63: 0 | G63: 0 | H63: 37558 | I63: 192.8 | J63: 24066.97675 | K63: 6691 | L63: 84871.30429 | M63: 1157.907464 | N63: 393.4262556 | O63: 0 | P63: 25.13529439 | Q63: 0 | R63: 0 | S63: 216.4393702 | T63: 0 | U63: 6084.4 | V63: =V37 -> 2735.824927 | W63: 0 | X63: 0 | Y63: 3521.58646 | Z63: 0 | AA63: 0 | AD63: 44856.06989
B64: CONSUMO FINAL E PROD. DE ELETRICIDADE | C64: =C36-SUM(C28:C29) -> 0 | D64: =D36-SUM(D28:D29) -> 25485.79048 | E64: 7775.311036 | F64: 0 | G64: 0 | H64: 37558 | I64: 13912.51448 | J64: 39517 | K64: 13214.52006 | L64: 137463.1361 | M64: 45790.0902 | N64: 3941.735325 | O64: 18304.57466 | P64: 9127.466677 | Q64: 0 | R64: 3941.003532 | S64: 1627.285006 | T64: 8832.760986 | U64: 6084.4 | V64: -4715.038887 | W64: 4239.160142 | X64: 14945.58156 | Y64: 11489.63891 | Z64: 0 | AA64: 102.2325659 | AD64: =AD36-SUM(AD28:AD29) -> 261174.0267
B68: Fatores de emissão em tCO2/TJ ==> | D68: =COMENTÁRIOS!C21 -> 56.1 | E68: =COMENTÁRIOS!D21 -> 96.1 | F68: =COMENTÁRIOS!E21 -> 94.6 | G68: =COMENTÁRIOS!F21 -> 0 | H68: =COMENTÁRIOS!G21 -> 0 | I68: =COMENTÁRIOS!H21 -> 0 | J68: =COMENTÁRIOS!I21 -> 0 | K68: =COMENTÁRIOS!J21 -> Outros | M68: =COMENTÁRIOS!L21 -> Outros | N68: =COMENTÁRIOS!M21 -> 77.4 | O68: =COMENTÁRIOS!N21 -> 69.3 | P68: =COMENTÁRIOS!O21 -> 63.1 | Q68: =COMENTÁRIOS!P21 -> 73.3 | R68: =COMENTÁRIOS!Q21 -> 71.5 | S68: =COMENTÁRIOS!R21 -> 44.4 | T68: =COMENTÁRIOS!S21 -> 107 | U68: =COMENTÁRIOS!T21 -> 0 | V68: =COMENTÁRIOS!U21 -> 0 | W68: =COMENTÁRIOS!V21 -> 0 | X68: =COMENTÁRIOS!W21 -> 0 | Y68: =COMENTÁRIOS!X21 -> Outros | Z68: =COMENTÁRIOS!Y21 -> 73.3 | AA68: =COMENTÁRIOS!Z21 -> 80.7 | AF68: =COMENTÁRIOS!AB21 -> 0 | AG68: =COMENTÁRIOS!AC21 -> 0 | AH68: =COMENTÁRIOS!AD21 -> 143 | AI68: =COMENTÁRIOS!AE21 -> 74.1 | AJ68: =COMENTÁRIOS!AF21 -> 0 | AK68: =COMENTÁRIOS!AG21 -> 57.6 | AL68: =COMENTÁRIOS!AH21 -> 97.5 | AM68: =COMENTÁRIOS!AI21 -> 73.3
B69: CENÁRIO IES BRASIL 2 - EMISSÕES DE CO2 DA ENERGIA
B70: =LEFT(B11,4)&" - tCO2" -> 2020 - tCO2
C71: FONTES DE ENERGIA PRIMÁRIA | M71: FONTES DE ENERGIA SECUNDÁRIA | AC71: TOTAIS | AF71: =AF12 -> O U T R O S
B72: CONTA | C72: PETRÓLEO | D72: GÁS NATURAL | E72: CARVÃO VAPOR | F72: CARVÃO METALÚRGICO | G72: URÂNIO U3O8 | H72: ENERGIA HIDRÁULICA | I72: LENHA | J72: PRODUTOS DA CANA | K72: OUTRAS FONTES PRIMÁRIAS | L72: ENERGIA PRIMÁRIA TOTAL | M72: ÓLEO DIESEL | N72: ÓLEO COMBUSTIVEL | O72: GASOLINA | P72: GLP | Q72: NAFTA | R72: QUEROSENE | S72: GÁS DE CIDADE E DE COQUERIA | T72: COQUE DE CARVÃO MINERAL | U72: URÂNIO CONTIDO NO UO2 | V72: ELETRICIDADE | W72: CARVÃO VEGETAL | X72: ÁLCOOL ETÍLICO ANIDRO E HIDRATADO | Y72: OUTRAS SECUNDÁRIAS DE PETRÓLEO | Z72: PRODUTOS NÃO ENERGÉTICOS DE PETRÓLEO | AA72: ALCATRÃO | AB72: ENERGIA SECUNDÁRIA TOTAL | AC72: TOTAL DIRETO | AD72: TOTAL COM ELETRIC | AF72: =AF13 -> LIXÍVIA | AG72: =AG13 -> OUTRAS PRIM. RENOVÁVEIS | AH72: OUTRAS PRIM. NÃO RENOV. | AI72: ÓLEO DIESEL MINERAL | AJ72: BIODIESEL | AK72: GÁS DE REFINARIA | AL72: COQUE DE PETRÓLEO | AM72: OUTROS EN. DE PETRÓLEO
B73: PRODUÇÃO
B74: IMPORTAÇÃO
B75: VARIAÇÃO DE ESTOQUES
B76: OFERTA TOTAL
B77: EXPORTAÇÃO
B78: NÃO-APROVEITADA
B79: REINJEÇÃO
B80: OFERTA INTERNA BRUTA
B81: TOTAL TRANSFORMAÇÃO | D81: =SUM(D82:D91) -> 17439331.63 | E81: =SUM(E82:E91) -> 13356459.73 | L81: =SUM(L82:L91) -> 30795791.36 | M81: =SUM(M82:M91) -> 0 | N81: =SUM(N82:N91) -> 0 | S81: =SUM(S82:S91) -> 0 | Y81: =SUM(Y82:Y91) -> 26050139.63 | AA81: =SUM(AA82:AA91) -> 0 | AB81: =SUM(AB82:AB91) -> 0 | AD81: =SUM(AD82:AD91) -> 30795791.36 | AI81: =SUM(AI82:AI91) -> 0 | AJ81: =SUM(AJ82:AJ91) -> 0 | AK81: =SUM(AK82:AK91) -> 10787096.92 | AL81: =SUM(AL82:AL91) -> 15263042.7 | AM81: =SUM(AM82:AM91) -> 0
B82: REFINARIAS DE PETRÓLEO | Y82: =SUM(AK82:AM82) -> 23052223.36 | AK82: =ABS(AK23)*COMENTÁRIOS!$AE$1*AK$68*AK$9 -> 10787096.92 | AL82: =ABS(AL23)*COMENTÁRIOS!$AE$1*AL$68*AL$9 -> 12265126.43
B83: PLANTAS DE GAS NATURAL
B84: USINAS DE GASEIFICAÇÃO
B85: COQUERIAS | Y85: =SUM(AK85:AM85) -> 2997916.272 | AL85: =ABS(AL26)*COMENTÁRIOS!$AE$1*AL$68*AL$9 -> 2997916.272
B86: CICLO DO COMBUSTÍVEL NUCLEAR
B87: CENTRAIS ELÉTRICAS DE SERVIÇO PÚBLICO | D87: =ABS(D28)*COMENTÁRIOS!$AE$1*D$68 -> 17439331.63 | E87: =ABS(E28)*COMENTÁRIOS!$AE$1*E$68 -> 13247020.13 | L87: =SUM(C87:K87) -> 30686351.76 | M87: =SUM(AI87:AJ87) -> 0 | N87: =ABS(N28)*COMENTÁRIOS!$AE$1*N$68 -> 0 | T87: =ABS(T28)*COMENTÁRIOS!$AE$1*T$68 -> 0 | U87: =ABS(U28)*COMENTÁRIOS!$AE$1*U$68 -> 0 | V87: =ABS(V28)*COMENTÁRIOS!$AE$1*V$68 -> 0 | W87: =ABS(W28)*COMENTÁRIOS!$AE$1*W$68 -> 0 | X87: =ABS(X28)*COMENTÁRIOS!$AE$1*X$68 -> 0 | Y87: =SUM(AK87:AM87) -> 0 | Z87: =ABS(Z28)*COMENTÁRIOS!$AE$1*Z$68 -> 0 | AB87: =SUM(M87:AA87) -> 0 | AD87: =AB87+L87 -> 30686351.76 | AI87: =ABS(AI28)*COMENTÁRIOS!$AE$1*AI$68 -> 0 | AJ87: =ABS(AJ28)*COMENTÁRIOS!$AE$1*AJ$68 -> 0 | AK87: =ABS(AK28)*COMENTÁRIOS!$AE$1*AK$68*AK$9 -> 0
B88: CENTRAIS ELÉTRICAS AUTOPRODUTORAS | D88: =ABS(D29)*COMENTÁRIOS!$AE$1*D$68 -> 0 | E88: =ABS(E29)*COMENTÁRIOS!$AE$1*E$68 -> 109439.6026 | L88: =SUM(C88:K88) -> 109439.6026 | M88: =SUM(AI88:AJ88) -> 0 | N88: =ABS(N29)*COMENTÁRIOS!$AE$1*N$68 -> 0 | S88: =ABS(S29)*COMENTÁRIOS!$AE$1*S$68 -> 0 | T88: =ABS(T29)*COMENTÁRIOS!$AE$1*T$68 -> 0 | U88: =ABS(U29)*COMENTÁRIOS!$AE$1*U$68 -> 0 | V88: =ABS(V29)*COMENTÁRIOS!$AE$1*V$68 -> 0 | W88: =ABS(W29)*COMENTÁRIOS!$AE$1*W$68 -> 0 | X88: =ABS(X29)*COMENTÁRIOS!$AE$1*X$68 -> 0 | Y88: =SUM(AK88:AM88) -> 0 | Z88: =ABS(Z29)*COMENTÁRIOS!$AE$1*Z$68 -> 0 | AA88: =ABS(AA29)*COMENTÁRIOS!$AE$1*AA$68 -> 0 | AB88: =SUM(M88:AA88) -> 0 | AD88: =AB88+L88 -> 109439.6026 | AI88: =ABS(AI29)*COMENTÁRIOS!$AE$1*AI$68 -> 0 | AJ88: =ABS(AJ29)*COMENTÁRIOS!$AE$1*AJ$68 -> 0 | AK88: =ABS(AK29)*COMENTÁRIOS!$AE$1*AK$68*AK$9 -> 0 | AM88: =ABS(AM29)*COMENTÁRIOS!$AE$1*AM$68*AM$9 -> 0
B89: CARVOARIAS
B90: DESTILARIAS
B91: OUTRAS TRANSFORMAÇÕES | Y91: =SUM(AK91:AM91) -> 0 | AL91: =ABS(AL32)*COMENTÁRIOS!$AE$1*AL$68*AL$9 -> 0 | AM91: =ABS(AM32)*COMENTÁRIOS!$AE$1*AM$68*AM$9 -> 0
B92: PERDAS NA DISTRIBUIÇÃO E ARMAZENAGEM
B93: CONSUMO FINAL | D93: =SUM(D94:D95) -> 48732984.65 | E93: =SUM(E94:E95) -> 5434276 | I93: =SUM(I94:I95) -> 0 | J93: =SUM(J94:J95) -> 0 | K93: =SUM(K94:K95) -> 1560807.72 | L93: =SUM(C93:K93) -> 55728068.37 | M93: =SUM(M94:M95) -> 128823241.3 | N93: =SUM(N94:N95) -> 12773521.27 | O93: =SUM(O94:O95) -> 53109852.07 | P93: =SUM(P94:P95) -> 24113587.69 | R93: =SUM(R94:R95) -> 11797638.42 | S93: =SUM(S94:S95) -> 3025023.888 | T93: =SUM(T94:T95) -> 418008.7863 | V93: =SUM(V94:V95) -> 30795791.36 | W93: =SUM(W94:W95) -> 0 | X93: =SUM(X94:X95) -> 0 | Y93: =SUM(Y94:Y95) -> 35257042.58 | AA93: =SUM(AA94:AA95) -> 345418.0367 | AB93: =SUM(M93:AA93)-V93 -> 269663334.1 | AC93: =AB93+L93 -> 325391402.5 | AD93: =AC93+V93 -> 356187193.8 | AF93: =SUM(AF94:AF95) -> 0 | AG93: 0 | AH93: 1560807.72 | AI93: 128823241.3 | AJ93: 0 | AK93: 8877052.389 | AL93: 22046326.22 | AM93: 7389852.571
B94: CONSUMO FINAL NÃO-ENERGÉTICO | D94: =D35*COMENTÁRIOS!$AE$1*D$68 -> 6311424.137 | L94: =SUM(C94:K94) -> 6311424.137 | Q94: =Q35*COMENTÁRIOS!$AE$1*Q$68 -> 22167806.67 | R94: =R35*COMENTÁRIOS!$AE$1*R$68 -> 0 | Y94: =SUM(AK94:AM94) -> 0 | Z94: =Z35*COMENTÁRIOS!$AE$1*Z$68 -> 26184503.55 | AA94: =AA35*COMENTÁRIOS!$AE$1*AA$68 -> 0 | AB94: =SUM(M94:AA94)-V94 -> 48352310.22 | AC94: =AB94+L94 -> 54663734.36 | AD94: =AC94+V94 -> 54663734.36 | AK94: =ABS(AK35)*COMENTÁRIOS!$AE$1*AK$68*AK$9 -> 0
B95: CONSUMO FINAL ENERGÉTICO | D95: =SUM(D96:D101)+D106 -> 42421560.52 | E95: =SUM(E96:E101)+E106 -> 5434276 | I95: =SUM(I96:I101)+I106 -> 0 | J95: =SUM(J96:J101)+J106 -> 0 | K95: =SUM(K96:K101)+K106 -> 1560807.72 | L95: =SUM(C95:K95) -> 49416644.24 | M95: =SUM(M96:M101)+M106 -> 128823241.3 | N95: =SUM(N96:N101)+N106 -> 12773521.27 | O95: =SUM(O96:O101)+O106 -> 53109852.07 | P95: =SUM(P96:P101)+P106 -> 24113587.69 | R95: =SUM(R96:R101)+R106 -> 11797638.42 | S95: =SUM(S96:S101)+S106 -> 3025023.888 | T95: =SUM(T96:T101)+T106 -> 418008.7863 | V95: =SUM(V96:V101)+V106 -> 30795791.36 | W95: =SUM(W96:W101)+W106 -> 0 | X95: =SUM(X96:X101)+X106 -> 0 | Y95: =SUM(Y96:Y101)+Y106 -> 35257042.58 | AA95: =SUM(AA96:AA101)+AA106 -> 345418.0367 | AB95: 269663334.1 | AC95: =AB95+L95 -> 319079978.3 | AD95: =AC95+V95 -> 349875769.7 | AF95: =SUM(AF96:AF101)+AF106 -> 0 | AG95: 0 | AH95: 1560807.72 | AI95: 128823241.3 | AJ95: 0 | AK95: 8877052.389 | AL95: 22046326.22 | AM95: 7389852.571
B96: SETOR ENERGÉTICO | D96: =D37*COMENTÁRIOS!$AE$1*D$68 -> 13195828.75 | L96: 13195828.75 | M96: =SUM(AI96:AJ96) -> 3254574.972 | N96: =N37*COMENTÁRIOS!$AE$1*N$68 -> 1274930.514 | P96: =P37*COMENTÁRIOS!$AE$1*P$68 -> 66404.20031 | S96: =S37*COMENTÁRIOS!$AE$1*S$68 -> 402347.6298 | V96: =V37/V$34*$AD$123 -> 1704299.343 | Y96: =SUM(AK96:AM96) -> 8492646.637 | AB96: 13490903.95 | AC96: 26686732.71 | AD96: 28391032.05 | AI96: =ABS(AI37)*COMENTÁRIOS!$AE$1*AI$68 -> 3254574.972 | AJ96: =ABS(AJ37)*COMENTÁRIOS!$AE$1*AJ$68 -> 0 | AK96: =ABS(AK37)*COMENTÁRIOS!$AE$1*AK$68*AK$9 -> 8492646.637
B97: RESIDENCIAL | D97: =D38*COMENTÁRIOS!$AE$1*D$68 -> 1255969.234 | I97: =I38*COMENTÁRIOS!$AE$1*I$68 -> 0 | L97: 1255969.234 | P97: =P38*COMENTÁRIOS!$AE$1*P$68 -> 19135602.08 | R97: =R38*COMENTÁRIOS!$AE$1*R$68 -> 5688.037526 | V97: =V38/V$34*$AD$123 -> 8719124.421 | W97: =W38*COMENTÁRIOS!$AE$1*W$68 -> 0 | AB97: 19141290.12 | AC97: 20397259.35 | AD97: 29116383.77
B98: COMERCIAL | D98: =D39*COMENTÁRIOS!$AE$1*D$68 -> 458736.3959 | I98: =I39*COMENTÁRIOS!$AE$1*I$68 -> 0 | L98: 458736.3959 | M98: =SUM(AI98:AJ98) -> 19561.61595 | N98: =N39*COMENTÁRIOS!$AE$1*N$68 -> 59052.07956 | P98: =P39*COMENTÁRIOS!$AE$1*P$68 -> 1172388.498 | V98: =V39/V$34*$AD$123 -> 5588284.927 | W98: =W39*COMENTÁRIOS!$AE$1*W$68 -> 0 | AB98: 1251002.194 | AC98: 1709738.59 | AD98: 7298023.517 | AI98: =ABS(AI39)*COMENTÁRIOS!$AE$1*AI$68 -> 19561.61595 | AJ98: =ABS(AJ39)*COMENTÁRIOS!$AE$1*AJ$68 -> 0
B99: PÚBLICO | D99: =D40*COMENTÁRIOS!$AE$1*D$68 -> 88616.47464 | L99: 88616.47464 | M99: =SUM(AI99:AJ99) -> 8115.528869 | N99: =N40*COMENTÁRIOS!$AE$1*N$68 -> 33343.01065 | P99: =P40*COMENTÁRIOS!$AE$1*P$68 -> 615523.9857 | V99: =V40/V$34*$AD$123 -> 2094896.983 | AB99: 656982.5252 | AC99: 745598.9998 | AD99: 2840495.983 | AI99: =ABS(AI40)*COMENTÁRIOS!$AE$1*AI$68 -> 8115.528869 | AJ99: =ABS(AJ40)*COMENTÁRIOS!$AE$1*AJ$68 -> 0
B100: AGROPECUÁRIO | I100: =I41*COMENTÁRIOS!$AE$1*I$68 -> 0 | L100: 0 | M100: =SUM(AI100:AJ100) -> 17382752.94 | N100: =N41*COMENTÁRIOS!$AE$1*N$68 -> 65768.9484 | P100: =P41*COMENTÁRIOS!$AE$1*P$68 -> 293826.2296 | V100: =V41/V$34*$AD$123 -> 1521740.859 | W100: =W41*COMENTÁRIOS!$AE$1*W$68 -> 0 | X100: =X41*COMENTÁRIOS!$AE$1*X$68 -> 0 | AB100: 17742348.12 | AC100: 17742348.12 | AD100: 19264088.98 | AI100: =ABS(AI41)*COMENTÁRIOS!$AE$1*AI$68 -> 17382752.94 | AJ100: =ABS(AJ41)*COMENTÁRIOS!$AE$1*AJ$68 -> 0
B101: TRANSPORTES - TOTAL | D101: =SUM(D102:D105) -> 3662997.788 | L101: 3662997.788 | M101: =SUM(M102:M105) -> 105716558.6 | N101: =SUM(N102:N105) -> 3187349.502 | O101: =SUM(O102:O105) -> 53109852.07 | R101: =SUM(R102:R105) -> 11789047.16 | V101: =SUM(V102:V105) -> 188487.5375 | X101: =SUM(X102:X105) -> 0 | AB101: 173802807.3 | AC101: 177465805.1 | AD101: 177654292.7 | AI101: =SUM(AI102:AI105) -> 105716558.6 | AJ101: =SUM(AJ102:AJ105) -> 0
B102: RODOVIÁRIO | D102: =D43*COMENTÁRIOS!$AE$1*D$68 -> 3662997.788 | L102: 3662997.788 | M102: =SUM(AI102:AJ102) -> 102157350.6 | O102: =O43*COMENTÁRIOS!$AE$1*O$68 -> 52974164.16 | V102: =V43/V$34*$AD$123 -> 6381.890442 | X102: =X43*COMENTÁRIOS!$AE$1*X$68 -> 0 | AB102: 155131514.8 | AC102: 158794512.6 | AD102: 158800894.5 | AI102: =ABS(AI43)*COMENTÁRIOS!$AE$1*AI$68 -> 102157350.6 | AJ102: =ABS(AJ43)*COMENTÁRIOS!$AE$1*AJ$68 -> 0
B103: FERROVIÁRIO | M103: =SUM(AI103:AJ103) -> 2294033.922 | V103: =V44/V$34*$AD$123 -> 182105.647 | AB103: 2294033.922 | AC103: 2294033.922 | AD103: 2476139.569 | AI103: =ABS(AI44)*COMENTÁRIOS!$AE$1*AI$68 -> 2294033.922 | AJ103: =ABS(AJ44)*COMENTÁRIOS!$AE$1*AJ$68 -> 0
B104: AÉREO | O104: =O45*COMENTÁRIOS!$AE$1*O$68 -> 135687.9032 | R104: =R45*COMENTÁRIOS!$AE$1*R$68 -> 11789047.16 | AB104: 11924735.06 | AC104: 11924735.06 | AD104: 11924735.06
B105: HIDROVIÁRIO | M105: =SUM(AI105:AJ105) -> 1265174.046 | N105: =N46*COMENTÁRIOS!$AE$1*N$68 -> 3187349.502 | AB105: 4452523.548 | AC105: 4452523.548 | AD105: 4452523.548 | AI105: =ABS(AI46)*COMENTÁRIOS!$AE$1*AI$68 -> 1265174.046 | AJ105: =ABS(AJ46)*COMENTÁRIOS!$AE$1*AJ$68 -> 0
B106: INDUSTRIAL - TOTAL | D106: =SUM(D107:D117) -> 23759411.87 | E106: =SUM(E107:E117) -> 5434276 | I106: =SUM(I107:I117) -> 0 | J106: =SUM(J107:J117) -> 0 | K106: =SUM(K107:K117) -> 1560807.72 | L106: 30754495.59 | M106: =SUM(M107:M117) -> 2441677.682 | N106: =SUM(N107:N117) -> 8153077.219 | P106: =SUM(P107:P117) -> 2829842.696 | R106: =SUM(R107:R117) -> 2903.221978 | S106: =SUM(S107:S117) -> 2622676.258 | T106: =SUM(T107:T117) -> 418008.7863 | V106: =SUM(V107:V117) -> 10978957.29 | W106: =SUM(W107:W117) -> 0 | Y106: =SUM(Y107:Y117) -> 26764395.94 | AA106: =SUM(AA107:AA117) -> 345418.0367 | AB106: 43577999.84 | AC106: 74332495.43 | AD106: 85311452.72 | AF106: =SUM(AF107:AF117) -> 0 | AG106: 0 | AH106: 1560807.72 | AI106: 2441677.682 | AJ106: 0 | AK106: 384405.7519 | AL106: 22046326.22 | AM106: 7389852.571
B107: CIMENTO | D107: =D48*COMENTÁRIOS!$AE$1*D$68 -> 30799.27645 | E107: =E48*COMENTÁRIOS!$AE$1*E$68 -> 369706.2903 | I107: =I48*COMENTÁRIOS!$AE$1*I$68 -> 0 | K107: =SUM(AF107:AH107) -> 1230938.045 | L107: 1631443.612 | M107: =SUM(AI107:AJ107) -> 110711.6127 | N107: =N48*COMENTÁRIOS!$AE$1*N$68 -> 34208.56843 | P107: =P48*COMENTÁRIOS!$AE$1*P$68 -> 47494.76068 | T107: =T48*COMENTÁRIOS!$AE$1*T$68 -> 178973.7341 | V107: =V48/V$34*$AD$123 -> 358089.6028 | W107: =W48*COMENTÁRIOS!$AE$1*W$68 -> 0 | Y107: =SUM(AK107:AM107) -> 13519630.43 | AB107: 13891019.11 | AC107: 15522462.72 | AD107: 15880552.32 | AF107: =ABS(AF48)*COMENTÁRIOS!$AE$1*AF$68 -> 0 | AG107: =ABS(AG48)*COMENTÁRIOS!$AE$1*AG$68 -> 0 | AH107: =ABS(AH48)*COMENTÁRIOS!$AE$1*AH$68 -> 1230938.045 | AI107: =ABS(AI48)*COMENTÁRIOS!$AE$1*AI$68 -> 110711.6127 | AJ107: =ABS(AJ48)*COMENTÁRIOS!$AE$1*AJ$68 -> 0 | AL107: =ABS(AL48)*COMENTÁRIOS!$AE$1*AL$68*AL$9 -> 13519630.43
B108: FERRO-GUSA E AÇO | D108: =D49*COMENTÁRIOS!$AE$1*D$68 -> 3679386.339 | E108: =E49*COMENTÁRIOS!$AE$1*E$68*AF125 -> 0 | K108: =SUM(AF108:AH108) -> 0 | L108: 3679386.339 | M108: 187829.135 | N108: =N49*COMENTÁRIOS!$AE$1*N$68 -> 0 | P108: =P49*COMENTÁRIOS!$AE$1*P$68 -> 56525.7144 | S108: =S49*COMENTÁRIOS!$AE$1*S$68 -> 2622676.258 | T108: =T49*COMENTÁRIOS!$AE$1*T$68*AF124 -> 0 | V108: 1137020.626 | W108: =W49*COMENTÁRIOS!$AE$1*W$68 -> 0 | Y108: =SUM(AK108:AM108)*AF123 -> 0 | AA108: =AA49*COMENTÁRIOS!$AE$1*AA$68 -> 345418.0367 | AB108: 3212449.144 | AC108: 6891835.483 | AD108: 8028856.109 | AF108: =ABS(AF49)*COMENTÁRIOS!$AE$1*AF$68 -> 0 | AG108: =ABS(AG49)*COMENTÁRIOS!$AE$1*AG$68 -> 0 | AH108: =ABS(AH49)*COMENTÁRIOS!$AE$1*AH$68 -> 0 | AI108: =ABS(AI49)*COMENTÁRIOS!$AE$1*AI$68 -> 187829.135 | AJ108: =ABS(AJ49)*COMENTÁRIOS!$AE$1*AJ$68 -> 0 | AL108: =ABS(AL49)*COMENTÁRIOS!$AE$1*AL$68*AL$9 -> 189663.3263
B109: FERRO-LIGAS | D109: =D50*COMENTÁRIOS!$AE$1*D$68 -> 143520.095 | I109: =I50*COMENTÁRIOS!$AE$1*I$68 -> 0 | K109: =SUM(AF109:AH109) -> 0 | L109: 143520.095 | M109: 18310.45981 | N109: =N50*COMENTÁRIOS!$AE$1*N$68 -> 8408.13936 | P109: =P50*COMENTÁRIOS!$AE$1*P$68 -> 34701.90656 | R109: =R50*COMENTÁRIOS!$AE$1*R$68 -> 0 | V109: 314199.2633 | W109: =W50*COMENTÁRIOS!$AE$1*W$68 -> 0 | Y109: =SUM(AK109:AM109)*AF123 -> 0 | AB109: 61420.50572 | AC109: 204940.6008 | AD109: 519139.864 | AF109: =ABS(AF50)*COMENTÁRIOS!$AE$1*AF$68 -> 0 | AG109: =ABS(AG50)*COMENTÁRIOS!$AE$1*AG$68 -> 0 | AH109: =ABS(AH50)*COMENTÁRIOS!$AE$1*AH$68 -> 0 | AI109: =ABS(AI50)*COMENTÁRIOS!$AE$1*AI$68 -> 18310.45981 | AJ109: =ABS(AJ50)*COMENTÁRIOS!$AE$1*AJ$68 -> 0 | AL109: =ABS(AL50)*COMENTÁRIOS!$AE$1*AL$68*AL$9 -> 621729.7622
B110: MINERAÇÃO E PELOTIZ. | D110: =D51*COMENTÁRIOS!$AE$1*D$68 -> 1776866.44 | E110: =E51*COMENTÁRIOS!$AE$1*E$68 -> 2708135.283 | K110: =SUM(AF110:AH110) -> 0 | L110: 4485001.723 | M110: 800574.667 | N110: =N51*COMENTÁRIOS!$AE$1*N$68 -> 785570.4016 | P110: =P51*COMENTÁRIOS!$AE$1*P$68 -> 137274.7192 | R110: =R51*COMENTÁRIOS!$AE$1*R$68 -> 1582.594779 | T110: =T51*COMENTÁRIOS!$AE$1*T$68 -> 239035.0522 | V110: 633363.4522 | Y110: =SUM(AK110:AM110) -> 1505864.161 | AB110: 3469901.596 | AC110: 7954903.318 | AD110: 8588266.771 | AF110: =ABS(AF51)*COMENTÁRIOS!$AE$1*AF$68 -> 0 | AG110: =ABS(AG51)*COMENTÁRIOS!$AE$1*AG$68 -> 0 | AH110: =ABS(AH51)*COMENTÁRIOS!$AE$1*AH$68 -> 0 | AI110: =ABS(AI51)*COMENTÁRIOS!$AE$1*AI$68 -> 800574.667 | AJ110: =ABS(AJ51)*COMENTÁRIOS!$AE$1*AJ$68 -> 0 | AL110: =ABS(AL51)*COMENTÁRIOS!$AE$1*AL$68*AL$9 -> 1505864.161
B111: NÃO-FERROSOS E OUTROS DA METALURGIA | D111: =D52*COMENTÁRIOS!$AE$1*D$68 -> 1935192.404 | E111: =E52*COMENTÁRIOS!$AE$1*E$68*AF125 -> 0 | K111: =SUM(AF111:AH111) -> 0 | L111: 1935192.404 | M111: 23184.70857 | N111: =N52*COMENTÁRIOS!$AE$1*N$68 -> 2812319.388 | P111: =P52*COMENTÁRIOS!$AE$1*P$68 -> 92661.84902 | T111: =T52*COMENTÁRIOS!$AE$1*T$68*AF124 -> 0 | V111: 1734023.16 | W111: =W52*COMENTÁRIOS!$AE$1*W$68 -> 0 | Y111: =SUM(AK111:AM111)*AF123 -> 0 | AB111: 2928165.945 | AC111: 4863358.35 | AD111: 6597381.509 | AF111: =ABS(AF52)*COMENTÁRIOS!$AE$1*AF$68 -> 0 | AG111: =ABS(AG52)*COMENTÁRIOS!$AE$1*AG$68 -> 0 | AH111: =ABS(AH52)*COMENTÁRIOS!$AE$1*AH$68 -> 0 | AI111: =ABS(AI52)*COMENTÁRIOS!$AE$1*AI$68 -> 23184.70857 | AJ111: =ABS(AJ52)*COMENTÁRIOS!$AE$1*AJ$68 -> 0 | AL111: =ABS(AL52)*COMENTÁRIOS!$AE$1*AL$68*AL$9 -> 2244795.517
B112: QUÍMICA | D112: =D53*COMENTÁRIOS!$AE$1*D$68 -> 4916049.994 | E112: =E53*COMENTÁRIOS!$AE$1*E$68 -> 744071.9628 | I112: =I53*COMENTÁRIOS!$AE$1*I$68 -> 0 | K112: =SUM(AF112:AH112) -> 329869.6755 | L112: 5989991.632 | M112: 110362.722 | N112: =N53*COMENTÁRIOS!$AE$1*N$68 -> 1504382.926 | P112: =P53*COMENTÁRIOS!$AE$1*P$68 -> 911651.1264 | V112: 1159184.955 | W112: =W53*COMENTÁRIOS!$AE$1*W$68 -> 0 | Y112: 8206124.702 | AB112: 10732521.48 | AC112: 16722513.11 | AD112: 17881698.06 | AF112: =ABS(AF53)*COMENTÁRIOS!$AE$1*AF$68 -> 0 | AG112: =ABS(AG53)*COMENTÁRIOS!$AE$1*AG$68 -> 0 | AH112: =ABS(AH53)*COMENTÁRIOS!$AE$1*AH$68 -> 329869.6755 | AI112: =ABS(AI53)*COMENTÁRIOS!$AE$1*AI$68 -> 110362.722 | AJ112: =ABS(AJ53)*COMENTÁRIOS!$AE$1*AJ$68 -> 0 | AK112: =ABS(AK53)*COMENTÁRIOS!$AE$1*AK$68*AK$9 -> 384405.7519 | AL112: =ABS(AL53)*COMENTÁRIOS!$AE$1*AL$68*AL$9 -> 431866.3784 | AM112: =ABS(AM53)*COMENTÁRIOS!$AE$1*AM$68*AM$9 -> 7389852.571
B113: ALIMENTOS E BEBIDAS | D113: =D54*COMENTÁRIOS!$AE$1*D$68 -> 1970965.273 | E113: =E54*COMENTÁRIOS!$AE$1*E$68 -> 278620.7386 | I113: =I54*COMENTÁRIOS!$AE$1*I$68 -> 0 | J113: =J54*COMENTÁRIOS!$AE$1*J$68 -> 0 | K113: 0 | L113: 2249586.011 | M113: 635312.9239 | N113: =N54*COMENTÁRIOS!$AE$1*N$68 -> 738761.6371 | P113: =P54*COMENTÁRIOS!$AE$1*P$68 -> 420922.8736 | V113: 1393743.788 | Y113: 331977.8291 | AB113: 2126975.264 | AC113: 4376561.275 | AD113: 5770305.063 | AF113: =ABS(AF54)*COMENTÁRIOS!$AE$1*AF$68 -> 0 | AG113: =ABS(AG54)*COMENTÁRIOS!$AE$1*AG$68 -> 0 | AH113: =ABS(AH54)*COMENTÁRIOS!$AE$1*AH$68 -> 0 | AI113: =ABS(AI54)*COMENTÁRIOS!$AE$1*AI$68 -> 635312.9239 | AJ113: =ABS(AJ54)*COMENTÁRIOS!$AE$1*AJ$68 -> 0 | AL113: =ABS(AL54)*COMENTÁRIOS!$AE$1*AL$68*AL$9 -> 331977.8291
B114: TÊXTIL | D114: =D55*COMENTÁRIOS!$AE$1*D$68 -> 637757.529 | I114: =I55*COMENTÁRIOS!$AE$1*I$68 -> 0 | K114: 0 | L114: 637757.529 | M114: 16189.52746 | N114: =N55*COMENTÁRIOS!$AE$1*N$68 -> 198022.3226 | P114: =P55*COMENTÁRIOS!$AE$1*P$68 -> 158867.1563 | V114: 430819.1587 | AB114: 373079.0064 | AC114: 1010836.535 | AD114: 1441655.694 | AF114: =ABS(AF55)*COMENTÁRIOS!$AE$1*AF$68 -> 0 | AG114: =ABS(AG55)*COMENTÁRIOS!$AE$1*AG$68 -> 0 | AH114: =ABS(AH55)*COMENTÁRIOS!$AE$1*AH$68 -> 0 | AI114: =ABS(AI55)*COMENTÁRIOS!$AE$1*AI$68 -> 16189.52746 | AJ114: =ABS(AJ55)*COMENTÁRIOS!$AE$1*AJ$68 -> 0
B115: PAPEL E CELULOSE | D115: =D56*COMENTÁRIOS!$AE$1*D$68 -> 2079694.84 | E115: =E56*COMENTÁRIOS!$AE$1*E$68 -> 566318.848 | I115: =I56*COMENTÁRIOS!$AE$1*I$68 -> 0 | J115: =J56*COMENTÁRIOS!$AE$1*J$68 -> 0 | K115: 0 | L115: 2646013.688 | M115: 16064.19068 | N115: =N56*COMENTÁRIOS!$AE$1*N$68 -> 1253184.584 | P115: =P56*COMENTÁRIOS!$AE$1*P$68 -> 123096.6335 | V115: 1310211.098 | AB115: 1392345.409 | AC115: 4038359.097 | AD115: 5348570.194 | AF115: =ABS(AF56)*COMENTÁRIOS!$AE$1*AF$68 -> 0 | AG115: =ABS(AG56)*COMENTÁRIOS!$AE$1*AG$68 -> 0 | AH115: =ABS(AH56)*COMENTÁRIOS!$AE$1*AH$68 -> 0 | AI115: =ABS(AI56)*COMENTÁRIOS!$AE$1*AI$68 -> 16064.19068 | AJ115: =ABS(AJ56)*COMENTÁRIOS!$AE$1*AJ$68 -> 0
B116: CERÂMICA | D116: =D57*COMENTÁRIOS!$AE$1*D$68 -> 2664263.965 | E116: =E57*COMENTÁRIOS!$AE$1*E$68 -> 121672.8724 | I116: =I57*COMENTÁRIOS!$AE$1*I$68 -> 0 | J116: =J57*COMENTÁRIOS!$AE$1*J$68 -> 0 | K116: 0 | L116: 2785936.837 | M116: 56515.02049 | N116: =N57*COMENTÁRIOS!$AE$1*N$68 -> 221409.7753 | P116: =P57*COMENTÁRIOS!$AE$1*P$68 -> 411391.0663 | V116: 211311.1801 | Y116: =SUM(AK116:AM116) -> 1300681.502 | AB116: 1989997.364 | AC116: 4775934.201 | AD116: 4987245.381 | AF116: =ABS(AF57)*COMENTÁRIOS!$AE$1*AF$68 -> 0 | AG116: =ABS(AG57)*COMENTÁRIOS!$AE$1*AG$68 -> 0 | AH116: =ABS(AH57)*COMENTÁRIOS!$AE$1*AH$68 -> 0 | AI116: =ABS(AI57)*COMENTÁRIOS!$AE$1*AI$68 -> 56515.02049 | AJ116: =ABS(AJ57)*COMENTÁRIOS!$AE$1*AJ$68 -> 0 | AL116: =ABS(AL57)*COMENTÁRIOS!$AE$1*AL$68*AL$9 -> 1300681.502
B117: OUTROS | D117: =D58*COMENTÁRIOS!$AE$1*D$68 -> 3924915.716 | E117: =E58*COMENTÁRIOS!$AE$1*E$68 -> 645750.0054 | I117: =I58*COMENTÁRIOS!$AE$1*I$68 -> 0 | K117: 0 | L117: 4570665.721 | M117: 466622.7146 | N117: =N58*COMENTÁRIOS!$AE$1*N$68 -> 596809.4768 | P117: =P58*COMENTÁRIOS!$AE$1*P$68 -> 435254.8899 | R117: =R58*COMENTÁRIOS!$AE$1*R$68 -> 1320.627199 | V117: 2296991.008 | W117: =W58*COMENTÁRIOS!$AE$1*W$68 -> 0 | Y117: =SUM(AK117:AM117) -> 1900117.315 | AB117: =SUM(M117:AA117)-V117 -> 3400125.024 | AC117: 7970790.746 | AD117: 10267781.75 | AF117: =ABS(AF58)*COMENTÁRIOS!$AE$1*AF$68 -> 0 | AG117: =ABS(AG58)*COMENTÁRIOS!$AE$1*AG$68 -> 0 | AH117: =ABS(AH58)*COMENTÁRIOS!$AE$1*AH$68 -> 0 | AI117: =ABS(AI58)*COMENTÁRIOS!$AE$1*AI$68 -> 466622.7146 | AJ117: =ABS(AJ58)*COMENTÁRIOS!$AE$1*AJ$68 -> 0 | AL117: =ABS(AL58)*COMENTÁRIOS!$AE$1*AL$68*AL$9 -> 1900117.315
B118: CONSUMO NÃO-IDENTIFICADO
B119: AJUSTES
B120: CENTRAIS ELÉTRICAS (CESP+AUTOP.) | D120: =SUM(D87:D88) -> 17439331.63 | E120: =SUM(E87:E88) -> 13356459.73 | H120: =SUM(H87:H88) -> 0 | I120: 0 | J120: 0 | K120: 0 | L120: 30795791.36 | M120: 0 | N120: 0 | S120: =SUM(S87:S88) -> 0 | U120: =SUM(U87:U88) -> 0 | V120: 0 | Y120: =SUM(Y87:Y88) -> 0 | AA120: 0 | AB120: 0 | AC120: 0 | AD120: 30795791.36 | AF120: 0 | AG120: 0 | AH120: 0 | AI120: 0 | AJ120: 0 | AK120: 0 | AL120: 0 | AM120: 0
B121: =B62 -> EDIFICAÇÕES (Re+Co+Pu)+ AGROPECUÁRIA | C121: =SUM(C97:C100) -> 0 | D121: =SUM(D97:D100) -> 1803322.105 | E121: 0 | F121: 0 | G121: 0 | H121: 0 | I121: 0 | J121: 0 | K121: 0 | L121: 1803322.105 | M121: 17410430.09 | N121: 158164.0386 | O121: 0 | P121: 21217340.8 | Q121: 0 | R121: 5688.037526 | S121: 0 | T121: 0 | U121: 0 | V121: 17924047.19 | W121: 0 | X121: 0 | Y121: 0 | Z121: 0 | AA121: 0 | AB121: 38791622.96 | AC121: 40594945.06 | AD121: 58518992.25
B122: =B63 -> SETOR ENERGÉTICO E PROD. DE ELETRICIDADE | C122: =C96+SUM(C87:C88) -> 0 | D122: 30635160.38 | E122: 13356459.73 | F122: 0 | G122: 0 | H122: 0 | I122: 0 | J122: 0 | K122: 0 | L122: 43991620.11 | M122: 3254574.972 | N122: 1274930.514 | O122: 0 | P122: 66404.20031 | Q122: 0 | R122: 0 | S122: 402347.6298 | T122: 0 | U122: 0 | V122: 1704299.343 | W122: 0 | X122: 0 | Y122: 8492646.637 | Z122: 0 | AA122: 0 | AB122: 13490903.95 | AC122: 26686732.71 | AD122: 59186823.41
B123: EMISSÕES DE CO2 DA ELETRICIDADE | D123: =SUM(D87:D88) -> 17439331.63 | E123: =SUM(E87:E88) -> 13356459.73 | F123: =SUM(F87:F88) -> 0 | I123: =SUM(I87:I88) -> 0 | J123: 0 | K123: 0 | L123: 30795791.36 | M123: 0 | N123: 0 | O123: 0 | P123: 0 | R123: =SUM(R87:R88) -> 0 | S123: =SUM(S87:S88) -> 0 | T123: =SUM(T87:T88) -> 0 | V123: =V93 -> 30795791.36 | W123: =SUM(W87:W88) -> 0 | X123: =SUM(X87:X88) -> 0 | Y123: =SUM(Y87:Y88) -> 0 | AA123: =SUM(AA87:AA88) -> 0 | AB123: =SUM(M123:AA123)-V123 -> 0 | AD123: =SUM(AD87:AD88) -> 30795791.36 | AE123: CH coque Pet | AF123: =COMENTÁRIOS!AF$2 -> 0
B124: EMISSÕES DE CO2 DO CONSUMO FINAL | D124: =D93 -> 48732984.65 | E124: =E93 -> 5434276 | F124: =F93 -> 0 | I124: =I93 -> 0 | J124: 0 | K124: 1560807.72 | L124: 55728068.37 | M124: 128823241.3 | N124: 12773521.27 | O124: 53109852.07 | P124: 24113587.69 | R124: =R93 -> 11797638.42 | S124: =S93 -> 3025023.888 | T124: =T93 -> 418008.7863 | W124: =W93 -> 0 | X124: =X93 -> 0 | Y124: =Y93 -> 35257042.58 | AA124: =AA93 -> 345418.0367 | AB124: =SUM(M124:AA124)-V124 -> 269663334.1 | AC124: =AB124+L124 -> 325391402.5 | AD124: =AC124+V124 -> 325391402.5 | AE124: CH coque CM | AF124: =COMENTÁRIOS!AF$2 -> 0
B125: EMISSÕES TOTAIS DE CO2 DA ENERGIA | D125: =SUM(D123:D124) -> 66172316.29 | E125: =SUM(E123:E124) -> 18790735.73 | F125: =SUM(F123:F124) -> 0 | I125: 0 | J125: 0 | K125: 1560807.72 | L125: 86523859.74 | M125: 128823241.3 | N125: 12773521.27 | O125: 53109852.07 | P125: 24113587.69 | R125: =SUM(R123:R124) -> 11797638.42 | S125: =SUM(S123:S124) -> 3025023.888 | T125: =SUM(T123:T124) -> 418008.7863 | V125: =SUM(V123:V124) -> 30795791.36 | W125: =SUM(W123:W124) -> 0 | X125: =SUM(X123:X124) -> 0 | Y125: =SUM(Y123:Y124) -> 35257042.58 | AA125: =SUM(AA123:AA124) -> 345418.0367 | AB125: =SUM(AB123:AB124) -> 269663334.1 | AC125: =SUM(AC123:AC124) -> 325391402.5 | AD125: =SUM(AD123:AD124) -> 356187193.8 | AE125: CH carvão vapor | AF125: =COMENTÁRIOS!AF$2 -> 0

Sheet 2025
AK8: Conversão m3 =>tep
AK9: 0.652 | AL9: 0.87 | AM9: 0.88 | AN9: 0.655 | AO9: 0.873 | AP9: 0.889587
B10: CENÁRIO IES BRASIL 2 | AF10: =K13 -> OUTRAS FONTES PRIMÁRIAS | AI10: ="Teor biodiesel na ind. "&LEFT(B11,4) -> Teor biodiesel na ind. 2025 | AK10: =Y13 -> OUTRAS SECUNDÁRIAS DE PETRÓLEO
B11: 2025 - 10³ tep | AI11: 0.0940171
C12: FONTES DE ENERGIA PRIMÁRIA | M12: FONTES DE ENERGIA SECUNDÁRIA | AF12: O U T R O S
B13: CONTA | C13: PETRÓLEO | D13: GÁS NATURAL | E13: CARVÃO VAPOR | F13: CARVÃO METALÚRGICO | G13: URÂNIO U3O8 | H13: ENERGIA HIDRÁULICA | I13: LENHA | J13: PRODUTOS DA CANA | K13: OUTRAS FONTES PRIMÁRIAS | L13: ENERGIA PRIMÁRIA TOTAL | M13: ÓLEO DIESEL | N13: ÓLEO COMBUSTIVEL | O13: GASOLINA | P13: GLP | Q13: NAFTA | R13: QUEROSENE | S13: GÁS DE CIDADE E DE COQUERIA | T13: COQUE DE CARVÃO MINERAL | U13: URÂNIO CONTIDO NO UO2 | V13: ELETRICIDADE | W13: CARVÃO VEGETAL | X13: ÁLCOOL ETÍLICO ANIDRO E HIDRATADO | Y13: OUTRAS SECUNDÁRIAS DE PETRÓLEO | Z13: PRODUTOS NÃO ENERGÉTICOS DE PETRÓLEO | AA13: ALCATRÃO | AB13: ENERGIA SECUNDÁRIA TOTAL | AC13: TOTAL SEM ELETRIC | AD13: TOTAL COM ELETRIC | AF13: =COMENTÁRIOS!AB20 -> LIXÍVIA | AG13: =COMENTÁRIOS!AC20 -> OUTRAS PRIM. RENOVÁVEIS | AH13: =COMENTÁRIOS!AD20 -> OUTRAS PRIM. NÃO RENOV. | AI13: =COMENTÁRIOS!AE20 -> ÓLEO DIESEL MINERAL | AJ13: =COMENTÁRIOS!AF20 -> BIODIESEL | AK13: =COMENTÁRIOS!AG20 -> GÁS DE REFINARIA | AL13: =COMENTÁRIOS!AH20 -> COQUE DE PETRÓLEO | AM13: =COMENTÁRIOS!AI20 -> OUTROS EN. DE PETRÓLEO
B14: PRODUÇÃO | C14: =[1]consolidado2025!B25 -> 145333.9 | D14: =[1]consolidado2025!$C$25 -> 32262.2 | E14: =[1]consolidado2025!D25 -> 4638.9 | F14: =[1]consolidado2025!E25 -> 0 | G14: =[1]consolidado2025!F25 -> 6200.4 | H14: =[1]consolidado2025!G25 -> 44275.2 | I14: =[1]consolidado2025!H25 -> 23221.2 | J14: =[1]consolidado2025!I25 -> 62498.8 | K14: =[1]consolidado2025!J25 -> 21025.7 | L14: =SUM(C14:K14) -> 339456.3 | M14: =[1]consolidado2025!L25 -> 0 | N14: =[1]consolidado2025!M25 -> 0 | O14: =[1]consolidado2025!N25 -> 0 | P14: =[1]consolidado2025!O25 -> 0 | Q14: =[1]consolidado2025!P25 -> 0 | R14: =[1]consolidado2025!Q25 -> 0 | S14: =[1]consolidado2025!R25 -> 0 | T14: =[1]consolidado2025!S25 -> 0 | U14: =[1]consolidado2025!T25 -> 0 | V14: =[1]consolidado2025!U25 -> 0 | W14: =[1]consolidado2025!V25 -> 0 | X14: =[1]consolidado2025!W25 -> 0 | Y14: =[1]consolidado2025!X25 -> 0 | Z14: =[1]consolidado2025!Y25 -> 0 | AA14: =[1]consolidado2025!Z25 -> 0 | AB14: =SUM(M14:AA14) -> 0 | AC14: =AD14-V14 -> 339456.3 | AD14: =AB14+L14 -> 339456.3
B15: IMPORTAÇÃO | C15: =[1]consolidado2025!B26 -> 17602.1 | D15: =[1]consolidado2025!C26 -> 11474.4 | E15: =[1]consolidado2025!D26 -> 3661 | F15: =[1]consolidado2025!E26 -> 9378.4 | G15: =[1]consolidado2025!F26 -> 0 | H15: =[1]consolidado2025!G26 -> 0 | I15: =[1]consolidado2025!H26 -> 0 | J15: =[1]consolidado2025!I26 -> 0 | K15: =[1]consolidado2025!J26 -> 0 | L15: =SUM(C15:K15) -> 42115.9 | M15: =[1]consolidado2025!L26 -> 0 | N15: =[1]consolidado2025!M26 -> 0 | O15: =[1]consolidado2025!N26 -> 0 | P15: =[1]consolidado2025!O26 -> 4282 | Q15: =[1]consolidado2025!P26 -> 3691.3 | R15: =[1]consolidado2025!Q26 -> 0 | S15: =[1]consolidado2025!R26 -> 0 | T15: =[1]consolidado2025!S26 -> 2198.8 | U15: =[1]consolidado2025!T26 -> 0 | V15: =[1]consolidado2025!U26 -> 1511.936982 | W15: =[1]consolidado2025!V26 -> 0 | X15: =[1]consolidado2025!W26 -> 0 | Y15: =[1]consolidado2025!X26 -> 6385.4 | Z15: =[1]consolidado2025!Y26 -> 2686.1 | AA15: =[1]consolidado2025!Z26 -> 0 | AB15: =SUM(M15:AA15) -> 20755.53698 | AC15: 61359.5 | AD15: 62871.43698 | AL15: =AP15*$Y15/AL$9 -> 7339.54023 | AP15: 1
B16: VARIAÇÃO DE ESTOQUES | C16: =[1]consolidado2025!B27 -> 0 | D16: =[1]consolidado2025!C27 -> 0 | E16: =[1]consolidado2025!D27 -> 0 | F16: =[1]consolidado2025!E27 -> 0 | G16: =[1]consolidado2025!F27 -> 0 | H16: =[1]consolidado2025!G27 -> 0 | I16: =[1]consolidado2025!H27 -> 0 | J16: =[1]consolidado2025!I27 -> 0 | K16: =[1]consolidado2025!J27 -> 0 | L16: 0 | M16: =[1]consolidado2025!L27 -> 0 | N16: =[1]consolidado2025!M27 -> 0 | O16: =[1]consolidado2025!N27 -> 0 | P16: =[1]consolidado2025!O27 -> 0 | Q16: =[1]consolidado2025!P27 -> 0 | R16: =[1]consolidado2025!Q27 -> 0 | S16: =[1]consolidado2025!R27 -> 0 | T16: =[1]consolidado2025!S27 -> 0 | U16: =[1]consolidado2025!T27 -> 0 | V16: =[1]consolidado2025!U27 -> 0 | W16: =[1]consolidado2025!V27 -> 0 | X16: =[1]consolidado2025!W27 -> 0 | Y16: =[1]consolidado2025!X27 -> 0 | Z16: =[1]consolidado2025!Y27 -> 0 | AA16: =[1]consolidado2025!Z27 -> 0 | AB16: 0 | AC16: 0 | AD16: 0 | AL16: =AP16*$Y16/AL$9 -> 0 | AP16: 1
B17: OFERTA TOTAL | C17: =SUM(C14:C16) -> 162936 | D17: =SUM(D14:D16) -> 43736.6 | E17: 8299.9 | F17: 9378.4 | G17: 6200.4 | H17: 44275.2 | I17: 23221.2 | J17: 62498.8 | K17: 21025.7 | L17: 381572.2 | M17: =SUM(M14:M16) -> 0 | N17: =SUM(N14:N16) -> 0 | O17: 0 | P17: 4282 | Q17: 3691.3 | R17: 0 | S17: 0 | T17: 2198.8 | U17: 0 | V17: 1511.936982 | W17: 0 | X17: 0 | Y17: 6385.4 | Z17: 2686.1 | AA17: 0 | AB17: 20755.53698 | AC17: 400815.8 | AD17: 402327.737 | AL17: =SUM(AL14:AL16) -> 7339.54023
B18: EXPORTAÇÃO | C18: =[1]consolidado2025!B29 -> -58327.9 | D18: =[1]consolidado2025!C29 -> 0 | E18: =[1]consolidado2025!D29 -> 0 | F18: =[1]consolidado2025!E29 -> 0 | G18: =[1]consolidado2025!F29 -> 0 | H18: =[1]consolidado2025!G29 -> 0 | I18: =[1]consolidado2025!H29 -> 0 | J18: =[1]consolidado2025!I29 -> 0 | K18: =[1]consolidado2025!J29 -> 0 | L18: -58327.9 | M18: =[1]consolidado2025!L29 -> 0 | N18: =[1]consolidado2025!M29 -> -9161 | O18: =[1]consolidado2025!N29 -> -2673.6 | P18: =[1]consolidado2025!O29 -> 0 | Q18: =[1]consolidado2025!P29 -> 0 | R18: =[1]consolidado2025!Q29 -> -255.8 | S18: =[1]consolidado2025!R29 -> 0 | T18: =[1]consolidado2025!S29 -> 0 | U18: =[1]consolidado2025!T29 -> 0 | V18: =[1]consolidado2025!U29 -> 0 | W18: =[1]consolidado2025!V29 -> 0 | X18: =[1]consolidado2025!W29 -> -1300.2 | Y18: =[1]consolidado2025!X29 -> 0 | Z18: =[1]consolidado2025!Y29 -> 0 | AA18: =[1]consolidado2025!Z29 -> 0 | AB18: -13390.6 | AC18: -71718.5 | AD18: -71718.5 | AL18: =AP18*$Y18/AL$9 -> 0 | AP18: 1
B19: NÃO-APROVEITADA | C19: =[1]consolidado2025!B30 -> 0 | D19: =[1]consolidado2025!C30 -> -1984.6 | E19: =[1]consolidado2025!D30 -> 0 | F19: =[1]consolidado2025!E30 -> 0 | G19: =[1]consolidado2025!F30 -> 0 | H19: =[1]consolidado2025!G30 -> 0 | I19: =[1]consolidado2025!H30 -> 0 | J19: =[1]consolidado2025!I30 -> 0 | K19: =[1]consolidado2025!J30 -> 0 | L19: -1984.6 | M19: =[1]consolidado2025!L30 -> 0 | N19: =[1]consolidado2025!M30 -> 0 | O19: =[1]consolidado2025!N30 -> 0 | P19: =[1]consolidado2025!O30 -> 0 | Q19: =[1]consolidado2025!P30 -> 0 | R19: =[1]consolidado2025!Q30 -> 0 | S19: =[1]consolidado2025!R30 -> 0 | T19: =[1]consolidado2025!S30 -> 0 | U19: =[1]consolidado2025!T30 -> 0 | V19: =[1]consolidado2025!U30 -> 0 | W19: =[1]consolidado2025!V30 -> 0 | X19: =[1]consolidado2025!W30 -> 0 | Y19: =[1]consolidado2025!X30 -> 0 | Z19: =[1]consolidado2025!Y30 -> 0 | AA19: =[1]consolidado2025!Z30 -> 0 | AB19: 0 | AC19: -1984.6 | AD19: -1984.6
B20: REINJEÇÃO | C20: =[1]consolidado2025!B31 -> 0 | D20: =[1]consolidado2025!C31 -> -6099.2 | E20: =[1]consolidado2025!D31 -> 0 | F20: =[1]consolidado2025!E31 -> 0 | G20: =[1]consolidado2025!F31 -> 0 | H20: =[1]consolidado2025!G31 -> 0 | I20: =[1]consolidado2025!H31 -> 0 | J20: =[1]consolidado2025!I31 -> 0 | K20: =[1]consolidado2025!J31 -> 0 | L20: -6099.2 | M20: =[1]consolidado2025!L31 -> 0 | N20: =[1]consolidado2025!M31 -> 0 | O20: =[1]consolidado2025!N31 -> 0 | P20: =[1]consolidado2025!O31 -> 0 | Q20: =[1]consolidado2025!P31 -> 0 | R20: =[1]consolidado2025!Q31 -> 0 | S20: =[1]consolidado2025!R31 -> 0 | T20: =[1]consolidado2025!S31 -> 0 | U20: =[1]consolidado2025!T31 -> 0 | V20: =[1]consolidado2025!U31 -> 0 | W20: =[1]consolidado2025!V31 -> 0 | X20: =[1]consolidado2025!W31 -> 0 | Y20: =[1]consolidado2025!X31 -> 0 | Z20: =[1]consolidado2025!Y31 -> 0 | AA20: =[1]consolidado2025!Z31 -> 0 | AB20: 0 | AC20: -6099.2 | AD20: -6099.2
B21: OFERTA INTERNA BRUTA | C21: =C17+SUM(C18:C20) -> 104608.1 | D21: =D17+SUM(D18:D20) -> 35652.8 | E21: 8299.9 | F21: 9378.4 | G21: 6200.4 | H21: 44275.2 | I21: 23221.2 | J21: 62498.8 | K21: 21025.7 | L21: =SUM(C21:K21) -> 315160.5 | M21: =M17+SUM(M18:M20) -> 0 | N21: =N17+SUM(N18:N20) -> -9161 | O21: -2673.6 | P21: 4282 | Q21: 3691.3 | R21: -255.8 | S21: 0 | T21: 2198.8 | U21: 0 | V21: 1511.936982 | W21: 0 | X21: -1300.2 | Y21: 6385.4 | Z21: 2686.1 | AA21: 0 | AB21: 7364.936982 | AC21: 321013.5 | AD21: 322525.437 | AL21: =AL17+SUM(AL18:AL20) -> 7339.54023
B22: TOTAL TRANSFORMAÇÃO | C22: =SUM(C23:C32) -> -104608.1 | D22: =SUM(D23:D32) -> -11771 | E22: -3334.3 | F22: -9378.4 | G22: -6200.4 | H22: -44275.1 | I22: -8679.9 | J22: -29115.9 | K22: -12390 | L22: =SUM(C22:K22) -> -229753.1 | M22: =SUM(M23:M32) -> 48556.3 | N22: =SUM(N23:N32) -> 13422.1 | O22: 18837.5 | P22: 5707.7 | Q22: 5335 | R22: 4812.2 | S22: 2001.2 | T22: 7643.5 | U22: 0 | V22: 63111.55417 | W22: 5393.2 | X22: 18598.9 | Y22: 6726.6 | Z22: 7098.7 | AA22: 252.7 | AB22: 207497.1542 | AC22: -85367.5 | AD22: -22255.94583 | AK22: =SUM(AK23:AK32) -> 7006.230364 | AL22: =SUM(AL23:AL32) -> 2481.077934
B23: REFINARIAS DE PETRÓLEO | C23: =[1]consolidado2025!B34 -> -104608.1 | D23: 0 | E23: =[1]consolidado2025!D34 -> 0 | F23: =[1]consolidado2025!E34 -> 0 | G23: =[1]consolidado2025!F34 -> 0 | H23: =[1]consolidado2025!G34 -> 0 | I23: =[1]consolidado2025!H34 -> 0 | J23: =[1]consolidado2025!I34 -> 0 | K23: =[1]consolidado2025!J34 -> -5253.7 | L23: =SUM(C23:K23) -> -109861.8 | M23: =[1]consolidado2025!L34 -> 48561.8 | N23: =[1]consolidado2025!M34 -> 13598.9 | O23: =[1]consolidado2025!N34 -> 18620 | P23: =[1]consolidado2025!O34 -> 4184.5 | Q23: =[1]consolidado2025!P34 -> 5335 | R23: =[1]consolidado2025!Q34 -> 4812.2 | S23: =[1]consolidado2025!R34 -> 0 | T23: =[1]consolidado2025!S34 -> 0 | U23: =[1]consolidado2025!T34 -> 0 | V23: =[1]consolidado2025!U34 -> -313.7 | W23: =[1]consolidado2025!V34 -> 0 | X23: =[1]consolidado2025!W34 -> 0 | Y23: =[1]consolidado2025!X34 -> 7636.5 | Z23: =[1]consolidado2025!Y34 -> 5962.4 | AA23: =[1]consolidado2025!Z34 -> 0 | AB23: 108397.6 | AC23: -1150.5 | AD23: -1464.2 | AK23: =AO23*$Y23/AK$9 -> 7006.230364 | AL23: =AP23*$Y23/AL$9 -> 3526.940003 | AO23: 0.5981879391 | AP23: 0.4018120609
B24: PLANTAS DE GAS NATURAL | C24: =[1]consolidado2025!B35 -> 0 | D24: =[1]consolidado2025!C35 -> -4303.5 | E24: =[1]consolidado2025!D35 -> 0 | F24: =[1]consolidado2025!E35 -> 0 | G24: =[1]consolidado2025!F35 -> 0 | H24: =[1]consolidado2025!G35 -> 0 | I24: =[1]consolidado2025!H35 -> 0 | J24: =[1]consolidado2025!I35 -> 0 | K24: =[1]consolidado2025!J35 -> 1450.5 | L24: =SUM(C24:K24) -> -2853 | M24: =[1]consolidado2025!L35 -> 0 | N24: =[1]consolidado2025!M35 -> 0 | O24: =[1]consolidado2025!N35 -> 217.5 | P24: =[1]consolidado2025!O35 -> 1523.2 | Q24: =[1]consolidado2025!P35 -> 0 | R24: =[1]consolidado2025!Q35 -> 0 | S24: =[1]consolidado2025!R35 -> 0 | T24: =[1]consolidado2025!S35 -> 0 | U24: =[1]consolidado2025!T35 -> 0 | V24: =[1]consolidado2025!U35 -> 0 | W24: =[1]consolidado2025!V35 -> 0 | X24: =[1]consolidado2025!W35 -> 0 | Y24: =[1]consolidado2025!X35 -> 0 | Z24: =[1]consolidado2025!Y35 -> 1136.3 | AA24: =[1]consolidado2025!Z35 -> 0 | AB24: 2877 | AC24: 24 | AD24: 24
B25: USINAS DE GASEIFICAÇÃO | C25: =[1]consolidado2025!B36 -> 0 | D25: =[1]consolidado2025!C36 -> 0 | E25: =[1]consolidado2025!D36 -> 0 | F25: =[1]consolidado2025!E36 -> 0 | G25: =[1]consolidado2025!F36 -> 0 | H25: =[1]consolidado2025!G36 -> 0 | I25: =[1]consolidado2025!H36 -> 0 | J25: =[1]consolidado2025!I36 -> 0 | K25: =[1]consolidado2025!J36 -> 0 | L25: 0 | M25: =[1]consolidado2025!L36 -> 0 | N25: =[1]consolidado2025!M36 -> 0 | O25: =[1]consolidado2025!N36 -> 0 | P25: =[1]consolidado2025!O36 -> 0 | Q25: =[1]consolidado2025!P36 -> 0 | R25: =[1]consolidado2025!Q36 -> 0 | S25: =[1]consolidado2025!R36 -> 0 | T25: =[1]consolidado2025!S36 -> 0 | U25: =[1]consolidado2025!T36 -> 0 | V25: =[1]consolidado2025!U36 -> 0 | W25: =[1]consolidado2025!V36 -> 0 | X25: =[1]consolidado2025!W36 -> 0 | Y25: =[1]consolidado2025!X36 -> 0 | Z25: =[1]consolidado2025!Y36 -> 0 | AA25: =[1]consolidado2025!Z36 -> 0 | AB25: 0 | AC25: 0 | AD25: 0
B26: COQUERIAS | C26: =[1]consolidado2025!B37 -> 0 | D26: =[1]consolidado2025!C37 -> 0 | E26: =[1]consolidado2025!D37 -> 0 | F26: =[1]consolidado2025!E37 -> -9378.4 | G26: =[1]consolidado2025!F37 -> 0 | H26: =[1]consolidado2025!G37 -> 0 | I26: =[1]consolidado2025!H37 -> 0 | J26: =[1]consolidado2025!I37 -> 0 | K26: =[1]consolidado2025!J37 -> 0 | L26: -9378.4 | M26: =[1]consolidado2025!L37 -> 0 | N26: =[1]consolidado2025!M37 -> 0 | O26: =[1]consolidado2025!N37 -> 0 | P26: =[1]consolidado2025!O37 -> 0 | Q26: =[1]consolidado2025!P37 -> 0 | R26: =[1]consolidado2025!Q37 -> 0 | S26: =[1]consolidado2025!R37 -> 2016.1 | T26: =[1]consolidado2025!S37 -> 7643.5 | U26: =[1]consolidado2025!T37 -> 0 | V26: =[1]consolidado2025!U37 -> 0 | W26: =[1]consolidado2025!V37 -> 0 | X26: =[1]consolidado2025!W37 -> 0 | Y26: =[1]consolidado2025!X37 -> -909.9 | Z26: =[1]consolidado2025!Y37 -> 0 | AA26: =[1]consolidado2025!Z37 -> 262.4 | AB26: 9012.1 | AC26: -366.3 | AD26: -366.3 | AL26: =AP26*$Y26/AL$9 -> -1045.862069 | AP26: 1
B27: CICLO DO COMBUSTÍVEL NUCLEAR | C27: =[1]consolidado2025!B38 -> 0 | D27: =[1]consolidado2025!C38 -> 0 | E27: =[1]consolidado2025!D38 -> 0 | F27: =[1]consolidado2025!E38 -> 0 | G27: =[1]consolidado2025!F38 -> -6200.4 | H27: =[1]consolidado2025!G38 -> 0 | I27: =[1]consolidado2025!H38 -> 0 | J27: =[1]consolidado2025!I38 -> 0 | K27: =[1]consolidado2025!J38 -> 0 | L27: -6200.4 | M27: =[1]consolidado2025!L38 -> 0 | N27: =[1]consolidado2025!M38 -> 0 | O27: =[1]consolidado2025!N38 -> 0 | P27: =[1]consolidado2025!O38 -> 0 | Q27: =[1]consolidado2025!P38 -> 0 | R27: =[1]consolidado2025!Q38 -> 0 | S27: =[1]consolidado2025!R38 -> 0 | T27: =[1]consolidado2025!S38 -> 0 | U27: =[1]consolidado2025!T38 -> 6101.3 | V27: =[1]consolidado2025!U38 -> 0 | W27: =[1]consolidado2025!V38 -> 0 | X27: =[1]consolidado2025!W38 -> 0 | Y27: =[1]consolidado2025!X38 -> 0 | Z27: =[1]consolidado2025!Y38 -> 0 | AA27: =[1]consolidado2025!Z38 -> 0 | AB27: 6101.3 | AC27: -99.1 | AD27: -99.1
B28: CENTRAIS ELÉTRICAS DE SERVIÇO PÚBLICO | C28: =[1]consolidado2025!B39 -> 0 | D28: =[1]consolidado2025!C39 -> -7467.5 | E28: =[1]consolidado2025!D39 -> -3307 | F28: =[1]consolidado2025!E39 -> 0 | G28: =[1]consolidado2025!F39 -> 0 | H28: =[1]consolidado2025!G39 -> -44275.1 | I28: =[1]consolidado2025!H39 -> -593.5 | J28: =[1]consolidado2025!I39 -> 0 | K28: =[1]consolidado2025!J39 -> -6556.3 | L28: -62199.4 | M28: =[1]consolidado2025!L39 -> -5.5 | N28: =[1]consolidado2025!M39 -> -176.8 | O28: =[1]consolidado2025!N39 -> 0 | P28: =[1]consolidado2025!O39 -> 0 | Q28: =[1]consolidado2025!P39 -> 0 | R28: =[1]consolidado2025!Q39 -> 0 | S28: =[1]consolidado2025!R39 -> 0 | T28: =[1]consolidado2025!S39 -> 0 | U28: =[1]consolidado2025!T39 -> -6101.3 | V28: =[1]consolidado2025!U39 -> 57206.85417 | W28: =[1]consolidado2025!V39 -> 0 | X28: =[1]consolidado2025!W39 -> 0 | Y28: =[1]consolidado2025!X39 -> 0 | Z28: =[1]consolidado2025!Y39 -> 0 | AA28: =[1]consolidado2025!Z39 -> 0 | AB28: 50923.25417 | AC28: -68483 | AD28: -11276.14583 | AI28: =(1-$AI$11)*M28 -> -4.98290595 | AJ28: =$AI$11*M28 -> -0.51709405 | AK28: =AO28*$Y28/AK$9 -> 0 | AO28: 1
B29: CENTRAIS ELÉTRICAS AUTOPRODUTORAS | C29: =[1]consolidado2025!B40 -> 0 | D29: =[1]consolidado2025!C40 -> 0 | E29: =[1]consolidado2025!D40 -> -27.3 | F29: =[1]consolidado2025!E40 -> 0 | G29: =[1]consolidado2025!F40 -> 0 | H29: =[1]consolidado2025!G40 -> 0 | I29: =[1]consolidado2025!H40 -> 0 | J29: =[1]consolidado2025!I40 -> -10517 | K29: =[1]consolidado2025!J40 -> -2030.5 | L29: -12574.8 | M29: =[1]consolidado2025!L40 -> 0 | N29: =[1]consolidado2025!M40 -> 0 | O29: =[1]consolidado2025!N40 -> 0 | P29: =[1]consolidado2025!O40 -> 0 | Q29: =[1]consolidado2025!P40 -> 0 | R29: =[1]consolidado2025!Q40 -> 0 | S29: =[1]consolidado2025!R40 -> -14.9 | T29: =[1]consolidado2025!S40 -> 0 | U29: =[1]consolidado2025!T40 -> 0 | V29: =[1]consolidado2025!U40 -> 6218.4 | W29: =[1]consolidado2025!V40 -> 0 | X29: =[1]consolidado2025!W40 -> 0 | Y29: =[1]consolidado2025!X40 -> 0 | Z29: =[1]consolidado2025!Y40 -> 0 | AA29: =[1]consolidado2025!Z40 -> -9.7 | AB29: 6193.8 | AC29: -12599.4 | AD29: -6381 | AI29: =(1-$AI$11)*M29 -> 0 | AJ29: =$AI$11*M29 -> 0 | AK29: =AO29*$Y29/AK$9 -> 0 | AM29: =AQ29*$Y29/AM$9 -> 0 | AO29: 0.6645011926 | AQ29: 0.3354988074
B30: CARVOARIAS | C30: =[1]consolidado2025!B41 -> 0 | D30: =[1]consolidado2025!C41 -> 0 | E30: =[1]consolidado2025!D41 -> 0 | F30: =[1]consolidado2025!E41 -> 0 | G30: =[1]consolidado2025!F41 -> 0 | H30: =[1]consolidado2025!G41 -> 0 | I30: =[1]consolidado2025!H41 -> -8086.4 | J30: =[1]consolidado2025!I41 -> 0 | K30: =[1]consolidado2025!J41 -> 0 | L30: -8086.4 | M30: =[1]consolidado2025!L41 -> 0 | N30: =[1]consolidado2025!M41 -> 0 | O30: =[1]consolidado2025!N41 -> 0 | P30: =[1]consolidado2025!O41 -> 0 | Q30: =[1]consolidado2025!P41 -> 0 | R30: =[1]consolidado2025!Q41 -> 0 | S30: =[1]consolidado2025!R41 -> 0 | T30: =[1]consolidado2025!S41 -> 0 | U30: =[1]consolidado2025!T41 -> 0 | V30: =[1]consolidado2025!U41 -> 0 | W30: =[1]consolidado2025!V41 -> 5393.2 | X30: =[1]consolidado2025!W41 -> 0 | Y30: =[1]consolidado2025!X41 -> 0 | Z30: =[1]consolidado2025!Y41 -> 0 | AA30: =[1]consolidado2025!Z41 -> 0 | AB30: 5393.2 | AC30: -2693.2 | AD30: -2693.2
B31: DESTILARIAS | C31: =[1]consolidado2025!B42 -> 0 | D31: =[1]consolidado2025!C42 -> 0 | E31: =[1]consolidado2025!D42 -> 0 | F31: =[1]consolidado2025!E42 -> 0 | G31: =[1]consolidado2025!F42 -> 0 | H31: =[1]consolidado2025!G42 -> 0 | I31: =[1]consolidado2025!H42 -> 0 | J31: =[1]consolidado2025!I42 -> -18598.9 | K31: =[1]consolidado2025!J42 -> 0 | L31: -18598.9 | M31: =[1]consolidado2025!L42 -> 0 | N31: =[1]consolidado2025!M42 -> 0 | O31: =[1]consolidado2025!N42 -> 0 | P31: =[1]consolidado2025!O42 -> 0 | Q31: =[1]consolidado2025!P42 -> 0 | R31: =[1]consolidado2025!Q42 -> 0 | S31: =[1]consolidado2025!R42 -> 0 | T31: =[1]consolidado2025!S42 -> 0 | U31: =[1]consolidado2025!T42 -> 0 | V31: =[1]consolidado2025!U42 -> 0 | W31: =[1]consolidado2025!V42 -> 0 | X31: =[1]consolidado2025!W42 -> 18598.9 | Y31: =[1]consolidado2025!X42 -> 0 | Z31: =[1]consolidado2025!Y42 -> 0 | AA31: =[1]consolidado2025!Z42 -> 0 | AB31: 18598.9 | AC31: 0 | AD31: 0
B32: OUTRAS TRANSFORMAÇÕES | C32: =[1]consolidado2025!B43 -> 0 | D32: =[1]consolidado2025!C43 -> 0 | E32: =[1]consolidado2025!D43 -> 0 | F32: =[1]consolidado2025!E43 -> 0 | G32: =[1]consolidado2025!F43 -> 0 | H32: =[1]consolidado2025!G43 -> 0 | I32: =[1]consolidado2025!H43 -> 0 | J32: =[1]consolidado2025!I43 -> 0 | K32: =[1]consolidado2025!J43 -> 0 | L32: 0 | M32: =[1]consolidado2025!L43 -> 0 | N32: =[1]consolidado2025!M43 -> 0 | O32: =[1]consolidado2025!N43 -> 0 | P32: =[1]consolidado2025!O43 -> 0 | Q32: =[1]consolidado2025!P43 -> 0 | R32: =[1]consolidado2025!Q43 -> 0 | S32: =[1]consolidado2025!R43 -> 0 | T32: =[1]consolidado2025!S43 -> 0 | U32: =[1]consolidado2025!T43 -> 0 | V32: =[1]consolidado2025!U43 -> 0 | W32: =[1]consolidado2025!V43 -> 0 | X32: =[1]consolidado2025!W43 -> 0 | Y32: =[1]consolidado2025!X43 -> 0 | Z32: =[1]consolidado2025!Y43 -> 0 | AA32: =[1]consolidado2025!Z43 -> 0 | AB32: 0 | AC32: 0 | AD32: 0 | AL32: =AP32*$Y32/AL$9 -> 0 | AM32: =AQ32*$Y32/AM$9 -> 0 | AP32: -0.1046786627 | AQ32: 1.104678663
B33: PERDAS NA DISTRIBUIÇÃO E ARMAZENAGEM | C33: =IF(ABS(C34-C22-C21-C60)<0.0000001,0,C34-C22-C21-C60) -> 0 | D33: -234.3370755 | E33: -12.53474596 | F33: 0 | G33: 0 | H33: -0.1 | I33: -5.558936033 | J33: 0 | K33: -718.8169454 | L33: -971.3477029 | M33: =IF(ABS(M34-M22-M21-M60)<0.0000001,0,M34-M22-M21-M60) -> 4.541223666 | N33: -0.1870285048 | O33: 0 | P33: -2.452439426 | Q33: -0.0571014018 | R33: -0.2871415619 | S33: 0 | T33: -5.767122637 | U33: 0 | V33: -8218.266858 | W33: -17.98462246 | X33: -0.07152410188 | Y33: -451.8370831 | Z33: 0 | AA33: -151.0110983 | AB33: -8843.380796 | AC33: -1596.461641 | AD33: -9814.728499 | AL33: =AP33*$Y33/AL$9 -> -519.3529691 | AP33: 1
B34: CONSUMO FINAL | C34: =SUM(C35:C36) -> 0 | D34: 23647.46292 | E34: 4953.455669 | F34: 0 | G34: 0 | H34: 0 | I34: 14536.22732 | J34: 33382.9 | K34: 7916.883055 | L34: =SUM(C34:K34) -> 84436.92897 | M34: =SUM(M35:M36) -> 48560.87005 | N34: 4261.058099 | O34: 16163.96457 | P34: 9987.256096 | Q34: 9026.242899 | R34: 4556.112858 | S34: 2001.520835 | T34: 9836.532877 | U34: 0 | V34: 56405.22429 | W34: 5375.410156 | X34: 17298.62848 | Y34: 12660.16292 | Z34: 9784.900166 | AA34: 101.6889017 | AB34: 206019.5732 | AC34: 234051.2779 | AD34: 290456.5022 | AK34: =SUM(AK35:AK36) -> 6335.58388 | AL34: =SUM(AL35:AL36) -> 6724.840115 | AM34: =SUM(AM35:AM36) -> 3044.035599
B35: CONSUMO FINAL NÃO-ENERGÉTICO | C35: =[1]consolidado2025!B46 -> 0 | D35: =[1]consolidado2025!C46 -> 3256.623439 | E35: =[1]consolidado2025!D46 -> 0 | F35: =[1]consolidado2025!E46 -> 0 | G35: =[1]consolidado2025!F46 -> 0 | H35: =[1]consolidado2025!G46 -> 0 | I35: =[1]consolidado2025!H46 -> 0 | J35: =[1]consolidado2025!I46 -> 0 | K35: =[1]consolidado2025!J46 -> 0 | L35: =SUM(C35:K35) -> 3256.623439 | M35: =[1]consolidado2025!L46 -> 0 | N35: =[1]consolidado2025!M46 -> 0 | O35: =[1]consolidado2025!N46 -> 0 | P35: =[1]consolidado2025!O46 -> 0 | Q35: =[1]consolidado2025!P46 -> 9026.242899 | R35: =[1]consolidado2025!Q46 -> 0 | S35: =[1]consolidado2025!R46 -> 0 | T35: =[1]consolidado2025!S46 -> 0 | U35: =[1]consolidado2025!T46 -> 0 | V35: =[1]consolidado2025!U46 -> 0 | W35: =[1]consolidado2025!V46 -> 0 | X35: =[1]consolidado2025!W46 -> 631.640097 | Y35: =[1]consolidado2025!X46 -> 0 | Z35: =[1]consolidado2025!Y46 -> 9784.900166 | AA35: =[1]consolidado2025!Z46 -> 0 | AB35: 19442.78316 | AC35: 22699.4066 | AD35: 22699.4066 | AK35: =AO35*$Y35/AK$9 -> 0 | AO35: 1
B36: CONSUMO FINAL ENERGÉTICO | C36: =SUM(C37:C42)+C47+C59 -> 0 | D36: =SUM(D37:D42)+D47+D59 -> 20390.83949 | E36: 4953.455669 | F36: 0 | G36: 0 | H36: 0 | I36: 14536.22732 | J36: 33382.9 | K36: 7916.883055 | L36: =SUM(C36:K36) -> 81180.30553 | M36: =SUM(M37:M42)+M47+M59 -> 48560.87005 | N36: 4261.058099 | O36: 16163.96457 | P36: 9987.256096 | Q36: 0 | R36: 4556.112858 | S36: 2001.520835 | T36: 9836.532877 | U36: 0 | V36: 56405.22429 | W36: 5375.410156 | X36: 16666.98838 | Y36: 12660.16292 | Z36: 0 | AA36: 101.6889017 | AB36: =SUM(M36:AA36) -> 186576.79 | AC36: 211351.8713 | AD36: 267757.0956 | AK36: =SUM(AK37:AK42)+AK47+AK59 -> 6335.58388 | AL36: =SUM(AL37:AL42)+AL47+AL59 -> 6724.840115 | AM36: =SUM(AM37:AM42)+AM47+AM59 -> 3044.035599
B37: SETOR ENERGÉTICO | C37: =[1]consolidado2025!B48 -> 0 | D37: =[1]consolidado2025!C48-[1]consolidado2025!$C$34 -> 6287.767823 | E37: =[1]consolidado2025!D48 -> 0 | F37: =[1]consolidado2025!E48 -> 0 | G37: =[1]consolidado2025!F48 -> 0 | H37: =[1]consolidado2025!G48 -> 0 | I37: =[1]consolidado2025!H48 -> 0 | J37: =-[1]consolidado2025!I44 -> 15366.43436 | K37: =[1]consolidado2025!J48 -> 0 | L37: =SUM(C37:K37) -> 21654.20219 | M37: =[1]consolidado2025!L48 -> 1228.044569 | N37: =[1]consolidado2025!M48 -> 425.3765607 | O37: =[1]consolidado2025!N48 -> 0 | P37: =[1]consolidado2025!O48 -> 27.50663611 | Q37: =[1]consolidado2025!P48 -> 0 | R37: =[1]consolidado2025!Q48 -> 0 | S37: =[1]consolidado2025!R48 -> 266.2151421 | T37: =[1]consolidado2025!S48 -> 0 | U37: =[1]consolidado2025!T48 -> 0 | V37: =[1]consolidado2025!U48-[1]consolidado2025!$U$25 -> 3124.261532 | W37: =[1]consolidado2025!V48 -> 0 | X37: =[1]consolidado2025!W48 -> 0 | Y37: =[1]consolidado2025!X48 -> 3953.476496 | Z37: =[1]consolidado2025!Y48 -> 0 | AA37: =[1]consolidado2025!Z48 -> 0 | AB37: =SUM(M37:AA37) -> 9024.880936 | AC37: 27554.82159 | AD37: 30679.08312 | AI37: =(1-$AI$11)*M37 -> 1112.58738 | AJ37: =$AI$11*M37 -> 115.4571891 | AK37: =AO37*$Y37/AK$9 -> 6063.614258 | AO37: 1
B38: RESIDENCIAL | D38: 732.8126417 | I38: 4676.748375 | L38: =SUM(C38:K38) -> 5409.561017 | P38: 7767.701165 | R38: 1.011244746 | V38: 16170.87198 | W38: 488.5342409 | AB38: =SUM(M38:AA38) -> 24428.11863 | AC38: 13666.80767 | AD38: 29837.67965
B39: COMERCIAL | D39: 254.8226113 | I39: 87.9227677 | L39: 342.745379 | M39: 6.517916781 | N39: 16.71749037 | P39: 467.8086438 | V39: 10498.2692 | W39: 84.16312994 | AB39: 11073.47638 | AC39: 917.9525599 | AD39: 11416.22176 | AI39: 5.905232603 | AJ39: 0.6126841774
B40: PÚBLICO | D40: 38.65670074 | L40: 38.65670074 | M40: 2.413442948 | N40: 10.09320851 | P40: 229.4975468 | V40: 3343.530287 | AB40: 3585.534485 | AC40: 280.660899 | AD40: 3624.191186 | AI40: 2.186579311 | AJ40: 0.2268636371
B41: AGROPECUÁRIO | I41: 1916.599766 | L41: 1916.599766 | M41: 6455.857994 | N41: 20.93912218 | P41: 228.4628297 | V41: 2682.475138 | W41: 16.03831023 | X41: 12.57601909 | AB41: 9416.349413 | AC41: 8650.474041 | AD41: 11332.94918 | AI41: 5849.007343 | AJ41: 606.8506514
B42: TRANSPORTES - TOTAL | D42: 1661.915898 | L42: 1661.915898 | M42: 39798.46732 | N42: 1094.663304 | O42: 16163.96457 | R42: 4553.54031 | V42: 380.2534596 | X42: 16654.41236 | AB42: 78645.30132 | AC42: 79926.96376 | AD42: 80307.21722 | AI42: 36098.92357 | AJ42: 3699.543748
B43: RODOVIÁRIO | D43: 1661.915898 | L43: 1661.915898 | M43: 38490.95907 | O43: 16110.39814 | V43: 38.65534747 | X43: 16654.41236 | AB43: 71294.42492 | AC43: 72917.68547 | AD43: 72956.34082 | AI43: 34872.15095 | AJ43: 3618.808118
B44: FERROVIÁRIO | L44: 0 | M44: 858.7335179 | V44: 341.5981121 | AB44: 1200.33163 | AC44: 858.7335179 | AD44: 1200.33163 | AI44: 777.997888 | AJ44: 80.73562989
B45: AÉREO | L45: 0 | O45: 53.56642805 | R45: 4553.54031 | AB45: 4607.106738 | AC45: 4607.106738 | AD45: 4607.106738 | AI45: 0 | AJ45: 0
B46: HIDROVIÁRIO | L46: 0 | M46: 448.774734 | N46: 1094.663304 | AB46: 1543.438038 | AC46: 1543.438038 | AD46: 1543.438038 | AI46: 448.774734 | AJ46: 0
B47: INDUSTRIAL - TOTAL | D47: =SUM(D48:D59) -> 11414.86381 | E47: 4953.455669 | I47: =SUM(I48:I59) -> 7854.956415 | J47: 18016.46564 | K47: 7916.883055 | L47: 50156.62458 | M47: =SUM(M48:M59) -> 1069.568803 | N47: 2693.268413 | P47: =SUM(P48:P59) -> 1266.279275 | R47: =SUM(R48:R59) -> 1.561303252 | S47: 1735.305693 | T47: 9836.532877 | V47: =SUM(V48:V59) -> 20205.5627 | W47: 4786.674475 | Y47: =SUM(Y48:Y59) -> 8706.686421 | AA47: =SUM(AA48:AA59) -> 101.6889017 | AB47: 50403.12886 | AC47: 80354.19075 | AD47: 100559.7534 | AF47: =SUM(AF48:AF59) -> 6417.097137 | AG47: 1219.649647 | AH47: 280.1362707 | AI47: 969.0110457 | AJ47: 100.5577571 | AK47: 271.9696222 | AL47: 6724.840115 | AM47: 3044.035599
B48: CIMENTO | D48: 10.7769 | E48: 92.5131 | I48: 41.0275 | K48: =SUM(AF48:AH48) -> 366.001813 | L48: 510.319313 | M48: 39.2822 | N48: 10.6138 | P48: 18.1004 | T48: 40.2231 | V48: 582.1973 | W48: 132.7362 | Y48: 3334.4965 | AB48: 4157.6495 | AC48: 4085.771513 | AD48: 4667.968813 | AG48: 145.9708329 | AH48: 220.0309801 | AI48: =(1-$AI$11)*M48 -> 35.58900147 | AJ48: =$AI$11*M48 -> 3.693198526 | AL48: =AP48*$Y48/AL$9 -> 3832.754598 | AP48: 1
B49: FERRO-GUSA E AÇO | D49: 1606.44666 | E49: 2430.435138 | K49: =SUM(AF49:AH49) -> 0 | L49: 4036.881798 | M49: 75.56928085 | N49: 0 | P49: 23.17847568 | S49: 1735.305693 | T49: 9380.150811 | V49: 2138.293925 | W49: 4301.274646 | Y49: 54.48708281 | AA49: 101.6889017 | AB49: 17809.94882 | AC49: 19708.53669 | AD49: 21846.83061 | AI49: =(1-$AI$11)*M49 -> 68.46447622 | AJ49: =$AI$11*M49 -> 7.104804635 | AL49: =AP49*$Y49/AL$9 -> 62.62883082 | AP49: 1
B50: FERRO-LIGAS | D50: 45.65609797 | E50: 0 | I50: 54.22339426 | L50: 99.87949222 | M50: 5.445638267 | N50: 2.16893577 | P50: 10.98023734 | R50: 0 | T50: 52.37979885 | V50: 458.9132629 | W50: 308.5311133 | Y50: 127.3165297 | AB50: 965.7355162 | AC50: 606.7017455 | AD50: 1065.615008 | AI50: 4.93365515 | AJ50: 0.5119831175 | AL50: 146.3408388 | AP50: 1
B51: MINERAÇÃO E PELOTIZ. | D51: 1455.881475 | E51: 830.4357951 | L51: 2286.31727 | M51: 406.0264153 | N51: 283.1846448 | P51: 74.18298607 | R51: 1.103808362 | T51: 77.98406081 | V51: 1530.291914 | Y51: 438.4065002 | AB51: 2811.18033 | AC51: 3567.205686 | AD51: 5097.4976 | AI51: 367.8529892 | AJ51: 38.17342609 | AL51: 503.9155175 | AP51: 1
B52: NÃO-FERROSOS E OUTROS DA METALURGIA | D52: 886.486797 | E52: 952.6503571 | L52: 1839.137154 | M52: 7.73052339 | N52: 841.2846184 | P52: 34.44973744 | T52: 285.7951071 | V52: 3342.16573 | W52: 10.05575377 | Y52: 744.4207709 | AB52: 5265.902242 | AC52: 3762.873665 | AD52: 7105.039396 | AI52: 7.003721999 | AJ52: 0.7268013906 | AL52: 855.6560585 | AP52: 1
B53: QUÍMICA | D53: 2535.024766 | E53: 196.0713783 | I53: 54.47159516 | K53: =SUM(AF53:AH53) -> 145.9183596 | L53: 2931.486099 | M53: 48.95335756 | N53: 471.8946432 | P53: 379.1231823 | V53: 2072.924731 | W53: 22.9030199 | Y53: 2973.767097 | AB53: 5969.566031 | AC53: 6828.127399 | AD53: 8901.05213 | AG53: 85.81306902 | AH53: 60.1052906 | AI53: 44.35090485 | AJ53: 4.602452713 | AK53: =AO53*$Y53/AK$9 -> 271.9696222 | AL53: 135.2776736 | AM53: =AQ53*$Y53/AM$9 -> 3044.035599 | AO53: 0.0596294827 | AP53: 0.03957659501 | AQ53: 0.9007939223
B54: ALIMENTOS E BEBIDAS | D54: 923.5186667 | E54: 80.74697552 | I54: 2154.857508 | J54: 17970.55276 | K54: =SUM(AF54:AH54) -> 1.136981053 | L54: 21130.81289 | M54: 279.7562019 | N54: 301.8288318 | P54: 199.7039859 | V54: 2600.252234 | Y54: 94.82889235 | AB54: 3476.370146 | AC54: 22006.93081 | AD54: 24607.18304 | AG54: 1.136981053 | AI54: 253.454335 | AJ54: 26.30186681 | AL54: 108.9987268 | AP54: 1
B55: TÊXTIL | D55: 292.334648 | I55: 150.902505 | L55: 443.237153 | M55: 6.194445621 | N55: 65.79013051 | P55: 64.74292574 | V55: 739.6035091 | AB55: 876.331011 | AC55: 579.9646549 | AD55: 1319.568164 | AI55: 5.612061807 | AJ55: 0.5823838134
B56: PAPEL E CELULOSE | D56: 955.9235235 | E56: 168.9027259 | I56: 2050.961672 | J56: 36.20696505 | K56: =SUM(AF56:AH56) -> 7350.887922 | L56: 10562.88281 | M56: 5.058911701 | N56: 453.0312428 | P56: 54.82372627 | V56: 2523.09198 | AB56: 3036.005861 | AC56: 11075.79669 | AD56: 13598.88867 | AF56: 6417.097137 | AG56: 933.7907848 | AI56: 4.583287494 | AJ56: 0.4756242073
B57: CERÂMICA | D57: 1225.870517 | E57: 35.26197117 | I57: 2112.000312 | J57: 9.705907056 | K57: =SUM(AF57:AH57) -> 52.93797876 | L57: 3435.776686 | M57: 23.38887009 | N57: 79.59381245 | P57: 195.8459539 | V57: 394.0209044 | Y57: 456.2513188 | AB57: 1149.10086 | AC57: 4190.856642 | AD57: 4584.877546 | AG57: 52.93797876 | AI57: 21.18991635 | AJ57: 2.198953738 | AL57: =AP57*$Y57/AL$9 -> 524.4268032 | AP57: 1
B58: OUTROS | D58: 1476.943759 | E58: 166.4382276 | I58: 1236.511928 | L58: 2879.893915 | M58: 172.1629581 | N58: 183.8777538 | P58: 211.1476641 | R58: 0.4574948897 | V58: 3823.80721 | W58: 11.17374226 | Y58: 482.7117291 | AB58: 4885.338553 | AC58: 3941.425257 | AD58: 7765.232467 | AI58: 155.9766961 | AJ58: 16.18626205 | AL58: =AP58*$Y58/AL$9 -> 554.841068 | AP58: 1
B59: CONSUMO NÃO-IDENTIFICADO
B60: AJUSTES | E60: 0.3904147508 | I60: 0.4862594121 | L60: =SUM(C60:K60) -> 0.8766741629 | M60: 0.02882438367 | N60: 0.1451274796 | O60: 0.06456885147 | P60: 0.008535095304 | S60: 0.3208354071 | W60: 0.1947786852 | Z60: 0.1001659781 | AB60: =SUM(M60:AA60) -> 0.8628358804 | AC60: =AD60-V60 -> 1.739510043 | AD60: =AB60+L60 -> 1.739510043
B61: CENTRAIS ELÉTRICAS (CESP+AUTOP.) | D61: =SUM(D28:D29) -> -7467.5 | E61: =SUM(E28:E29) -> -3334.3 | H61: =SUM(H28:H29) -> -44275.1 | I61: -593.5 | J61: -10517 | K61: -8586.8 | L61: -74774.2 | M61: -5.5 | N61: -176.8 | S61: =SUM(S28:S29) -> -14.9 | U61: =SUM(U28:U29) -> -6101.3 | V61: 63425.25417 | Y61: =SUM(Y28:Y29) -> 0 | AA61: -9.7 | AB61: 57117.05417 | AC61: -81082.4 | AD61: -17657.14583 | AF61: 0 | AG61: 0 | AH61: 0 | AI61: -4.98290595 | AJ61: -0.51709405 | AK61: 0 | AL61: 0 | AM61: 0
B62: EDIFICAÇÕES (Re+Co+Pu)+ AGROPECUÁRIA | C62: =SUM(C38:C41) -> 0 | D62: =SUM(D38:D41) -> 1026.291954 | E62: 0 | F62: 0 | G62: 0 | H62: 0 | I62: 6681.270909 | J62: 0 | K62: 0 | L62: 7707.562862 | M62: 6464.789354 | N62: 47.74982106 | O62: 0 | P62: 8693.470185 | Q62: 0 | R62: 1.011244746 | S62: 0 | T62: 0 | U62: 0 | V62: 32695.1466 | W62: 588.7356811 | X62: 12.57601909 | Y62: 0 | Z62: 0 | AA62: 0 | AB62: 48503.47891 | AC62: 23515.89517 | AD62: 56211.04177
B63: SETOR ENERGÉTICO E PROD. DE ELETRICIDADE | C63: =C37-SUM(C28:C29) -> 0 | D63: =D37-SUM(D28:D29) -> 13755.26782 | E63: 3334.3 | F63: 0 | G63: 0 | H63: 44275.1 | I63: 593.5 | J63: 25883.43436 | K63: 8586.8 | L63: 96428.40219 | M63: 1233.544569 | N63: 602.1765607 | O63: 0 | P63: 27.50663611 | Q63: 0 | R63: 0 | S63: 281.1151421 | T63: 0 | U63: 6101.3 | V63: =V37 -> 3124.261532 | W63: 0 | X63: 0 | Y63: 3953.476496 | Z63: 0 | AA63: 9.7 | AD63: 48336.22895
B64: CONSUMO FINAL E PROD. DE ELETRICIDADE | C64: =C36-SUM(C28:C29) -> 0 | D64: =D36-SUM(D28:D29) -> 27858.33949 | E64: 8287.755669 | F64: 0 | G64: 0 | H64: 44275.1 | I64: 15129.72732 | J64: 43899.9 | K64: 16503.68305 | L64: 155954.5055 | M64: 48566.37005 | N64: 4437.858099 | O64: 16163.96457 | P64: 9987.256096 | Q64: 0 | R64: 4556.112858 | S64: 2016.420835 | T64: 9836.532877 | U64: 6101.3 | V64: -7020.029876 | W64: 5375.410156 | X64: 16666.98838 | Y64: 12660.16292 | Z64: 0 | AA64: 111.3889017 | AD64: =AD36-SUM(AD28:AD29) -> 285414.2414
B68: Fatores de emissão em tCO2/TJ ==> | D68: =COMENTÁRIOS!C21 -> 56.1 | E68: =COMENTÁRIOS!D21 -> 96.1 | F68: =COMENTÁRIOS!E21 -> 94.6 | G68: =COMENTÁRIOS!F21 -> 0 | H68: =COMENTÁRIOS!G21 -> 0 | I68: =COMENTÁRIOS!H21 -> 0 | J68: =COMENTÁRIOS!I21 -> 0 | K68: =COMENTÁRIOS!J21 -> Outros | M68: =COMENTÁRIOS!L21 -> Outros | N68: =COMENTÁRIOS!M21 -> 77.4 | O68: =COMENTÁRIOS!N21 -> 69.3 | P68: =COMENTÁRIOS!O21 -> 63.1 | Q68: =COMENTÁRIOS!P21 -> 73.3 | R68: =COMENTÁRIOS!Q21 -> 71.5 | S68: =COMENTÁRIOS!R21 -> 44.4 | T68: =COMENTÁRIOS!S21 -> 107 | U68: =COMENTÁRIOS!T21 -> 0 | V68: =COMENTÁRIOS!U21 -> 0 | W68: =COMENTÁRIOS!V21 -> 0 | X68: =COMENTÁRIOS!W21 -> 0 | Y68: =COMENTÁRIOS!X21 -> Outros | Z68: =COMENTÁRIOS!Y21 -> 73.3 | AA68: =COMENTÁRIOS!Z21 -> 80.7 | AF68: =COMENTÁRIOS!AB21 -> 0 | AG68: =COMENTÁRIOS!AC21 -> 0 | AH68: =COMENTÁRIOS!AD21 -> 143 | AI68: =COMENTÁRIOS!AE21 -> 74.1 | AJ68: =COMENTÁRIOS!AF21 -> 0 | AK68: =COMENTÁRIOS!AG21 -> 57.6 | AL68: =COMENTÁRIOS!AH21 -> 97.5 | AM68: =COMENTÁRIOS!AI21 -> 73.3
B69: CENÁRIO IES BRASIL 2 - EMISSÕES DE CO2 DA ENERGIA
B70: =LEFT(B11,4)&" - tCO2" -> 2025 - tCO2
C71: FONTES DE ENERGIA PRIMÁRIA | M71: FONTES DE ENERGIA SECUNDÁRIA | AC71: TOTAIS | AF71: =AF12 -> O U T R O S
B72: CONTA | C72: PETRÓLEO | D72: GÁS NATURAL | E72: CARVÃO VAPOR | F72: CARVÃO METALÚRGICO | G72: URÂNIO U3O8 | H72: ENERGIA HIDRÁULICA | I72: LENHA | J72: PRODUTOS DA CANA | K72: OUTRAS FONTES PRIMÁRIAS | L72: ENERGIA PRIMÁRIA TOTAL | M72: ÓLEO DIESEL | N72: ÓLEO COMBUSTIVEL | O72: GASOLINA | P72: GLP | Q72: NAFTA | R72: QUEROSENE | S72: GÁS DE CIDADE E DE COQUERIA | T72: COQUE DE CARVÃO MINERAL | U72: URÂNIO CONTIDO NO UO2 | V72: ELETRICIDADE | W72: CARVÃO VEGETAL | X72: ÁLCOOL ETÍLICO ANIDRO E HIDRATADO | Y72: OUTRAS SECUNDÁRIAS DE PETRÓLEO | Z72: PRODUTOS NÃO ENERGÉTICOS DE PETRÓLEO | AA72: ALCATRÃO | AB72: ENERGIA SECUNDÁRIA TOTAL | AC72: TOTAL DIRETO | AD72: TOTAL COM ELETRIC | AF72: =AF13 -> LIXÍVIA | AG72: =AG13 -> OUTRAS PRIM. RENOVÁVEIS | AH72: OUTRAS PRIM. NÃO RENOV. | AI72: ÓLEO DIESEL MINERAL | AJ72: BIODIESEL | AK72: GÁS DE REFINARIA | AL72: COQUE DE PETRÓLEO | AM72: OUTROS EN. DE PETRÓLEO
B73: PRODUÇÃO
B74: IMPORTAÇÃO
B75: VARIAÇÃO DE ESTOQUES
B76: OFERTA TOTAL
B77: EXPORTAÇÃO
B78: NÃO-APROVEITADA
B79: REINJEÇÃO
B80: OFERTA INTERNA BRUTA
B81: TOTAL TRANSFORMAÇÃO | D81: =SUM(D82:D91) -> 17539625.17 | E81: =SUM(E82:E91) -> 13415605.4 | L81: =SUM(L82:L91) -> 30955230.57 | M81: =SUM(M82:M91) -> 15459.0611 | N81: =SUM(N82:N91) -> 572935.1098 | S81: =SUM(S82:S91) -> 27698.19408 | Y81: =SUM(Y82:Y91) -> 27256416.27 | AA81: =SUM(AA82:AA91) -> 32773.85172 | AB81: =SUM(AB82:AB91) -> 648866.2167 | AD81: =SUM(AD82:AD91) -> 31604096.78 | AI81: =SUM(AI82:AI91) -> 15459.0611 | AJ81: =SUM(AJ82:AJ91) -> 0 | AK81: =SUM(AK82:AK91) -> 11016324.18 | AL81: =SUM(AL82:AL91) -> 16240092.1 | AM81: =SUM(AM82:AM91) -> 0
B82: REFINARIAS DE PETRÓLEO | Y82: =SUM(AK82:AM82) -> 23542086.19 | AK82: =ABS(AK23)*COMENTÁRIOS!$AE$1*AK$68*AK$9 -> 11016324.18 | AL82: =ABS(AL23)*COMENTÁRIOS!$AE$1*AL$68*AL$9 -> 12525762.01
B83: PLANTAS DE GAS NATURAL
B84: USINAS DE GASEIFICAÇÃO
B85: COQUERIAS | Y85: =SUM(AK85:AM85) -> 3714330.087 | AL85: =ABS(AL26)*COMENTÁRIOS!$AE$1*AL$68*AL$9 -> 3714330.087
B86: CICLO DO COMBUSTÍVEL NUCLEAR
B87: CENTRAIS ELÉTRICAS DE SERVIÇO PÚBLICO | D87: =ABS(D28)*COMENTÁRIOS!$AE$1*D$68 -> 17539625.17 | E87: =ABS(E28)*COMENTÁRIOS!$AE$1*E$68 -> 13305763.44 | L87: =SUM(C87:K87) -> 30845388.61 | M87: =SUM(AI87:AJ87) -> 15459.0611 | N87: =ABS(N28)*COMENTÁRIOS!$AE$1*N$68 -> 572935.1098 | Y87: =SUM(AK87:AM87) -> 0 | AB87: =SUM(M87:AA87) -> 588394.1709 | AD87: =AB87+L87 -> 31433782.78 | AI87: =ABS(AI28)*COMENTÁRIOS!$AE$1*AI$68 -> 15459.0611 | AJ87: =ABS(AJ28)*COMENTÁRIOS!$AE$1*AJ$68 -> 0 | AK87: =ABS(AK28)*COMENTÁRIOS!$AE$1*AK$68*AK$9 -> 0
B88: CENTRAIS ELÉTRICAS AUTOPRODUTORAS | D88: =ABS(D29)*COMENTÁRIOS!$AE$1*D$68 -> 0 | E88: =ABS(E29)*COMENTÁRIOS!$AE$1*E$68 -> 109841.954 | L88: =SUM(C88:K88) -> 109841.954 | M88: =SUM(AI88:AJ88) -> 0 | N88: =ABS(N29)*COMENTÁRIOS!$AE$1*N$68 -> 0 | S88: =ABS(S29)*COMENTÁRIOS!$AE$1*S$68 -> 27698.19408 | Y88: =SUM(AK88:AM88) -> 0 | AA88: =ABS(AA29)*COMENTÁRIOS!$AE$1*AA$68 -> 32773.85172 | AB88: =SUM(M88:AA88) -> 60472.0458 | AD88: =AB88+L88 -> 170313.9998 | AI88: =ABS(AI29)*COMENTÁRIOS!$AE$1*AI$68 -> 0 | AJ88: =ABS(AJ29)*COMENTÁRIOS!$AE$1*AJ$68 -> 0 | AK88: =ABS(AK29)*COMENTÁRIOS!$AE$1*AK$68*AK$9 -> 0 | AM88: =ABS(AM29)*COMENTÁRIOS!$AE$1*AM$68*AM$9 -> 0
B89: CARVOARIAS
B90: DESTILARIAS
B91: OUTRAS TRANSFORMAÇÕES | Y91: =SUM(AK91:AM91) -> 0 | AL91: =ABS(AL32)*COMENTÁRIOS!$AE$1*AL$68*AL$9 -> 0 | AM91: =ABS(AM32)*COMENTÁRIOS!$AE$1*AM$68*AM$9 -> 0
B92: PERDAS NA DISTRIBUIÇÃO E ARMAZENAGEM
B93: CONSUMO FINAL | D93: =SUM(D94:D95) -> 55543037.95 | E93: =SUM(E94:E95) -> 6318407.635 | I93: =SUM(I94:I95) -> 0 | J93: =SUM(J94:J95) -> 0 | K93: =SUM(K94:K95) -> 1677210.59 | L93: =SUM(C93:K93) -> 63538656.18 | M93: =SUM(M94:M95) -> 136623143.8 | N93: =SUM(N94:N95) -> 13808313.29 | O93: =SUM(O94:O95) -> 46898973.79 | P93: =SUM(P94:P95) -> 26385040.25 | R93: =SUM(R94:R95) -> 13639006.32 | S93: =SUM(S94:S95) -> 3720705.541 | T93: =SUM(T94:T95) -> 529553.4227 | V93: =SUM(V94:V95) -> 31604096.78 | W93: =SUM(W94:W95) -> 0 | X93: =SUM(X94:X95) -> 0 | Y93: =SUM(Y94:Y95) -> 38284696.97 | AA93: =SUM(AA94:AA95) -> 343581.1327 | AB93: =SUM(M93:AA93)-V93 -> 280233014.5 | AC93: =AB93+L93 -> 343771670.7 | AD93: =AC93+V93 -> 375375767.5 | AF93: =SUM(AF94:AF95) -> 0 | AG93: 0 | AH93: 1677210.59 | AI93: 136623143.8 | AJ93: 0 | AK93: 9961825.725 | AL93: 23882954.27 | AM93: 8220885.31
B94: CONSUMO FINAL NÃO-ENERGÉTICO | D94: =D35*COMENTÁRIOS!$AE$1*D$68 -> 7649140.2 | L94: =SUM(C94:K94) -> 7649140.2 | Q94: =Q35*COMENTÁRIOS!$AE$1*Q$68 -> 27700857.07 | R94: =R35*COMENTÁRIOS!$AE$1*R$68 -> 0 | Y94: =SUM(AK94:AM94) -> 0 | Z94: =Z35*COMENTÁRIOS!$AE$1*Z$68 -> 30029118.87 | AA94: =AA35*COMENTÁRIOS!$AE$1*AA$68 -> 0 | AB94: =SUM(M94:AA94)-V94 -> 57729975.94 | AC94: =AB94+L94 -> 65379116.14 | AD94: =AC94+V94 -> 65379116.14 | AK94: =ABS(AK35)*COMENTÁRIOS!$AE$1*AK$68*AK$9 -> 0
B95: CONSUMO FINAL ENERGÉTICO | D95: =SUM(D96:D101)+D106 -> 47893897.75 | E95: =SUM(E96:E101)+E106 -> 6318407.635 | I95: =SUM(I96:I101)+I106 -> 0 | J95: =SUM(J96:J101)+J106 -> 0 | K95: =SUM(K96:K101)+K106 -> 1677210.59 | L95: =SUM(C95:K95) -> 55889515.98 | M95: =SUM(M96:M101)+M106 -> 136623143.8 | N95: =SUM(N96:N101)+N106 -> 13808313.29 | O95: =SUM(O96:O101)+O106 -> 46898973.79 | P95: =SUM(P96:P101)+P106 -> 26385040.25 | R95: =SUM(R96:R101)+R106 -> 13639006.32 | S95: =SUM(S96:S101)+S106 -> 3720705.541 | T95: =SUM(T96:T101)+T106 -> 529553.4227 | V95: =SUM(V96:V101)+V106 -> 31604096.78 | W95: =SUM(W96:W101)+W106 -> 0 | X95: =SUM(X96:X101)+X106 -> 0 | Y95: =SUM(Y96:Y101)+Y106 -> 38284696.97 | AA95: =SUM(AA96:AA101)+AA106 -> 343581.1327 | AB95: 280233014.5 | AC95: =AB95+L95 -> 336122530.5 | AD95: =AC95+V95 -> 367726627.3 | AF95: =SUM(AF96:AF101)+AF106 -> 0 | AG95: 0 | AH95: 1677210.59 | AI95: 136623143.8 | AJ95: 0 | AK95: 9961825.725 | AL95: 23882954.27 | AM95: 8220885.31
B96: SETOR ENERGÉTICO | D96: =D37*COMENTÁRIOS!$AE$1*D$68 -> 14768676.37 | L96: 14768676.37 | M96: =SUM(AI96:AJ96) -> 3451712.005 | N96: =N37*COMENTÁRIOS!$AE$1*N$68 -> 1378468.136 | P96: =P37*COMENTÁRIOS!$AE$1*P$68 -> 72668.97874 | S96: =S37*COMENTÁRIOS!$AE$1*S$68 -> 494877.7633 | V96: =V37/V$34*$AD$123 -> 1750537.562 | Y96: =SUM(AK96:AM96) -> 9534191.267 | AB96: 14931918.15 | AC96: 29700594.52 | AD96: 31451132.08 | AI96: =ABS(AI37)*COMENTÁRIOS!$AE$1*AI$68 -> 3451712.005 | AJ96: =ABS(AJ37)*COMENTÁRIOS!$AE$1*AJ$68 -> 0 | AK96: =ABS(AK37)*COMENTÁRIOS!$AE$1*AK$68*AK$9 -> 9534191.267
B97: RESIDENCIAL | D97: =D38*COMENTÁRIOS!$AE$1*D$68 -> 1721226.522 | I97: =I38*COMENTÁRIOS!$AE$1*I$68 -> 0 | L97: 1721226.522 | P97: =P38*COMENTÁRIOS!$AE$1*P$68 -> 20521262.89 | R97: =R38*COMENTÁRIOS!$AE$1*R$68 -> 3027.223845 | V97: =V38/V$34*$AD$123 -> 9060611.131 | W97: =W38*COMENTÁRIOS!$AE$1*W$68 -> 0 | AB97: 20524290.11 | AC97: 22245516.64 | AD97: 31306127.77
B98: COMERCIAL | D98: =D39*COMENTÁRIOS!$AE$1*D$68 -> 598526.0242 | I98: =I39*COMENTÁRIOS!$AE$1*I$68 -> 0 | L98: 598526.0242 | M98: =SUM(AI98:AJ98) -> 18320.50465 | N98: =N39*COMENTÁRIOS!$AE$1*N$68 -> 54174.41844 | P98: =P39*COMENTÁRIOS!$AE$1*P$68 -> 1235889.996 | V98: =V39/V$34*$AD$123 -> 5882226.689 | W98: =W39*COMENTÁRIOS!$AE$1*W$68 -> 0 | AB98: 1308384.919 | AC98: 1906910.943 | AD98: 7789137.632 | AI98: =ABS(AI39)*COMENTÁRIOS!$AE$1*AI$68 -> 18320.50465 | AJ98: =ABS(AJ39)*COMENTÁRIOS!$AE$1*AJ$68 -> 0
B99: PÚBLICO | D99: =D40*COMENTÁRIOS!$AE$1*D$68 -> 90796.65768 | L99: 90796.65768 | M99: =SUM(AI99:AJ99) -> 6783.684761 | N99: =N40*COMENTÁRIOS!$AE$1*N$68 -> 32707.88194 | P99: =P40*COMENTÁRIOS!$AE$1*P$68 -> 606302.8674 | V99: =V40/V$34*$AD$123 -> 1873394.816 | AB99: 645794.4341 | AC99: 736591.0918 | AD99: 2609985.908 | AI99: =ABS(AI40)*COMENTÁRIOS!$AE$1*AI$68 -> 6783.684761 | AJ99: =ABS(AJ40)*COMENTÁRIOS!$AE$1*AJ$68 -> 0
B100: AGROPECUÁRIO | I100: =I41*COMENTÁRIOS!$AE$1*I$68 -> 0 | L100: 0 | M100: =SUM(AI100:AJ100) -> 18146070.34 | N100: =N41*COMENTÁRIOS!$AE$1*N$68 -> 67854.96756 | P100: =P41*COMENTÁRIOS!$AE$1*P$68 -> 603569.2787 | V100: =V41/V$34*$AD$123 -> 1503002.691 | W100: =W41*COMENTÁRIOS!$AE$1*W$68 -> 0 | X100: =X41*COMENTÁRIOS!$AE$1*X$68 -> 0 | AB100: 18817494.59 | AC100: 18817494.59 | AD100: 20320497.28 | AI100: =ABS(AI41)*COMENTÁRIOS!$AE$1*AI$68 -> 18146070.34 | AJ100: =ABS(AJ41)*COMENTÁRIOS!$AE$1*AJ$68 -> 0
B101: TRANSPORTES - TOTAL | D101: =SUM(D102:D105) -> 3903499.419 | L101: 3903499.419 | M101: =SUM(M102:M105) -> 111993979.2 | N101: =SUM(N102:N105) -> 3547347.512 | O101: =SUM(O102:O105) -> 46898973.79 | R101: =SUM(R102:R105) -> 13631305.24 | V101: =SUM(V102:V105) -> 213057.6961 | X101: =SUM(X102:X105) -> 0 | AB101: 176071605.7 | AC101: 179975105.1 | AD101: 180188162.8 | AI101: =SUM(AI102:AI105) -> 111993979.2 | AJ101: =SUM(AJ102:AJ105) -> 0
B102: RODOVIÁRIO | D102: =D43*COMENTÁRIOS!$AE$1*D$68 -> 3903499.419 | L102: 3903499.419 | M102: =SUM(AI102:AJ102) -> 108188016.7 | O102: =O43*COMENTÁRIOS!$AE$1*O$68 -> 46743553.35 | V102: =V43/V$34*$AD$123 -> 21658.76225 | X102: =X43*COMENTÁRIOS!$AE$1*X$68 -> 0 | AB102: 154931570.1 | AC102: 158835069.5 | AD102: 158856728.2 | AI102: =ABS(AI43)*COMENTÁRIOS!$AE$1*AI$68 -> 108188016.7 | AJ102: =ABS(AJ43)*COMENTÁRIOS!$AE$1*AJ$68 -> 0
B103: FERROVIÁRIO | M103: =SUM(AI103:AJ103) -> 2413675.274 | V103: =V44/V$34*$AD$123 -> 191398.9339 | AB103: 2413675.274 | AC103: 2413675.274 | AD103: 2605074.208 | AI103: =ABS(AI44)*COMENTÁRIOS!$AE$1*AI$68 -> 2413675.274 | AJ103: =ABS(AJ44)*COMENTÁRIOS!$AE$1*AJ$68 -> 0
B104: AÉREO | O104: =O45*COMENTÁRIOS!$AE$1*O$68 -> 155420.4412 | R104: =R45*COMENTÁRIOS!$AE$1*R$68 -> 13631305.24 | AB104: 13786725.68 | AC104: 13786725.68 | AD104: 13786725.68
B105: HIDROVIÁRIO | M105: =SUM(AI105:AJ105) -> 1392287.172 | N105: =N46*COMENTÁRIOS!$AE$1*N$68 -> 3547347.512 | AB105: 4939634.683 | AC105: 4939634.683 | AD105: 4939634.683 | AI105: =ABS(AI46)*COMENTÁRIOS!$AE$1*AI$68 -> 1392287.172 | AJ105: =ABS(AJ46)*COMENTÁRIOS!$AE$1*AJ$68 -> 0
B106: INDUSTRIAL - TOTAL | D106: =SUM(D107:D117) -> 26811172.76 | E106: =SUM(E107:E117) -> 6318407.635 | I106: =SUM(I107:I117) -> 0 | J106: =SUM(J107:J117) -> 0 | K106: =SUM(K107:K117) -> 1677210.59 | L106: 34806790.99 | M106: =SUM(M107:M117) -> 3006278.085 | N106: =SUM(N107:N117) -> 8727760.374 | P106: =SUM(P107:P117) -> 3345346.24 | R106: =SUM(R107:R117) -> 4673.858086 | S106: =SUM(S107:S117) -> 3225827.777 | T106: =SUM(T107:T117) -> 529553.4227 | V106: =SUM(V107:V117) -> 11321266.2 | W106: =SUM(W107:W117) -> 0 | Y106: =SUM(Y107:Y117) -> 28750505.7 | AA106: =SUM(AA107:AA117) -> 343581.1327 | AB106: 47933526.59 | AC106: 82740317.57 | AD106: 94061583.77 | AF106: =SUM(AF107:AF117) -> 0 | AG106: 0 | AH106: 1677210.59 | AI106: 3006278.085 | AJ106: 0 | AK106: 427634.458 | AL106: 23882954.27 | AM106: 8220885.31
B107: CIMENTO | D107: =D48*COMENTÁRIOS!$AE$1*D$68 -> 25312.72668 | E107: =E48*COMENTÁRIOS!$AE$1*E$68 -> 372227.827 | I107: =I48*COMENTÁRIOS!$AE$1*I$68 -> 0 | K107: =SUM(AF107:AH107) -> 1317352.762 | L107: 1714893.315 | M107: =SUM(AI107:AJ107) -> 110411.9872 | N107: =N48*COMENTÁRIOS!$AE$1*N$68 -> 34394.90197 | P107: =P48*COMENTÁRIOS!$AE$1*P$68 -> 47818.91823 | T107: =T48*COMENTÁRIOS!$AE$1*T$68 -> 180194.5003 | V107: =V48/V$34*$AD$123 -> 326207.7236 | W107: =W48*COMENTÁRIOS!$AE$1*W$68 -> 0 | Y107: =SUM(AK107:AM107) -> 13611848.2 | AB107: 13984668.51 | AC107: 15699561.82 | AD107: 16025769.54 | AF107: =ABS(AF48)*COMENTÁRIOS!$AE$1*AF$68 -> 0 | AG107: =ABS(AG48)*COMENTÁRIOS!$AE$1*AG$68 -> 0 | AH107: =ABS(AH48)*COMENTÁRIOS!$AE$1*AH$68 -> 1317352.762 | AI107: =ABS(AI48)*COMENTÁRIOS!$AE$1*AI$68 -> 110411.9872 | AJ107: =ABS(AJ48)*COMENTÁRIOS!$AE$1*AJ$68 -> 0 | AL107: =ABS(AL48)*COMENTÁRIOS!$AE$1*AL$68*AL$9 -> 13611848.2
B108: FERRO-GUSA E AÇO | D108: =D49*COMENTÁRIOS!$AE$1*D$68 -> 3773213.562 | E108: =E49*COMENTÁRIOS!$AE$1*E$68*AF125 -> 0 | K108: =SUM(AF108:AH108) -> 0 | L108: 3773213.562 | M108: 212405.4782 | N108: =N49*COMENTÁRIOS!$AE$1*N$68 -> 0 | P108: =P49*COMENTÁRIOS!$AE$1*P$68 -> 61234.53808 | S108: =S49*COMENTÁRIOS!$AE$1*S$68 -> 3225827.777 | T108: =T49*COMENTÁRIOS!$AE$1*T$68*AF124 -> 0 | V108: 1198095.549 | W108: =W49*COMENTÁRIOS!$AE$1*W$68 -> 0 | Y108: =SUM(AK108:AM108)*AF123 -> 0 | AA108: =AA49*COMENTÁRIOS!$AE$1*AA$68 -> 343581.1327 | AB108: 3843048.926 | AC108: 7616262.489 | AD108: 8814358.037 | AF108: =ABS(AF49)*COMENTÁRIOS!$AE$1*AF$68 -> 0 | AG108: =ABS(AG49)*COMENTÁRIOS!$AE$1*AG$68 -> 0 | AH108: =ABS(AH49)*COMENTÁRIOS!$AE$1*AH$68 -> 0 | AI108: =ABS(AI49)*COMENTÁRIOS!$AE$1*AI$68 -> 212405.4782 | AJ108: =ABS(AJ49)*COMENTÁRIOS!$AE$1*AJ$68 -> 0 | AL108: =ABS(AL49)*COMENTÁRIOS!$AE$1*AL$68*AL$9 -> 222423.3554
B109: FERRO-LIGAS | D109: =D50*COMENTÁRIOS!$AE$1*D$68 -> 107236.8055 | I109: =I50*COMENTÁRIOS!$AE$1*I$68 -> 0 | K109: =SUM(AF109:AH109) -> 0 | L109: 107236.8055 | M109: 15306.26449 | N109: =N50*COMENTÁRIOS!$AE$1*N$68 -> 7028.616819 | P109: =P50*COMENTÁRIOS!$AE$1*P$68 -> 29008.3684 | R109: =R50*COMENTÁRIOS!$AE$1*R$68 -> 0 | V109: 257131.132 | W109: =W50*COMENTÁRIOS!$AE$1*W$68 -> 0 | Y109: =SUM(AK109:AM109)*AF123 -> 0 | AB109: 51343.24971 | AC109: 158580.0552 | AD109: 415711.1872 | AF109: =ABS(AF50)*COMENTÁRIOS!$AE$1*AF$68 -> 0 | AG109: =ABS(AG50)*COMENTÁRIOS!$AE$1*AG$68 -> 0 | AH109: =ABS(AH50)*COMENTÁRIOS!$AE$1*AH$68 -> 0 | AI109: =ABS(AI50)*COMENTÁRIOS!$AE$1*AI$68 -> 15306.26449 | AJ109: =ABS(AJ50)*COMENTÁRIOS!$AE$1*AJ$68 -> 0 | AL109: =ABS(AL50)*COMENTÁRIOS!$AE$1*AL$68*AL$9 -> 519722.6255
B110: MINERAÇÃO E PELOTIZ. | D110: =D51*COMENTÁRIOS!$AE$1*D$68 -> 3419566.838 | E110: =E51*COMENTÁRIOS!$AE$1*E$68 -> 3341270.712 | K110: =SUM(AF110:AH110) -> 0 | L110: 6760837.55 | M110: 1141234.029 | N110: =N51*COMENTÁRIOS!$AE$1*N$68 -> 917683.4024 | P110: =P51*COMENTÁRIOS!$AE$1*P$68 -> 195981.8648 | R110: =R51*COMENTÁRIOS!$AE$1*R$68 -> 3304.318769 | T110: =T51*COMENTÁRIOS!$AE$1*T$68 -> 349358.9224 | V110: 857429.3315 | Y110: =SUM(AK110:AM110) -> 1789632.327 | AB110: 4397194.864 | AC110: 11158032.41 | AD110: 12015461.75 | AF110: =ABS(AF51)*COMENTÁRIOS!$AE$1*AF$68 -> 0 | AG110: =ABS(AG51)*COMENTÁRIOS!$AE$1*AG$68 -> 0 | AH110: =ABS(AH51)*COMENTÁRIOS!$AE$1*AH$68 -> 0 | AI110: =ABS(AI51)*COMENTÁRIOS!$AE$1*AI$68 -> 1141234.029 | AJ110: =ABS(AJ51)*COMENTÁRIOS!$AE$1*AJ$68 -> 0 | AL110: =ABS(AL51)*COMENTÁRIOS!$AE$1*AL$68*AL$9 -> 1789632.327
B111: NÃO-FERROSOS E OUTROS DA METALURGIA | D111: =D52*COMENTÁRIOS!$AE$1*D$68 -> 2082175.579 | E111: =E52*COMENTÁRIOS!$AE$1*E$68*AF125 -> 0 | K111: =SUM(AF111:AH111) -> 0 | L111: 2082175.579 | M111: 21728.4788 | N111: =N52*COMENTÁRIOS!$AE$1*N$68 -> 2726252.801 | P111: =P52*COMENTÁRIOS!$AE$1*P$68 -> 91011.7554 | T111: =T52*COMENTÁRIOS!$AE$1*T$68*AF124 -> 0 | V111: 1872630.249 | W111: =W52*COMENTÁRIOS!$AE$1*W$68 -> 0 | Y111: =SUM(AK111:AM111)*AF123 -> 0 | AB111: 2838993.035 | AC111: 4921168.614 | AD111: 6793798.863 | AF111: =ABS(AF52)*COMENTÁRIOS!$AE$1*AF$68 -> 0 | AG111: =ABS(AG52)*COMENTÁRIOS!$AE$1*AG$68 -> 0 | AH111: =ABS(AH52)*COMENTÁRIOS!$AE$1*AH$68 -> 0 | AI111: =ABS(AI52)*COMENTÁRIOS!$AE$1*AI$68 -> 21728.4788 | AJ111: =ABS(AJ52)*COMENTÁRIOS!$AE$1*AJ$68 -> 0 | AL111: =ABS(AL52)*COMENTÁRIOS!$AE$1*AL$68*AL$9 -> 3038822.361
B112: QUÍMICA | D112: =D53*COMENTÁRIOS!$AE$1*D$68 -> 5954252.989 | E112: =E53*COMENTÁRIOS!$AE$1*E$68 -> 788896.0923 | I112: =I53*COMENTÁRIOS!$AE$1*I$68 -> 0 | K112: =SUM(AF112:AH112) -> 359857.8279 | L112: 7103006.909 | M112: 137595.081 | N112: =N53*COMENTÁRIOS!$AE$1*N$68 -> 1529213.853 | P112: =P53*COMENTÁRIOS!$AE$1*P$68 -> 1001594.465 | V112: 1161468.9 | W112: =W53*COMENTÁRIOS!$AE$1*W$68 -> 0 | Y112: 9128952.081 | AB112: 11797355.48 | AC112: 18900362.39 | AD112: 20061831.29 | AF112: =ABS(AF53)*COMENTÁRIOS!$AE$1*AF$68 -> 0 | AG112: =ABS(AG53)*COMENTÁRIOS!$AE$1*AG$68 -> 0 | AH112: =ABS(AH53)*COMENTÁRIOS!$AE$1*AH$68 -> 359857.8279 | AI112: =ABS(AI53)*COMENTÁRIOS!$AE$1*AI$68 -> 137595.081 | AJ112: =ABS(AJ53)*COMENTÁRIOS!$AE$1*AJ$68 -> 0 | AK112: =ABS(AK53)*COMENTÁRIOS!$AE$1*AK$68*AK$9 -> 427634.458 | AL112: =ABS(AL53)*COMENTÁRIOS!$AE$1*AL$68*AL$9 -> 480432.3134 | AM112: =ABS(AM53)*COMENTÁRIOS!$AE$1*AM$68*AM$9 -> 8220885.31
B113: ALIMENTOS E BEBIDAS | D113: =D54*COMENTÁRIOS!$AE$1*D$68 -> 2169155.842 | E113: =E54*COMENTÁRIOS!$AE$1*E$68 -> 324886.6511 | I113: =I54*COMENTÁRIOS!$AE$1*I$68 -> 0 | J113: =J54*COMENTÁRIOS!$AE$1*J$68 -> 0 | K113: 0 | L113: 2494042.493 | M113: 786321.494 | N113: =N54*COMENTÁRIOS!$AE$1*N$68 -> 978101.4416 | P113: =P54*COMENTÁRIOS!$AE$1*P$68 -> 527592.1289 | V113: 1456932.834 | Y113: 387103.8663 | AB113: 2679118.931 | AC113: 5173161.424 | AD113: 6630094.258 | AF113: =ABS(AF54)*COMENTÁRIOS!$AE$1*AF$68 -> 0 | AG113: =ABS(AG54)*COMENTÁRIOS!$AE$1*AG$68 -> 0 | AH113: =ABS(AH54)*COMENTÁRIOS!$AE$1*AH$68 -> 0 | AI113: =ABS(AI54)*COMENTÁRIOS!$AE$1*AI$68 -> 786321.494 | AJ113: =ABS(AJ54)*COMENTÁRIOS!$AE$1*AJ$68 -> 0 | AL113: =ABS(AL54)*COMENTÁRIOS!$AE$1*AL$68*AL$9 -> 387103.8663
B114: TÊXTIL | D114: =D55*COMENTÁRIOS!$AE$1*D$68 -> 686634.1011 | I114: =I55*COMENTÁRIOS!$AE$1*I$68 -> 0 | K114: 0 | L114: 686634.1011 | M114: 17410.96606 | N114: =N55*COMENTÁRIOS!$AE$1*N$68 -> 213198.3917 | P114: =P55*COMENTÁRIOS!$AE$1*P$68 -> 171042.445 | V114: 414403.1192 | AB114: 401651.8028 | AC114: 1088285.904 | AD114: 1502689.023 | AF114: =ABS(AF55)*COMENTÁRIOS!$AE$1*AF$68 -> 0 | AG114: =ABS(AG55)*COMENTÁRIOS!$AE$1*AG$68 -> 0 | AH114: =ABS(AH55)*COMENTÁRIOS!$AE$1*AH$68 -> 0 | AI114: =ABS(AI55)*COMENTÁRIOS!$AE$1*AI$68 -> 17410.96606 | AJ114: =ABS(AJ55)*COMENTÁRIOS!$AE$1*AJ$68 -> 0
B115: PAPEL E CELULOSE | D115: =D56*COMENTÁRIOS!$AE$1*D$68 -> 2245268.201 | E115: =E56*COMENTÁRIOS!$AE$1*E$68 -> 679582.6175 | I115: =I56*COMENTÁRIOS!$AE$1*I$68 -> 0 | J115: =J56*COMENTÁRIOS!$AE$1*J$68 -> 0 | K115: 0 | L115: 2924850.819 | M115: 14219.27729 | N115: =N56*COMENTÁRIOS!$AE$1*N$68 -> 1468085.434 | P115: =P56*COMENTÁRIOS!$AE$1*P$68 -> 144837.2016 | V115: 1413699.602 | AB115: 1627141.913 | AC115: 4551992.732 | AD115: 5965692.334 | AF115: =ABS(AF56)*COMENTÁRIOS!$AE$1*AF$68 -> 0 | AG115: =ABS(AG56)*COMENTÁRIOS!$AE$1*AG$68 -> 0 | AH115: =ABS(AH56)*COMENTÁRIOS!$AE$1*AH$68 -> 0 | AI115: =ABS(AI56)*COMENTÁRIOS!$AE$1*AI$68 -> 14219.27729 | AJ115: =ABS(AJ56)*COMENTÁRIOS!$AE$1*AJ$68 -> 0
B116: CERÂMICA | D116: =D57*COMENTÁRIOS!$AE$1*D$68 -> 2879318.296 | E116: =E57*COMENTÁRIOS!$AE$1*E$68 -> 141877.0629 | I116: =I57*COMENTÁRIOS!$AE$1*I$68 -> 0 | J116: =J57*COMENTÁRIOS!$AE$1*J$68 -> 0 | K116: 0 | L116: 3021195.358 | M116: 65739.99487 | N116: =N57*COMENTÁRIOS!$AE$1*N$68 -> 257930.3714 | P116: =P57*COMENTÁRIOS!$AE$1*P$68 -> 517399.707 | V116: 220771.6564 | Y116: =SUM(AK116:AM116) -> 1862477.196 | AB116: 2703547.269 | AC116: 5724742.628 | AD116: 5945514.284 | AF116: =ABS(AF57)*COMENTÁRIOS!$AE$1*AF$68 -> 0 | AG116: =ABS(AG57)*COMENTÁRIOS!$AE$1*AG$68 -> 0 | AH116: =ABS(AH57)*COMENTÁRIOS!$AE$1*AH$68 -> 0 | AI116: =ABS(AI57)*COMENTÁRIOS!$AE$1*AI$68 -> 65739.99487 | AJ116: =ABS(AJ57)*COMENTÁRIOS!$AE$1*AJ$68 -> 0 | AL116: =ABS(AL57)*COMENTÁRIOS!$AE$1*AL$68*AL$9 -> 1862477.196
B117: OUTROS | D117: =D58*COMENTÁRIOS!$AE$1*D$68 -> 3469037.821 | E117: =E58*COMENTÁRIOS!$AE$1*E$68 -> 669666.6722 | I117: =I58*COMENTÁRIOS!$AE$1*I$68 -> 0 | K117: 0 | L117: 4138704.493 | M117: 483905.0342 | N117: =N58*COMENTÁRIOS!$AE$1*N$68 -> 595871.1597 | P117: =P58*COMENTÁRIOS!$AE$1*P$68 -> 557824.8482 | R117: =R58*COMENTÁRIOS!$AE$1*R$68 -> 1369.539317 | V117: 2142496.102 | W117: =W58*COMENTÁRIOS!$AE$1*W$68 -> 0 | Y117: =SUM(AK117:AM117) -> 1970492.031 | AB117: =SUM(M117:AA117)-V117 -> 3609462.612 | AC117: 7748167.105 | AD117: 9890663.207 | AF117: =ABS(AF58)*COMENTÁRIOS!$AE$1*AF$68 -> 0 | AG117: =ABS(AG58)*COMENTÁRIOS!$AE$1*AG$68 -> 0 | AH117: =ABS(AH58)*COMENTÁRIOS!$AE$1*AH$68 -> 0 | AI117: =ABS(AI58)*COMENTÁRIOS!$AE$1*AI$68 -> 483905.0342 | AJ117: =ABS(AJ58)*COMENTÁRIOS!$AE$1*AJ$68 -> 0 | AL117: =ABS(AL58)*COMENTÁRIOS!$AE$1*AL$68*AL$9 -> 1970492.031
B118: CONSUMO NÃO-IDENTIFICADO
B119: AJUSTES
B120: CENTRAIS ELÉTRICAS (CESP+AUTOP.) | D120: =SUM(D87:D88) -> 17539625.17 | E120: =SUM(E87:E88) -> 13415605.4 | H120: =SUM(H87:H88) -> 0 | I120: 0 | J120: 0 | K120: 0 | L120: 30955230.57 | M120: 15459.0611 | N120: 572935.1098 | S120: =SUM(S87:S88) -> 27698.19408 | U120: =SUM(U87:U88) -> 0 | V120: 0 | Y120: =SUM(Y87:Y88) -> 0 | AA120: 32773.85172 | AB120: 648866.2167 | AC120: 0 | AD120: 31604096.78 | AF120: 0 | AG120: 0 | AH120: 0 | AI120: 15459.0611 | AJ120: 0 | AK120: 0 | AL120: 0 | AM120: 0
B121: =B62 -> EDIFICAÇÕES (Re+Co+Pu)+ AGROPECUÁRIA | C121: =SUM(C97:C100) -> 0 | D121: =SUM(D97:D100) -> 2410549.204 | E121: 0 | F121: 0 | G121: 0 | H121: 0 | I121: 0 | J121: 0 | K121: 0 | L121: 2410549.204 | M121: 18171174.53 | N121: 154737.2679 | O121: 0 | P121: 22967025.03 | Q121: 0 | R121: 3027.223845 | S121: 0 | T121: 0 | U121: 0 | V121: 18319235.33 | W121: 0 | X121: 0 | Y121: 0 | Z121: 0 | AA121: 0 | AB121: 41295964.05 | AC121: 43706513.26 | AD121: 62025748.59
B122: =B63 -> SETOR ENERGÉTICO E PROD. DE ELETRICIDADE | C122: =C96+SUM(C87:C88) -> 0 | D122: 32308301.54 | E122: 13415605.4 | F122: 0 | G122: 0 | H122: 0 | I122: 0 | J122: 0 | K122: 0 | L122: 45723906.93 | M122: 3467171.066 | N122: 1951403.246 | O122: 0 | P122: 72668.97874 | Q122: 0 | R122: 0 | S122: 522575.9573 | T122: 0 | U122: 0 | V122: 1750537.562 | W122: 0 | X122: 0 | Y122: 9534191.267 | Z122: 0 | AA122: 32773.85172 | AB122: 15580784.37 | AC122: 29700594.52 | AD122: 63055228.86
B123: EMISSÕES DE CO2 DA ELETRICIDADE | D123: =SUM(D87:D88) -> 17539625.17 | E123: =SUM(E87:E88) -> 13415605.4 | F123: =SUM(F87:F88) -> 0 | I123: =SUM(I87:I88) -> 0 | J123: 0 | K123: 0 | L123: 30955230.57 | M123: 15459.0611 | N123: 572935.1098 | O123: 0 | P123: 0 | R123: =SUM(R87:R88) -> 0 | S123: =SUM(S87:S88) -> 27698.19408 | T123: =SUM(T87:T88) -> 0 | V123: =V93 -> 31604096.78 | W123: =SUM(W87:W88) -> 0 | X123: =SUM(X87:X88) -> 0 | Y123: =SUM(Y87:Y88) -> 0 | AA123: =SUM(AA87:AA88) -> 32773.85172 | AB123: =SUM(M123:AA123)-V123 -> 648866.2167 | AD123: =SUM(AD87:AD88) -> 31604096.78 | AE123: CH coque Pet | AF123: =COMENTÁRIOS!AF$2 -> 0
B124: EMISSÕES DE CO2 DO CONSUMO FINAL | D124: =D93 -> 55543037.95 | E124: =E93 -> 6318407.635 | F124: =F93 -> 0 | I124: =I93 -> 0 | J124: 0 | K124: 1677210.59 | L124: 63538656.18 | M124: 136623143.8 | N124: 13808313.29 | O124: 46898973.79 | P124: 26385040.25 | R124: =R93 -> 13639006.32 | S124: =S93 -> 3720705.541 | T124: =T93 -> 529553.4227 | W124: =W93 -> 0 | X124: =X93 -> 0 | Y124: =Y93 -> 38284696.97 | AA124: =AA93 -> 343581.1327 | AB124: =SUM(M124:AA124)-V124 -> 280233014.5 | AC124: =AB124+L124 -> 343771670.7 | AD124: =AC124+V124 -> 343771670.7 | AE124: CH coque CM | AF124: =COMENTÁRIOS!AF$2 -> 0
B125: EMISSÕES TOTAIS DE CO2 DA ENERGIA | D125: =SUM(D123:D124) -> 73082663.12 | E125: =SUM(E123:E124) -> 19734013.03 | F125: =SUM(F123:F124) -> 0 | I125: 0 | J125: 0 | K125: 1677210.59 | L125: 94493886.74 | M125: 136638602.8 | N125: 14381248.4 | O125: 46898973.79 | P125: 26385040.25 | R125: =SUM(R123:R124) -> 13639006.32 | S125: =SUM(S123:S124) -> 3748403.735 | T125: =SUM(T123:T124) -> 529553.4227 | V125: =SUM(V123:V124) -> 31604096.78 | W125: =SUM(W123:W124) -> 0 | X125: =SUM(X123:X124) -> 0 | Y125: =SUM(Y123:Y124) -> 38284696.97 | AA125: =SUM(AA123:AA124) -> 376354.9844 | AB125: =SUM(AB123:AB124) -> 280881880.7 | AC125: =SUM(AC123:AC124) -> 343771670.7 | AD125: =SUM(AD123:AD124) -> 375375767.5 | AE125: CH carvão vapor | AF125: =COMENTÁRIOS!AF$2 -> 0

Sheet 2030
AK8: Conversão m3 =>tep
AK9: 0.652 | AL9: 0.87 | AM9: 0.88 | AN9: 0.655 | AO9: 0.873 | AP9: 0.889587
B10: CENÁRIO IES BRASIL 2 | AF10: =K13 -> OUTRAS FONTES PRIMÁRIAS | AI10: ="Teor biodiesel na ind. "&LEFT(B11,4) -> Teor biodiesel na ind. 2030 | AK10: =Y13 -> OUTRAS SECUNDÁRIAS DE PETRÓLEO
B11: 2030 - 10³ tep | AI11: 0.1034875986
C12: FONTES DE ENERGIA PRIMÁRIA | M12: FONTES DE ENERGIA SECUNDÁRIA | AF12: O U T R O S
B13: CONTA | C13: PETRÓLEO | D13: GÁS NATURAL | E13: CARVÃO VAPOR | F13: CARVÃO METALÚRGICO | G13: URÂNIO U3O8 | H13: ENERGIA HIDRÁULICA | I13: LENHA | J13: PRODUTOS DA CANA | K13: OUTRAS FONTES PRIMÁRIAS | L13: ENERGIA PRIMÁRIA TOTAL | M13: ÓLEO DIESEL | N13: ÓLEO COMBUSTIVEL | O13: GASOLINA | P13: GLP | Q13: NAFTA | R13: QUEROSENE | S13: GÁS DE CIDADE E DE COQUERIA | T13: COQUE DE CARVÃO MINERAL | U13: URÂNIO CONTIDO NO UO2 | V13: ELETRICIDADE | W13: CARVÃO VEGETAL | X13: ÁLCOOL ETÍLICO ANIDRO E HIDRATADO | Y13: OUTRAS SECUNDÁRIAS DE PETRÓLEO | Z13: PRODUTOS NÃO ENERGÉTICOS DE PETRÓLEO | AA13: ALCATRÃO | AB13: ENERGIA SECUNDÁRIA TOTAL | AC13: TOTAL SEM ELETRIC | AD13: TOTAL COM ELETRIC | AF13: =COMENTÁRIOS!AB20 -> LIXÍVIA | AG13: =COMENTÁRIOS!AC20 -> OUTRAS PRIM. RENOVÁVEIS | AH13: =COMENTÁRIOS!AD20 -> OUTRAS PRIM. NÃO RENOV. | AI13: =COMENTÁRIOS!AE20 -> ÓLEO DIESEL MINERAL | AJ13: =COMENTÁRIOS!AF20 -> BIODIESEL | AK13: =COMENTÁRIOS!AG20 -> GÁS DE REFINARIA | AL13: =COMENTÁRIOS!AH20 -> COQUE DE PETRÓLEO | AM13: =COMENTÁRIOS!AI20 -> OUTROS EN. DE PETRÓLEO
B14: PRODUÇÃO | C14: =[1]consolidado2030!B25 -> 176476.9 | D14: =[1]consolidado2030!C25 -> 39828.1 | E14: =[1]consolidado2030!D25 -> 5130.7 | F14: =[1]consolidado2030!E25 -> 0 | G14: =[1]consolidado2030!F25 -> 6973.2 | H14: =[1]consolidado2030!G25 -> 45390.5 | I14: =[1]consolidado2030!H25 -> 24844.3 | J14: =[1]consolidado2030!I25 -> 71626.2 | K14: =[1]consolidado2030!J25 -> 27125.8 | L14: =SUM(C14:K14) -> 397395.7 | M14: =[1]consolidado2030!L25 -> 0 | N14: =[1]consolidado2030!M25 -> 0 | O14: =[1]consolidado2030!N25 -> 0 | P14: =[1]consolidado2030!O25 -> 0 | Q14: =[1]consolidado2030!P25 -> 0 | R14: =[1]consolidado2030!Q25 -> 0 | S14: =[1]consolidado2030!R25 -> 0 | T14: =[1]consolidado2030!S25 -> 0 | U14: =[1]consolidado2030!T25 -> 0 | V14: =[1]consolidado2030!U25 -> 0 | W14: =[1]consolidado2030!V25 -> 0 | X14: =[1]consolidado2030!W25 -> 0 | Y14: =[1]consolidado2030!X25 -> 0 | Z14: =[1]consolidado2030!Y25 -> 0 | AA14: =[1]consolidado2030!Z25 -> 0 | AB14: =SUM(M14:AA14) -> 0 | AC14: =AD14-V14 -> 397395.7 | AD14: =AB14+L14 -> 397395.7
B15: IMPORTAÇÃO | C15: =[1]consolidado2030!B26 -> 17602.2 | D15: =[1]consolidado2030!C26 -> 10513.4 | E15: =[1]consolidado2030!D26 -> 4214.1 | F15: =[1]consolidado2030!E26 -> 9444.7 | G15: =[1]consolidado2030!F26 -> 0 | H15: =[1]consolidado2030!G26 -> 0 | I15: =[1]consolidado2030!H26 -> 0 | J15: =[1]consolidado2030!I26 -> 0 | K15: =[1]consolidado2030!J26 -> 0 | L15: =SUM(C15:K15) -> 41774.4 | M15: =[1]consolidado2030!L26 -> 0 | N15: =[1]consolidado2030!M26 -> 0 | O15: =[1]consolidado2030!N26 -> 0 | P15: =[1]consolidado2030!O26 -> 4000.1 | Q15: =[1]consolidado2030!P26 -> 4692.8 | R15: =[1]consolidado2030!Q26 -> 0 | S15: =[1]consolidado2030!R26 -> 0 | T15: =[1]consolidado2030!S26 -> 1586.5 | U15: =[1]consolidado2030!T26 -> 0 | V15: =[1]consolidado2030!U26 -> 52.79992224 | W15: =[1]consolidado2030!V26 -> 0 | X15: =[1]consolidado2030!W26 -> 0 | Y15: =[1]consolidado2030!X26 -> 4912.8 | Z15: =[1]consolidado2030!Y26 -> 3384.5 | AA15: =[1]consolidado2030!Z26 -> 0 | AB15: =SUM(M15:AA15) -> 18629.49992 | AC15: 60351.1 | AD15: 60403.89992 | AL15: =AP15*$Y15/AL$9 -> 5646.896552 | AP15: 1
B16: VARIAÇÃO DE ESTOQUES | C16: =[1]consolidado2030!B27 -> 0 | D16: =[1]consolidado2030!C27 -> 0 | E16: =[1]consolidado2030!D27 -> 0 | F16: =[1]consolidado2030!E27 -> 0 | G16: =[1]consolidado2030!F27 -> 0 | H16: =[1]consolidado2030!G27 -> 0 | I16: =[1]consolidado2030!H27 -> 0 | J16: =[1]consolidado2030!I27 -> 0 | K16: =[1]consolidado2030!J27 -> 0 | L16: 0 | M16: =[1]consolidado2030!L27 -> 0 | N16: =[1]consolidado2030!M27 -> 0 | O16: =[1]consolidado2030!N27 -> 0 | P16: =[1]consolidado2030!O27 -> 0 | Q16: =[1]consolidado2030!P27 -> 0 | R16: =[1]consolidado2030!Q27 -> 0 | S16: =[1]consolidado2030!R27 -> 0 | T16: =[1]consolidado2030!S27 -> 0 | U16: =[1]consolidado2030!T27 -> 0 | V16: =[1]consolidado2030!U27 -> 0 | W16: =[1]consolidado2030!V27 -> 0 | X16: =[1]consolidado2030!W27 -> 0 | Y16: =[1]consolidado2030!X27 -> 0 | Z16: =[1]consolidado2030!Y27 -> 0 | AA16: =[1]consolidado2030!Z27 -> 0 | AB16: 0 | AC16: 0 | AD16: 0 | AL16: =AP16*$Y16/AL$9 -> 0 | AP16: 1
B17: OFERTA TOTAL | C17: =SUM(C14:C16) -> 194079.1 | D17: =SUM(D14:D16) -> 50341.5 | E17: 9344.8 | F17: 9444.7 | G17: 6973.2 | H17: 45390.5 | I17: 24844.3 | J17: 71626.2 | K17: 27125.8 | L17: 439170.1 | M17: =SUM(M14:M16) -> 0 | N17: =SUM(N14:N16) -> 0 | O17: 0 | P17: 4000.1 | Q17: 4692.8 | R17: 0 | S17: 0 | T17: 1586.5 | U17: 0 | V17: 52.79992224 | W17: 0 | X17: 0 | Y17: 4912.8 | Z17: 3384.5 | AA17: 0 | AB17: 18629.49992 | AC17: 457746.8 | AD17: 457799.5999 | AL17: =SUM(AL14:AL16) -> 5646.896552
B18: EXPORTAÇÃO | C18: =[1]consolidado2030!B29 -> -73761.9 | D18: =[1]consolidado2030!C29 -> 0 | E18: =[1]consolidado2030!D29 -> 0 | F18: =[1]consolidado2030!E29 -> 0 | G18: =[1]consolidado2030!F29 -> 0 | H18: =[1]consolidado2030!G29 -> 0 | I18: =[1]consolidado2030!H29 -> 0 | J18: =[1]consolidado2030!I29 -> 0 | K18: =[1]consolidado2030!J29 -> 0 | L18: -73761.9 | M18: =[1]consolidado2030!L29 -> -2215.2 | N18: =[1]consolidado2030!M29 -> -10232.8 | O18: =[1]consolidado2030!N29 -> -6804.7 | P18: =[1]consolidado2030!O29 -> 0 | Q18: =[1]consolidado2030!P29 -> 0 | R18: =[1]consolidado2030!Q29 -> 0 | S18: =[1]consolidado2030!R29 -> 0 | T18: =[1]consolidado2030!S29 -> 0 | U18: =[1]consolidado2030!T29 -> 0 | V18: =[1]consolidado2030!U29 -> 0 | W18: =[1]consolidado2030!V29 -> 0 | X18: =[1]consolidado2030!W29 -> -1509 | Y18: =[1]consolidado2030!X29 -> 0 | Z18: =[1]consolidado2030!Y29 -> 0 | AA18: =[1]consolidado2030!Z29 -> 0 | AB18: -20761.7 | AC18: -94523.6 | AD18: -94523.6 | AL18: =AP18*$Y18/AL$9 -> 0 | AP18: 1
B19: NÃO-APROVEITADA | C19: =[1]consolidado2030!B30 -> 0 | D19: =[1]consolidado2030!C30 -> -2422.2 | E19: =[1]consolidado2030!D30 -> 0 | F19: =[1]consolidado2030!E30 -> 0 | G19: =[1]consolidado2030!F30 -> 0 | H19: =[1]consolidado2030!G30 -> 0 | I19: =[1]consolidado2030!H30 -> 0 | J19: =[1]consolidado2030!I30 -> 0 | K19: =[1]consolidado2030!J30 -> 0 | L19: -2422.2 | M19: =[1]consolidado2030!L30 -> 0 | N19: =[1]consolidado2030!M30 -> 0 | O19: =[1]consolidado2030!N30 -> 0 | P19: =[1]consolidado2030!O30 -> 0 | Q19: =[1]consolidado2030!P30 -> 0 | R19: =[1]consolidado2030!Q30 -> 0 | S19: =[1]consolidado2030!R30 -> 0 | T19: =[1]consolidado2030!S30 -> 0 | U19: =[1]consolidado2030!T30 -> 0 | V19: =[1]consolidado2030!U30 -> 0 | W19: =[1]consolidado2030!V30 -> 0 | X19: =[1]consolidado2030!W30 -> 0 | Y19: =[1]consolidado2030!X30 -> 0 | Z19: =[1]consolidado2030!Y30 -> 0 | AA19: =[1]consolidado2030!Z30 -> 0 | AB19: 0 | AC19: -2422.2 | AD19: -2422.2
B20: REINJEÇÃO | C20: =[1]consolidado2030!B31 -> 0 | D20: =[1]consolidado2030!C31 -> -7687.1 | E20: =[1]consolidado2030!D31 -> 0 | F20: =[1]consolidado2030!E31 -> 0 | G20: =[1]consolidado2030!F31 -> 0 | H20: =[1]consolidado2030!G31 -> 0 | I20: =[1]consolidado2030!H31 -> 0 | J20: =[1]consolidado2030!I31 -> 0 | K20: =[1]consolidado2030!J31 -> 0 | L20: -7687.1 | M20: =[1]consolidado2030!L31 -> 0 | N20: =[1]consolidado2030!M31 -> 0 | O20: =[1]consolidado2030!N31 -> 0 | P20: =[1]consolidado2030!O31 -> 0 | Q20: =[1]consolidado2030!P31 -> 0 | R20: =[1]consolidado2030!Q31 -> 0 | S20: =[1]consolidado2030!R31 -> 0 | T20: =[1]consolidado2030!S31 -> 0 | U20: =[1]consolidado2030!T31 -> 0 | V20: =[1]consolidado2030!U31 -> 0 | W20: =[1]consolidado2030!V31 -> 0 | X20: =[1]consolidado2030!W31 -> 0 | Y20: =[1]consolidado2030!X31 -> 0 | Z20: =[1]consolidado2030!Y31 -> 0 | AA20: =[1]consolidado2030!Z31 -> 0 | AB20: 0 | AC20: -7687.1 | AD20: -7687.1
B21: OFERTA INTERNA BRUTA | C21: =C17+SUM(C18:C20) -> 120317.2 | D21: =D17+SUM(D18:D20) -> 40232.2 | E21: 9344.8 | F21: 9444.7 | G21: 6973.2 | H21: 45390.5 | I21: 24844.3 | J21: 71626.2 | K21: 27125.8 | L21: =SUM(C21:K21) -> 355298.9 | M21: =M17+SUM(M18:M20) -> -2215.2 | N21: =N17+SUM(N18:N20) -> -10232.8 | O21: -6804.7 | P21: 4000.1 | Q21: 4692.8 | R21: 0 | S21: 0 | T21: 1586.5 | U21: 0 | V21: 52.79992224 | W21: 0 | X21: -1509 | Y21: 4912.8 | Z21: 3384.5 | AA21: 0 | AB21: -2132.200078 | AC21: 353113.9 | AD21: 353166.6999 | AL21: =AL17+SUM(AL18:AL20) -> 5646.896552
B22: TOTAL TRANSFORMAÇÃO | C22: =SUM(C23:C32) -> -120317.2 | D22: =SUM(D23:D32) -> -13506.5 | E22: -4553.7 | F22: -9444.7 | G22: -6973.2 | H22: -45390.2 | I22: -9883.1 | J22: -33419.8 | K22: -17192.7 | L22: =SUM(C22:K22) -> -260681.1 | M22: =SUM(M23:M32) -> 56745.2 | N22: =SUM(N23:N32) -> 14704.3 | O22: 21684.3 | P22: 6684.9 | Q22: 6136 | R22: 5534.8 | S22: 2020 | T22: 7697.5 | U22: 0 | V22: 69750.55417 | W22: 5399.6 | X22: 21513.4 | Y22: 7867.2 | Z22: 8255.7 | AA22: 246.1 | AB22: 234239.5542 | AC22: -96192.1 | AD22: -26441.54583 | AK22: =SUM(AK23:AK32) -> 8058.288814 | AL22: =SUM(AL23:AL32) -> 3003.67321
B23: REFINARIAS DE PETRÓLEO | C23: =[1]consolidado2030!B34 -> -120317.2 | D23: 0 | E23: =[1]consolidado2030!D34 -> 0 | F23: =[1]consolidado2030!E34 -> 0 | G23: =[1]consolidado2030!F34 -> 0 | H23: =[1]consolidado2030!G34 -> 0 | I23: =[1]consolidado2030!H34 -> 0 | J23: =[1]consolidado2030!I34 -> 0 | K23: =[1]consolidado2030!J34 -> -6934 | L23: =SUM(C23:K23) -> -127251.2 | M23: =[1]consolidado2030!L34 -> 56745.2 | N23: =[1]consolidado2030!M34 -> 15641.2 | O23: =[1]consolidado2030!N34 -> 21416.4 | P23: =[1]consolidado2030!O34 -> 4812.8 | Q23: =[1]consolidado2030!P34 -> 6136 | R23: =[1]consolidado2030!Q34 -> 5534.8 | S23: =[1]consolidado2030!R34 -> 0 | T23: =[1]consolidado2030!S34 -> 0 | U23: =[1]consolidado2030!T34 -> 0 | V23: =[1]consolidado2030!U34 -> -360.8 | W23: =[1]consolidado2030!V34 -> 0 | X23: =[1]consolidado2030!W34 -> 0 | Y23: =[1]consolidado2030!X34 -> 8783.2 | Z23: =[1]consolidado2030!Y34 -> 6858.4 | AA23: =[1]consolidado2030!Z34 -> 0 | AB23: 125567.2 | AC23: -1323.2 | AD23: -1684 | AK23: =AO23*$Y23/AK$9 -> 8058.288814 | AL23: =AP23*$Y23/AL$9 -> 4056.546774 | AO23: 0.5981879391 | AP23: 0.4018120609
B24: PLANTAS DE GAS NATURAL | C24: =[1]consolidado2030!B35 -> 0 | D24: =[1]consolidado2030!C35 -> -5290.2 | E24: =[1]consolidado2030!D35 -> 0 | F24: =[1]consolidado2030!E35 -> 0 | G24: =[1]consolidado2030!F35 -> 0 | H24: =[1]consolidado2030!G35 -> 0 | I24: =[1]consolidado2030!H35 -> 0 | J24: =[1]consolidado2030!I35 -> 0 | K24: =[1]consolidado2030!J35 -> 1783.2 | L24: =SUM(C24:K24) -> -3507 | M24: =[1]consolidado2030!L35 -> 0 | N24: =[1]consolidado2030!M35 -> 0 | O24: =[1]consolidado2030!N35 -> 267.9 | P24: =[1]consolidado2030!O35 -> 1872.1 | Q24: =[1]consolidado2030!P35 -> 0 | R24: =[1]consolidado2030!Q35 -> 0 | S24: =[1]consolidado2030!R35 -> 0 | T24: =[1]consolidado2030!S35 -> 0 | U24: =[1]consolidado2030!T35 -> 0 | V24: =[1]consolidado2030!U35 -> 0 | W24: =[1]consolidado2030!V35 -> 0 | X24: =[1]consolidado2030!W35 -> 0 | Y24: =[1]consolidado2030!X35 -> 0 | Z24: =[1]consolidado2030!Y35 -> 1397.3 | AA24: =[1]consolidado2030!Z35 -> 0 | AB24: 3537.3 | AC24: 30.3 | AD24: 30.3
B25: USINAS DE GASEIFICAÇÃO | C25: =[1]consolidado2030!B36 -> 0 | D25: =[1]consolidado2030!C36 -> 0 | E25: =[1]consolidado2030!D36 -> 0 | F25: =[1]consolidado2030!E36 -> 0 | G25: =[1]consolidado2030!F36 -> 0 | H25: =[1]consolidado2030!G36 -> 0 | I25: =[1]consolidado2030!H36 -> 0 | J25: =[1]consolidado2030!I36 -> 0 | K25: =[1]consolidado2030!J36 -> 0 | L25: 0 | M25: =[1]consolidado2030!L36 -> 0 | N25: =[1]consolidado2030!M36 -> 0 | O25: =[1]consolidado2030!N36 -> 0 | P25: =[1]consolidado2030!O36 -> 0 | Q25: =[1]consolidado2030!P36 -> 0 | R25: =[1]consolidado2030!Q36 -> 0 | S25: =[1]consolidado2030!R36 -> 0 | T25: =[1]consolidado2030!S36 -> 0 | U25: =[1]consolidado2030!T36 -> 0 | V25: =[1]consolidado2030!U36 -> 0 | W25: =[1]consolidado2030!V36 -> 0 | X25: =[1]consolidado2030!W36 -> 0 | Y25: =[1]consolidado2030!X36 -> 0 | Z25: =[1]consolidado2030!Y36 -> 0 | AA25: =[1]consolidado2030!Z36 -> 0 | AB25: 0 | AC25: 0 | AD25: 0
B26: COQUERIAS | C26: =[1]consolidado2030!B37 -> 0 | D26: =[1]consolidado2030!C37 -> 0 | E26: =[1]consolidado2030!D37 -> 0 | F26: =[1]consolidado2030!E37 -> -9444.7 | G26: =[1]consolidado2030!F37 -> 0 | H26: =[1]consolidado2030!G37 -> 0 | I26: =[1]consolidado2030!H37 -> 0 | J26: =[1]consolidado2030!I37 -> 0 | K26: =[1]consolidado2030!J37 -> 0 | L26: -9444.7 | M26: =[1]consolidado2030!L37 -> 0 | N26: =[1]consolidado2030!M37 -> 0 | O26: =[1]consolidado2030!N37 -> 0 | P26: =[1]consolidado2030!O37 -> 0 | Q26: =[1]consolidado2030!P37 -> 0 | R26: =[1]consolidado2030!Q37 -> 0 | S26: =[1]consolidado2030!R37 -> 2030.7 | T26: =[1]consolidado2030!S37 -> 7697.5 | U26: =[1]consolidado2030!T37 -> 0 | V26: =[1]consolidado2030!U37 -> 0 | W26: =[1]consolidado2030!V37 -> 0 | X26: =[1]consolidado2030!W37 -> 0 | Y26: =[1]consolidado2030!X37 -> -916 | Z26: =[1]consolidado2030!Y37 -> 0 | AA26: =[1]consolidado2030!Z37 -> 264.6 | AB26: 9076.8 | AC26: -367.9 | AD26: -367.9 | AL26: =AP26*$Y26/AL$9 -> -1052.873563 | AP26: 1
B27: CICLO DO COMBUSTÍVEL NUCLEAR | C27: =[1]consolidado2030!B38 -> 0 | D27: =[1]consolidado2030!C38 -> 0 | E27: =[1]consolidado2030!D38 -> 0 | F27: =[1]consolidado2030!E38 -> 0 | G27: =[1]consolidado2030!F38 -> -6973.2 | H27: =[1]consolidado2030!G38 -> 0 | I27: =[1]consolidado2030!H38 -> 0 | J27: =[1]consolidado2030!I38 -> 0 | K27: =[1]consolidado2030!J38 -> 0 | L27: -6973.2 | M27: =[1]consolidado2030!L38 -> 0 | N27: =[1]consolidado2030!M38 -> 0 | O27: =[1]consolidado2030!N38 -> 0 | P27: =[1]consolidado2030!O38 -> 0 | Q27: =[1]consolidado2030!P38 -> 0 | R27: =[1]consolidado2030!Q38 -> 0 | S27: =[1]consolidado2030!R38 -> 0 | T27: =[1]consolidado2030!S38 -> 0 | U27: =[1]consolidado2030!T38 -> 6861.7 | V27: =[1]consolidado2030!U38 -> 0 | W27: =[1]consolidado2030!V38 -> 0 | X27: =[1]consolidado2030!W38 -> 0 | Y27: =[1]consolidado2030!X38 -> 0 | Z27: =[1]consolidado2030!Y38 -> 0 | AA27: =[1]consolidado2030!Z38 -> 0 | AB27: 6861.7 | AC27: -111.5 | AD27: -111.5
B28: CENTRAIS ELÉTRICAS DE SERVIÇO PÚBLICO | C28: =[1]consolidado2030!B39 -> 0 | D28: =[1]consolidado2030!C39 -> -8216.3 | E28: =[1]consolidado2030!D39 -> -4513.3 | F28: =[1]consolidado2030!E39 -> 0 | G28: =[1]consolidado2030!F39 -> 0 | H28: =[1]consolidado2030!G39 -> -45390.2 | I28: =[1]consolidado2030!H39 -> -1787.5 | J28: =[1]consolidado2030!I39 -> 0 | K28: =[1]consolidado2030!J39 -> -8207.1 | L28: -68114.4 | M28: =[1]consolidado2030!L39 -> 0 | N28: =[1]consolidado2030!M39 -> -936.9 | O28: =[1]consolidado2030!N39 -> 0 | P28: =[1]consolidado2030!O39 -> 0 | Q28: =[1]consolidado2030!P39 -> 0 | R28: =[1]consolidado2030!Q39 -> 0 | S28: =[1]consolidado2030!R39 -> 0 | T28: =[1]consolidado2030!S39 -> 0 | U28: =[1]consolidado2030!T39 -> -6861.7 | V28: =[1]consolidado2030!U39 -> 62117.85417 | W28: =[1]consolidado2030!V39 -> 0 | X28: =[1]consolidado2030!W39 -> 0 | Y28: =[1]consolidado2030!X39 -> 0 | Z28: =[1]consolidado2030!Y39 -> 0 | AA28: =[1]consolidado2030!Z39 -> 0 | AB28: 54319.25417 | AC28: -75913 | AD28: -13795.14583 | AI28: =(1-$AI$11)*M28 -> 0 | AJ28: =$AI$11*M28 -> 0 | AK28: =AO28*$Y28/AK$9 -> 0 | AO28: 1
B29: CENTRAIS ELÉTRICAS AUTOPRODUTORAS | C29: =[1]consolidado2030!B40 -> 0 | D29: =[1]consolidado2030!C40 -> 0 | E29: =[1]consolidado2030!D40 -> -40.4 | F29: =[1]consolidado2030!E40 -> 0 | G29: =[1]consolidado2030!F40 -> 0 | H29: =[1]consolidado2030!G40 -> 0 | I29: =[1]consolidado2030!H40 -> 0 | J29: =[1]consolidado2030!I40 -> -11906.4 | K29: =[1]consolidado2030!J40 -> -3834.8 | L29: -15781.6 | M29: =[1]consolidado2030!L40 -> 0 | N29: =[1]consolidado2030!M40 -> 0 | O29: =[1]consolidado2030!N40 -> 0 | P29: =[1]consolidado2030!O40 -> 0 | Q29: =[1]consolidado2030!P40 -> 0 | R29: =[1]consolidado2030!Q40 -> 0 | S29: =[1]consolidado2030!R40 -> -10.7 | T29: =[1]consolidado2030!S40 -> 0 | U29: =[1]consolidado2030!T40 -> 0 | V29: =[1]consolidado2030!U40 -> 7993.5 | W29: =[1]consolidado2030!V40 -> 0 | X29: =[1]consolidado2030!W40 -> 0 | Y29: =[1]consolidado2030!X40 -> 0 | Z29: =[1]consolidado2030!Y40 -> 0 | AA29: =[1]consolidado2030!Z40 -> -18.5 | AB29: 7964.3 | AC29: -15810.8 | AD29: -7817.3 | AI29: =(1-$AI$11)*M29 -> 0 | AJ29: =$AI$11*M29 -> 0 | AK29: =AO29*$Y29/AK$9 -> 0 | AM29: =AQ29*$Y29/AM$9 -> 0 | AO29: 0.6645011926 | AQ29: 0.3354988074
B30: CARVOARIAS | C30: =[1]consolidado2030!B41 -> 0 | D30: =[1]consolidado2030!C41 -> 0 | E30: =[1]consolidado2030!D41 -> 0 | F30: =[1]consolidado2030!E41 -> 0 | G30: =[1]consolidado2030!F41 -> 0 | H30: =[1]consolidado2030!G41 -> 0 | I30: =[1]consolidado2030!H41 -> -8095.6 | J30: =[1]consolidado2030!I41 -> 0 | K30: =[1]consolidado2030!J41 -> 0 | L30: -8095.6 | M30: =[1]consolidado2030!L41 -> 0 | N30: =[1]consolidado2030!M41 -> 0 | O30: =[1]consolidado2030!N41 -> 0 | P30: =[1]consolidado2030!O41 -> 0 | Q30: =[1]consolidado2030!P41 -> 0 | R30: =[1]consolidado2030!Q41 -> 0 | S30: =[1]consolidado2030!R41 -> 0 | T30: =[1]consolidado2030!S41 -> 0 | U30: =[1]consolidado2030!T41 -> 0 | V30: =[1]consolidado2030!U41 -> 0 | W30: =[1]consolidado2030!V41 -> 5399.6 | X30: =[1]consolidado2030!W41 -> 0 | Y30: =[1]consolidado2030!X41 -> 0 | Z30: =[1]consolidado2030!Y41 -> 0 | AA30: =[1]consolidado2030!Z41 -> 0 | AB30: 5399.6 | AC30: -2696 | AD30: -2696
B31: DESTILARIAS | C31: =[1]consolidado2030!B42 -> 0 | D31: =[1]consolidado2030!C42 -> 0 | E31: =[1]consolidado2030!D42 -> 0 | F31: =[1]consolidado2030!E42 -> 0 | G31: =[1]consolidado2030!F42 -> 0 | H31: =[1]consolidado2030!G42 -> 0 | I31: =[1]consolidado2030!H42 -> 0 | J31: =[1]consolidado2030!I42 -> -21513.4 | K31: =[1]consolidado2030!J42 -> 0 | L31: -21513.4 | M31: =[1]consolidado2030!L42 -> 0 | N31: =[1]consolidado2030!M42 -> 0 | O31: =[1]consolidado2030!N42 -> 0 | P31: =[1]consolidado2030!O42 -> 0 | Q31: =[1]consolidado2030!P42 -> 0 | R31: =[1]consolidado2030!Q42 -> 0 | S31: =[1]consolidado2030!R42 -> 0 | T31: =[1]consolidado2030!S42 -> 0 | U31: =[1]consolidado2030!T42 -> 0 | V31: =[1]consolidado2030!U42 -> 0 | W31: =[1]consolidado2030!V42 -> 0 | X31: =[1]consolidado2030!W42 -> 21513.4 | Y31: =[1]consolidado2030!X42 -> 0 | Z31: =[1]consolidado2030!Y42 -> 0 | AA31: =[1]consolidado2030!Z42 -> 0 | AB31: 21513.4 | AC31: 0 | AD31: 0
B32: OUTRAS TRANSFORMAÇÕES | C32: =[1]consolidado2030!B43 -> 0 | D32: =[1]consolidado2030!C43 -> 0 | E32: =[1]consolidado2030!D43 -> 0 | F32: =[1]consolidado2030!E43 -> 0 | G32: =[1]consolidado2030!F43 -> 0 | H32: =[1]consolidado2030!G43 -> 0 | I32: =[1]consolidado2030!H43 -> 0 | J32: =[1]consolidado2030!I43 -> 0 | K32: =[1]consolidado2030!J43 -> 0 | L32: 0 | M32: =[1]consolidado2030!L43 -> 0 | N32: =[1]consolidado2030!M43 -> 0 | O32: =[1]consolidado2030!N43 -> 0 | P32: =[1]consolidado2030!O43 -> 0 | Q32: =[1]consolidado2030!P43 -> 0 | R32: =[1]consolidado2030!Q43 -> 0 | S32: =[1]consolidado2030!R43 -> 0 | T32: =[1]consolidado2030!S43 -> 0 | U32: =[1]consolidado2030!T43 -> 0 | V32: =[1]consolidado2030!U43 -> 0 | W32: =[1]consolidado2030!V43 -> 0 | X32: =[1]consolidado2030!W43 -> 0 | Y32: =[1]consolidado2030!X43 -> 0 | Z32: =[1]consolidado2030!Y43 -> 0 | AA32: =[1]consolidado2030!Z43 -> 0 | AB32: 0 | AC32: 0 | AD32: 0 | AL32: =AP32*$Y32/AL$9 -> 0 | AM32: =AQ32*$Y32/AM$9 -> 0 | AP32: -0.1046786627 | AQ32: 1.104678663
B33: PERDAS NA DISTRIBUIÇÃO E ARMAZENAGEM | C33: =IF(ABS(C34-C22-C21-C60)<0.0000001,0,C34-C22-C21-C60) -> 0 | D33: -279.4871462 | E33: -30.03416415 | F33: 0 | G33: 0 | H33: -0.3 | I33: -12.30906072 | J33: 0 | K33: -941.0451226 | L33: -1263.175494 | M33: =IF(ABS(M34-M22-M21-M60)<0.0000001,0,M34-M22-M21-M60) -> 2.742839868 | N33: -0.6066231611 | O33: -0.2253197614 | P33: -3.697894101 | Q33: 0 | R33: -0.1919605605 | S33: -0.1390180264 | T33: -8.206073812 | U33: 0 | V33: -8895.260354 | W33: -36.92718216 | X33: 0 | Y33: -612.1700464 | Z33: -0.9509695972 | AA33: -131.8021145 | AB33: -9687.434717 | AC33: -2055.349856 | AD33: -10950.61021 | AL33: =AP33*$Y33/AL$9 -> -703.6437315 | AP33: 1
B34: CONSUMO FINAL | C34: =SUM(C35:C36) -> 0 | D34: 26446.21285 | E34: 4761.082138 | F34: 0 | G34: 0 | H34: 0 | I34: 14949.29796 | J34: 38206.4 | K34: 8992.054877 | L34: =SUM(C34:K34) -> 93355.04783 | M34: =SUM(M35:M36) -> 54532.74284 | N34: 4470.945782 | O34: 14879.37468 | P34: 10681.30211 | Q34: 10829.17112 | R34: 5534.608039 | S34: 2019.860982 | T34: 9275.902351 | U34: 0 | V34: 60908.09374 | W34: 5362.747497 | X34: 20004.59806 | Y34: 12167.84531 | Z34: 11639.24903 | AA34: 114.2978855 | AB34: 222420.7394 | AC34: 254867.6935 | AD34: 315775.7873 | AK34: =SUM(AK35:AK36) -> 6151.652544 | AL34: =SUM(AL35:AL36) -> 6641.254665 | AM34: =SUM(AM35:AM36) -> 2703.495791
B35: CONSUMO FINAL NÃO-ENERGÉTICO | C35: =[1]consolidado2030!B46 -> 0 | D35: =[1]consolidado2030!C46 -> 3946.869792 | E35: =[1]consolidado2030!D46 -> 0 | F35: =[1]consolidado2030!E46 -> 0 | G35: =[1]consolidado2030!F46 -> 0 | H35: =[1]consolidado2030!G46 -> 0 | I35: =[1]consolidado2030!H46 -> 0 | J35: =[1]consolidado2030!I46 -> 0 | K35: =[1]consolidado2030!J46 -> 0 | L35: =SUM(C35:K35) -> 3946.869792 | M35: =[1]consolidado2030!L46 -> 0 | N35: =[1]consolidado2030!M46 -> 0 | O35: =[1]consolidado2030!N46 -> 0 | P35: =[1]consolidado2030!O46 -> 0 | Q35: =[1]consolidado2030!P46 -> 10829.17112 | R35: =[1]consolidado2030!Q46 -> 0 | S35: =[1]consolidado2030!R46 -> 0 | T35: =[1]consolidado2030!S46 -> 0 | U35: =[1]consolidado2030!T46 -> 0 | V35: =[1]consolidado2030!U46 -> 0 | W35: =[1]consolidado2030!V46 -> 0 | X35: =[1]consolidado2030!W46 -> 727.9148551 | Y35: =[1]consolidado2030!X46 -> 0 | Z35: =[1]consolidado2030!Y46 -> 11639.24903 | AA35: =[1]consolidado2030!Z46 -> 0 | AB35: 23196.335 | AC35: 27143.20479 | AD35: 27143.20479 | AK35: =AO35*$Y35/AK$9 -> 0 | AO35: 1
B36: CONSUMO FINAL ENERGÉTICO | C36: =SUM(C37:C42)+C47+C59 -> 0 | D36: 22499.34306 | E36: 4761.082138 | F36: 0 | G36: 0 | H36: 0 | I36: 14949.29796 | J36: 38206.4 | K36: 8992.054877 | L36: =SUM(C36:K36) -> 89408.17804 | M36: =SUM(M37:M42)+M47+M59 -> 54532.74284 | N36: 4470.945782 | O36: 14879.37468 | P36: 10681.30211 | Q36: 0 | R36: 5534.608039 | S36: 2019.860982 | T36: 9275.902351 | U36: 0 | V36: 60908.09374 | W36: 5362.747497 | X36: 19276.68321 | Y36: 12167.84531 | Z36: 0 | AA36: 114.2978855 | AB36: =SUM(M36:AA36) -> 199224.4044 | AC36: 227724.4887 | AD36: 288632.5825 | AK36: =SUM(AK37:AK42)+AK47+AK59 -> 6151.652544 | AL36: =SUM(AL37:AL42)+AL47+AL59 -> 6641.254665 | AM36: =SUM(AM37:AM42)+AM47+AM59 -> 2703.495791
B37: SETOR ENERGÉTICO | C37: =[1]consolidado2030!B48 -> 0 | D37: =[1]consolidado2030!C48-[1]consolidado2030!$C$34 -> 7068.394895 | E37: =[1]consolidado2030!D48 -> 0 | F37: =[1]consolidado2030!E48 -> 0 | G37: =[1]consolidado2030!F48 -> 0 | H37: =[1]consolidado2030!G48 -> 0 | I37: =[1]consolidado2030!H48 -> 0 | J37: =-[1]consolidado2030!I44 -> 17633.12172 | K37: =[1]consolidado2030!J48 -> 0 | L37: =SUM(C37:K37) -> 24701.51661 | M37: =[1]consolidado2030!L48 -> 1379.122903 | N37: =[1]consolidado2030!M48 -> 446.3703745 | O37: =[1]consolidado2030!N48 -> 0 | P37: =[1]consolidado2030!O48 -> 29.42110527 | Q37: =[1]consolidado2030!P48 -> 0 | R37: =[1]consolidado2030!Q48 -> 0 | S37: =[1]consolidado2030!R48 -> 268.6544995 | T37: =[1]consolidado2030!S48 -> 0 | U37: =[1]consolidado2030!T48 -> 0 | V37: =[1]consolidado2030!U48-[1]consolidado2030!$U$25 -> 3375.603717 | W37: =[1]consolidado2030!V48 -> 0 | X37: =[1]consolidado2030!W48 -> 0 | Y37: =[1]consolidado2030!X48 -> 3853.390729 | Z37: =[1]consolidado2030!Y48 -> 0 | AA37: =[1]consolidado2030!Z48 -> 0 | AB37: =SUM(M37:AA37) -> 9352.563328 | AC37: 30678.47623 | AD37: 34054.07994 | AI37: =(1-$AI$11)*M37 -> 1236.400785 | AJ37: =$AI$11*M37 -> 142.7221174 | AK37: =AO37*$Y37/AK$9 -> 5910.10848 | AO37: 1
B38: RESIDENCIAL | D38: 952.3902011 | I38: 4189.21272 | L38: =SUM(C38:K38) -> 5141.602921 | P38: 8196.474361 | R38: 0 | V38: 18076.01129 | W38: 461.236552 | AB38: =SUM(M38:AA38) -> 26733.72221 | AC38: 13799.31383 | AD38: 31875.32513
B39: COMERCIAL | D39: 318.3413996 | I39: 81.98156093 | L39: 400.3229605 | M39: 5.777035228 | N39: 14.62378049 | P39: 484.3036912 | V39: 12023.62446 | W39: 72.24189712 | AB39: 12600.57087 | AC39: 977.2693645 | AD39: 13000.89383 | AI39: 5.1820006 | AJ39: 0.5950346285
B40: PÚBLICO | D40: 38.7604537 | L40: 38.7604537 | M40: 1.896562767 | N40: 9.693198351 | P40: 221.3166315 | V40: 3253.89339 | AB40: 3486.799783 | AC40: 271.6668464 | AD40: 3525.560236 | AI40: 1.701216802 | AJ40: 0.195345965
B41: AGROPECUÁRIO | I41: 1700.779869 | L41: 1700.779869 | M41: 6895.914511 | N41: 22.12784539 | P41: 360.606881 | V41: 3006.351246 | W41: 14.3585458 | X41: 13.78351824 | AB41: 10313.14255 | AC41: 9007.57117 | AD41: 12013.92242 | AI41: 6116.676171 | AJ41: 779.2383397
B42: TRANSPORTES - TOTAL | D42: 1905.039085 | L42: 1905.039085 | M42: 45095.7381 | N42: 1225.933354 | O42: 14879.37468 | R42: 5532.955968 | V42: 498.6721179 | X42: 19262.89969 | AB42: 86495.57391 | AC42: 87901.94088 | AD42: 88400.61299 | AI42: 40057.57541 | AJ42: 5038.162693
B43: RODOVIÁRIO | D43: 1905.039085 | L43: 1905.039085 | M43: 43517.59196 | O43: 14814.53542 | V43: 116.3490366 | X43: 19262.89969 | AB43: 77711.3761 | AC43: 79500.06615 | AD43: 79616.41519 | AI43: 38601.37864 | AJ43: 4916.213318
B44: FERROVIÁRIO | L44: 0 | M44: 1079.477802 | V44: 382.3230813 | AB44: 1461.800883 | AC44: 1079.477802 | AD44: 1461.800883 | AI44: 957.5284267 | AJ44: 121.9493751
B45: AÉREO | L45: 0 | O45: 64.83926469 | R45: 5532.955968 | AB45: 5597.795232 | AC45: 5597.795232 | AD45: 5597.795232 | AI45: 0 | AJ45: 0
B46: HIDROVIÁRIO | L46: 0 | M46: 498.6683361 | N46: 1225.933354 | AB46: 1724.60169 | AC46: 1724.60169 | AD46: 1724.60169 | AI46: 498.6683361 | AJ46: 0
B47: INDUSTRIAL - TOTAL | D47: =SUM(D48:D59) -> 12216.41703 | E47: 4761.082138 | I47: =SUM(I48:I59) -> 8977.323815 | J47: 20573.27828 | K47: 8992.054877 | L47: 55520.15614 | M47: =SUM(M48:M59) -> 1154.293729 | N47: 2752.19723 | P47: =SUM(P48:P59) -> 1389.179436 | R47: =SUM(R48:R59) -> 1.652071794 | S47: 1751.206482 | T47: 9275.902351 | V47: =SUM(V48:V59) -> 20673.93751 | W47: 4814.910502 | Y47: =SUM(Y48:Y59) -> 8314.454584 | AA47: =SUM(AA48:AA59) -> 114.2978855 | AB47: 50242.03178 | AC47: 85088.25041 | AD47: 105762.1879 | AF47: =SUM(AF48:AF59) -> 6992.470206 | AG47: 1447.963698 | AH47: 551.6209732 | AI47: 1034.838643 | AJ47: 119.4550861 | AK47: 241.5440637 | AL47: 6641.254665 | AM47: 2703.495791
B48: CIMENTO | D48: 8.0477 | E48: 149.0349 | I48: 61.0799 | K48: =SUM(AF48:AH48) -> 651.8970793 | L48: 870.0595793 | M48: 44.3278 | N48: 14.1509 | P48: 18.3239 | T48: 40.7199 | V48: 590.1544 | W48: 183.2397 | Y48: 3037.7076 | AB48: 3928.6242 | AC48: 4208.529379 | AD48: 4798.683779 | AG48: 158.0308954 | AH48: 493.8661839 | AI48: =(1-$AI$11)*M48 -> 39.74042243 | AJ48: =$AI$11*M48 -> 4.587377573 | AL48: =AP48*$Y48/AL$9 -> 3491.617931 | AP48: 1
B49: FERRO-GUSA E AÇO | D49: 1542.29109 | E49: 2372.083324 | K49: =SUM(AF49:AH49) -> 0 | L49: 3914.374414 | M49: 68.76120987 | N49: 0 | P49: 22.25281261 | S49: 1751.206482 | T49: 8800.131511 | V49: 1896.192032 | W49: 4248.801385 | Y49: 51.80521798 | AA49: 114.2978855 | AB49: 16953.44854 | AC49: 18971.63092 | AD49: 20867.82295 | AI49: =(1-$AI$11)*M49 -> 61.64527738 | AJ49: =$AI$11*M49 -> 7.115932486 | AL49: =AP49*$Y49/AL$9 -> 59.54622756 | AP49: 1
B50: FERRO-LIGAS | D50: 57.10743518 | E50: 0 | I50: 60.37790504 | L50: 117.4853402 | M50: 6.205495605 | N50: 1.257873022 | P50: 7.682010239 | R50: 0 | T50: 60.75526694 | V50: 543.2966297 | W50: 341.7641 | Y50: 147.6742927 | AB50: 1108.635668 | AC50: 682.8243787 | AD50: 1226.121008 | AI50: 5.563303767 | AJ50: 0.6421918383 | AL50: 169.7405664 | AP50: 1
B51: MINERAÇÃO E PELOTIZ. | D51: 1824.865327 | E51: 595.9294558 | L51: 2420.794782 | M51: 440.6331825 | N51: 318.4599794 | P51: 79.18385693 | R51: 1.191668378 | T51: 84.72762165 | V51: 1581.749724 | Y51: 533.8980756 | AB51: 3039.844109 | AC51: 3878.889167 | AD51: 5460.638891 | AI51: 395.0331126 | AJ51: 45.60006992 | AL51: 613.6759489 | AP51: 1
B52: NÃO-FERROSOS E OUTROS DA METALURGIA | D52: 901.1966639 | E52: 973.5477595 | L52: 1874.744423 | M52: 6.526849269 | N52: 803.5796927 | P52: 28.70704503 | T52: 289.5680515 | V52: 2997.70895 | W52: 7.98808418 | Y52: 748.1400975 | AB52: 4882.21877 | AC52: 3759.254244 | AD52: 6756.963193 | AI52: 5.851401312 | AJ52: 0.6754479572 | AL52: 859.9311465 | AP52: 1
B53: QUÍMICA | D53: 2519.088738 | E53: 179.2081332 | I53: 54.47224153 | K53: =SUM(AF53:AH53) -> 151.3908425 | L53: 2904.159955 | M53: 46.78140009 | N53: 413.4297817 | P53: 404.6467246 | V53: 2130.17733 | W53: 22.48027941 | Y53: 2641.088308 | AB53: 5658.603824 | AC53: 6432.586449 | AD53: 8562.763779 | AG53: 93.63605317 | AH53: 57.75478935 | AI53: 41.94010533 | AJ53: 4.841294754 | AK53: =AO53*$Y53/AK$9 -> 241.5440637 | AL53: 120.1440027 | AM53: =AQ53*$Y53/AM$9 -> 2703.495791 | AO53: 0.0596294827 | AP53: 0.03957659501 | AQ53: 0.9007939223
B54: ALIMENTOS E BEBIDAS | D54: 1170.892948 | E54: 101.0805874 | I54: 2686.475965 | J54: 20521.92363 | K54: =SUM(AF54:AH54) -> 1.325760671 | L54: 24481.69889 | M54: 328.0225464 | N54: 370.5752477 | P54: 231.9902479 | V54: 3003.291225 | Y54: 114.7939153 | AB54: 4048.673182 | AC54: 25527.08085 | AD54: 28530.37207 | AG54: 1.325760671 | AI54: 294.0762808 | AJ54: 33.94626562 | AL54: 131.9470291 | AP54: 1
B55: TÊXTIL | D55: 381.3656893 | I55: 121.2231368 | L55: 502.5888261 | M55: 7.148803578 | N55: 64.21225681 | P55: 74.72873289 | V55: 851.2159788 | AB55: 997.305772 | AC55: 648.6786194 | AD55: 1499.894598 | AI55: 6.408991063 | AJ55: 0.7398125151
B56: PAPEL E CELULOSE | D56: 1058.335421 | E56: 187.3580534 | I56: 2275.062077 | J56: 40.16296665 | K56: =SUM(AF56:AH56) -> 8134.819023 | L56: 11695.73754 | M56: 5.600893076 | N56: 489.2714583 | P56: 59.24993066 | V56: 2784.874485 | AB56: 3338.996767 | AC56: 12249.85982 | AD56: 15034.73431 | AF56: 6992.470206 | AG56: 1142.348817 | AI56: 5.021270101 | AJ56: 0.5796229744
B57: CERÂMICA | D57: 1201.792275 | E57: 37.51360054 | I57: 2655.476271 | J57: 11.19168632 | K57: =SUM(AF57:AH57) -> 52.62217169 | L57: 3958.596005 | M57: 27.01200587 | N57: 92.21328247 | P57: 227.0756833 | V57: 453.8720337 | Y57: 568.7347569 | AB57: 1368.907762 | AC57: 4873.631734 | AD57: 5327.503767 | AG57: 52.62217169 | AI57: 24.21659825 | AJ57: 2.79540762 | AL57: =AP57*$Y57/AL$9 -> 653.7181113 | AP57: 1
B58: OUTROS | D58: 1551.433741 | E58: 165.3263245 | I58: 1063.156319 | L58: 2779.916385 | M58: 173.273543 | N58: 185.0467576 | P58: 235.3384917 | R58: 0.4604034161 | V58: 3841.404721 | W58: 10.63695348 | Y58: 470.6123206 | AB58: 4916.773191 | AC58: 3855.284855 | AD58: 7696.689576 | AI58: 155.3418801 | AJ58: 17.93166287 | AL58: =AP58*$Y58/AL$9 -> 540.9337019 | AP58: 1
B59: CONSUMO NÃO-IDENTIFICADO
B60: AJUSTES | E60: 0.01630264435 | I60: 0.4070254633 | L60: =SUM(C60:K60) -> 0.4233281077 | N60: 0.0524052481 | Q60: 0.3711176715 | T60: 0.1084253058 | W60: 0.07467952796 | X60: 0.1980636016 | Y60: 0.01535996584 | AB60: =SUM(M60:AA60) -> 0.8200513208 | AC60: =AD60-V60 -> 1.243379428 | AD60: =AB60+L60 -> 1.243379428
B61: CENTRAIS ELÉTRICAS (CESP+AUTOP.) | D61: =SUM(D28:D29) -> -8216.3 | E61: =SUM(E28:E29) -> -4553.7 | H61: =SUM(H28:H29) -> -45390.2 | I61: -1787.5 | J61: -11906.4 | K61: -12041.9 | L61: -83896 | M61: 0 | N61: -936.9 | S61: =SUM(S28:S29) -> -10.7 | U61: =SUM(U28:U29) -> -6861.7 | V61: 70111.35417 | Y61: =SUM(Y28:Y29) -> 0 | AA61: -18.5 | AB61: 62283.55417 | AC61: -91723.8 | AD61: -21612.44583 | AF61: 0 | AG61: 0 | AH61: 0 | AI61: 0 | AJ61: 0 | AK61: 0 | AL61: 0 | AM61: 0
B62: EDIFICAÇÕES (Re+Co+Pu)+ AGROPECUÁRIA | C62: =SUM(C38:C41) -> 0 | D62: =SUM(D38:D41) -> 1309.492054 | E62: 0 | F62: 0 | G62: 0 | H62: 0 | I62: 5971.974149 | J62: 0 | K62: 0 | L62: 7281.466204 | M62: 6903.588109 | N62: 46.44482423 | O62: 0 | P62: 9262.701565 | Q62: 0 | R62: 0 | S62: 0 | T62: 0 | U62: 0 | V62: 36359.88039 | W62: 547.8369949 | X62: 13.78351824 | Y62: 0 | Z62: 0 | AA62: 0 | AB62: 53134.2354 | AC62: 24055.82122 | AD62: 60415.70161
B63: SETOR ENERGÉTICO E PROD. DE ELETRICIDADE | C63: =C37-SUM(C28:C29) -> 0 | D63: =D37-SUM(D28:D29) -> 15284.6949 | E63: 4553.7 | F63: 0 | G63: 0 | H63: 45390.2 | I63: 1787.5 | J63: 29539.52172 | K63: 12041.9 | L63: 108597.5166 | M63: 1379.122903 | N63: 1383.270374 | O63: 0 | P63: 29.42110527 | Q63: 0 | R63: 0 | S63: 279.3544995 | T63: 0 | U63: 6861.7 | V63: =V37 -> 3375.603717 | W63: 0 | X63: 0 | Y63: 3853.390729 | Z63: 0 | AA63: 18.5 | AD63: 55666.52577
B64: CONSUMO FINAL E PROD. DE ELETRICIDADE | C64: =C36-SUM(C28:C29) -> 0 | D64: =D36-SUM(D28:D29) -> 30715.64306 | E64: 9314.782138 | F64: 0 | G64: 0 | H64: 45390.2 | I64: 16736.79796 | J64: 50112.8 | K64: 21033.95488 | L64: 173304.178 | M64: 54532.74284 | N64: 5407.845782 | O64: 14879.37468 | P64: 10681.30211 | Q64: 0 | R64: 5534.608039 | S64: 2030.560982 | T64: 9275.902351 | U64: 6861.7 | V64: -9203.260432 | W64: 5362.747497 | X64: 19276.68321 | Y64: 12167.84531 | Z64: 0 | AA64: 132.7978855 | AD64: =AD36-SUM(AD28:AD29) -> 310245.0283
B68: Fatores de emissão em tCO2/TJ ==> | D68: =COMENTÁRIOS!C21 -> 56.1 | E68: =COMENTÁRIOS!D21 -> 96.1 | F68: =COMENTÁRIOS!E21 -> 94.6 | G68: =COMENTÁRIOS!F21 -> 0 | H68: =COMENTÁRIOS!G21 -> 0 | I68: =COMENTÁRIOS!H21 -> 0 | J68: =COMENTÁRIOS!I21 -> 0 | K68: =COMENTÁRIOS!J21 -> Outros | M68: =COMENTÁRIOS!L21 -> Outros | N68: =COMENTÁRIOS!M21 -> 77.4 | O68: =COMENTÁRIOS!N21 -> 69.3 | P68: =COMENTÁRIOS!O21 -> 63.1 | Q68: =COMENTÁRIOS!P21 -> 73.3 | R68: =COMENTÁRIOS!Q21 -> 71.5 | S68: =COMENTÁRIOS!R21 -> 44.4 | T68: =COMENTÁRIOS!S21 -> 107 | U68: =COMENTÁRIOS!T21 -> 0 | V68: =COMENTÁRIOS!U21 -> 0 | W68: =COMENTÁRIOS!V21 -> 0 | X68: =COMENTÁRIOS!W21 -> 0 | Y68: =COMENTÁRIOS!X21 -> Outros | Z68: =COMENTÁRIOS!Y21 -> 73.3 | AA68: =COMENTÁRIOS!Z21 -> 80.7 | AF68: =COMENTÁRIOS!AB21 -> 0 | AG68: =COMENTÁRIOS!AC21 -> 0 | AH68: =COMENTÁRIOS!AD21 -> 143 | AI68: =COMENTÁRIOS!AE21 -> 74.1 | AJ68: =COMENTÁRIOS!AF21 -> 0 | AK68: =COMENTÁRIOS!AG21 -> 57.6 | AL68: =COMENTÁRIOS!AH21 -> 97.5 | AM68: =COMENTÁRIOS!AI21 -> 73.3
B69: CENÁRIO IES BRASIL 2 - EMISSÕES DE CO2 DA ENERGIA
B70: =LEFT(B11,4)&" - tCO2" -> 2030 - tCO2
C71: FONTES DE ENERGIA PRIMÁRIA | M71: FONTES DE ENERGIA SECUNDÁRIA | AC71: TOTAIS | AF71: =AF12 -> O U T R O S
B72: CONTA | C72: PETRÓLEO | D72: GÁS NATURAL | E72: CARVÃO VAPOR | F72: CARVÃO METALÚRGICO | G72: URÂNIO U3O8 | H72: ENERGIA HIDRÁULICA | I72: LENHA | J72: PRODUTOS DA CANA | K72: OUTRAS FONTES PRIMÁRIAS | L72: ENERGIA PRIMÁRIA TOTAL | M72: ÓLEO DIESEL | N72: ÓLEO COMBUSTIVEL | O72: GASOLINA | P72: GLP | Q72: NAFTA | R72: QUEROSENE | S72: GÁS DE CIDADE E DE COQUERIA | T72: COQUE DE CARVÃO MINERAL | U72: URÂNIO CONTIDO NO UO2 | V72: ELETRICIDADE | W72: CARVÃO VEGETAL | X72: ÁLCOOL ETÍLICO ANIDRO E HIDRATADO | Y72: OUTRAS SECUNDÁRIAS DE PETRÓLEO | Z72: PRODUTOS NÃO ENERGÉTICOS DE PETRÓLEO | AA72: ALCATRÃO | AB72: ENERGIA SECUNDÁRIA TOTAL | AC72: TOTAL DIRETO | AD72: TOTAL COM ELETRIC | AF72: =AF13 -> LIXÍVIA | AG72: =AG13 -> OUTRAS PRIM. RENOVÁVEIS | AH72: OUTRAS PRIM. NÃO RENOV. | AI72: ÓLEO DIESEL MINERAL | AJ72: BIODIESEL | AK72: GÁS DE REFINARIA | AL72: COQUE DE PETRÓLEO | AM72: OUTROS EN. DE PETRÓLEO
B73: PRODUÇÃO
B74: IMPORTAÇÃO
B75: VARIAÇÃO DE ESTOQUES
B76: OFERTA TOTAL
B77: EXPORTAÇÃO
B78: NÃO-APROVEITADA
B79: REINJEÇÃO
B80: OFERTA INTERNA BRUTA
B81: TOTAL TRANSFORMAÇÃO | D81: =SUM(D82:D91) -> 19298402.72 | E81: =SUM(E82:E91) -> 18321879.34 | L81: =SUM(L82:L91) -> 37620282.06 | M81: =SUM(M82:M91) -> 0 | N81: =SUM(N82:N91) -> 3036102.4 | S81: =SUM(S82:S91) -> 19890.64944 | Y81: =SUM(Y82:Y91) -> 30816406.67 | AA81: =SUM(AA82:AA91) -> 62506.8306 | AB81: =SUM(AB82:AB91) -> 3118499.88 | AD81: =SUM(AD82:AD91) -> 40738781.94 | AI81: =SUM(AI82:AI91) -> 0 | AJ81: =SUM(AJ82:AJ91) -> 0 | AK81: =SUM(AK82:AK91) -> 12670539.97 | AL81: =SUM(AL82:AL91) -> 18145866.69 | AM81: =SUM(AM82:AM91) -> 0
B82: REFINARIAS DE PETRÓLEO | Y82: =SUM(AK82:AM82) -> 27077175.59 | AK82: =ABS(AK23)*COMENTÁRIOS!$AE$1*AK$68*AK$9 -> 12670539.97 | AL82: =ABS(AL23)*COMENTÁRIOS!$AE$1*AL$68*AL$9 -> 14406635.61
B83: PLANTAS DE GAS NATURAL
B84: USINAS DE GASEIFICAÇÃO
B85: COQUERIAS | Y85: =SUM(AK85:AM85) -> 3739231.08 | AL85: =ABS(AL26)*COMENTÁRIOS!$AE$1*AL$68*AL$9 -> 3739231.08
B86: CICLO DO COMBUSTÍVEL NUCLEAR
B87: CENTRAIS ELÉTRICAS DE SERVIÇO PÚBLICO | D87: =ABS(D28)*COMENTÁRIOS!$AE$1*D$68 -> 19298402.72 | E87: =ABS(E28)*COMENTÁRIOS!$AE$1*E$68 -> 18159329.35 | L87: =SUM(C87:K87) -> 37457732.06 | M87: =SUM(AI87:AJ87) -> 0 | N87: =ABS(N28)*COMENTÁRIOS!$AE$1*N$68 -> 3036102.4 | Y87: =SUM(AK87:AM87) -> 0 | AB87: =SUM(M87:AA87) -> 3036102.4 | AD87: =AB87+L87 -> 40493834.46 | AI87: =ABS(AI28)*COMENTÁRIOS!$AE$1*AI$68 -> 0 | AJ87: =ABS(AJ28)*COMENTÁRIOS!$AE$1*AJ$68 -> 0 | AK87: =ABS(AK28)*COMENTÁRIOS!$AE$1*AK$68*AK$9 -> 0
B88: CENTRAIS ELÉTRICAS AUTOPRODUTORAS | D88: =ABS(D29)*COMENTÁRIOS!$AE$1*D$68 -> 0 | E88: =ABS(E29)*COMENTÁRIOS!$AE$1*E$68 -> 162549.9979 | L88: =SUM(C88:K88) -> 162549.9979 | M88: =SUM(AI88:AJ88) -> 0 | N88: =ABS(N29)*COMENTÁRIOS!$AE$1*N$68 -> 0 | S88: =ABS(S29)*COMENTÁRIOS!$AE$1*S$68 -> 19890.64944 | Y88: =SUM(AK88:AM88) -> 0 | AA88: =ABS(AA29)*COMENTÁRIOS!$AE$1*AA$68 -> 62506.8306 | AB88: =SUM(M88:AA88) -> 82397.48004 | AD88: =AB88+L88 -> 244947.478 | AI88: =ABS(AI29)*COMENTÁRIOS!$AE$1*AI$68 -> 0 | AJ88: =ABS(AJ29)*COMENTÁRIOS!$AE$1*AJ$68 -> 0 | AK88: =ABS(AK29)*COMENTÁRIOS!$AE$1*AK$68*AK$9 -> 0 | AM88: =ABS(AM29)*COMENTÁRIOS!$AE$1*AM$68*AM$9 -> 0
B89: CARVOARIAS
B90: DESTILARIAS
B91: OUTRAS TRANSFORMAÇÕES | Y91: =SUM(AK91:AM91) -> 0 | AL91: =ABS(AL32)*COMENTÁRIOS!$AE$1*AL$68*AL$9 -> 0 | AM91: =ABS(AM32)*COMENTÁRIOS!$AE$1*AM$68*AM$9 -> 0
B92: PERDAS NA DISTRIBUIÇÃO E ARMAZENAGEM
B93: CONSUMO FINAL | D93: =SUM(D94:D95) -> 62116727.23 | E93: =SUM(E94:E95) -> 5695088.268 | I93: =SUM(I94:I95) -> 0 | J93: =SUM(J94:J95) -> 0 | K93: =SUM(K94:K95) -> 3302623.168 | L93: =SUM(C93:K93) -> 71114438.67 | M93: =SUM(M94:M95) -> 150319556.7 | N93: =SUM(N94:N95) -> 14488471.79 | O93: =SUM(O94:O95) -> 43171797.38 | P93: =SUM(P94:P95) -> 28218620.14 | R93: =SUM(R94:R95) -> 16568192.31 | S93: =SUM(S94:S95) -> 3754798.758 | T93: =SUM(T94:T95) -> 561989.3415 | V93: =SUM(V94:V95) -> 40738781.94 | W93: =SUM(W94:W95) -> 0 | X93: =SUM(X94:X95) -> 0 | Y93: =SUM(Y94:Y95) -> 36691622.58 | AA93: =SUM(AA94:AA95) -> 386183.7063 | AB93: =SUM(M93:AA93)-V93 -> 294161232.7 | AC93: =AB93+L93 -> 365275671.4 | AD93: =AC93+V93 -> 406014453.3 | AF93: =SUM(AF94:AF95) -> 0 | AG93: 0 | AH93: 3302623.168 | AI93: 150319556.7 | AJ93: 0 | AK93: 9672619.245 | AL93: 23586104.47 | AM93: 7301205.294
B94: CONSUMO FINAL NÃO-ENERGÉTICO | D94: =D35*COMENTÁRIOS!$AE$1*D$68 -> 9270387.243 | L94: =SUM(C94:K94) -> 9270387.243 | Q94: =Q35*COMENTÁRIOS!$AE$1*Q$68 -> 33233907.47 | R94: =R35*COMENTÁRIOS!$AE$1*R$68 -> 0 | Y94: =SUM(AK94:AM94) -> 0 | Z94: =Z35*COMENTÁRIOS!$AE$1*Z$68 -> 35719975.35 | AA94: =AA35*COMENTÁRIOS!$AE$1*AA$68 -> 0 | AB94: =SUM(M94:AA94)-V94 -> 68953882.82 | AC94: =AB94+L94 -> 78224270.06 | AD94: =AC94+V94 -> 78224270.06 | AK94: =ABS(AK35)*COMENTÁRIOS!$AE$1*AK$68*AK$9 -> 0
B95: CONSUMO FINAL ENERGÉTICO | D95: =SUM(D96:D101)+D106 -> 52846339.99 | E95: =SUM(E96:E101)+E106 -> 5695088.268 | I95: =SUM(I96:I101)+I106 -> 0 | J95: =SUM(J96:J101)+J106 -> 0 | K95: =SUM(K96:K101)+K106 -> 3302623.168 | L95: =SUM(C95:K95) -> 61844051.42 | M95: =SUM(M96:M101)+M106 -> 150319556.7 | N95: =SUM(N96:N101)+N106 -> 14488471.79 | O95: =SUM(O96:O101)+O106 -> 43171797.38 | P95: =SUM(P96:P101)+P106 -> 28218620.14 | R95: =SUM(R96:R101)+R106 -> 16568192.31 | S95: =SUM(S96:S101)+S106 -> 3754798.758 | T95: =SUM(T96:T101)+T106 -> 561989.3415 | V95: =SUM(V96:V101)+V106 -> 40738781.94 | W95: =SUM(W96:W101)+W106 -> 0 | X95: =SUM(X96:X101)+X106 -> 0 | Y95: =SUM(Y96:Y101)+Y106 -> 36691622.58 | AA95: =SUM(AA96:AA101)+AA106 -> 386183.7063 | AB95: 294161232.7 | AC95: =AB95+L95 -> 356005284.1 | AD95: =AC95+V95 -> 396744066.1 | AF95: =SUM(AF96:AF101)+AF106 -> 0 | AG95: 0 | AH95: 3302623.168 | AI95: 150319556.7 | AJ95: 0 | AK95: 9672619.245 | AL95: 23586104.47 | AM95: 7301205.294
B96: SETOR ENERGÉTICO | D96: =D37*COMENTÁRIOS!$AE$1*D$68 -> 16602209.17 | L96: 16602209.17 | M96: =SUM(AI96:AJ96) -> 3835833.041 | N96: =N37*COMENTÁRIOS!$AE$1*N$68 -> 1446500.336 | P96: =P37*COMENTÁRIOS!$AE$1*P$68 -> 77726.75891 | S96: =S37*COMENTÁRIOS!$AE$1*S$68 -> 499412.3804 | V96: =V37/V$34*$AD$123 -> 2257794.906 | Y96: =SUM(AK96:AM96) -> 9292824.752 | AB96: 15152297.27 | AC96: 31754506.44 | AD96: 34012301.35 | AI96: =ABS(AI37)*COMENTÁRIOS!$AE$1*AI$68 -> 3835833.041 | AJ96: =ABS(AJ37)*COMENTÁRIOS!$AE$1*AJ$68 -> 0 | AK96: =ABS(AK37)*COMENTÁRIOS!$AE$1*AK$68*AK$9 -> 9292824.752
B97: RESIDENCIAL | D97: =D38*COMENTÁRIOS!$AE$1*D$68 -> 2236969.152 | I97: =I38*COMENTÁRIOS!$AE$1*I$68 -> 0 | L97: 2236969.152 | P97: =P38*COMENTÁRIOS!$AE$1*P$68 -> 21654026.28 | R97: =R38*COMENTÁRIOS!$AE$1*R$68 -> 0 | V97: =V38/V$34*$AD$123 -> 12090259.89 | W97: =W38*COMENTÁRIOS!$AE$1*W$68 -> 0 | AB97: 21654026.28 | AC97: 23890995.43 | AD97: 35981255.32
B98: COMERCIAL | D98: =D39*COMENTÁRIOS!$AE$1*D$68 -> 747718.6239 | I98: =I39*COMENTÁRIOS!$AE$1*I$68 -> 0 | L98: 747718.6239 | M98: =SUM(AI98:AJ98) -> 16076.73608 | N98: =N39*COMENTÁRIOS!$AE$1*N$68 -> 47389.57738 | P98: =P39*COMENTÁRIOS!$AE$1*P$68 -> 1279467.78 | V98: =V39/V$34*$AD$123 -> 8042080.864 | W98: =W39*COMENTÁRIOS!$AE$1*W$68 -> 0 | AB98: 1342934.093 | AC98: 2090652.717 | AD98: 10132733.58 | AI98: =ABS(AI39)*COMENTÁRIOS!$AE$1*AI$68 -> 16076.73608 | AJ98: =ABS(AJ39)*COMENTÁRIOS!$AE$1*AJ$68 -> 0
B99: PÚBLICO | D99: =D40*COMENTÁRIOS!$AE$1*D$68 -> 91040.3521 | L99: 91040.3521 | M99: =SUM(AI99:AJ99) -> 5277.88699 | N99: =N40*COMENTÁRIOS!$AE$1*N$68 -> 31411.61573 | P99: =P40*COMENTÁRIOS!$AE$1*P$68 -> 584689.9464 | V99: =V40/V$34*$AD$123 -> 2176388.147 | AB99: 621379.4491 | AC99: 712419.8012 | AD99: 2888807.948 | AI99: =ABS(AI40)*COMENTÁRIOS!$AE$1*AI$68 -> 5277.88699 | AJ99: =ABS(AJ40)*COMENTÁRIOS!$AE$1*AJ$68 -> 0
B100: AGROPECUÁRIO | I100: =I41*COMENTÁRIOS!$AE$1*I$68 -> 0 | L100: 0 | M100: =SUM(AI100:AJ100) -> 18976491.15 | N100: =N41*COMENTÁRIOS!$AE$1*N$68 -> 71707.12401 | P100: =P41*COMENTÁRIOS!$AE$1*P$68 -> 952676.7891 | V100: =V41/V$34*$AD$123 -> 2010817.944 | W100: =W41*COMENTÁRIOS!$AE$1*W$68 -> 0 | X100: =X41*COMENTÁRIOS!$AE$1*X$68 -> 0 | AB100: 20000875.06 | AC100: 20000875.06 | AD100: 22011693 | AI100: =ABS(AI41)*COMENTÁRIOS!$AE$1*AI$68 -> 18976491.15 | AJ100: =ABS(AJ41)*COMENTÁRIOS!$AE$1*AJ$68 -> 0
B101: TRANSPORTES - TOTAL | D101: =SUM(D102:D105) -> 4474545.896 | L101: 4474545.896 | M101: =SUM(M102:M105) -> 124275375 | N101: =SUM(N102:N105) -> 3972739.03 | O101: =SUM(O102:O105) -> 43171797.38 | R101: =SUM(R102:R105) -> 16563246.73 | V101: =SUM(V102:V105) -> 333540.1492 | X101: =SUM(X102:X105) -> 0 | AB101: 187983158.2 | AC101: 192457704.1 | AD101: 192791244.2 | AI101: =SUM(AI102:AI105) -> 124275375 | AJ101: =SUM(AJ102:AJ105) -> 0
B102: RODOVIÁRIO | D102: =D43*COMENTÁRIOS!$AE$1*D$68 -> 4474545.896 | L102: 4474545.896 | M102: =SUM(AI102:AJ102) -> 119757642.8 | O102: =O43*COMENTÁRIOS!$AE$1*O$68 -> 42983669.34 | V102: =V43/V$34*$AD$123 -> 77820.82383 | X102: =X43*COMENTÁRIOS!$AE$1*X$68 -> 0 | AB102: 162741312.1 | AC102: 167215858 | AD102: 167293678.9 | AI102: =ABS(AI43)*COMENTÁRIOS!$AE$1*AI$68 -> 119757642.8 | AJ102: =ABS(AJ43)*COMENTÁRIOS!$AE$1*AJ$68 -> 0
B103: FERROVIÁRIO | M103: =SUM(AI103:AJ103) -> 2970654.192 | V103: =V44/V$34*$AD$123 -> 255719.3253 | AB103: 2970654.192 | AC103: 2970654.192 | AD103: 3226373.518 | AI103: =ABS(AI44)*COMENTÁRIOS!$AE$1*AI$68 -> 2970654.192 | AJ103: =ABS(AJ44)*COMENTÁRIOS!$AE$1*AJ$68 -> 0
B104: AÉREO | O104: =O45*COMENTÁRIOS!$AE$1*O$68 -> 188128.0402 | R104: =R45*COMENTÁRIOS!$AE$1*R$68 -> 16563246.73 | AB104: 16751374.77 | AC104: 16751374.77 | AD104: 16751374.77
B105: HIDROVIÁRIO | M105: =SUM(AI105:AJ105) -> 1547078.021 | N105: =N46*COMENTÁRIOS!$AE$1*N$68 -> 3972739.03 | AB105: 5519817.051 | AC105: 5519817.051 | AD105: 5519817.051 | AI105: =ABS(AI46)*COMENTÁRIOS!$AE$1*AI$68 -> 1547078.021 | AJ105: =ABS(AJ46)*COMENTÁRIOS!$AE$1*AJ$68 -> 0
B106: INDUSTRIAL - TOTAL | D106: =SUM(D107:D117) -> 28693856.79 | E106: =SUM(E107:E117) -> 5695088.268 | I106: =SUM(I107:I117) -> 0 | J106: =SUM(J107:J117) -> 0 | K106: =SUM(K107:K117) -> 3302623.168 | L106: 37691568.22 | M106: =SUM(M107:M117) -> 3210502.862 | N106: =SUM(N107:N117) -> 8918724.106 | P106: =SUM(P107:P117) -> 3670032.588 | R106: =SUM(R107:R117) -> 4945.579343 | S106: =SUM(S107:S117) -> 3255386.378 | T106: =SUM(T107:T117) -> 561989.3415 | V106: =SUM(V107:V117) -> 13827900.04 | W106: =SUM(W107:W117) -> 0 | Y106: =SUM(Y107:Y117) -> 27398797.83 | AA106: =SUM(AA107:AA117) -> 386183.7063 | AB106: 47406562.38 | AC106: 85098130.61 | AD106: 98926030.65 | AF106: =SUM(AF107:AF117) -> 0 | AG106: 0 | AH106: 3302623.168 | AI106: 3210502.862 | AJ106: 0 | AK106: 379794.4931 | AL106: 23586104.47 | AM106: 7301205.294
B107: CIMENTO | D107: =D48*COMENTÁRIOS!$AE$1*D$68 -> 18902.39591 | E107: =E48*COMENTÁRIOS!$AE$1*E$68 -> 599644.1259 | I107: =I48*COMENTÁRIOS!$AE$1*I$68 -> 0 | K107: =SUM(AF107:AH107) -> 2956838.082 | L107: 3575384.604 | M107: =SUM(AI107:AJ107) -> 123291.4337 | N107: =N48*COMENTÁRIOS!$AE$1*N$68 -> 45857.1688 | P107: =P48*COMENTÁRIOS!$AE$1*P$68 -> 48409.37635 | T107: =T48*COMENTÁRIOS!$AE$1*T$68 -> 182420.1027 | V107: =V48/V$34*$AD$123 -> 394728.6795 | W107: =W48*COMENTÁRIOS!$AE$1*W$68 -> 0 | Y107: =SUM(AK107:AM107) -> 12400317.33 | AB107: 12800295.41 | AC107: 16375680.01 | AD107: 16770408.69 | AF107: =ABS(AF48)*COMENTÁRIOS!$AE$1*AF$68 -> 0 | AG107: =ABS(AG48)*COMENTÁRIOS!$AE$1*AG$68 -> 0 | AH107: =ABS(AH48)*COMENTÁRIOS!$AE$1*AH$68 -> 2956838.082 | AI107: =ABS(AI48)*COMENTÁRIOS!$AE$1*AI$68 -> 123291.4337 | AJ107: =ABS(AJ48)*COMENTÁRIOS!$AE$1*AJ$68 -> 0 | AL107: =ABS(AL48)*COMENTÁRIOS!$AE$1*AL$68*AL$9 -> 12400317.33
B108: FERRO-GUSA E AÇO | D108: =D49*COMENTÁRIOS!$AE$1*D$68 -> 3622525.291 | E108: =E49*COMENTÁRIOS!$AE$1*E$68*AF125 -> 0 | K108: =SUM(AF108:AH108) -> 0 | L108: 3622525.291 | M108: 191249.4675 | N108: =N49*COMENTÁRIOS!$AE$1*N$68 -> 0 | P108: =P49*COMENTÁRIOS!$AE$1*P$68 -> 58789.05586 | S108: =S49*COMENTÁRIOS!$AE$1*S$68 -> 3255386.378 | T108: =T49*COMENTÁRIOS!$AE$1*T$68*AF124 -> 0 | V108: 1268280.601 | W108: =W49*COMENTÁRIOS!$AE$1*W$68 -> 0 | Y108: =SUM(AK108:AM108)*AF123 -> 0 | AA108: =AA49*COMENTÁRIOS!$AE$1*AA$68 -> 386183.7063 | AB108: 3891608.607 | AC108: 7514133.899 | AD108: 8782414.499 | AF108: =ABS(AF49)*COMENTÁRIOS!$AE$1*AF$68 -> 0 | AG108: =ABS(AG49)*COMENTÁRIOS!$AE$1*AG$68 -> 0 | AH108: =ABS(AH49)*COMENTÁRIOS!$AE$1*AH$68 -> 0 | AI108: =ABS(AI49)*COMENTÁRIOS!$AE$1*AI$68 -> 191249.4675 | AJ108: =ABS(AJ49)*COMENTÁRIOS!$AE$1*AJ$68 -> 0 | AL108: =ABS(AL49)*COMENTÁRIOS!$AE$1*AL$68*AL$9 -> 211475.6345
B109: FERRO-LIGAS | D109: =D50*COMENTÁRIOS!$AE$1*D$68 -> 134133.6468 | I109: =I50*COMENTÁRIOS!$AE$1*I$68 -> 0 | K109: =SUM(AF109:AH109) -> 0 | L109: 134133.6468 | M109: 17259.6982 | N109: =N50*COMENTÁRIOS!$AE$1*N$68 -> 4076.242181 | P109: =P50*COMENTÁRIOS!$AE$1*P$68 -> 20294.87854 | R109: =R50*COMENTÁRIOS!$AE$1*R$68 -> 0 | V109: 363387.5494 | W109: =W50*COMENTÁRIOS!$AE$1*W$68 -> 0 | Y109: =SUM(AK109:AM109)*AF123 -> 0 | AB109: 41630.81891 | AC109: 175764.4657 | AD109: 539152.0151 | AF109: =ABS(AF50)*COMENTÁRIOS!$AE$1*AF$68 -> 0 | AG109: =ABS(AG50)*COMENTÁRIOS!$AE$1*AG$68 -> 0 | AH109: =ABS(AH50)*COMENTÁRIOS!$AE$1*AH$68 -> 0 | AI109: =ABS(AI50)*COMENTÁRIOS!$AE$1*AI$68 -> 17259.6982 | AJ109: =ABS(AJ50)*COMENTÁRIOS!$AE$1*AJ$68 -> 0 | AL109: =ABS(AL50)*COMENTÁRIOS!$AE$1*AL$68*AL$9 -> 602825.6606
B110: MINERAÇÃO E PELOTIZ. | D110: =D51*COMENTÁRIOS!$AE$1*D$68 -> 4286234.19 | E110: =E51*COMENTÁRIOS!$AE$1*E$68 -> 2397730.985 | K110: =SUM(AF110:AH110) -> 0 | L110: 6683965.175 | M110: 1225558.155 | N110: =N51*COMENTÁRIOS!$AE$1*N$68 -> 1031996.059 | P110: =P51*COMENTÁRIOS!$AE$1*P$68 -> 209193.5195 | R110: =R51*COMENTÁRIOS!$AE$1*R$68 -> 3567.333172 | T110: =T51*COMENTÁRIOS!$AE$1*T$68 -> 379569.2388 | V110: 1057963.78 | Y110: =SUM(AK110:AM110) -> 2179441.351 | AB110: 5029325.657 | AC110: 11713290.83 | AD110: 12771254.61 | AF110: =ABS(AF51)*COMENTÁRIOS!$AE$1*AF$68 -> 0 | AG110: =ABS(AG51)*COMENTÁRIOS!$AE$1*AG$68 -> 0 | AH110: =ABS(AH51)*COMENTÁRIOS!$AE$1*AH$68 -> 0 | AI110: =ABS(AI51)*COMENTÁRIOS!$AE$1*AI$68 -> 1225558.155 | AJ110: =ABS(AJ51)*COMENTÁRIOS!$AE$1*AJ$68 -> 0 | AL110: =ABS(AL51)*COMENTÁRIOS!$AE$1*AL$68*AL$9 -> 2179441.351
B111: NÃO-FERROSOS E OUTROS DA METALURGIA | D111: =D52*COMENTÁRIOS!$AE$1*D$68 -> 2116726.038 | E111: =E52*COMENTÁRIOS!$AE$1*E$68*AF125 -> 0 | K111: =SUM(AF111:AH111) -> 0 | L111: 2116726.038 | M111: 18153.49744 | N111: =N52*COMENTÁRIOS!$AE$1*N$68 -> 2604066.852 | P111: =P52*COMENTÁRIOS!$AE$1*P$68 -> 75840.30402 | T111: =T52*COMENTÁRIOS!$AE$1*T$68*AF124 -> 0 | V111: 2005037.487 | W111: =W52*COMENTÁRIOS!$AE$1*W$68 -> 0 | Y111: =SUM(AK111:AM111)*AF123 -> 0 | AB111: 2698060.654 | AC111: 4814786.691 | AD111: 6819824.179 | AF111: =ABS(AF52)*COMENTÁRIOS!$AE$1*AF$68 -> 0 | AG111: =ABS(AG52)*COMENTÁRIOS!$AE$1*AG$68 -> 0 | AH111: =ABS(AH52)*COMENTÁRIOS!$AE$1*AH$68 -> 0 | AI111: =ABS(AI52)*COMENTÁRIOS!$AE$1*AI$68 -> 18153.49744 | AJ111: =ABS(AJ52)*COMENTÁRIOS!$AE$1*AJ$68 -> 0 | AL111: =ABS(AL52)*COMENTÁRIOS!$AE$1*AL$68*AL$9 -> 3054005.136
B112: QUÍMICA | D112: =D53*COMENTÁRIOS!$AE$1*D$68 -> 5916822.528 | E112: =E53*COMENTÁRIOS!$AE$1*E$68 -> 721046.5761 | I112: =I53*COMENTÁRIOS!$AE$1*I$68 -> 0 | K112: =SUM(AF112:AH112) -> 345785.0855 | L112: 6983654.19 | M112: 130115.7713 | N112: =N53*COMENTÁRIOS!$AE$1*N$68 -> 1339753.605 | P112: =P53*COMENTÁRIOS!$AE$1*P$68 -> 1069024.366 | V112: 1424783.217 | W112: =W53*COMENTÁRIOS!$AE$1*W$68 -> 0 | Y112: 8107685.578 | AB112: 10646579.32 | AC112: 17630233.51 | AD112: 19055016.73 | AF112: =ABS(AF53)*COMENTÁRIOS!$AE$1*AF$68 -> 0 | AG112: =ABS(AG53)*COMENTÁRIOS!$AE$1*AG$68 -> 0 | AH112: =ABS(AH53)*COMENTÁRIOS!$AE$1*AH$68 -> 345785.0855 | AI112: =ABS(AI53)*COMENTÁRIOS!$AE$1*AI$68 -> 130115.7713 | AJ112: =ABS(AJ53)*COMENTÁRIOS!$AE$1*AJ$68 -> 0 | AK112: =ABS(AK53)*COMENTÁRIOS!$AE$1*AK$68*AK$9 -> 379794.4931 | AL112: =ABS(AL53)*COMENTÁRIOS!$AE$1*AL$68*AL$9 -> 426685.7908 | AM112: =ABS(AM53)*COMENTÁRIOS!$AE$1*AM$68*AM$9 -> 7301205.294
B113: ALIMENTOS E BEBIDAS | D113: =D54*COMENTÁRIOS!$AE$1*D$68 -> 2750187.267 | E113: =E54*COMENTÁRIOS!$AE$1*E$68 -> 406699.2395 | I113: =I54*COMENTÁRIOS!$AE$1*I$68 -> 0 | J113: =J54*COMENTÁRIOS!$AE$1*J$68 -> 0 | K113: 0 | L113: 3156886.507 | M113: 912347.7823 | N113: =N54*COMENTÁRIOS!$AE$1*N$68 -> 1200879.922 | P113: =P54*COMENTÁRIOS!$AE$1*P$68 -> 612888.2618 | V113: 2008771.229 | Y113: 468603.6854 | AB113: 3194719.651 | AC113: 6351606.158 | AD113: 8360377.387 | AF113: =ABS(AF54)*COMENTÁRIOS!$AE$1*AF$68 -> 0 | AG113: =ABS(AG54)*COMENTÁRIOS!$AE$1*AG$68 -> 0 | AH113: =ABS(AH54)*COMENTÁRIOS!$AE$1*AH$68 -> 0 | AI113: =ABS(AI54)*COMENTÁRIOS!$AE$1*AI$68 -> 912347.7823 | AJ113: =ABS(AJ54)*COMENTÁRIOS!$AE$1*AJ$68 -> 0 | AL113: =ABS(AL54)*COMENTÁRIOS!$AE$1*AL$68*AL$9 -> 468603.6854
B114: TÊXTIL | D114: =D55*COMENTÁRIOS!$AE$1*D$68 -> 895749.7479 | I114: =I55*COMENTÁRIOS!$AE$1*I$68 -> 0 | K114: 0 | L114: 895749.7479 | M114: 19883.37436 | N114: =N55*COMENTÁRIOS!$AE$1*N$68 -> 208085.1607 | P114: =P55*COMENTÁRIOS!$AE$1*P$68 -> 197423.6573 | V114: 569341.4457 | AB114: 425392.1924 | AC114: 1321141.94 | AD114: 1890483.386 | AF114: =ABS(AF55)*COMENTÁRIOS!$AE$1*AF$68 -> 0 | AG114: =ABS(AG55)*COMENTÁRIOS!$AE$1*AG$68 -> 0 | AH114: =ABS(AH55)*COMENTÁRIOS!$AE$1*AH$68 -> 0 | AI114: =ABS(AI55)*COMENTÁRIOS!$AE$1*AI$68 -> 19883.37436 | AJ114: =ABS(AJ55)*COMENTÁRIOS!$AE$1*AJ$68 -> 0
B115: PAPEL E CELULOSE | D115: =D56*COMENTÁRIOS!$AE$1*D$68 -> 2485812.733 | E115: =E56*COMENTÁRIOS!$AE$1*E$68 -> 753837.9007 | I115: =I56*COMENTÁRIOS!$AE$1*I$68 -> 0 | J115: =J56*COMENTÁRIOS!$AE$1*J$68 -> 0 | K115: 0 | L115: 3239650.634 | M115: 15578.08276 | N115: =N56*COMENTÁRIOS!$AE$1*N$68 -> 1585524.868 | P115: =P56*COMENTÁRIOS!$AE$1*P$68 -> 156530.6617 | V115: 1862681.746 | AB115: 1757633.612 | AC115: 4997284.246 | AD115: 6859965.992 | AF115: =ABS(AF56)*COMENTÁRIOS!$AE$1*AF$68 -> 0 | AG115: =ABS(AG56)*COMENTÁRIOS!$AE$1*AG$68 -> 0 | AH115: =ABS(AH56)*COMENTÁRIOS!$AE$1*AH$68 -> 0 | AI115: =ABS(AI56)*COMENTÁRIOS!$AE$1*AI$68 -> 15578.08276 | AJ115: =ABS(AJ56)*COMENTÁRIOS!$AE$1*AJ$68 -> 0
B116: CERÂMICA | D116: =D57*COMENTÁRIOS!$AE$1*D$68 -> 2822763.447 | E116: =E57*COMENTÁRIOS!$AE$1*E$68 -> 150936.527 | I116: =I57*COMENTÁRIOS!$AE$1*I$68 -> 0 | J116: =J57*COMENTÁRIOS!$AE$1*J$68 -> 0 | K116: 0 | L116: 2973699.974 | M116: 75130.02967 | N116: =N57*COMENTÁRIOS!$AE$1*N$68 -> 298824.814 | P116: =P57*COMENTÁRIOS!$AE$1*P$68 -> 599904.6171 | V116: 303575.3161 | Y116: =SUM(AK116:AM116) -> 2321649.213 | AB116: 3295508.674 | AC116: 6269208.648 | AD116: 6572783.964 | AF116: =ABS(AF57)*COMENTÁRIOS!$AE$1*AF$68 -> 0 | AG116: =ABS(AG57)*COMENTÁRIOS!$AE$1*AG$68 -> 0 | AH116: =ABS(AH57)*COMENTÁRIOS!$AE$1*AH$68 -> 0 | AI116: =ABS(AI57)*COMENTÁRIOS!$AE$1*AI$68 -> 75130.02967 | AJ116: =ABS(AJ57)*COMENTÁRIOS!$AE$1*AJ$68 -> 0 | AL116: =ABS(AL57)*COMENTÁRIOS!$AE$1*AL$68*AL$9 -> 2321649.213
